Workbook

Sheet README
A1: Version Date: | B1: 2022-01-26
A3: This calculator illustrates the impact of residential soil lead concentration on risk predictions (P3.5, P4-P10) over a range of potential site concentrations for intermittent exposures, and calculates the relative contribution of site and residential soil lead intake for each combination of site and residential soil concentration.
A6: Because the exposure of children to lead at other non-residential sites is in addition to their residential exposure, time weighting would typically be used to derive an input to the IEUBK model (see U.S. EPA, 2003).
A8: Note the exposure frequency and duration must be no less than one day per week for 13 consecutive weeks (see U.S. EPA, 2003).
A10: The EPC for lead during intermittent site exposure would be calculated as a time-weighted average of the site DU lead concentration and house DU soil lead concentration (see U.S. EPA, 2003).
A12: This time-weighted EPC would be used to assess the risk posed by current, intermittent site exposure in combination with exposure to soil (and dust—see below) at the house DU.
A14: The additional ingestion due to increased adherence of sediment was not considered in this assessment. For this illustration, only the default soil-dust ingestion was used.
A16: The IEUBK model risk predictions allow for consideration that lead from the site may or may not be tracked back into the home (Multiple Source Analysis is used or not depending on a radio button).
A17: The calculator assumes the track in- scenerio unless the green button in the top left corner is selected.
A18: The toggle button allows the User to determine whether the risk caclulation includes track-in (TWA soil concentration carried into the residence as indoor dust) or not (indoor dust is based solely on residential soil lead concentration and a small contribution from outdoor air lead concentration).
A20: The IEUBK model risk predictions assume that the bioavailability of lead is the same at home and site (see U.S. EPA, 2020)
A22: If RBA differs between site and residence, RBA adjustments to the EPC term should be made according to guidance (see U.S. EPA, 2020).
A24: The P3.5 and P4-P10 range is used for calculations based on TRW Lead Committee recommendations.
A26: All other IEUBK model variables are defaults in IEUBK model (v2.0 build 1.72).
A28: This calculator is valid for soil lead concentrations from 25–800 ppm (whole numbers only).
A30: US EPA (2024) http://semspub.epa.gov/src/document/HQ/100003488.pdf
A31: US EPA (2021) https://semspub.epa.gov/work/HQ/100002712.pdf

Sheet TWA Risk Calculation Tool
D1: TWA Calculation Inputs
D2: Time at Site | E2: 2 | F2: d | L2: Only change data in yellow cells
D3: Time at Home | E3: =E4-E2 -> 5 | F3: d
A4: Select Green Button Above to Toggle Between | D4: Total | E4: 7 | F4: d
A5: Two Scenarios: Dust Tracked In or Not | D5: Target Risk | E5: 5 | F5: 3.5 and 4-10 µg/dL*
A7: TWA Inputs to IEUBK
A8: House DU Pb Conc. (ppm) | B8: Site DU Conc. (ppm) | L8: Cells E2 and E4 must meet the IEUBK model required minimum exposure frequency and duration of 1 day per week for 13 consecutive weeks. The units may be days/week, weeks/year, days/year, months/year, etc. User sets the numerator and the denominator and changes units accordingly.
B9: 100 | C9: 200 | D9: 300 | E9: 400 | F9: 500 | G9: 600 | H9: 700 | I9: 750 | J9: 800
A10: 50 | B10: =ROUND(((B$9*$E$2)+($A10*$E$3))/$E$4,0) -> 64 | C10: =ROUND(((C$9*$E$2)+($A10*$E$3))/$E$4,0) -> 93 | D10: 121 | E10: 150 | F10: 179 | G10: 207 | H10: 236 | I10: =ROUND(((I$9*$E$2)+($A10*$E$3))/$E$4,0) -> 250 | J10: 264
A11: 120 | B11: =ROUND(((B$9*$E$2)+($A11*$E$3))/$E$4,0) -> 114 | C11: 143 | D11: 171 | E11: 200 | F11: 229 | G11: 257 | H11: 286 | I11: 300 | J11: 314
A12: 150 | B12: 136 | C12: 164 | D12: 193 | E12: 221 | F12: 250 | G12: 279 | H12: 307 | I12: 321 | J12: 336 | L12: This is the target risk level (P3.5 and P4-10) in whole numbers only.
L13: IEUBK V2 (build 67)
A16: IEUBK Model Risk Prediction (% probability of exceeding the target BLL) | M16: Relative Percent Contribution of Site and House Exposure*
A17: Target Blood Lead (µg/dL) | E17: =$E$5 -> 5 | M17: House DU Pb Conc. (ppm) | N17: Site DU Conc. (ppm)
A18: House DU Pb Conc. (ppm) | B18: Site DU Conc. (ppm) | N18: =B9 -> 100 | P18: =C9 -> 200 | R18: =D9 -> 300 | T18: =E9 -> 400 | V18: =F9 -> 500 | X18: =J9 -> 800
B19: =B9 -> 100 | C19: 200 | D19: 300 | E19: 400 | F19: 500 | G19: =G9 -> 600 | H19: 700 | I19: =I9 -> 750 | J19: 800 | N19: site (%) | O19: house (%) | P19: =$N$19 -> site (%) | Q19: house (%) | R19: =$N$19 -> site (%) | S19: house (%) | T19: =$N$19 -> site (%) | U19: house (%) | V19: =$N$19 -> site (%) | W19: house (%) | X19: =$N$19 -> site (%) | Y19: house (%)
A20: =A10 -> 50 | B20: =VLOOKUP(B10,INDIRECT("'Batch Output P"&$E$5&"'!$E$23:$N$798"),10, TRUE) -> 0.506 | C20: =VLOOKUP(C10,INDIRECT("'Batch Output P"&$E$5&"'!$E$23:$N$798"),10, TRUE) -> 0.979 | D20: 1.662 | E20: 2.636 | F20: 3.9 | G20: =VLOOKUP(G10,INDIRECT("'Batch Output P"&$E$5&"'!$E$23:$N$798"),10, TRUE) -> 5.397 | H20: 7.225 | I20: =VLOOKUP(I10,INDIRECT("'Batch Output P"&$E$5&"'!$E$23:$N$798"),10, TRUE) -> 8.203 | J20: 9.238 | M20: =A10 -> 50 | N20: =B$9*$E$2/$E$4/$B10 -> 0.4464285714 | O20: =$A10*$E$3/$E$4/$B10 -> 0.5580357143 | P20: =C$9*$E$2/$E$4/$C10 -> 0.6144393241 | Q20: =$A10*$E$3/$E$4/$C10 -> 0.3840245776 | R20: =D$9*$E$2/$E$4/$D10 -> 0.7083825266 | S20: =$A10*$E$3/$E$4/$D10 -> 0.2951593861 | T20: =E$9*$E$2/$E$4/$E10 -> 0.7619047619 | U20: =$A10*$E$3/$E$4/$E10 -> 0.2380952381 | V20: =F$9*$E$2/$E$4/$F10 -> 0.798084597 | W20: =$A10*$E$3/$E$4/$F10 -> 0.1995211492 | X20: =J$9*$E$2/$E$4/$J10 -> 0.8658008658 | Y20: =$A10*$E$3/$E$4/$J10 -> 0.1352813853
A21: =A11 -> 120 | B21: =VLOOKUP(B11,INDIRECT("'Batch Output P"&$E$5&"'!$E$23:$N$798"),10, TRUE) -> 1.468 | C21: =VLOOKUP(C11,INDIRECT("'Batch Output P"&$E$5&"'!$E$23:$N$798"),10, TRUE) -> 2.375 | D21: 3.522 | E21: 4.998 | F21: 6.759 | G21: =VLOOKUP(G11,INDIRECT("'Batch Output P"&$E$5&"'!$E$23:$N$798"),10, TRUE) -> 8.713 | H21: 10.974 | I21: =VLOOKUP(I11,INDIRECT("'Batch Output P"&$E$5&"'!$E$23:$N$798"),10, TRUE) -> 12.141 | J21: 13.354 | M21: =A11 -> 120 | N21: =B$9*$E$2/$E$4/$B11 -> 0.2506265664 | O21: =$A11*$E$3/$E$4/$B11 -> 0.7518796992 | P21: =C$9*$E$2/$E$4/$C11 -> 0.3996003996 | Q21: =$A11*$E$3/$E$4/$C11 -> 0.5994005994 | R21: =D$9*$E$2/$E$4/$D11 -> 0.5012531328 | S21: =$A11*$E$3/$E$4/$D11 -> 0.5012531328 | T21: =E$9*$E$2/$E$4/$E11 -> 0.5714285714 | U21: =$A11*$E$3/$E$4/$E11 -> 0.4285714286 | V21: =F$9*$E$2/$E$4/$F11 -> 0.6238303182 | W21: =$A11*$E$3/$E$4/$F11 -> 0.3742981909 | X21: =J$9*$E$2/$E$4/$J11 -> 0.7279344859 | Y21: =$A11*$E$3/$E$4/$J11 -> 0.2729754322
A22: =A12 -> 150 | B22: =VLOOKUP(B12,INDIRECT("'Batch Output P"&$E$5&"'!$E$23:$N$798"),10, TRUE) -> 2.13 | C22: =VLOOKUP(C12,INDIRECT("'Batch Output P"&$E$5&"'!$E$23:$N$798"),10, TRUE) -> 3.209 | D22: 4.615 | E22: 6.246 | F22: 8.203 | G22: =VLOOKUP(G12,INDIRECT("'Batch Output P"&$E$5&"'!$E$23:$N$798"),10, TRUE) -> 10.408 | H22: 12.742 | I22: =VLOOKUP(I12,INDIRECT("'Batch Output P"&$E$5&"'!$E$23:$N$798"),10, TRUE) -> 13.976 | J22: 15.34 | M22: =A12 -> 150 | N22: =B$9*$E$2/$E$4/$B12 -> 0.2100840336 | O22: =$A12*$E$3/$E$4/$B12 -> 0.7878151261 | P22: =C$9*$E$2/$E$4/$C12 -> 0.3484320557 | Q22: =$A12*$E$3/$E$4/$C12 -> 0.6533101045 | R22: =D$9*$E$2/$E$4/$D12 -> 0.44411547 | S22: =$A12*$E$3/$E$4/$D12 -> 0.5551443375 | T22: =E$9*$E$2/$E$4/$E12 -> 0.5171299289 | U22: =$A12*$E$3/$E$4/$E12 -> 0.4848093083 | V22: =F$9*$E$2/$E$4/$F12 -> 0.5714285714 | W22: =$A12*$E$3/$E$4/$F12 -> 0.4285714286 | X22: =J$9*$E$2/$E$4/$J12 -> 0.6802721088 | Y22: =$A12*$E$3/$E$4/$J12 -> 0.318877551
A23: The IEUBK results calculation works for all TWAs from 25-4,000 ppm (whole numbers only) Red text indicates the probability of exceeding the blood lead target is >5% | M23: *Where Site %= 100*(site intake)/(total intake); same for house.
A28: IEUBK Model Risk Prediction (% probability of exceeding the target BLL)
A29: Target Blood Lead (µg/dL) | F29: =$E$5 -> 5
A30: House DU Pb Conc. (ppm) | B30: Risk Prediction Based on Residential Soil | D30: Risk Prediction based on Soil TWA for Site DU Conc. (ppm):
D31: =B9 -> 100 | E31: 200 | F31: =D9 -> 300 | G31: 400 | H31: 500 | I31: 600 | J31: 700 | K31: 750 | L31: 800
A32: =A10 -> 50 | B32: =VLOOKUP($A10,INDIRECT("'Batch Output P"&$E$5&"'!$E$23:$N$798"),10, TRUE) -> 0.349 | D32: =B20 -> 0.506 | E32: =C20 -> 0.979 | F32: =D20 -> 1.662 | G32: 2.636 | H32: 3.9 | I32: 5.397 | J32: 7.225 | K32: 8.203 | L32: 9.238
A33: =A11 -> 120 | B33: =VLOOKUP($A11,INDIRECT("'Batch Output P"&$E$5&"'!$E$23:$N$798"),10, TRUE) -> 1.633 | D33: =B21 -> 1.468 | E33: =C21 -> 2.375 | F33: 3.522 | G33: 4.998 | H33: 6.759 | I33: 8.713 | J33: 10.974 | K33: 12.141 | L33: 13.354
A34: =A12 -> 150 | B34: =VLOOKUP($A12,INDIRECT("'Batch Output P"&$E$5&"'!$E$23:$N$798"),10, TRUE) -> 2.636 | D34: =B22 -> 2.13 | E34: =C22 -> 3.209 | F34: 4.615 | G34: 6.246 | H34: 8.203 | I34: 10.408 | J34: 12.742 | K34: 13.976 | L34: 15.34
A35: Red text indicates the probability of exceeding the blood lead target is>5%

Sheet Batch Output P3.5 (hidden)
A1: LEAD BATCH MODE OUTPUT FILE
A2: Model Version: 2.0 Build1
A3: User Name:
A4: Date:
A5: Site Name:
A6: Operable Unit:
A7: Run Mode: Research
A8: ----------------------------------------------------------------------------------
A10: * : signify default values used in place of missing input data.
A11: ---: signify missing input data.
A12: PBB & PRED are the observed and predicted blood Pb levels in µg/dL.
A14: Percent exceedance was calculated using values of GSD and PbB Cutoff as follows:
A15: GSD = 1.600
A16: PbB Cutoff ( C ) = 3.500 µg/dL
A18: Input File: Batch File TWA.dat
A21: ID | B21: FAM | C21: BLK | D21: AGE (mon) | E21: SOIL (µg/g) | F21: DUST (µg/g) | G21: WATER (µg/L) | H21: AIR (µg/m³) | I21: Other (µg/day) | J21: ABSSoil (%) | K21: ABSDust (%) | L21: PBB (µg/dL) | M21: PRED (µg/dL) | N21: P(PbB>C) (%)
A23: 1 | B23: 1 | C23: 0 | D23: 32 | E23: 25 | F23: 27.5 | G23: 0.9 | H23: 0.1 | I23: 0 | J23: 30.000* | K23: 30.000* | L23: 0 | M23: 1.25 | N23: 1.444
A24: 2 | B24: 2 | C24: 0 | D24: 32 | E24: 26 | F24: 28.2 | G24: 0.9 | H24: 0.1 | I24: 0 | J24: 30.000* | K24: 30.000* | L24: 0 | M24: 1.26 | N24: 1.483
A25: 3 | B25: 3 | C25: 0 | D25: 32 | E25: 27 | F25: 28.9 | G25: 0.9 | H25: 0.1 | I25: 0 | J25: 30.000* | K25: 30.000* | L25: 0 | M25: 1.27 | N25: 1.522
A26: 4 | B26: 4 | C26: 0 | D26: 32 | E26: 28 | F26: 29.6 | G26: 0.9 | H26: 0.1 | I26: 0 | J26: 30.000* | K26: 30.000* | L26: 0 | M26: 1.27 | N26: 1.562
A27: 5 | B27: 5 | C27: 0 | D27: 32 | E27: 29 | F27: 30.3 | G27: 0.9 | H27: 0.1 | I27: 0 | J27: 30.000* | K27: 30.000* | L27: 0 | M27: 1.28 | N27: 1.603
A28: 6 | B28: 6 | C28: 0 | D28: 32 | E28: 30 | F28: 31 | G28: 0.9 | H28: 0.1 | I28: 0 | J28: 30.000* | K28: 30.000* | L28: 0 | M28: 1.28 | N28: 1.645
A29: 7 | B29: 7 | C29: 0 | D29: 32 | E29: 31 | F29: 31.7 | G29: 0.9 | H29: 0.1 | I29: 0 | J29: 30.000* | K29: 30.000* | L29: 0 | M29: 1.29 | N29: 1.687
A30: 8 | B30: 8 | C30: 0 | D30: 32 | E30: 32 | F30: 32.4 | G30: 0.9 | H30: 0.1 | I30: 0 | J30: 30.000* | K30: 30.000* | L30: 0 | M30: 1.3 | N30: 1.73
A31: 9 | B31: 9 | C31: 0 | D31: 32 | E31: 33 | F31: 33.1 | G31: 0.9 | H31: 0.1 | I31: 0 | J31: 30.000* | K31: 30.000* | L31: 0 | M31: 1.3 | N31: 1.773
A32: 10 | B32: 10 | C32: 0 | D32: 32 | E32: 34 | F32: 33.8 | G32: 0.9 | H32: 0.1 | I32: 0 | J32: 30.000* | K32: 30.000* | L32: 0 | M32: 1.31 | N32: 1.818
A33: 11 | B33: 11 | C33: 0 | D33: 32 | E33: 35 | F33: 34.5 | G33: 0.9 | H33: 0.1 | I33: 0 | J33: 30.000* | K33: 30.000* | L33: 0 | M33: 1.31 | N33: 1.863
A34: 12 | B34: 12 | C34: 0 | D34: 32 | E34: 36 | F34: 35.2 | G34: 0.9 | H34: 0.1 | I34: 0 | J34: 30.000* | K34: 30.000* | L34: 0 | M34: 1.32 | N34: 1.908
A35: 13 | B35: 13 | C35: 0 | D35: 32 | E35: 37 | F35: 35.9 | G35: 0.9 | H35: 0.1 | I35: 0 | J35: 30.000* | K35: 30.000* | L35: 0 | M35: 1.33 | N35: 1.955
A36: 14 | B36: 14 | C36: 0 | D36: 32 | E36: 38 | F36: 36.6 | G36: 0.9 | H36: 0.1 | I36: 0 | J36: 30.000* | K36: 30.000* | L36: 0 | M36: 1.33 | N36: 2.002
A37: 15 | B37: 15 | C37: 0 | D37: 32 | E37: 39 | F37: 37.3 | G37: 0.9 | H37: 0.1 | I37: 0 | J37: 30.000* | K37: 30.000* | L37: 0 | M37: 1.34 | N37: 2.05
A38: 16 | B38: 16 | C38: 0 | D38: 32 | E38: 40 | F38: 38 | G38: 0.9 | H38: 0.1 | I38: 0 | J38: 30.000* | K38: 30.000* | L38: 0 | M38: 1.35 | N38: 2.099
A39: 17 | B39: 17 | C39: 0 | D39: 32 | E39: 41 | F39: 38.7 | G39: 0.9 | H39: 0.1 | I39: 0 | J39: 30.000* | K39: 30.000* | L39: 0 | M39: 1.35 | N39: 2.148
A40: 18 | B40: 18 | C40: 0 | D40: 32 | E40: 42 | F40: 39.4 | G40: 0.9 | H40: 0.1 | I40: 0 | J40: 30.000* | K40: 30.000* | L40: 0 | M40: 1.36 | N40: 2.198
A41: 19 | B41: 19 | C41: 0 | D41: 32 | E41: 43 | F41: 40.1 | G41: 0.9 | H41: 0.1 | I41: 0 | J41: 30.000* | K41: 30.000* | L41: 0 | M41: 1.36 | N41: 2.249
A42: 20 | B42: 20 | C42: 0 | D42: 32 | E42: 44 | F42: 40.8 | G42: 0.9 | H42: 0.1 | I42: 0 | J42: 30.000* | K42: 30.000* | L42: 0 | M42: 1.37 | N42: 2.301
A43: 21 | B43: 21 | C43: 0 | D43: 32 | E43: 45 | F43: 41.5 | G43: 0.9 | H43: 0.1 | I43: 0 | J43: 30.000* | K43: 30.000* | L43: 0 | M43: 1.38 | N43: 2.353
A44: 22 | B44: 22 | C44: 0 | D44: 32 | E44: 46 | F44: 42.2 | G44: 0.9 | H44: 0.1 | I44: 0 | J44: 30.000* | K44: 30.000* | L44: 0 | M44: 1.38 | N44: 2.406
A45: 23 | B45: 23 | C45: 0 | D45: 32 | E45: 47 | F45: 42.9 | G45: 0.9 | H45: 0.1 | I45: 0 | J45: 30.000* | K45: 30.000* | L45: 0 | M45: 1.39 | N45: 2.46
A46: 24 | B46: 24 | C46: 0 | D46: 32 | E46: 48 | F46: 43.6 | G46: 0.9 | H46: 0.1 | I46: 0 | J46: 30.000* | K46: 30.000* | L46: 0 | M46: 1.39 | N46: 2.515
A47: 25 | B47: 25 | C47: 0 | D47: 32 | E47: 49 | F47: 44.3 | G47: 0.9 | H47: 0.1 | I47: 0 | J47: 30.000* | K47: 30.000* | L47: 0 | M47: 1.4 | N47: 2.57
A48: 26 | B48: 26 | C48: 0 | D48: 32 | E48: 50 | F48: 45 | G48: 0.9 | H48: 0.1 | I48: 0 | J48: 30.000* | K48: 30.000* | L48: 0 | M48: 1.41 | N48: 2.626
A49: 27 | B49: 27 | C49: 0 | D49: 32 | E49: 51 | F49: 45.7 | G49: 0.9 | H49: 0.1 | I49: 0 | J49: 30.000* | K49: 30.000* | L49: 0 | M49: 1.41 | N49: 2.683
A50: 28 | B50: 28 | C50: 0 | D50: 32 | E50: 52 | F50: 46.4 | G50: 0.9 | H50: 0.1 | I50: 0 | J50: 30.000* | K50: 30.000* | L50: 0 | M50: 1.42 | N50: 2.74
A51: 29 | B51: 29 | C51: 0 | D51: 32 | E51: 53 | F51: 47.1 | G51: 0.9 | H51: 0.1 | I51: 0 | J51: 30.000* | K51: 30.000* | L51: 0 | M51: 1.43 | N51: 2.799
A52: 30 | B52: 30 | C52: 0 | D52: 32 | E52: 54 | F52: 47.8 | G52: 0.9 | H52: 0.1 | I52: 0 | J52: 30.000* | K52: 30.000* | L52: 0 | M52: 1.43 | N52: 2.858
A53: 31 | B53: 31 | C53: 0 | D53: 32 | E53: 55 | F53: 48.5 | G53: 0.9 | H53: 0.1 | I53: 0 | J53: 30.000* | K53: 30.000* | L53: 0 | M53: 1.44 | N53: 2.918
A54: 32 | B54: 32 | C54: 0 | D54: 32 | E54: 56 | F54: 49.2 | G54: 0.9 | H54: 0.1 | I54: 0 | J54: 30.000* | K54: 30.000* | L54: 0 | M54: 1.44 | N54: 2.978
A55: 33 | B55: 33 | C55: 0 | D55: 32 | E55: 57 | F55: 49.9 | G55: 0.9 | H55: 0.1 | I55: 0 | J55: 30.000* | K55: 30.000* | L55: 0 | M55: 1.45 | N55: 3.04
A56: 34 | B56: 34 | C56: 0 | D56: 32 | E56: 58 | F56: 50.6 | G56: 0.9 | H56: 0.1 | I56: 0 | J56: 30.000* | K56: 30.000* | L56: 0 | M56: 1.46 | N56: 3.102
A57: 35 | B57: 35 | C57: 0 | D57: 32 | E57: 59 | F57: 51.3 | G57: 0.9 | H57: 0.1 | I57: 0 | J57: 30.000* | K57: 30.000* | L57: 0 | M57: 1.46 | N57: 3.165
A58: 36 | B58: 36 | C58: 0 | D58: 32 | E58: 60 | F58: 52 | G58: 0.9 | H58: 0.1 | I58: 0 | J58: 30.000* | K58: 30.000* | L58: 0 | M58: 1.47 | N58: 3.229
A59: 37 | B59: 37 | C59: 0 | D59: 32 | E59: 61 | F59: 52.7 | G59: 0.9 | H59: 0.1 | I59: 0 | J59: 30.000* | K59: 30.000* | L59: 0 | M59: 1.47 | N59: 3.293
A60: 38 | B60: 38 | C60: 0 | D60: 32 | E60: 62 | F60: 53.4 | G60: 0.9 | H60: 0.1 | I60: 0 | J60: 30.000* | K60: 30.000* | L60: 0 | M60: 1.48 | N60: 3.358
A61: 39 | B61: 39 | C61: 0 | D61: 32 | E61: 63 | F61: 54.1 | G61: 0.9 | H61: 0.1 | I61: 0 | J61: 30.000* | K61: 30.000* | L61: 0 | M61: 1.49 | N61: 3.424
A62: 40 | B62: 40 | C62: 0 | D62: 32 | E62: 64 | F62: 54.8 | G62: 0.9 | H62: 0.1 | I62: 0 | J62: 30.000* | K62: 30.000* | L62: 0 | M62: 1.49 | N62: 3.491
A63: 41 | B63: 41 | C63: 0 | D63: 32 | E63: 65 | F63: 55.5 | G63: 0.9 | H63: 0.1 | I63: 0 | J63: 30.000* | K63: 30.000* | L63: 0 | M63: 1.5 | N63: 3.558
A64: 42 | B64: 42 | C64: 0 | D64: 32 | E64: 66 | F64: 56.2 | G64: 0.9 | H64: 0.1 | I64: 0 | J64: 30.000* | K64: 30.000* | L64: 0 | M64: 1.5 | N64: 3.627
A65: 43 | B65: 43 | C65: 0 | D65: 32 | E65: 67 | F65: 56.9 | G65: 0.9 | H65: 0.1 | I65: 0 | J65: 30.000* | K65: 30.000* | L65: 0 | M65: 1.51 | N65: 3.696
A66: 44 | B66: 44 | C66: 0 | D66: 32 | E66: 68 | F66: 57.6 | G66: 0.9 | H66: 0.1 | I66: 0 | J66: 30.000* | K66: 30.000* | L66: 0 | M66: 1.52 | N66: 3.765
A67: 45 | B67: 45 | C67: 0 | D67: 32 | E67: 69 | F67: 58.3 | G67: 0.9 | H67: 0.1 | I67: 0 | J67: 30.000* | K67: 30.000* | L67: 0 | M67: 1.52 | N67: 3.836
A68: 46 | B68: 46 | C68: 0 | D68: 32 | E68: 70 | F68: 59 | G68: 0.9 | H68: 0.1 | I68: 0 | J68: 30.000* | K68: 30.000* | L68: 0 | M68: 1.53 | N68: 3.907
A69: 47 | B69: 47 | C69: 0 | D69: 32 | E69: 71 | F69: 59.7 | G69: 0.9 | H69: 0.1 | I69: 0 | J69: 30.000* | K69: 30.000* | L69: 0 | M69: 1.54 | N69: 3.979
A70: 48 | B70: 48 | C70: 0 | D70: 32 | E70: 72 | F70: 60.4 | G70: 0.9 | H70: 0.1 | I70: 0 | J70: 30.000* | K70: 30.000* | L70: 0 | M70: 1.54 | N70: 4.052
A71: 49 | B71: 49 | C71: 0 | D71: 32 | E71: 73 | F71: 61.1 | G71: 0.9 | H71: 0.1 | I71: 0 | J71: 30.000* | K71: 30.000* | L71: 0 | M71: 1.55 | N71: 4.126
A72: 50 | B72: 50 | C72: 0 | D72: 32 | E72: 74 | F72: 61.8 | G72: 0.9 | H72: 0.1 | I72: 0 | J72: 30.000* | K72: 30.000* | L72: 0 | M72: 1.55 | N72: 4.2
A73: 51 | B73: 51 | C73: 0 | D73: 32 | E73: 75 | F73: 62.5 | G73: 0.9 | H73: 0.1 | I73: 0 | J73: 30.000* | K73: 30.000* | L73: 0 | M73: 1.56 | N73: 4.275
A74: 52 | B74: 52 | C74: 0 | D74: 32 | E74: 76 | F74: 63.2 | G74: 0.9 | H74: 0.1 | I74: 0 | J74: 30.000* | K74: 30.000* | L74: 0 | M74: 1.57 | N74: 4.351
A75: 53 | B75: 53 | C75: 0 | D75: 32 | E75: 77 | F75: 63.9 | G75: 0.9 | H75: 0.1 | I75: 0 | J75: 30.000* | K75: 30.000* | L75: 0 | M75: 1.57 | N75: 4.428
A76: 54 | B76: 54 | C76: 0 | D76: 32 | E76: 78 | F76: 64.6 | G76: 0.9 | H76: 0.1 | I76: 0 | J76: 30.000* | K76: 30.000* | L76: 0 | M76: 1.58 | N76: 4.505
A77: 55 | B77: 55 | C77: 0 | D77: 32 | E77: 79 | F77: 65.3 | G77: 0.9 | H77: 0.1 | I77: 0 | J77: 30.000* | K77: 30.000* | L77: 0 | M77: 1.58 | N77: 4.584
A78: 56 | B78: 56 | C78: 0 | D78: 32 | E78: 80 | F78: 66 | G78: 0.9 | H78: 0.1 | I78: 0 | J78: 30.000* | K78: 30.000* | L78: 0 | M78: 1.59 | N78: 4.663
A79: 57 | B79: 57 | C79: 0 | D79: 32 | E79: 81 | F79: 66.7 | G79: 0.9 | H79: 0.1 | I79: 0 | J79: 30.000* | K79: 30.000* | L79: 0 | M79: 1.6 | N79: 4.742
A80: 58 | B80: 58 | C80: 0 | D80: 32 | E80: 82 | F80: 67.4 | G80: 0.9 | H80: 0.1 | I80: 0 | J80: 30.000* | K80: 30.000* | L80: 0 | M80: 1.6 | N80: 4.823
A81: 59 | B81: 59 | C81: 0 | D81: 32 | E81: 83 | F81: 68.1 | G81: 0.9 | H81: 0.1 | I81: 0 | J81: 30.000* | K81: 30.000* | L81: 0 | M81: 1.61 | N81: 4.904
A82: 60 | B82: 60 | C82: 0 | D82: 32 | E82: 84 | F82: 68.8 | G82: 0.9 | H82: 0.1 | I82: 0 | J82: 30.000* | K82: 30.000* | L82: 0 | M82: 1.61 | N82: 4.986
A83: 61 | B83: 61 | C83: 0 | D83: 32 | E83: 85 | F83: 69.5 | G83: 0.9 | H83: 0.1 | I83: 0 | J83: 30.000* | K83: 30.000* | L83: 0 | M83: 1.62 | N83: 5.069
A84: 62 | B84: 62 | C84: 0 | D84: 32 | E84: 86 | F84: 70.2 | G84: 0.9 | H84: 0.1 | I84: 0 | J84: 30.000* | K84: 30.000* | L84: 0 | M84: 1.63 | N84: 5.152
A85: 63 | B85: 63 | C85: 0 | D85: 32 | E85: 87 | F85: 70.9 | G85: 0.9 | H85: 0.1 | I85: 0 | J85: 30.000* | K85: 30.000* | L85: 0 | M85: 1.63 | N85: 5.236
A86: 64 | B86: 64 | C86: 0 | D86: 32 | E86: 88 | F86: 71.6 | G86: 0.9 | H86: 0.1 | I86: 0 | J86: 30.000* | K86: 30.000* | L86: 0 | M86: 1.64 | N86: 5.321
A87: 65 | B87: 65 | C87: 0 | D87: 32 | E87: 89 | F87: 72.3 | G87: 0.9 | H87: 0.1 | I87: 0 | J87: 30.000* | K87: 30.000* | L87: 0 | M87: 1.64 | N87: 5.407
A88: 66 | B88: 66 | C88: 0 | D88: 32 | E88: 90 | F88: 73 | G88: 0.9 | H88: 0.1 | I88: 0 | J88: 30.000* | K88: 30.000* | L88: 0 | M88: 1.65 | N88: 5.494
A89: 67 | B89: 67 | C89: 0 | D89: 32 | E89: 91 | F89: 73.7 | G89: 0.9 | H89: 0.1 | I89: 0 | J89: 30.000* | K89: 30.000* | L89: 0 | M89: 1.66 | N89: 5.581
A90: 68 | B90: 68 | C90: 0 | D90: 32 | E90: 92 | F90: 74.4 | G90: 0.9 | H90: 0.1 | I90: 0 | J90: 30.000* | K90: 30.000* | L90: 0 | M90: 1.66 | N90: 5.669
A91: 69 | B91: 69 | C91: 0 | D91: 32 | E91: 93 | F91: 75.1 | G91: 0.9 | H91: 0.1 | I91: 0 | J91: 30.000* | K91: 30.000* | L91: 0 | M91: 1.67 | N91: 5.757
A92: 70 | B92: 70 | C92: 0 | D92: 32 | E92: 94 | F92: 75.8 | G92: 0.9 | H92: 0.1 | I92: 0 | J92: 30.000* | K92: 30.000* | L92: 0 | M92: 1.68 | N92: 5.847
A93: 71 | B93: 71 | C93: 0 | D93: 32 | E93: 95 | F93: 76.5 | G93: 0.9 | H93: 0.1 | I93: 0 | J93: 30.000* | K93: 30.000* | L93: 0 | M93: 1.68 | N93: 5.937
A94: 72 | B94: 72 | C94: 0 | D94: 32 | E94: 96 | F94: 77.2 | G94: 0.9 | H94: 0.1 | I94: 0 | J94: 30.000* | K94: 30.000* | L94: 0 | M94: 1.69 | N94: 6.028
A95: 73 | B95: 73 | C95: 0 | D95: 32 | E95: 97 | F95: 77.9 | G95: 0.9 | H95: 0.1 | I95: 0 | J95: 30.000* | K95: 30.000* | L95: 0 | M95: 1.69 | N95: 6.119
A96: 74 | B96: 74 | C96: 0 | D96: 32 | E96: 98 | F96: 78.6 | G96: 0.9 | H96: 0.1 | I96: 0 | J96: 30.000* | K96: 30.000* | L96: 0 | M96: 1.7 | N96: 6.212
A97: 75 | B97: 75 | C97: 0 | D97: 32 | E97: 99 | F97: 79.3 | G97: 0.9 | H97: 0.1 | I97: 0 | J97: 30.000* | K97: 30.000* | L97: 0 | M97: 1.71 | N97: 6.305
A98: 76 | B98: 76 | C98: 0 | D98: 32 | E98: 100 | F98: 80 | G98: 0.9 | H98: 0.1 | I98: 0 | J98: 30.000* | K98: 30.000* | L98: 0 | M98: 1.71 | N98: 6.399
A99: 77 | B99: 77 | C99: 0 | D99: 32 | E99: 101 | F99: 80.7 | G99: 0.9 | H99: 0.1 | I99: 0 | J99: 30.000* | K99: 30.000* | L99: 0 | M99: 1.72 | N99: 6.493
A100: 78 | B100: 78 | C100: 0 | D100: 32 | E100: 102 | F100: 81.4 | G100: 0.9 | H100: 0.1 | I100: 0 | J100: 30.000* | K100: 30.000* | L100: 0 | M100: 1.72 | N100: 6.588
A101: 79 | B101: 79 | C101: 0 | D101: 32 | E101: 103 | F101: 82.1 | G101: 0.9 | H101: 0.1 | I101: 0 | J101: 30.000* | K101: 30.000* | L101: 0 | M101: 1.73 | N101: 6.684
A102: 80 | B102: 80 | C102: 0 | D102: 32 | E102: 104 | F102: 82.8 | G102: 0.9 | H102: 0.1 | I102: 0 | J102: 30.000* | K102: 30.000* | L102: 0 | M102: 1.74 | N102: 6.781
A103: 81 | B103: 81 | C103: 0 | D103: 32 | E103: 105 | F103: 83.5 | G103: 0.9 | H103: 0.1 | I103: 0 | J103: 30.000* | K103: 30.000* | L103: 0 | M103: 1.74 | N103: 6.878
A104: 82 | B104: 82 | C104: 0 | D104: 32 | E104: 106 | F104: 84.2 | G104: 0.9 | H104: 0.1 | I104: 0 | J104: 30.000* | K104: 30.000* | L104: 0 | M104: 1.75 | N104: 6.976
A105: 83 | B105: 83 | C105: 0 | D105: 32 | E105: 107 | F105: 84.9 | G105: 0.9 | H105: 0.1 | I105: 0 | J105: 30.000* | K105: 30.000* | L105: 0 | M105: 1.75 | N105: 7.075
A106: 84 | B106: 84 | C106: 0 | D106: 32 | E106: 108 | F106: 85.6 | G106: 0.9 | H106: 0.1 | I106: 0 | J106: 30.000* | K106: 30.000* | L106: 0 | M106: 1.76 | N106: 7.174
A107: 85 | B107: 85 | C107: 0 | D107: 32 | E107: 109 | F107: 86.3 | G107: 0.9 | H107: 0.1 | I107: 0 | J107: 30.000* | K107: 30.000* | L107: 0 | M107: 1.77 | N107: 7.275
A108: 86 | B108: 86 | C108: 0 | D108: 32 | E108: 110 | F108: 87 | G108: 0.9 | H108: 0.1 | I108: 0 | J108: 30.000* | K108: 30.000* | L108: 0 | M108: 1.77 | N108: 7.375
A109: 87 | B109: 87 | C109: 0 | D109: 32 | E109: 111 | F109: 87.7 | G109: 0.9 | H109: 0.1 | I109: 0 | J109: 30.000* | K109: 30.000* | L109: 0 | M109: 1.78 | N109: 7.477
A110: 88 | B110: 88 | C110: 0 | D110: 32 | E110: 112 | F110: 88.4 | G110: 0.9 | H110: 0.1 | I110: 0 | J110: 30.000* | K110: 30.000* | L110: 0 | M110: 1.78 | N110: 7.579
A111: 89 | B111: 89 | C111: 0 | D111: 32 | E111: 113 | F111: 89.1 | G111: 0.9 | H111: 0.1 | I111: 0 | J111: 30.000* | K111: 30.000* | L111: 0 | M111: 1.79 | N111: 7.682
A112: 90 | B112: 90 | C112: 0 | D112: 32 | E112: 114 | F112: 89.8 | G112: 0.9 | H112: 0.1 | I112: 0 | J112: 30.000* | K112: 30.000* | L112: 0 | M112: 1.8 | N112: 7.786
A113: 91 | B113: 91 | C113: 0 | D113: 32 | E113: 115 | F113: 90.5 | G113: 0.9 | H113: 0.1 | I113: 0 | J113: 30.000* | K113: 30.000* | L113: 0 | M113: 1.8 | N113: 7.89
A114: 92 | B114: 92 | C114: 0 | D114: 32 | E114: 116 | F114: 91.2 | G114: 0.9 | H114: 0.1 | I114: 0 | J114: 30.000* | K114: 30.000* | L114: 0 | M114: 1.81 | N114: 7.995
A115: 93 | B115: 93 | C115: 0 | D115: 32 | E115: 117 | F115: 91.9 | G115: 0.9 | H115: 0.1 | I115: 0 | J115: 30.000* | K115: 30.000* | L115: 0 | M115: 1.81 | N115: 8.1
A116: 94 | B116: 94 | C116: 0 | D116: 32 | E116: 118 | F116: 92.6 | G116: 0.9 | H116: 0.1 | I116: 0 | J116: 30.000* | K116: 30.000* | L116: 0 | M116: 1.82 | N116: 8.206
A117: 95 | B117: 95 | C117: 0 | D117: 32 | E117: 119 | F117: 93.3 | G117: 0.9 | H117: 0.1 | I117: 0 | J117: 30.000* | K117: 30.000* | L117: 0 | M117: 1.83 | N117: 8.313
A118: 96 | B118: 96 | C118: 0 | D118: 32 | E118: 120 | F118: 94 | G118: 0.9 | H118: 0.1 | I118: 0 | J118: 30.000* | K118: 30.000* | L118: 0 | M118: 1.83 | N118: 8.421
A119: 97 | B119: 97 | C119: 0 | D119: 32 | E119: 121 | F119: 94.7 | G119: 0.9 | H119: 0.1 | I119: 0 | J119: 30.000* | K119: 30.000* | L119: 0 | M119: 1.84 | N119: 8.529
A120: 98 | B120: 98 | C120: 0 | D120: 32 | E120: 122 | F120: 95.4 | G120: 0.9 | H120: 0.1 | I120: 0 | J120: 30.000* | K120: 30.000* | L120: 0 | M120: 1.84 | N120: 8.638
A121: 99 | B121: 99 | C121: 0 | D121: 32 | E121: 123 | F121: 96.1 | G121: 0.9 | H121: 0.1 | I121: 0 | J121: 30.000* | K121: 30.000* | L121: 0 | M121: 1.85 | N121: 8.748
A122: 100 | B122: 100 | C122: 0 | D122: 32 | E122: 124 | F122: 96.8 | G122: 0.9 | H122: 0.1 | I122: 0 | J122: 30.000* | K122: 30.000* | L122: 0 | M122: 1.86 | N122: 8.858
A123: 101 | B123: 101 | C123: 0 | D123: 32 | E123: 125 | F123: 97.5 | G123: 0.9 | H123: 0.1 | I123: 0 | J123: 30.000* | K123: 30.000* | L123: 0 | M123: 1.86 | N123: 8.968
A124: 102 | B124: 102 | C124: 0 | D124: 32 | E124: 126 | F124: 98.2 | G124: 0.9 | H124: 0.1 | I124: 0 | J124: 30.000* | K124: 30.000* | L124: 0 | M124: 1.87 | N124: 9.08
A125: 103 | B125: 103 | C125: 0 | D125: 32 | E125: 127 | F125: 98.9 | G125: 0.9 | H125: 0.1 | I125: 0 | J125: 30.000* | K125: 30.000* | L125: 0 | M125: 1.87 | N125: 9.192
A126: 104 | B126: 104 | C126: 0 | D126: 32 | E126: 128 | F126: 99.6 | G126: 0.9 | H126: 0.1 | I126: 0 | J126: 30.000* | K126: 30.000* | L126: 0 | M126: 1.88 | N126: 9.305
A127: 105 | B127: 105 | C127: 0 | D127: 32 | E127: 129 | F127: 100.3 | G127: 0.9 | H127: 0.1 | I127: 0 | J127: 30.000* | K127: 30.000* | L127: 0 | M127: 1.89 | N127: 9.418
A128: 106 | B128: 106 | C128: 0 | D128: 32 | E128: 130 | F128: 101 | G128: 0.9 | H128: 0.1 | I128: 0 | J128: 30.000* | K128: 30.000* | L128: 0 | M128: 1.89 | N128: 9.532
A129: 107 | B129: 107 | C129: 0 | D129: 32 | E129: 131 | F129: 101.7 | G129: 0.9 | H129: 0.1 | I129: 0 | J129: 30.000* | K129: 30.000* | L129: 0 | M129: 1.9 | N129: 9.646
A130: 108 | B130: 108 | C130: 0 | D130: 32 | E130: 132 | F130: 102.4 | G130: 0.9 | H130: 0.1 | I130: 0 | J130: 30.000* | K130: 30.000* | L130: 0 | M130: 1.9 | N130: 9.761
A131: 109 | B131: 109 | C131: 0 | D131: 32 | E131: 133 | F131: 103.1 | G131: 0.9 | H131: 0.1 | I131: 0 | J131: 30.000* | K131: 30.000* | L131: 0 | M131: 1.91 | N131: 9.877
A132: 110 | B132: 110 | C132: 0 | D132: 32 | E132: 134 | F132: 103.8 | G132: 0.9 | H132: 0.1 | I132: 0 | J132: 30.000* | K132: 30.000* | L132: 0 | M132: 1.92 | N132: 9.994
A133: 111 | B133: 111 | C133: 0 | D133: 32 | E133: 135 | F133: 104.5 | G133: 0.9 | H133: 0.1 | I133: 0 | J133: 30.000* | K133: 30.000* | L133: 0 | M133: 1.92 | N133: 10.11
A134: 112 | B134: 112 | C134: 0 | D134: 32 | E134: 136 | F134: 105.2 | G134: 0.9 | H134: 0.1 | I134: 0 | J134: 30.000* | K134: 30.000* | L134: 0 | M134: 1.93 | N134: 10.228
A135: 113 | B135: 113 | C135: 0 | D135: 32 | E135: 137 | F135: 105.9 | G135: 0.9 | H135: 0.1 | I135: 0 | J135: 30.000* | K135: 30.000* | L135: 0 | M135: 1.93 | N135: 10.346
A136: 114 | B136: 114 | C136: 0 | D136: 32 | E136: 138 | F136: 106.6 | G136: 0.9 | H136: 0.1 | I136: 0 | J136: 30.000* | K136: 30.000* | L136: 0 | M136: 1.94 | N136: 10.465
A137: 115 | B137: 115 | C137: 0 | D137: 32 | E137: 139 | F137: 107.3 | G137: 0.9 | H137: 0.1 | I137: 0 | J137: 30.000* | K137: 30.000* | L137: 0 | M137: 1.95 | N137: 10.584
A138: 116 | B138: 116 | C138: 0 | D138: 32 | E138: 140 | F138: 108 | G138: 0.9 | H138: 0.1 | I138: 0 | J138: 30.000* | K138: 30.000* | L138: 0 | M138: 1.95 | N138: 10.704
A139: 117 | B139: 117 | C139: 0 | D139: 32 | E139: 141 | F139: 108.7 | G139: 0.9 | H139: 0.1 | I139: 0 | J139: 30.000* | K139: 30.000* | L139: 0 | M139: 1.96 | N139: 10.824
A140: 118 | B140: 118 | C140: 0 | D140: 32 | E140: 142 | F140: 109.4 | G140: 0.9 | H140: 0.1 | I140: 0 | J140: 30.000* | K140: 30.000* | L140: 0 | M140: 1.96 | N140: 10.945
A141: 119 | B141: 119 | C141: 0 | D141: 32 | E141: 143 | F141: 110.1 | G141: 0.9 | H141: 0.1 | I141: 0 | J141: 30.000* | K141: 30.000* | L141: 0 | M141: 1.97 | N141: 11.067
A142: 120 | B142: 120 | C142: 0 | D142: 32 | E142: 144 | F142: 110.8 | G142: 0.9 | H142: 0.1 | I142: 0 | J142: 30.000* | K142: 30.000* | L142: 0 | M142: 1.98 | N142: 11.189
A143: 121 | B143: 121 | C143: 0 | D143: 32 | E143: 145 | F143: 111.5 | G143: 0.9 | H143: 0.1 | I143: 0 | J143: 30.000* | K143: 30.000* | L143: 0 | M143: 1.98 | N143: 11.312
A144: 122 | B144: 122 | C144: 0 | D144: 32 | E144: 146 | F144: 112.2 | G144: 0.9 | H144: 0.1 | I144: 0 | J144: 30.000* | K144: 30.000* | L144: 0 | M144: 1.99 | N144: 11.435
A145: 123 | B145: 123 | C145: 0 | D145: 32 | E145: 147 | F145: 112.9 | G145: 0.9 | H145: 0.1 | I145: 0 | J145: 30.000* | K145: 30.000* | L145: 0 | M145: 1.99 | N145: 11.559
A146: 124 | B146: 124 | C146: 0 | D146: 32 | E146: 148 | F146: 113.6 | G146: 0.9 | H146: 0.1 | I146: 0 | J146: 30.000* | K146: 30.000* | L146: 0 | M146: 2 | N146: 11.683
A147: 125 | B147: 125 | C147: 0 | D147: 32 | E147: 149 | F147: 114.3 | G147: 0.9 | H147: 0.1 | I147: 0 | J147: 30.000* | K147: 30.000* | L147: 0 | M147: 2.01 | N147: 11.808
A148: 126 | B148: 126 | C148: 0 | D148: 32 | E148: 150 | F148: 115 | G148: 0.9 | H148: 0.1 | I148: 0 | J148: 30.000* | K148: 30.000* | L148: 0 | M148: 2.01 | N148: 11.933
A149: 127 | B149: 127 | C149: 0 | D149: 32 | E149: 151 | F149: 115.7 | G149: 0.9 | H149: 0.1 | I149: 0 | J149: 30.000* | K149: 30.000* | L149: 0 | M149: 2.02 | N149: 12.059
A150: 128 | B150: 128 | C150: 0 | D150: 32 | E150: 152 | F150: 116.4 | G150: 0.9 | H150: 0.1 | I150: 0 | J150: 30.000* | K150: 30.000* | L150: 0 | M150: 2.02 | N150: 12.186
A151: 129 | B151: 129 | C151: 0 | D151: 32 | E151: 153 | F151: 117.1 | G151: 0.9 | H151: 0.1 | I151: 0 | J151: 30.000* | K151: 30.000* | L151: 0 | M151: 2.03 | N151: 12.313
A152: 130 | B152: 130 | C152: 0 | D152: 32 | E152: 154 | F152: 117.8 | G152: 0.9 | H152: 0.1 | I152: 0 | J152: 30.000* | K152: 30.000* | L152: 0 | M152: 2.04 | N152: 12.44
A153: 131 | B153: 131 | C153: 0 | D153: 32 | E153: 155 | F153: 118.5 | G153: 0.9 | H153: 0.1 | I153: 0 | J153: 30.000* | K153: 30.000* | L153: 0 | M153: 2.04 | N153: 12.568
A154: 132 | B154: 132 | C154: 0 | D154: 32 | E154: 156 | F154: 119.2 | G154: 0.9 | H154: 0.1 | I154: 0 | J154: 30.000* | K154: 30.000* | L154: 0 | M154: 2.05 | N154: 12.697
A155: 133 | B155: 133 | C155: 0 | D155: 32 | E155: 157 | F155: 119.9 | G155: 0.9 | H155: 0.1 | I155: 0 | J155: 30.000* | K155: 30.000* | L155: 0 | M155: 2.05 | N155: 12.826
A156: 134 | B156: 134 | C156: 0 | D156: 32 | E156: 158 | F156: 120.6 | G156: 0.9 | H156: 0.1 | I156: 0 | J156: 30.000* | K156: 30.000* | L156: 0 | M156: 2.06 | N156: 12.955
A157: 135 | B157: 135 | C157: 0 | D157: 32 | E157: 159 | F157: 121.3 | G157: 0.9 | H157: 0.1 | I157: 0 | J157: 30.000* | K157: 30.000* | L157: 0 | M157: 2.07 | N157: 13.085
A158: 136 | B158: 136 | C158: 0 | D158: 32 | E158: 160 | F158: 122 | G158: 0.9 | H158: 0.1 | I158: 0 | J158: 30.000* | K158: 30.000* | L158: 0 | M158: 2.07 | N158: 13.215
A159: 137 | B159: 137 | C159: 0 | D159: 32 | E159: 161 | F159: 122.7 | G159: 0.9 | H159: 0.1 | I159: 0 | J159: 30.000* | K159: 30.000* | L159: 0 | M159: 2.08 | N159: 13.346
A160: 138 | B160: 138 | C160: 0 | D160: 32 | E160: 162 | F160: 123.4 | G160: 0.9 | H160: 0.1 | I160: 0 | J160: 30.000* | K160: 30.000* | L160: 0 | M160: 2.08 | N160: 13.478
A161: 139 | B161: 139 | C161: 0 | D161: 32 | E161: 163 | F161: 124.1 | G161: 0.9 | H161: 0.1 | I161: 0 | J161: 30.000* | K161: 30.000* | L161: 0 | M161: 2.09 | N161: 13.61
A162: 140 | B162: 140 | C162: 0 | D162: 32 | E162: 164 | F162: 124.8 | G162: 0.9 | H162: 0.1 | I162: 0 | J162: 30.000* | K162: 30.000* | L162: 0 | M162: 2.09 | N162: 13.742
A163: 141 | B163: 141 | C163: 0 | D163: 32 | E163: 165 | F163: 125.5 | G163: 0.9 | H163: 0.1 | I163: 0 | J163: 30.000* | K163: 30.000* | L163: 0 | M163: 2.1 | N163: 13.875
A164: 142 | B164: 142 | C164: 0 | D164: 32 | E164: 166 | F164: 126.2 | G164: 0.9 | H164: 0.1 | I164: 0 | J164: 30.000* | K164: 30.000* | L164: 0 | M164: 2.11 | N164: 14.008
A165: 143 | B165: 143 | C165: 0 | D165: 32 | E165: 167 | F165: 126.9 | G165: 0.9 | H165: 0.1 | I165: 0 | J165: 30.000* | K165: 30.000* | L165: 0 | M165: 2.11 | N165: 14.142
A166: 144 | B166: 144 | C166: 0 | D166: 32 | E166: 168 | F166: 127.6 | G166: 0.9 | H166: 0.1 | I166: 0 | J166: 30.000* | K166: 30.000* | L166: 0 | M166: 2.12 | N166: 14.276
A167: 145 | B167: 145 | C167: 0 | D167: 32 | E167: 169 | F167: 128.3 | G167: 0.9 | H167: 0.1 | I167: 0 | J167: 30.000* | K167: 30.000* | L167: 0 | M167: 2.12 | N167: 14.41
A168: 146 | B168: 146 | C168: 0 | D168: 32 | E168: 170 | F168: 129 | G168: 0.9 | H168: 0.1 | I168: 0 | J168: 30.000* | K168: 30.000* | L168: 0 | M168: 2.13 | N168: 14.545
A169: 147 | B169: 147 | C169: 0 | D169: 32 | E169: 171 | F169: 129.7 | G169: 0.9 | H169: 0.1 | I169: 0 | J169: 30.000* | K169: 30.000* | L169: 0 | M169: 2.14 | N169: 14.681
A170: 148 | B170: 148 | C170: 0 | D170: 32 | E170: 172 | F170: 130.4 | G170: 0.9 | H170: 0.1 | I170: 0 | J170: 30.000* | K170: 30.000* | L170: 0 | M170: 2.14 | N170: 14.817
A171: 149 | B171: 149 | C171: 0 | D171: 32 | E171: 173 | F171: 131.1 | G171: 0.9 | H171: 0.1 | I171: 0 | J171: 30.000* | K171: 30.000* | L171: 0 | M171: 2.15 | N171: 14.953
A172: 150 | B172: 150 | C172: 0 | D172: 32 | E172: 174 | F172: 131.8 | G172: 0.9 | H172: 0.1 | I172: 0 | J172: 30.000* | K172: 30.000* | L172: 0 | M172: 2.15 | N172: 15.09
A173: 151 | B173: 151 | C173: 0 | D173: 32 | E173: 175 | F173: 132.5 | G173: 0.9 | H173: 0.1 | I173: 0 | J173: 30.000* | K173: 30.000* | L173: 0 | M173: 2.16 | N173: 15.227
A174: 152 | B174: 152 | C174: 0 | D174: 32 | E174: 176 | F174: 133.2 | G174: 0.9 | H174: 0.1 | I174: 0 | J174: 30.000* | K174: 30.000* | L174: 0 | M174: 2.17 | N174: 15.364
A175: 153 | B175: 153 | C175: 0 | D175: 32 | E175: 177 | F175: 133.9 | G175: 0.9 | H175: 0.1 | I175: 0 | J175: 30.000* | K175: 30.000* | L175: 0 | M175: 2.17 | N175: 15.502
A176: 154 | B176: 154 | C176: 0 | D176: 32 | E176: 178 | F176: 134.6 | G176: 0.9 | H176: 0.1 | I176: 0 | J176: 30.000* | K176: 30.000* | L176: 0 | M176: 2.18 | N176: 15.641
A177: 155 | B177: 155 | C177: 0 | D177: 32 | E177: 179 | F177: 135.3 | G177: 0.9 | H177: 0.1 | I177: 0 | J177: 30.000* | K177: 30.000* | L177: 0 | M177: 2.18 | N177: 15.779
A178: 156 | B178: 156 | C178: 0 | D178: 32 | E178: 180 | F178: 136 | G178: 0.9 | H178: 0.1 | I178: 0 | J178: 30.000* | K178: 30.000* | L178: 0 | M178: 2.19 | N178: 15.918
A179: 157 | B179: 157 | C179: 0 | D179: 32 | E179: 181 | F179: 136.7 | G179: 0.9 | H179: 0.1 | I179: 0 | J179: 30.000* | K179: 30.000* | L179: 0 | M179: 2.2 | N179: 16.058
A180: 158 | B180: 158 | C180: 0 | D180: 32 | E180: 182 | F180: 137.4 | G180: 0.9 | H180: 0.1 | I180: 0 | J180: 30.000* | K180: 30.000* | L180: 0 | M180: 2.2 | N180: 16.198
A181: 159 | B181: 159 | C181: 0 | D181: 32 | E181: 183 | F181: 138.1 | G181: 0.9 | H181: 0.1 | I181: 0 | J181: 30.000* | K181: 30.000* | L181: 0 | M181: 2.21 | N181: 16.338
A182: 160 | B182: 160 | C182: 0 | D182: 32 | E182: 184 | F182: 138.8 | G182: 0.9 | H182: 0.1 | I182: 0 | J182: 30.000* | K182: 30.000* | L182: 0 | M182: 2.21 | N182: 16.479
A183: 161 | B183: 161 | C183: 0 | D183: 32 | E183: 185 | F183: 139.5 | G183: 0.9 | H183: 0.1 | I183: 0 | J183: 30.000* | K183: 30.000* | L183: 0 | M183: 2.22 | N183: 16.62
A184: 162 | B184: 162 | C184: 0 | D184: 32 | E184: 186 | F184: 140.2 | G184: 0.9 | H184: 0.1 | I184: 0 | J184: 30.000* | K184: 30.000* | L184: 0 | M184: 2.23 | N184: 16.761
A185: 163 | B185: 163 | C185: 0 | D185: 32 | E185: 187 | F185: 140.9 | G185: 0.9 | H185: 0.1 | I185: 0 | J185: 30.000* | K185: 30.000* | L185: 0 | M185: 2.23 | N185: 16.903
A186: 164 | B186: 164 | C186: 0 | D186: 32 | E186: 188 | F186: 141.6 | G186: 0.9 | H186: 0.1 | I186: 0 | J186: 30.000* | K186: 30.000* | L186: 0 | M186: 2.24 | N186: 17.045
A187: 165 | B187: 165 | C187: 0 | D187: 32 | E187: 189 | F187: 142.3 | G187: 0.9 | H187: 0.1 | I187: 0 | J187: 30.000* | K187: 30.000* | L187: 0 | M187: 2.24 | N187: 17.187
A188: 166 | B188: 166 | C188: 0 | D188: 32 | E188: 190 | F188: 143 | G188: 0.9 | H188: 0.1 | I188: 0 | J188: 30.000* | K188: 30.000* | L188: 0 | M188: 2.25 | N188: 17.33
A189: 167 | B189: 167 | C189: 0 | D189: 32 | E189: 191 | F189: 143.7 | G189: 0.9 | H189: 0.1 | I189: 0 | J189: 30.000* | K189: 30.000* | L189: 0 | M189: 2.25 | N189: 17.473
A190: 168 | B190: 168 | C190: 0 | D190: 32 | E190: 192 | F190: 144.4 | G190: 0.9 | H190: 0.1 | I190: 0 | J190: 30.000* | K190: 30.000* | L190: 0 | M190: 2.26 | N190: 17.617
A191: 169 | B191: 169 | C191: 0 | D191: 32 | E191: 193 | F191: 145.1 | G191: 0.9 | H191: 0.1 | I191: 0 | J191: 30.000* | K191: 30.000* | L191: 0 | M191: 2.27 | N191: 17.76
A192: 170 | B192: 170 | C192: 0 | D192: 32 | E192: 194 | F192: 145.8 | G192: 0.9 | H192: 0.1 | I192: 0 | J192: 30.000* | K192: 30.000* | L192: 0 | M192: 2.27 | N192: 17.904
A193: 171 | B193: 171 | C193: 0 | D193: 32 | E193: 195 | F193: 146.5 | G193: 0.9 | H193: 0.1 | I193: 0 | J193: 30.000* | K193: 30.000* | L193: 0 | M193: 2.28 | N193: 18.049
A194: 172 | B194: 172 | C194: 0 | D194: 32 | E194: 196 | F194: 147.2 | G194: 0.9 | H194: 0.1 | I194: 0 | J194: 30.000* | K194: 30.000* | L194: 0 | M194: 2.28 | N194: 18.193
A195: 173 | B195: 173 | C195: 0 | D195: 32 | E195: 197 | F195: 147.9 | G195: 0.9 | H195: 0.1 | I195: 0 | J195: 30.000* | K195: 30.000* | L195: 0 | M195: 2.29 | N195: 18.338
A196: 174 | B196: 174 | C196: 0 | D196: 32 | E196: 198 | F196: 148.6 | G196: 0.9 | H196: 0.1 | I196: 0 | J196: 30.000* | K196: 30.000* | L196: 0 | M196: 2.3 | N196: 18.484
A197: 175 | B197: 175 | C197: 0 | D197: 32 | E197: 199 | F197: 149.3 | G197: 0.9 | H197: 0.1 | I197: 0 | J197: 30.000* | K197: 30.000* | L197: 0 | M197: 2.3 | N197: 18.629
A198: 176 | B198: 176 | C198: 0 | D198: 32 | E198: 200 | F198: 150 | G198: 0.9 | H198: 0.1 | I198: 0 | J198: 30.000* | K198: 30.000* | L198: 0 | M198: 2.31 | N198: 18.775
A199: 177 | B199: 177 | C199: 0 | D199: 32 | E199: 201 | F199: 150.7 | G199: 0.9 | H199: 0.1 | I199: 0 | J199: 30.000* | K199: 30.000* | L199: 0 | M199: 2.31 | N199: 18.921
A200: 178 | B200: 178 | C200: 0 | D200: 32 | E200: 202 | F200: 151.4 | G200: 0.9 | H200: 0.1 | I200: 0 | J200: 30.000* | K200: 30.000* | L200: 0 | M200: 2.32 | N200: 19.068
A201: 179 | B201: 179 | C201: 0 | D201: 32 | E201: 203 | F201: 152.1 | G201: 0.9 | H201: 0.1 | I201: 0 | J201: 30.000* | K201: 30.000* | L201: 0 | M201: 2.33 | N201: 19.215
A202: 180 | B202: 180 | C202: 0 | D202: 32 | E202: 204 | F202: 152.8 | G202: 0.9 | H202: 0.1 | I202: 0 | J202: 30.000* | K202: 30.000* | L202: 0 | M202: 2.33 | N202: 19.362
A203: 181 | B203: 181 | C203: 0 | D203: 32 | E203: 205 | F203: 153.5 | G203: 0.9 | H203: 0.1 | I203: 0 | J203: 30.000* | K203: 30.000* | L203: 0 | M203: 2.34 | N203: 19.509
A204: 182 | B204: 182 | C204: 0 | D204: 32 | E204: 206 | F204: 154.2 | G204: 0.9 | H204: 0.1 | I204: 0 | J204: 30.000* | K204: 30.000* | L204: 0 | M204: 2.34 | N204: 19.657
A205: 183 | B205: 183 | C205: 0 | D205: 32 | E205: 207 | F205: 154.9 | G205: 0.9 | H205: 0.1 | I205: 0 | J205: 30.000* | K205: 30.000* | L205: 0 | M205: 2.35 | N205: 19.804
A206: 184 | B206: 184 | C206: 0 | D206: 32 | E206: 208 | F206: 155.6 | G206: 0.9 | H206: 0.1 | I206: 0 | J206: 30.000* | K206: 30.000* | L206: 0 | M206: 2.35 | N206: 19.952
... 3792 more rows

Sheet Batch Output P4 (hidden)
A1: LEAD BATCH MODE OUTPUT FILE
A2: Model Version: 2.0 Build1
A3: User Name:
A4: Date:
A5: Site Name:
A6: Operable Unit:
A7: Run Mode: Research
A8: ----------------------------------------------------------------------------------
A10: * : signify default values used in place of missing input data.
A11: ---: signify missing input data.
A12: PBB & PRED are the observed and predicted blood Pb levels in µg/dL.
A14: Percent exceedance was calculated using values of GSD and PbB Cutoff as follows:
A15: GSD = 1.600
A16: PbB Cutoff ( C ) = 4.000 µg/dL
A18: Input File: Batch File TWA.dat
A20: ID | B20: FAM | C20: BLK | D20: AGE (mon) | E20: SOIL (µg/g) | F20: DUST (µg/g) | G20: WATER (µg/L) | H20: AIR (µg/m³) | I20: Other (µg/day) | J20: ABSSoil (%) | K20: ABSDust (%) | L20: PBB (µg/dL) | M20: PRED (µg/dL) | N20: P(PbB>C) (%)
A22: 1 | B22: 1 | C22: 0 | D22: 32 | E22: 25 | F22: 27.5 | G22: 0.9 | H22: 0.1 | I22: 0 | J22: 30.000* | K22: 30.000* | L22: 0 | M22: 1.25 | N22: 0.677
A23: 2 | B23: 2 | C23: 0 | D23: 32 | E23: 26 | F23: 28.2 | G23: 0.9 | H23: 0.1 | I23: 0 | J23: 30.000* | K23: 30.000* | L23: 0 | M23: 1.26 | N23: 0.697
A24: 3 | B24: 3 | C24: 0 | D24: 32 | E24: 27 | F24: 28.9 | G24: 0.9 | H24: 0.1 | I24: 0 | J24: 30.000* | K24: 30.000* | L24: 0 | M24: 1.27 | N24: 0.717
A25: 4 | B25: 4 | C25: 0 | D25: 32 | E25: 28 | F25: 29.6 | G25: 0.9 | H25: 0.1 | I25: 0 | J25: 30.000* | K25: 30.000* | L25: 0 | M25: 1.27 | N25: 0.738
A26: 5 | B26: 5 | C26: 0 | D26: 32 | E26: 29 | F26: 30.3 | G26: 0.9 | H26: 0.1 | I26: 0 | J26: 30.000* | K26: 30.000* | L26: 0 | M26: 1.28 | N26: 0.76
A27: 6 | B27: 6 | C27: 0 | D27: 32 | E27: 30 | F27: 31 | G27: 0.9 | H27: 0.1 | I27: 0 | J27: 30.000* | K27: 30.000* | L27: 0 | M27: 1.28 | N27: 0.781
A28: 7 | B28: 7 | C28: 0 | D28: 32 | E28: 31 | F28: 31.7 | G28: 0.9 | H28: 0.1 | I28: 0 | J28: 30.000* | K28: 30.000* | L28: 0 | M28: 1.29 | N28: 0.803
A29: 8 | B29: 8 | C29: 0 | D29: 32 | E29: 32 | F29: 32.4 | G29: 0.9 | H29: 0.1 | I29: 0 | J29: 30.000* | K29: 30.000* | L29: 0 | M29: 1.3 | N29: 0.826
A30: 9 | B30: 9 | C30: 0 | D30: 32 | E30: 33 | F30: 33.1 | G30: 0.9 | H30: 0.1 | I30: 0 | J30: 30.000* | K30: 30.000* | L30: 0 | M30: 1.3 | N30: 0.849
A31: 10 | B31: 10 | C31: 0 | D31: 32 | E31: 34 | F31: 33.8 | G31: 0.9 | H31: 0.1 | I31: 0 | J31: 30.000* | K31: 30.000* | L31: 0 | M31: 1.31 | N31: 0.873
A32: 11 | B32: 11 | C32: 0 | D32: 32 | E32: 35 | F32: 34.5 | G32: 0.9 | H32: 0.1 | I32: 0 | J32: 30.000* | K32: 30.000* | L32: 0 | M32: 1.31 | N32: 0.896
A33: 12 | B33: 12 | C33: 0 | D33: 32 | E33: 36 | F33: 35.2 | G33: 0.9 | H33: 0.1 | I33: 0 | J33: 30.000* | K33: 30.000* | L33: 0 | M33: 1.32 | N33: 0.921
A34: 13 | B34: 13 | C34: 0 | D34: 32 | E34: 37 | F34: 35.9 | G34: 0.9 | H34: 0.1 | I34: 0 | J34: 30.000* | K34: 30.000* | L34: 0 | M34: 1.33 | N34: 0.946
A35: 14 | B35: 14 | C35: 0 | D35: 32 | E35: 38 | F35: 36.6 | G35: 0.9 | H35: 0.1 | I35: 0 | J35: 30.000* | K35: 30.000* | L35: 0 | M35: 1.33 | N35: 0.971
A36: 15 | B36: 15 | C36: 0 | D36: 32 | E36: 39 | F36: 37.3 | G36: 0.9 | H36: 0.1 | I36: 0 | J36: 30.000* | K36: 30.000* | L36: 0 | M36: 1.34 | N36: 0.997
A37: 16 | B37: 16 | C37: 0 | D37: 32 | E37: 40 | F37: 38 | G37: 0.9 | H37: 0.1 | I37: 0 | J37: 30.000* | K37: 30.000* | L37: 0 | M37: 1.35 | N37: 1.023
A38: 17 | B38: 17 | C38: 0 | D38: 32 | E38: 41 | F38: 38.7 | G38: 0.9 | H38: 0.1 | I38: 0 | J38: 30.000* | K38: 30.000* | L38: 0 | M38: 1.35 | N38: 1.049
A39: 18 | B39: 18 | C39: 0 | D39: 32 | E39: 42 | F39: 39.4 | G39: 0.9 | H39: 0.1 | I39: 0 | J39: 30.000* | K39: 30.000* | L39: 0 | M39: 1.36 | N39: 1.077
A40: 19 | B40: 19 | C40: 0 | D40: 32 | E40: 43 | F40: 40.1 | G40: 0.9 | H40: 0.1 | I40: 0 | J40: 30.000* | K40: 30.000* | L40: 0 | M40: 1.36 | N40: 1.104
A41: 20 | B41: 20 | C41: 0 | D41: 32 | E41: 44 | F41: 40.8 | G41: 0.9 | H41: 0.1 | I41: 0 | J41: 30.000* | K41: 30.000* | L41: 0 | M41: 1.37 | N41: 1.132
A42: 21 | B42: 21 | C42: 0 | D42: 32 | E42: 45 | F42: 41.5 | G42: 0.9 | H42: 0.1 | I42: 0 | J42: 30.000* | K42: 30.000* | L42: 0 | M42: 1.38 | N42: 1.161
A43: 22 | B43: 22 | C43: 0 | D43: 32 | E43: 46 | F43: 42.2 | G43: 0.9 | H43: 0.1 | I43: 0 | J43: 30.000* | K43: 30.000* | L43: 0 | M43: 1.38 | N43: 1.19
A44: 23 | B44: 23 | C44: 0 | D44: 32 | E44: 47 | F44: 42.9 | G44: 0.9 | H44: 0.1 | I44: 0 | J44: 30.000* | K44: 30.000* | L44: 0 | M44: 1.39 | N44: 1.219
A45: 24 | B45: 24 | C45: 0 | D45: 32 | E45: 48 | F45: 43.6 | G45: 0.9 | H45: 0.1 | I45: 0 | J45: 30.000* | K45: 30.000* | L45: 0 | M45: 1.39 | N45: 1.249
A46: 25 | B46: 25 | C46: 0 | D46: 32 | E46: 49 | F46: 44.3 | G46: 0.9 | H46: 0.1 | I46: 0 | J46: 30.000* | K46: 30.000* | L46: 0 | M46: 1.4 | N46: 1.28
A47: 26 | B47: 26 | C47: 0 | D47: 32 | E47: 50 | F47: 45 | G47: 0.9 | H47: 0.1 | I47: 0 | J47: 30.000* | K47: 30.000* | L47: 0 | M47: 1.41 | N47: 1.311
A48: 27 | B48: 27 | C48: 0 | D48: 32 | E48: 51 | F48: 45.7 | G48: 0.9 | H48: 0.1 | I48: 0 | J48: 30.000* | K48: 30.000* | L48: 0 | M48: 1.41 | N48: 1.342
A49: 28 | B49: 28 | C49: 0 | D49: 32 | E49: 52 | F49: 46.4 | G49: 0.9 | H49: 0.1 | I49: 0 | J49: 30.000* | K49: 30.000* | L49: 0 | M49: 1.42 | N49: 1.374
A50: 29 | B50: 29 | C50: 0 | D50: 32 | E50: 53 | F50: 47.1 | G50: 0.9 | H50: 0.1 | I50: 0 | J50: 30.000* | K50: 30.000* | L50: 0 | M50: 1.43 | N50: 1.407
A51: 30 | B51: 30 | C51: 0 | D51: 32 | E51: 54 | F51: 47.8 | G51: 0.9 | H51: 0.1 | I51: 0 | J51: 30.000* | K51: 30.000* | L51: 0 | M51: 1.43 | N51: 1.44
A52: 31 | B52: 31 | C52: 0 | D52: 32 | E52: 55 | F52: 48.5 | G52: 0.9 | H52: 0.1 | I52: 0 | J52: 30.000* | K52: 30.000* | L52: 0 | M52: 1.44 | N52: 1.474
A53: 32 | B53: 32 | C53: 0 | D53: 32 | E53: 56 | F53: 49.2 | G53: 0.9 | H53: 0.1 | I53: 0 | J53: 30.000* | K53: 30.000* | L53: 0 | M53: 1.44 | N53: 1.508
A54: 33 | B54: 33 | C54: 0 | D54: 32 | E54: 57 | F54: 49.9 | G54: 0.9 | H54: 0.1 | I54: 0 | J54: 30.000* | K54: 30.000* | L54: 0 | M54: 1.45 | N54: 1.542
A55: 34 | B55: 34 | C55: 0 | D55: 32 | E55: 58 | F55: 50.6 | G55: 0.9 | H55: 0.1 | I55: 0 | J55: 30.000* | K55: 30.000* | L55: 0 | M55: 1.46 | N55: 1.577
A56: 35 | B56: 35 | C56: 0 | D56: 32 | E56: 59 | F56: 51.3 | G56: 0.9 | H56: 0.1 | I56: 0 | J56: 30.000* | K56: 30.000* | L56: 0 | M56: 1.46 | N56: 1.613
A57: 36 | B57: 36 | C57: 0 | D57: 32 | E57: 60 | F57: 52 | G57: 0.9 | H57: 0.1 | I57: 0 | J57: 30.000* | K57: 30.000* | L57: 0 | M57: 1.47 | N57: 1.649
A58: 37 | B58: 37 | C58: 0 | D58: 32 | E58: 61 | F58: 52.7 | G58: 0.9 | H58: 0.1 | I58: 0 | J58: 30.000* | K58: 30.000* | L58: 0 | M58: 1.47 | N58: 1.686
A59: 38 | B59: 38 | C59: 0 | D59: 32 | E59: 62 | F59: 53.4 | G59: 0.9 | H59: 0.1 | I59: 0 | J59: 30.000* | K59: 30.000* | L59: 0 | M59: 1.48 | N59: 1.723
A60: 39 | B60: 39 | C60: 0 | D60: 32 | E60: 63 | F60: 54.1 | G60: 0.9 | H60: 0.1 | I60: 0 | J60: 30.000* | K60: 30.000* | L60: 0 | M60: 1.49 | N60: 1.761
A61: 40 | B61: 40 | C61: 0 | D61: 32 | E61: 64 | F61: 54.8 | G61: 0.9 | H61: 0.1 | I61: 0 | J61: 30.000* | K61: 30.000* | L61: 0 | M61: 1.49 | N61: 1.799
A62: 41 | B62: 41 | C62: 0 | D62: 32 | E62: 65 | F62: 55.5 | G62: 0.9 | H62: 0.1 | I62: 0 | J62: 30.000* | K62: 30.000* | L62: 0 | M62: 1.5 | N62: 1.838
A63: 42 | B63: 42 | C63: 0 | D63: 32 | E63: 66 | F63: 56.2 | G63: 0.9 | H63: 0.1 | I63: 0 | J63: 30.000* | K63: 30.000* | L63: 0 | M63: 1.5 | N63: 1.877
A64: 43 | B64: 43 | C64: 0 | D64: 32 | E64: 67 | F64: 56.9 | G64: 0.9 | H64: 0.1 | I64: 0 | J64: 30.000* | K64: 30.000* | L64: 0 | M64: 1.51 | N64: 1.917
A65: 44 | B65: 44 | C65: 0 | D65: 32 | E65: 68 | F65: 57.6 | G65: 0.9 | H65: 0.1 | I65: 0 | J65: 30.000* | K65: 30.000* | L65: 0 | M65: 1.52 | N65: 1.957
A66: 45 | B66: 45 | C66: 0 | D66: 32 | E66: 69 | F66: 58.3 | G66: 0.9 | H66: 0.1 | I66: 0 | J66: 30.000* | K66: 30.000* | L66: 0 | M66: 1.52 | N66: 1.998
A67: 46 | B67: 46 | C67: 0 | D67: 32 | E67: 70 | F67: 59 | G67: 0.9 | H67: 0.1 | I67: 0 | J67: 30.000* | K67: 30.000* | L67: 0 | M67: 1.53 | N67: 2.04
A68: 47 | B68: 47 | C68: 0 | D68: 32 | E68: 71 | F68: 59.7 | G68: 0.9 | H68: 0.1 | I68: 0 | J68: 30.000* | K68: 30.000* | L68: 0 | M68: 1.54 | N68: 2.082
A69: 48 | B69: 48 | C69: 0 | D69: 32 | E69: 72 | F69: 60.4 | G69: 0.9 | H69: 0.1 | I69: 0 | J69: 30.000* | K69: 30.000* | L69: 0 | M69: 1.54 | N69: 2.124
A70: 49 | B70: 49 | C70: 0 | D70: 32 | E70: 73 | F70: 61.1 | G70: 0.9 | H70: 0.1 | I70: 0 | J70: 30.000* | K70: 30.000* | L70: 0 | M70: 1.55 | N70: 2.167
A71: 50 | B71: 50 | C71: 0 | D71: 32 | E71: 74 | F71: 61.8 | G71: 0.9 | H71: 0.1 | I71: 0 | J71: 30.000* | K71: 30.000* | L71: 0 | M71: 1.55 | N71: 2.211
A72: 51 | B72: 51 | C72: 0 | D72: 32 | E72: 75 | F72: 62.5 | G72: 0.9 | H72: 0.1 | I72: 0 | J72: 30.000* | K72: 30.000* | L72: 0 | M72: 1.56 | N72: 2.255
A73: 52 | B73: 52 | C73: 0 | D73: 32 | E73: 76 | F73: 63.2 | G73: 0.9 | H73: 0.1 | I73: 0 | J73: 30.000* | K73: 30.000* | L73: 0 | M73: 1.57 | N73: 2.3
A74: 53 | B74: 53 | C74: 0 | D74: 32 | E74: 77 | F74: 63.9 | G74: 0.9 | H74: 0.1 | I74: 0 | J74: 30.000* | K74: 30.000* | L74: 0 | M74: 1.57 | N74: 2.345
A75: 54 | B75: 54 | C75: 0 | D75: 32 | E75: 78 | F75: 64.6 | G75: 0.9 | H75: 0.1 | I75: 0 | J75: 30.000* | K75: 30.000* | L75: 0 | M75: 1.58 | N75: 2.391
A76: 55 | B76: 55 | C76: 0 | D76: 32 | E76: 79 | F76: 65.3 | G76: 0.9 | H76: 0.1 | I76: 0 | J76: 30.000* | K76: 30.000* | L76: 0 | M76: 1.58 | N76: 2.438
A77: 56 | B77: 56 | C77: 0 | D77: 32 | E77: 80 | F77: 66 | G77: 0.9 | H77: 0.1 | I77: 0 | J77: 30.000* | K77: 30.000* | L77: 0 | M77: 1.59 | N77: 2.485
A78: 57 | B78: 57 | C78: 0 | D78: 32 | E78: 81 | F78: 66.7 | G78: 0.9 | H78: 0.1 | I78: 0 | J78: 30.000* | K78: 30.000* | L78: 0 | M78: 1.6 | N78: 2.532
A79: 58 | B79: 58 | C79: 0 | D79: 32 | E79: 82 | F79: 67.4 | G79: 0.9 | H79: 0.1 | I79: 0 | J79: 30.000* | K79: 30.000* | L79: 0 | M79: 1.6 | N79: 2.58
A80: 59 | B80: 59 | C80: 0 | D80: 32 | E80: 83 | F80: 68.1 | G80: 0.9 | H80: 0.1 | I80: 0 | J80: 30.000* | K80: 30.000* | L80: 0 | M80: 1.61 | N80: 2.629
A81: 60 | B81: 60 | C81: 0 | D81: 32 | E81: 84 | F81: 68.8 | G81: 0.9 | H81: 0.1 | I81: 0 | J81: 30.000* | K81: 30.000* | L81: 0 | M81: 1.61 | N81: 2.678
A82: 61 | B82: 61 | C82: 0 | D82: 32 | E82: 85 | F82: 69.5 | G82: 0.9 | H82: 0.1 | I82: 0 | J82: 30.000* | K82: 30.000* | L82: 0 | M82: 1.62 | N82: 2.728
A83: 62 | B83: 62 | C83: 0 | D83: 32 | E83: 86 | F83: 70.2 | G83: 0.9 | H83: 0.1 | I83: 0 | J83: 30.000* | K83: 30.000* | L83: 0 | M83: 1.63 | N83: 2.779
A84: 63 | B84: 63 | C84: 0 | D84: 32 | E84: 87 | F84: 70.9 | G84: 0.9 | H84: 0.1 | I84: 0 | J84: 30.000* | K84: 30.000* | L84: 0 | M84: 1.63 | N84: 2.83
A85: 64 | B85: 64 | C85: 0 | D85: 32 | E85: 88 | F85: 71.6 | G85: 0.9 | H85: 0.1 | I85: 0 | J85: 30.000* | K85: 30.000* | L85: 0 | M85: 1.64 | N85: 2.881
A86: 65 | B86: 65 | C86: 0 | D86: 32 | E86: 89 | F86: 72.3 | G86: 0.9 | H86: 0.1 | I86: 0 | J86: 30.000* | K86: 30.000* | L86: 0 | M86: 1.64 | N86: 2.933
A87: 66 | B87: 66 | C87: 0 | D87: 32 | E87: 90 | F87: 73 | G87: 0.9 | H87: 0.1 | I87: 0 | J87: 30.000* | K87: 30.000* | L87: 0 | M87: 1.65 | N87: 2.986
A88: 67 | B88: 67 | C88: 0 | D88: 32 | E88: 91 | F88: 73.7 | G88: 0.9 | H88: 0.1 | I88: 0 | J88: 30.000* | K88: 30.000* | L88: 0 | M88: 1.66 | N88: 3.039
A89: 68 | B89: 68 | C89: 0 | D89: 32 | E89: 92 | F89: 74.4 | G89: 0.9 | H89: 0.1 | I89: 0 | J89: 30.000* | K89: 30.000* | L89: 0 | M89: 1.66 | N89: 3.093
A90: 69 | B90: 69 | C90: 0 | D90: 32 | E90: 93 | F90: 75.1 | G90: 0.9 | H90: 0.1 | I90: 0 | J90: 30.000* | K90: 30.000* | L90: 0 | M90: 1.67 | N90: 3.147
A91: 70 | B91: 70 | C91: 0 | D91: 32 | E91: 94 | F91: 75.8 | G91: 0.9 | H91: 0.1 | I91: 0 | J91: 30.000* | K91: 30.000* | L91: 0 | M91: 1.68 | N91: 3.202
A92: 71 | B92: 71 | C92: 0 | D92: 32 | E92: 95 | F92: 76.5 | G92: 0.9 | H92: 0.1 | I92: 0 | J92: 30.000* | K92: 30.000* | L92: 0 | M92: 1.68 | N92: 3.258
A93: 72 | B93: 72 | C93: 0 | D93: 32 | E93: 96 | F93: 77.2 | G93: 0.9 | H93: 0.1 | I93: 0 | J93: 30.000* | K93: 30.000* | L93: 0 | M93: 1.69 | N93: 3.314
A94: 73 | B94: 73 | C94: 0 | D94: 32 | E94: 97 | F94: 77.9 | G94: 0.9 | H94: 0.1 | I94: 0 | J94: 30.000* | K94: 30.000* | L94: 0 | M94: 1.69 | N94: 3.371
A95: 74 | B95: 74 | C95: 0 | D95: 32 | E95: 98 | F95: 78.6 | G95: 0.9 | H95: 0.1 | I95: 0 | J95: 30.000* | K95: 30.000* | L95: 0 | M95: 1.7 | N95: 3.428
A96: 75 | B96: 75 | C96: 0 | D96: 32 | E96: 99 | F96: 79.3 | G96: 0.9 | H96: 0.1 | I96: 0 | J96: 30.000* | K96: 30.000* | L96: 0 | M96: 1.71 | N96: 3.486
A97: 76 | B97: 76 | C97: 0 | D97: 32 | E97: 100 | F97: 80 | G97: 0.9 | H97: 0.1 | I97: 0 | J97: 30.000* | K97: 30.000* | L97: 0 | M97: 1.71 | N97: 3.544
A98: 77 | B98: 77 | C98: 0 | D98: 32 | E98: 101 | F98: 80.7 | G98: 0.9 | H98: 0.1 | I98: 0 | J98: 30.000* | K98: 30.000* | L98: 0 | M98: 1.72 | N98: 3.603
A99: 78 | B99: 78 | C99: 0 | D99: 32 | E99: 102 | F99: 81.4 | G99: 0.9 | H99: 0.1 | I99: 0 | J99: 30.000* | K99: 30.000* | L99: 0 | M99: 1.72 | N99: 3.662
A100: 79 | B100: 79 | C100: 0 | D100: 32 | E100: 103 | F100: 82.1 | G100: 0.9 | H100: 0.1 | I100: 0 | J100: 30.000* | K100: 30.000* | L100: 0 | M100: 1.73 | N100: 3.723
A101: 80 | B101: 80 | C101: 0 | D101: 32 | E101: 104 | F101: 82.8 | G101: 0.9 | H101: 0.1 | I101: 0 | J101: 30.000* | K101: 30.000* | L101: 0 | M101: 1.74 | N101: 3.783
A102: 81 | B102: 81 | C102: 0 | D102: 32 | E102: 105 | F102: 83.5 | G102: 0.9 | H102: 0.1 | I102: 0 | J102: 30.000* | K102: 30.000* | L102: 0 | M102: 1.74 | N102: 3.844
A103: 82 | B103: 82 | C103: 0 | D103: 32 | E103: 106 | F103: 84.2 | G103: 0.9 | H103: 0.1 | I103: 0 | J103: 30.000* | K103: 30.000* | L103: 0 | M103: 1.75 | N103: 3.906
A104: 83 | B104: 83 | C104: 0 | D104: 32 | E104: 107 | F104: 84.9 | G104: 0.9 | H104: 0.1 | I104: 0 | J104: 30.000* | K104: 30.000* | L104: 0 | M104: 1.75 | N104: 3.969
A105: 84 | B105: 84 | C105: 0 | D105: 32 | E105: 108 | F105: 85.6 | G105: 0.9 | H105: 0.1 | I105: 0 | J105: 30.000* | K105: 30.000* | L105: 0 | M105: 1.76 | N105: 4.032
A106: 85 | B106: 85 | C106: 0 | D106: 32 | E106: 109 | F106: 86.3 | G106: 0.9 | H106: 0.1 | I106: 0 | J106: 30.000* | K106: 30.000* | L106: 0 | M106: 1.77 | N106: 4.095
A107: 86 | B107: 86 | C107: 0 | D107: 32 | E107: 110 | F107: 87 | G107: 0.9 | H107: 0.1 | I107: 0 | J107: 30.000* | K107: 30.000* | L107: 0 | M107: 1.77 | N107: 4.159
A108: 87 | B108: 87 | C108: 0 | D108: 32 | E108: 111 | F108: 87.7 | G108: 0.9 | H108: 0.1 | I108: 0 | J108: 30.000* | K108: 30.000* | L108: 0 | M108: 1.78 | N108: 4.224
A109: 88 | B109: 88 | C109: 0 | D109: 32 | E109: 112 | F109: 88.4 | G109: 0.9 | H109: 0.1 | I109: 0 | J109: 30.000* | K109: 30.000* | L109: 0 | M109: 1.78 | N109: 4.289
A110: 89 | B110: 89 | C110: 0 | D110: 32 | E110: 113 | F110: 89.1 | G110: 0.9 | H110: 0.1 | I110: 0 | J110: 30.000* | K110: 30.000* | L110: 0 | M110: 1.79 | N110: 4.355
A111: 90 | B111: 90 | C111: 0 | D111: 32 | E111: 114 | F111: 89.8 | G111: 0.9 | H111: 0.1 | I111: 0 | J111: 30.000* | K111: 30.000* | L111: 0 | M111: 1.8 | N111: 4.421
A112: 91 | B112: 91 | C112: 0 | D112: 32 | E112: 115 | F112: 90.5 | G112: 0.9 | H112: 0.1 | I112: 0 | J112: 30.000* | K112: 30.000* | L112: 0 | M112: 1.8 | N112: 4.488
A113: 92 | B113: 92 | C113: 0 | D113: 32 | E113: 116 | F113: 91.2 | G113: 0.9 | H113: 0.1 | I113: 0 | J113: 30.000* | K113: 30.000* | L113: 0 | M113: 1.81 | N113: 4.556
A114: 93 | B114: 93 | C114: 0 | D114: 32 | E114: 117 | F114: 91.9 | G114: 0.9 | H114: 0.1 | I114: 0 | J114: 30.000* | K114: 30.000* | L114: 0 | M114: 1.81 | N114: 4.624
A115: 94 | B115: 94 | C115: 0 | D115: 32 | E115: 118 | F115: 92.6 | G115: 0.9 | H115: 0.1 | I115: 0 | J115: 30.000* | K115: 30.000* | L115: 0 | M115: 1.82 | N115: 4.693
A116: 95 | B116: 95 | C116: 0 | D116: 32 | E116: 119 | F116: 93.3 | G116: 0.9 | H116: 0.1 | I116: 0 | J116: 30.000* | K116: 30.000* | L116: 0 | M116: 1.83 | N116: 4.762
A117: 96 | B117: 96 | C117: 0 | D117: 32 | E117: 120 | F117: 94 | G117: 0.9 | H117: 0.1 | I117: 0 | J117: 30.000* | K117: 30.000* | L117: 0 | M117: 1.83 | N117: 4.832
A118: 97 | B118: 97 | C118: 0 | D118: 32 | E118: 121 | F118: 94.7 | G118: 0.9 | H118: 0.1 | I118: 0 | J118: 30.000* | K118: 30.000* | L118: 0 | M118: 1.84 | N118: 4.902
A119: 98 | B119: 98 | C119: 0 | D119: 32 | E119: 122 | F119: 95.4 | G119: 0.9 | H119: 0.1 | I119: 0 | J119: 30.000* | K119: 30.000* | L119: 0 | M119: 1.84 | N119: 4.973
A120: 99 | B120: 99 | C120: 0 | D120: 32 | E120: 123 | F120: 96.1 | G120: 0.9 | H120: 0.1 | I120: 0 | J120: 30.000* | K120: 30.000* | L120: 0 | M120: 1.85 | N120: 5.044
A121: 100 | B121: 100 | C121: 0 | D121: 32 | E121: 124 | F121: 96.8 | G121: 0.9 | H121: 0.1 | I121: 0 | J121: 30.000* | K121: 30.000* | L121: 0 | M121: 1.86 | N121: 5.116
A122: 101 | B122: 101 | C122: 0 | D122: 32 | E122: 125 | F122: 97.5 | G122: 0.9 | H122: 0.1 | I122: 0 | J122: 30.000* | K122: 30.000* | L122: 0 | M122: 1.86 | N122: 5.189
A123: 102 | B123: 102 | C123: 0 | D123: 32 | E123: 126 | F123: 98.2 | G123: 0.9 | H123: 0.1 | I123: 0 | J123: 30.000* | K123: 30.000* | L123: 0 | M123: 1.87 | N123: 5.262
A124: 103 | B124: 103 | C124: 0 | D124: 32 | E124: 127 | F124: 98.9 | G124: 0.9 | H124: 0.1 | I124: 0 | J124: 30.000* | K124: 30.000* | L124: 0 | M124: 1.87 | N124: 5.336
A125: 104 | B125: 104 | C125: 0 | D125: 32 | E125: 128 | F125: 99.6 | G125: 0.9 | H125: 0.1 | I125: 0 | J125: 30.000* | K125: 30.000* | L125: 0 | M125: 1.88 | N125: 5.41
A126: 105 | B126: 105 | C126: 0 | D126: 32 | E126: 129 | F126: 100.3 | G126: 0.9 | H126: 0.1 | I126: 0 | J126: 30.000* | K126: 30.000* | L126: 0 | M126: 1.89 | N126: 5.485
A127: 106 | B127: 106 | C127: 0 | D127: 32 | E127: 130 | F127: 101 | G127: 0.9 | H127: 0.1 | I127: 0 | J127: 30.000* | K127: 30.000* | L127: 0 | M127: 1.89 | N127: 5.56
A128: 107 | B128: 107 | C128: 0 | D128: 32 | E128: 131 | F128: 101.7 | G128: 0.9 | H128: 0.1 | I128: 0 | J128: 30.000* | K128: 30.000* | L128: 0 | M128: 1.9 | N128: 5.636
A129: 108 | B129: 108 | C129: 0 | D129: 32 | E129: 132 | F129: 102.4 | G129: 0.9 | H129: 0.1 | I129: 0 | J129: 30.000* | K129: 30.000* | L129: 0 | M129: 1.9 | N129: 5.713
A130: 109 | B130: 109 | C130: 0 | D130: 32 | E130: 133 | F130: 103.1 | G130: 0.9 | H130: 0.1 | I130: 0 | J130: 30.000* | K130: 30.000* | L130: 0 | M130: 1.91 | N130: 5.79
A131: 110 | B131: 110 | C131: 0 | D131: 32 | E131: 134 | F131: 103.8 | G131: 0.9 | H131: 0.1 | I131: 0 | J131: 30.000* | K131: 30.000* | L131: 0 | M131: 1.92 | N131: 5.867
A132: 111 | B132: 111 | C132: 0 | D132: 32 | E132: 135 | F132: 104.5 | G132: 0.9 | H132: 0.1 | I132: 0 | J132: 30.000* | K132: 30.000* | L132: 0 | M132: 1.92 | N132: 5.945
A133: 112 | B133: 112 | C133: 0 | D133: 32 | E133: 136 | F133: 105.2 | G133: 0.9 | H133: 0.1 | I133: 0 | J133: 30.000* | K133: 30.000* | L133: 0 | M133: 1.93 | N133: 6.024
A134: 113 | B134: 113 | C134: 0 | D134: 32 | E134: 137 | F134: 105.9 | G134: 0.9 | H134: 0.1 | I134: 0 | J134: 30.000* | K134: 30.000* | L134: 0 | M134: 1.93 | N134: 6.103
A135: 114 | B135: 114 | C135: 0 | D135: 32 | E135: 138 | F135: 106.6 | G135: 0.9 | H135: 0.1 | I135: 0 | J135: 30.000* | K135: 30.000* | L135: 0 | M135: 1.94 | N135: 6.183
A136: 115 | B136: 115 | C136: 0 | D136: 32 | E136: 139 | F136: 107.3 | G136: 0.9 | H136: 0.1 | I136: 0 | J136: 30.000* | K136: 30.000* | L136: 0 | M136: 1.95 | N136: 6.263
A137: 116 | B137: 116 | C137: 0 | D137: 32 | E137: 140 | F137: 108 | G137: 0.9 | H137: 0.1 | I137: 0 | J137: 30.000* | K137: 30.000* | L137: 0 | M137: 1.95 | N137: 6.344
A138: 117 | B138: 117 | C138: 0 | D138: 32 | E138: 141 | F138: 108.7 | G138: 0.9 | H138: 0.1 | I138: 0 | J138: 30.000* | K138: 30.000* | L138: 0 | M138: 1.96 | N138: 6.425
A139: 118 | B139: 118 | C139: 0 | D139: 32 | E139: 142 | F139: 109.4 | G139: 0.9 | H139: 0.1 | I139: 0 | J139: 30.000* | K139: 30.000* | L139: 0 | M139: 1.96 | N139: 6.507
A140: 119 | B140: 119 | C140: 0 | D140: 32 | E140: 143 | F140: 110.1 | G140: 0.9 | H140: 0.1 | I140: 0 | J140: 30.000* | K140: 30.000* | L140: 0 | M140: 1.97 | N140: 6.59
A141: 120 | B141: 120 | C141: 0 | D141: 32 | E141: 144 | F141: 110.8 | G141: 0.9 | H141: 0.1 | I141: 0 | J141: 30.000* | K141: 30.000* | L141: 0 | M141: 1.98 | N141: 6.672
A142: 121 | B142: 121 | C142: 0 | D142: 32 | E142: 145 | F142: 111.5 | G142: 0.9 | H142: 0.1 | I142: 0 | J142: 30.000* | K142: 30.000* | L142: 0 | M142: 1.98 | N142: 6.756
A143: 122 | B143: 122 | C143: 0 | D143: 32 | E143: 146 | F143: 112.2 | G143: 0.9 | H143: 0.1 | I143: 0 | J143: 30.000* | K143: 30.000* | L143: 0 | M143: 1.99 | N143: 6.84
A144: 123 | B144: 123 | C144: 0 | D144: 32 | E144: 147 | F144: 112.9 | G144: 0.9 | H144: 0.1 | I144: 0 | J144: 30.000* | K144: 30.000* | L144: 0 | M144: 1.99 | N144: 6.924
A145: 124 | B145: 124 | C145: 0 | D145: 32 | E145: 148 | F145: 113.6 | G145: 0.9 | H145: 0.1 | I145: 0 | J145: 30.000* | K145: 30.000* | L145: 0 | M145: 2 | N145: 7.01
A146: 125 | B146: 125 | C146: 0 | D146: 32 | E146: 149 | F146: 114.3 | G146: 0.9 | H146: 0.1 | I146: 0 | J146: 30.000* | K146: 30.000* | L146: 0 | M146: 2.01 | N146: 7.095
A147: 126 | B147: 126 | C147: 0 | D147: 32 | E147: 150 | F147: 115 | G147: 0.9 | H147: 0.1 | I147: 0 | J147: 30.000* | K147: 30.000* | L147: 0 | M147: 2.01 | N147: 7.181
A148: 127 | B148: 127 | C148: 0 | D148: 32 | E148: 151 | F148: 115.7 | G148: 0.9 | H148: 0.1 | I148: 0 | J148: 30.000* | K148: 30.000* | L148: 0 | M148: 2.02 | N148: 7.268
A149: 128 | B149: 128 | C149: 0 | D149: 32 | E149: 152 | F149: 116.4 | G149: 0.9 | H149: 0.1 | I149: 0 | J149: 30.000* | K149: 30.000* | L149: 0 | M149: 2.02 | N149: 7.355
A150: 129 | B150: 129 | C150: 0 | D150: 32 | E150: 153 | F150: 117.1 | G150: 0.9 | H150: 0.1 | I150: 0 | J150: 30.000* | K150: 30.000* | L150: 0 | M150: 2.03 | N150: 7.442
A151: 130 | B151: 130 | C151: 0 | D151: 32 | E151: 154 | F151: 117.8 | G151: 0.9 | H151: 0.1 | I151: 0 | J151: 30.000* | K151: 30.000* | L151: 0 | M151: 2.04 | N151: 7.531
A152: 131 | B152: 131 | C152: 0 | D152: 32 | E152: 155 | F152: 118.5 | G152: 0.9 | H152: 0.1 | I152: 0 | J152: 30.000* | K152: 30.000* | L152: 0 | M152: 2.04 | N152: 7.619
A153: 132 | B153: 132 | C153: 0 | D153: 32 | E153: 156 | F153: 119.2 | G153: 0.9 | H153: 0.1 | I153: 0 | J153: 30.000* | K153: 30.000* | L153: 0 | M153: 2.05 | N153: 7.708
A154: 133 | B154: 133 | C154: 0 | D154: 32 | E154: 157 | F154: 119.9 | G154: 0.9 | H154: 0.1 | I154: 0 | J154: 30.000* | K154: 30.000* | L154: 0 | M154: 2.05 | N154: 7.798
A155: 134 | B155: 134 | C155: 0 | D155: 32 | E155: 158 | F155: 120.6 | G155: 0.9 | H155: 0.1 | I155: 0 | J155: 30.000* | K155: 30.000* | L155: 0 | M155: 2.06 | N155: 7.888
A156: 135 | B156: 135 | C156: 0 | D156: 32 | E156: 159 | F156: 121.3 | G156: 0.9 | H156: 0.1 | I156: 0 | J156: 30.000* | K156: 30.000* | L156: 0 | M156: 2.07 | N156: 7.979
A157: 136 | B157: 136 | C157: 0 | D157: 32 | E157: 160 | F157: 122 | G157: 0.9 | H157: 0.1 | I157: 0 | J157: 30.000* | K157: 30.000* | L157: 0 | M157: 2.07 | N157: 8.07
A158: 137 | B158: 137 | C158: 0 | D158: 32 | E158: 161 | F158: 122.7 | G158: 0.9 | H158: 0.1 | I158: 0 | J158: 30.000* | K158: 30.000* | L158: 0 | M158: 2.08 | N158: 8.162
A159: 138 | B159: 138 | C159: 0 | D159: 32 | E159: 162 | F159: 123.4 | G159: 0.9 | H159: 0.1 | I159: 0 | J159: 30.000* | K159: 30.000* | L159: 0 | M159: 2.08 | N159: 8.254
A160: 139 | B160: 139 | C160: 0 | D160: 32 | E160: 163 | F160: 124.1 | G160: 0.9 | H160: 0.1 | I160: 0 | J160: 30.000* | K160: 30.000* | L160: 0 | M160: 2.09 | N160: 8.346
A161: 140 | B161: 140 | C161: 0 | D161: 32 | E161: 164 | F161: 124.8 | G161: 0.9 | H161: 0.1 | I161: 0 | J161: 30.000* | K161: 30.000* | L161: 0 | M161: 2.09 | N161: 8.44
A162: 141 | B162: 141 | C162: 0 | D162: 32 | E162: 165 | F162: 125.5 | G162: 0.9 | H162: 0.1 | I162: 0 | J162: 30.000* | K162: 30.000* | L162: 0 | M162: 2.1 | N162: 8.533
A163: 142 | B163: 142 | C163: 0 | D163: 32 | E163: 166 | F163: 126.2 | G163: 0.9 | H163: 0.1 | I163: 0 | J163: 30.000* | K163: 30.000* | L163: 0 | M163: 2.11 | N163: 8.627
A164: 143 | B164: 143 | C164: 0 | D164: 32 | E164: 167 | F164: 126.9 | G164: 0.9 | H164: 0.1 | I164: 0 | J164: 30.000* | K164: 30.000* | L164: 0 | M164: 2.11 | N164: 8.722
A165: 144 | B165: 144 | C165: 0 | D165: 32 | E165: 168 | F165: 127.6 | G165: 0.9 | H165: 0.1 | I165: 0 | J165: 30.000* | K165: 30.000* | L165: 0 | M165: 2.12 | N165: 8.817
A166: 145 | B166: 145 | C166: 0 | D166: 32 | E166: 169 | F166: 128.3 | G166: 0.9 | H166: 0.1 | I166: 0 | J166: 30.000* | K166: 30.000* | L166: 0 | M166: 2.12 | N166: 8.912
A167: 146 | B167: 146 | C167: 0 | D167: 32 | E167: 170 | F167: 129 | G167: 0.9 | H167: 0.1 | I167: 0 | J167: 30.000* | K167: 30.000* | L167: 0 | M167: 2.13 | N167: 9.008
A168: 147 | B168: 147 | C168: 0 | D168: 32 | E168: 171 | F168: 129.7 | G168: 0.9 | H168: 0.1 | I168: 0 | J168: 30.000* | K168: 30.000* | L168: 0 | M168: 2.14 | N168: 9.105
A169: 148 | B169: 148 | C169: 0 | D169: 32 | E169: 172 | F169: 130.4 | G169: 0.9 | H169: 0.1 | I169: 0 | J169: 30.000* | K169: 30.000* | L169: 0 | M169: 2.14 | N169: 9.202
A170: 149 | B170: 149 | C170: 0 | D170: 32 | E170: 173 | F170: 131.1 | G170: 0.9 | H170: 0.1 | I170: 0 | J170: 30.000* | K170: 30.000* | L170: 0 | M170: 2.15 | N170: 9.299
A171: 150 | B171: 150 | C171: 0 | D171: 32 | E171: 174 | F171: 131.8 | G171: 0.9 | H171: 0.1 | I171: 0 | J171: 30.000* | K171: 30.000* | L171: 0 | M171: 2.15 | N171: 9.397
A172: 151 | B172: 151 | C172: 0 | D172: 32 | E172: 175 | F172: 132.5 | G172: 0.9 | H172: 0.1 | I172: 0 | J172: 30.000* | K172: 30.000* | L172: 0 | M172: 2.16 | N172: 9.495
A173: 152 | B173: 152 | C173: 0 | D173: 32 | E173: 176 | F173: 133.2 | G173: 0.9 | H173: 0.1 | I173: 0 | J173: 30.000* | K173: 30.000* | L173: 0 | M173: 2.17 | N173: 9.594
A174: 153 | B174: 153 | C174: 0 | D174: 32 | E174: 177 | F174: 133.9 | G174: 0.9 | H174: 0.1 | I174: 0 | J174: 30.000* | K174: 30.000* | L174: 0 | M174: 2.17 | N174: 9.693
A175: 154 | B175: 154 | C175: 0 | D175: 32 | E175: 178 | F175: 134.6 | G175: 0.9 | H175: 0.1 | I175: 0 | J175: 30.000* | K175: 30.000* | L175: 0 | M175: 2.18 | N175: 9.793
A176: 155 | B176: 155 | C176: 0 | D176: 32 | E176: 179 | F176: 135.3 | G176: 0.9 | H176: 0.1 | I176: 0 | J176: 30.000* | K176: 30.000* | L176: 0 | M176: 2.18 | N176: 9.893
A177: 156 | B177: 156 | C177: 0 | D177: 32 | E177: 180 | F177: 136 | G177: 0.9 | H177: 0.1 | I177: 0 | J177: 30.000* | K177: 30.000* | L177: 0 | M177: 2.19 | N177: 9.993
A178: 157 | B178: 157 | C178: 0 | D178: 32 | E178: 181 | F178: 136.7 | G178: 0.9 | H178: 0.1 | I178: 0 | J178: 30.000* | K178: 30.000* | L178: 0 | M178: 2.2 | N178: 10.094
A179: 158 | B179: 158 | C179: 0 | D179: 32 | E179: 182 | F179: 137.4 | G179: 0.9 | H179: 0.1 | I179: 0 | J179: 30.000* | K179: 30.000* | L179: 0 | M179: 2.2 | N179: 10.196
A180: 159 | B180: 159 | C180: 0 | D180: 32 | E180: 183 | F180: 138.1 | G180: 0.9 | H180: 0.1 | I180: 0 | J180: 30.000* | K180: 30.000* | L180: 0 | M180: 2.21 | N180: 10.298
A181: 160 | B181: 160 | C181: 0 | D181: 32 | E181: 184 | F181: 138.8 | G181: 0.9 | H181: 0.1 | I181: 0 | J181: 30.000* | K181: 30.000* | L181: 0 | M181: 2.21 | N181: 10.4
A182: 161 | B182: 161 | C182: 0 | D182: 32 | E182: 185 | F182: 139.5 | G182: 0.9 | H182: 0.1 | I182: 0 | J182: 30.000* | K182: 30.000* | L182: 0 | M182: 2.22 | N182: 10.503
A183: 162 | B183: 162 | C183: 0 | D183: 32 | E183: 186 | F183: 140.2 | G183: 0.9 | H183: 0.1 | I183: 0 | J183: 30.000* | K183: 30.000* | L183: 0 | M183: 2.23 | N183: 10.606
A184: 163 | B184: 163 | C184: 0 | D184: 32 | E184: 187 | F184: 140.9 | G184: 0.9 | H184: 0.1 | I184: 0 | J184: 30.000* | K184: 30.000* | L184: 0 | M184: 2.23 | N184: 10.71
A185: 164 | B185: 164 | C185: 0 | D185: 32 | E185: 188 | F185: 141.6 | G185: 0.9 | H185: 0.1 | I185: 0 | J185: 30.000* | K185: 30.000* | L185: 0 | M185: 2.24 | N185: 10.814
A186: 165 | B186: 165 | C186: 0 | D186: 32 | E186: 189 | F186: 142.3 | G186: 0.9 | H186: 0.1 | I186: 0 | J186: 30.000* | K186: 30.000* | L186: 0 | M186: 2.24 | N186: 10.918
A187: 166 | B187: 166 | C187: 0 | D187: 32 | E187: 190 | F187: 143 | G187: 0.9 | H187: 0.1 | I187: 0 | J187: 30.000* | K187: 30.000* | L187: 0 | M187: 2.25 | N187: 11.023
A188: 167 | B188: 167 | C188: 0 | D188: 32 | E188: 191 | F188: 143.7 | G188: 0.9 | H188: 0.1 | I188: 0 | J188: 30.000* | K188: 30.000* | L188: 0 | M188: 2.25 | N188: 11.128
A189: 168 | B189: 168 | C189: 0 | D189: 32 | E189: 192 | F189: 144.4 | G189: 0.9 | H189: 0.1 | I189: 0 | J189: 30.000* | K189: 30.000* | L189: 0 | M189: 2.26 | N189: 11.234
A190: 169 | B190: 169 | C190: 0 | D190: 32 | E190: 193 | F190: 145.1 | G190: 0.9 | H190: 0.1 | I190: 0 | J190: 30.000* | K190: 30.000* | L190: 0 | M190: 2.27 | N190: 11.34
A191: 170 | B191: 170 | C191: 0 | D191: 32 | E191: 194 | F191: 145.8 | G191: 0.9 | H191: 0.1 | I191: 0 | J191: 30.000* | K191: 30.000* | L191: 0 | M191: 2.27 | N191: 11.446
A192: 171 | B192: 171 | C192: 0 | D192: 32 | E192: 195 | F192: 146.5 | G192: 0.9 | H192: 0.1 | I192: 0 | J192: 30.000* | K192: 30.000* | L192: 0 | M192: 2.28 | N192: 11.553
A193: 172 | B193: 172 | C193: 0 | D193: 32 | E193: 196 | F193: 147.2 | G193: 0.9 | H193: 0.1 | I193: 0 | J193: 30.000* | K193: 30.000* | L193: 0 | M193: 2.28 | N193: 11.661
A194: 173 | B194: 173 | C194: 0 | D194: 32 | E194: 197 | F194: 147.9 | G194: 0.9 | H194: 0.1 | I194: 0 | J194: 30.000* | K194: 30.000* | L194: 0 | M194: 2.29 | N194: 11.768
A195: 174 | B195: 174 | C195: 0 | D195: 32 | E195: 198 | F195: 148.6 | G195: 0.9 | H195: 0.1 | I195: 0 | J195: 30.000* | K195: 30.000* | L195: 0 | M195: 2.3 | N195: 11.876
A196: 175 | B196: 175 | C196: 0 | D196: 32 | E196: 199 | F196: 149.3 | G196: 0.9 | H196: 0.1 | I196: 0 | J196: 30.000* | K196: 30.000* | L196: 0 | M196: 2.3 | N196: 11.985
A197: 176 | B197: 176 | C197: 0 | D197: 32 | E197: 200 | F197: 150 | G197: 0.9 | H197: 0.1 | I197: 0 | J197: 30.000* | K197: 30.000* | L197: 0 | M197: 2.31 | N197: 12.094
A198: 177 | B198: 177 | C198: 0 | D198: 32 | E198: 201 | F198: 150.7 | G198: 0.9 | H198: 0.1 | I198: 0 | J198: 30.000* | K198: 30.000* | L198: 0 | M198: 2.31 | N198: 12.203
A199: 178 | B199: 178 | C199: 0 | D199: 32 | E199: 202 | F199: 151.4 | G199: 0.9 | H199: 0.1 | I199: 0 | J199: 30.000* | K199: 30.000* | L199: 0 | M199: 2.32 | N199: 12.313
A200: 179 | B200: 179 | C200: 0 | D200: 32 | E200: 203 | F200: 152.1 | G200: 0.9 | H200: 0.1 | I200: 0 | J200: 30.000* | K200: 30.000* | L200: 0 | M200: 2.33 | N200: 12.423
A201: 180 | B201: 180 | C201: 0 | D201: 32 | E201: 204 | F201: 152.8 | G201: 0.9 | H201: 0.1 | I201: 0 | J201: 30.000* | K201: 30.000* | L201: 0 | M201: 2.33 | N201: 12.533
A202: 181 | B202: 181 | C202: 0 | D202: 32 | E202: 205 | F202: 153.5 | G202: 0.9 | H202: 0.1 | I202: 0 | J202: 30.000* | K202: 30.000* | L202: 0 | M202: 2.34 | N202: 12.644
A203: 182 | B203: 182 | C203: 0 | D203: 32 | E203: 206 | F203: 154.2 | G203: 0.9 | H203: 0.1 | I203: 0 | J203: 30.000* | K203: 30.000* | L203: 0 | M203: 2.34 | N203: 12.755
A204: 183 | B204: 183 | C204: 0 | D204: 32 | E204: 207 | F204: 154.9 | G204: 0.9 | H204: 0.1 | I204: 0 | J204: 30.000* | K204: 30.000* | L204: 0 | M204: 2.35 | N204: 12.866
A205: 184 | B205: 184 | C205: 0 | D205: 32 | E205: 208 | F205: 155.6 | G205: 0.9 | H205: 0.1 | I205: 0 | J205: 30.000* | K205: 30.000* | L205: 0 | M205: 2.35 | N205: 12.978
... 3792 more rows

Sheet Batch Output P5 (hidden)
A1: LEAD BATCH MODE OUTPUT FILE
A2: Model Version: 2.0 Build1
A3: User Name:
A4: Date:
A5: Site Name:
A6: Operable Unit:
A7: Run Mode: Research
A8: ----------------------------------------------------------------------------------
A10: * : signify default values used in place of missing input data.
A11: ---: signify missing input data.
A12: PBB & PRED are the observed and predicted blood Pb levels in µg/dL.
A14: Percent exceedance was calculated using values of GSD and PbB Cutoff as follows:
A15: GSD = 1.600
A16: PbB Cutoff ( C ) = 5.000 µg/dL
A18: Input File: Batch File TWA.dat
A20: ID | B20: FAM | C20: BLK | D20: AGE (mon) | E20: SOIL (µg/g) | F20: DUST (µg/g) | G20: WATER (µg/L) | H20: AIR (µg/m³) | I20: Other (µg/day) | J20: ABSSoil (%) | K20: ABSDust (%) | L20: PBB (µg/dL) | M20: PRED (µg/dL) | N20: P(PbB>C) (%)
A22: 1 | B22: 1 | C22: 0 | D22: 32 | E22: 25 | F22: 27.5 | G22: 0.9 | H22: 0.1 | I22: 0 | J22: 30.000* | K22: 30.000* | L22: 0 | M22: 1.25 | N22: 0.162
A23: 2 | B23: 2 | C23: 0 | D23: 32 | E23: 26 | F23: 28.2 | G23: 0.9 | H23: 0.1 | I23: 0 | J23: 30.000* | K23: 30.000* | L23: 0 | M23: 1.26 | N23: 0.168
A24: 3 | B24: 3 | C24: 0 | D24: 32 | E24: 27 | F24: 28.9 | G24: 0.9 | H24: 0.1 | I24: 0 | J24: 30.000* | K24: 30.000* | L24: 0 | M24: 1.27 | N24: 0.173
A25: 4 | B25: 4 | C25: 0 | D25: 32 | E25: 28 | F25: 29.6 | G25: 0.9 | H25: 0.1 | I25: 0 | J25: 30.000* | K25: 30.000* | L25: 0 | M25: 1.27 | N25: 0.179
A26: 5 | B26: 5 | C26: 0 | D26: 32 | E26: 29 | F26: 30.3 | G26: 0.9 | H26: 0.1 | I26: 0 | J26: 30.000* | K26: 30.000* | L26: 0 | M26: 1.28 | N26: 0.185
A27: 6 | B27: 6 | C27: 0 | D27: 32 | E27: 30 | F27: 31 | G27: 0.9 | H27: 0.1 | I27: 0 | J27: 30.000* | K27: 30.000* | L27: 0 | M27: 1.28 | N27: 0.191
A28: 7 | B28: 7 | C28: 0 | D28: 32 | E28: 31 | F28: 31.7 | G28: 0.9 | H28: 0.1 | I28: 0 | J28: 30.000* | K28: 30.000* | L28: 0 | M28: 1.29 | N28: 0.198
A29: 8 | B29: 8 | C29: 0 | D29: 32 | E29: 32 | F29: 32.4 | G29: 0.9 | H29: 0.1 | I29: 0 | J29: 30.000* | K29: 30.000* | L29: 0 | M29: 1.3 | N29: 0.204
A30: 9 | B30: 9 | C30: 0 | D30: 32 | E30: 33 | F30: 33.1 | G30: 0.9 | H30: 0.1 | I30: 0 | J30: 30.000* | K30: 30.000* | L30: 0 | M30: 1.3 | N30: 0.211
A31: 10 | B31: 10 | C31: 0 | D31: 32 | E31: 34 | F31: 33.8 | G31: 0.9 | H31: 0.1 | I31: 0 | J31: 30.000* | K31: 30.000* | L31: 0 | M31: 1.31 | N31: 0.217
A32: 11 | B32: 11 | C32: 0 | D32: 32 | E32: 35 | F32: 34.5 | G32: 0.9 | H32: 0.1 | I32: 0 | J32: 30.000* | K32: 30.000* | L32: 0 | M32: 1.31 | N32: 0.224
A33: 12 | B33: 12 | C33: 0 | D33: 32 | E33: 36 | F33: 35.2 | G33: 0.9 | H33: 0.1 | I33: 0 | J33: 30.000* | K33: 30.000* | L33: 0 | M33: 1.32 | N33: 0.231
A34: 13 | B34: 13 | C34: 0 | D34: 32 | E34: 37 | F34: 35.9 | G34: 0.9 | H34: 0.1 | I34: 0 | J34: 30.000* | K34: 30.000* | L34: 0 | M34: 1.33 | N34: 0.239
A35: 14 | B35: 14 | C35: 0 | D35: 32 | E35: 38 | F35: 36.6 | G35: 0.9 | H35: 0.1 | I35: 0 | J35: 30.000* | K35: 30.000* | L35: 0 | M35: 1.33 | N35: 0.246
A36: 15 | B36: 15 | C36: 0 | D36: 32 | E36: 39 | F36: 37.3 | G36: 0.9 | H36: 0.1 | I36: 0 | J36: 30.000* | K36: 30.000* | L36: 0 | M36: 1.34 | N36: 0.254
A37: 16 | B37: 16 | C37: 0 | D37: 32 | E37: 40 | F37: 38 | G37: 0.9 | H37: 0.1 | I37: 0 | J37: 30.000* | K37: 30.000* | L37: 0 | M37: 1.35 | N37: 0.261
A38: 17 | B38: 17 | C38: 0 | D38: 32 | E38: 41 | F38: 38.7 | G38: 0.9 | H38: 0.1 | I38: 0 | J38: 30.000* | K38: 30.000* | L38: 0 | M38: 1.35 | N38: 0.269
A39: 18 | B39: 18 | C39: 0 | D39: 32 | E39: 42 | F39: 39.4 | G39: 0.9 | H39: 0.1 | I39: 0 | J39: 30.000* | K39: 30.000* | L39: 0 | M39: 1.36 | N39: 0.277
A40: 19 | B40: 19 | C40: 0 | D40: 32 | E40: 43 | F40: 40.1 | G40: 0.9 | H40: 0.1 | I40: 0 | J40: 30.000* | K40: 30.000* | L40: 0 | M40: 1.36 | N40: 0.286
A41: 20 | B41: 20 | C41: 0 | D41: 32 | E41: 44 | F41: 40.8 | G41: 0.9 | H41: 0.1 | I41: 0 | J41: 30.000* | K41: 30.000* | L41: 0 | M41: 1.37 | N41: 0.294
A42: 21 | B42: 21 | C42: 0 | D42: 32 | E42: 45 | F42: 41.5 | G42: 0.9 | H42: 0.1 | I42: 0 | J42: 30.000* | K42: 30.000* | L42: 0 | M42: 1.38 | N42: 0.303
A43: 22 | B43: 22 | C43: 0 | D43: 32 | E43: 46 | F43: 42.2 | G43: 0.9 | H43: 0.1 | I43: 0 | J43: 30.000* | K43: 30.000* | L43: 0 | M43: 1.38 | N43: 0.312
A44: 23 | B44: 23 | C44: 0 | D44: 32 | E44: 47 | F44: 42.9 | G44: 0.9 | H44: 0.1 | I44: 0 | J44: 30.000* | K44: 30.000* | L44: 0 | M44: 1.39 | N44: 0.321
A45: 24 | B45: 24 | C45: 0 | D45: 32 | E45: 48 | F45: 43.6 | G45: 0.9 | H45: 0.1 | I45: 0 | J45: 30.000* | K45: 30.000* | L45: 0 | M45: 1.39 | N45: 0.33
A46: 25 | B46: 25 | C46: 0 | D46: 32 | E46: 49 | F46: 44.3 | G46: 0.9 | H46: 0.1 | I46: 0 | J46: 30.000* | K46: 30.000* | L46: 0 | M46: 1.4 | N46: 0.339
A47: 26 | B47: 26 | C47: 0 | D47: 32 | E47: 50 | F47: 45 | G47: 0.9 | H47: 0.1 | I47: 0 | J47: 30.000* | K47: 30.000* | L47: 0 | M47: 1.41 | N47: 0.349
A48: 27 | B48: 27 | C48: 0 | D48: 32 | E48: 51 | F48: 45.7 | G48: 0.9 | H48: 0.1 | I48: 0 | J48: 30.000* | K48: 30.000* | L48: 0 | M48: 1.41 | N48: 0.359
A49: 28 | B49: 28 | C49: 0 | D49: 32 | E49: 52 | F49: 46.4 | G49: 0.9 | H49: 0.1 | I49: 0 | J49: 30.000* | K49: 30.000* | L49: 0 | M49: 1.42 | N49: 0.369
A50: 29 | B50: 29 | C50: 0 | D50: 32 | E50: 53 | F50: 47.1 | G50: 0.9 | H50: 0.1 | I50: 0 | J50: 30.000* | K50: 30.000* | L50: 0 | M50: 1.43 | N50: 0.379
A51: 30 | B51: 30 | C51: 0 | D51: 32 | E51: 54 | F51: 47.8 | G51: 0.9 | H51: 0.1 | I51: 0 | J51: 30.000* | K51: 30.000* | L51: 0 | M51: 1.43 | N51: 0.39
A52: 31 | B52: 31 | C52: 0 | D52: 32 | E52: 55 | F52: 48.5 | G52: 0.9 | H52: 0.1 | I52: 0 | J52: 30.000* | K52: 30.000* | L52: 0 | M52: 1.44 | N52: 0.4
A53: 32 | B53: 32 | C53: 0 | D53: 32 | E53: 56 | F53: 49.2 | G53: 0.9 | H53: 0.1 | I53: 0 | J53: 30.000* | K53: 30.000* | L53: 0 | M53: 1.44 | N53: 0.411
A54: 33 | B54: 33 | C54: 0 | D54: 32 | E54: 57 | F54: 49.9 | G54: 0.9 | H54: 0.1 | I54: 0 | J54: 30.000* | K54: 30.000* | L54: 0 | M54: 1.45 | N54: 0.422
A55: 34 | B55: 34 | C55: 0 | D55: 32 | E55: 58 | F55: 50.6 | G55: 0.9 | H55: 0.1 | I55: 0 | J55: 30.000* | K55: 30.000* | L55: 0 | M55: 1.46 | N55: 0.433
A56: 35 | B56: 35 | C56: 0 | D56: 32 | E56: 59 | F56: 51.3 | G56: 0.9 | H56: 0.1 | I56: 0 | J56: 30.000* | K56: 30.000* | L56: 0 | M56: 1.46 | N56: 0.445
A57: 36 | B57: 36 | C57: 0 | D57: 32 | E57: 60 | F57: 52 | G57: 0.9 | H57: 0.1 | I57: 0 | J57: 30.000* | K57: 30.000* | L57: 0 | M57: 1.47 | N57: 0.457
A58: 37 | B58: 37 | C58: 0 | D58: 32 | E58: 61 | F58: 52.7 | G58: 0.9 | H58: 0.1 | I58: 0 | J58: 30.000* | K58: 30.000* | L58: 0 | M58: 1.47 | N58: 0.468
A59: 38 | B59: 38 | C59: 0 | D59: 32 | E59: 62 | F59: 53.4 | G59: 0.9 | H59: 0.1 | I59: 0 | J59: 30.000* | K59: 30.000* | L59: 0 | M59: 1.48 | N59: 0.481
A60: 39 | B60: 39 | C60: 0 | D60: 32 | E60: 63 | F60: 54.1 | G60: 0.9 | H60: 0.1 | I60: 0 | J60: 30.000* | K60: 30.000* | L60: 0 | M60: 1.49 | N60: 0.493
A61: 40 | B61: 40 | C61: 0 | D61: 32 | E61: 64 | F61: 54.8 | G61: 0.9 | H61: 0.1 | I61: 0 | J61: 30.000* | K61: 30.000* | L61: 0 | M61: 1.49 | N61: 0.506
A62: 41 | B62: 41 | C62: 0 | D62: 32 | E62: 65 | F62: 55.5 | G62: 0.9 | H62: 0.1 | I62: 0 | J62: 30.000* | K62: 30.000* | L62: 0 | M62: 1.5 | N62: 0.518
A63: 42 | B63: 42 | C63: 0 | D63: 32 | E63: 66 | F63: 56.2 | G63: 0.9 | H63: 0.1 | I63: 0 | J63: 30.000* | K63: 30.000* | L63: 0 | M63: 1.5 | N63: 0.531
A64: 43 | B64: 43 | C64: 0 | D64: 32 | E64: 67 | F64: 56.9 | G64: 0.9 | H64: 0.1 | I64: 0 | J64: 30.000* | K64: 30.000* | L64: 0 | M64: 1.51 | N64: 0.545
A65: 44 | B65: 44 | C65: 0 | D65: 32 | E65: 68 | F65: 57.6 | G65: 0.9 | H65: 0.1 | I65: 0 | J65: 30.000* | K65: 30.000* | L65: 0 | M65: 1.52 | N65: 0.558
A66: 45 | B66: 45 | C66: 0 | D66: 32 | E66: 69 | F66: 58.3 | G66: 0.9 | H66: 0.1 | I66: 0 | J66: 30.000* | K66: 30.000* | L66: 0 | M66: 1.52 | N66: 0.572
A67: 46 | B67: 46 | C67: 0 | D67: 32 | E67: 70 | F67: 59 | G67: 0.9 | H67: 0.1 | I67: 0 | J67: 30.000* | K67: 30.000* | L67: 0 | M67: 1.53 | N67: 0.586
A68: 47 | B68: 47 | C68: 0 | D68: 32 | E68: 71 | F68: 59.7 | G68: 0.9 | H68: 0.1 | I68: 0 | J68: 30.000* | K68: 30.000* | L68: 0 | M68: 1.54 | N68: 0.6
A69: 48 | B69: 48 | C69: 0 | D69: 32 | E69: 72 | F69: 60.4 | G69: 0.9 | H69: 0.1 | I69: 0 | J69: 30.000* | K69: 30.000* | L69: 0 | M69: 1.54 | N69: 0.615
A70: 49 | B70: 49 | C70: 0 | D70: 32 | E70: 73 | F70: 61.1 | G70: 0.9 | H70: 0.1 | I70: 0 | J70: 30.000* | K70: 30.000* | L70: 0 | M70: 1.55 | N70: 0.63
A71: 50 | B71: 50 | C71: 0 | D71: 32 | E71: 74 | F71: 61.8 | G71: 0.9 | H71: 0.1 | I71: 0 | J71: 30.000* | K71: 30.000* | L71: 0 | M71: 1.55 | N71: 0.645
A72: 51 | B72: 51 | C72: 0 | D72: 32 | E72: 75 | F72: 62.5 | G72: 0.9 | H72: 0.1 | I72: 0 | J72: 30.000* | K72: 30.000* | L72: 0 | M72: 1.56 | N72: 0.66
A73: 52 | B73: 52 | C73: 0 | D73: 32 | E73: 76 | F73: 63.2 | G73: 0.9 | H73: 0.1 | I73: 0 | J73: 30.000* | K73: 30.000* | L73: 0 | M73: 1.57 | N73: 0.675
A74: 53 | B74: 53 | C74: 0 | D74: 32 | E74: 77 | F74: 63.9 | G74: 0.9 | H74: 0.1 | I74: 0 | J74: 30.000* | K74: 30.000* | L74: 0 | M74: 1.57 | N74: 0.691
A75: 54 | B75: 54 | C75: 0 | D75: 32 | E75: 78 | F75: 64.6 | G75: 0.9 | H75: 0.1 | I75: 0 | J75: 30.000* | K75: 30.000* | L75: 0 | M75: 1.58 | N75: 0.707
A76: 55 | B76: 55 | C76: 0 | D76: 32 | E76: 79 | F76: 65.3 | G76: 0.9 | H76: 0.1 | I76: 0 | J76: 30.000* | K76: 30.000* | L76: 0 | M76: 1.58 | N76: 0.723
A77: 56 | B77: 56 | C77: 0 | D77: 32 | E77: 80 | F77: 66 | G77: 0.9 | H77: 0.1 | I77: 0 | J77: 30.000* | K77: 30.000* | L77: 0 | M77: 1.59 | N77: 0.74
A78: 57 | B78: 57 | C78: 0 | D78: 32 | E78: 81 | F78: 66.7 | G78: 0.9 | H78: 0.1 | I78: 0 | J78: 30.000* | K78: 30.000* | L78: 0 | M78: 1.6 | N78: 0.757
A79: 58 | B79: 58 | C79: 0 | D79: 32 | E79: 82 | F79: 67.4 | G79: 0.9 | H79: 0.1 | I79: 0 | J79: 30.000* | K79: 30.000* | L79: 0 | M79: 1.6 | N79: 0.774
A80: 59 | B80: 59 | C80: 0 | D80: 32 | E80: 83 | F80: 68.1 | G80: 0.9 | H80: 0.1 | I80: 0 | J80: 30.000* | K80: 30.000* | L80: 0 | M80: 1.61 | N80: 0.791
A81: 60 | B81: 60 | C81: 0 | D81: 32 | E81: 84 | F81: 68.8 | G81: 0.9 | H81: 0.1 | I81: 0 | J81: 30.000* | K81: 30.000* | L81: 0 | M81: 1.61 | N81: 0.808
A82: 61 | B82: 61 | C82: 0 | D82: 32 | E82: 85 | F82: 69.5 | G82: 0.9 | H82: 0.1 | I82: 0 | J82: 30.000* | K82: 30.000* | L82: 0 | M82: 1.62 | N82: 0.826
A83: 62 | B83: 62 | C83: 0 | D83: 32 | E83: 86 | F83: 70.2 | G83: 0.9 | H83: 0.1 | I83: 0 | J83: 30.000* | K83: 30.000* | L83: 0 | M83: 1.63 | N83: 0.844
A84: 63 | B84: 63 | C84: 0 | D84: 32 | E84: 87 | F84: 70.9 | G84: 0.9 | H84: 0.1 | I84: 0 | J84: 30.000* | K84: 30.000* | L84: 0 | M84: 1.63 | N84: 0.863
A85: 64 | B85: 64 | C85: 0 | D85: 32 | E85: 88 | F85: 71.6 | G85: 0.9 | H85: 0.1 | I85: 0 | J85: 30.000* | K85: 30.000* | L85: 0 | M85: 1.64 | N85: 0.881
A86: 65 | B86: 65 | C86: 0 | D86: 32 | E86: 89 | F86: 72.3 | G86: 0.9 | H86: 0.1 | I86: 0 | J86: 30.000* | K86: 30.000* | L86: 0 | M86: 1.64 | N86: 0.9
A87: 66 | B87: 66 | C87: 0 | D87: 32 | E87: 90 | F87: 73 | G87: 0.9 | H87: 0.1 | I87: 0 | J87: 30.000* | K87: 30.000* | L87: 0 | M87: 1.65 | N87: 0.92
A88: 67 | B88: 67 | C88: 0 | D88: 32 | E88: 91 | F88: 73.7 | G88: 0.9 | H88: 0.1 | I88: 0 | J88: 30.000* | K88: 30.000* | L88: 0 | M88: 1.66 | N88: 0.939
A89: 68 | B89: 68 | C89: 0 | D89: 32 | E89: 92 | F89: 74.4 | G89: 0.9 | H89: 0.1 | I89: 0 | J89: 30.000* | K89: 30.000* | L89: 0 | M89: 1.66 | N89: 0.959
A90: 69 | B90: 69 | C90: 0 | D90: 32 | E90: 93 | F90: 75.1 | G90: 0.9 | H90: 0.1 | I90: 0 | J90: 30.000* | K90: 30.000* | L90: 0 | M90: 1.67 | N90: 0.979
A91: 70 | B91: 70 | C91: 0 | D91: 32 | E91: 94 | F91: 75.8 | G91: 0.9 | H91: 0.1 | I91: 0 | J91: 30.000* | K91: 30.000* | L91: 0 | M91: 1.68 | N91: 0.999
A92: 71 | B92: 71 | C92: 0 | D92: 32 | E92: 95 | F92: 76.5 | G92: 0.9 | H92: 0.1 | I92: 0 | J92: 30.000* | K92: 30.000* | L92: 0 | M92: 1.68 | N92: 1.02
A93: 72 | B93: 72 | C93: 0 | D93: 32 | E93: 96 | F93: 77.2 | G93: 0.9 | H93: 0.1 | I93: 0 | J93: 30.000* | K93: 30.000* | L93: 0 | M93: 1.69 | N93: 1.041
A94: 73 | B94: 73 | C94: 0 | D94: 32 | E94: 97 | F94: 77.9 | G94: 0.9 | H94: 0.1 | I94: 0 | J94: 30.000* | K94: 30.000* | L94: 0 | M94: 1.69 | N94: 1.062
A95: 74 | B95: 74 | C95: 0 | D95: 32 | E95: 98 | F95: 78.6 | G95: 0.9 | H95: 0.1 | I95: 0 | J95: 30.000* | K95: 30.000* | L95: 0 | M95: 1.7 | N95: 1.083
A96: 75 | B96: 75 | C96: 0 | D96: 32 | E96: 99 | F96: 79.3 | G96: 0.9 | H96: 0.1 | I96: 0 | J96: 30.000* | K96: 30.000* | L96: 0 | M96: 1.71 | N96: 1.105
A97: 76 | B97: 76 | C97: 0 | D97: 32 | E97: 100 | F97: 80 | G97: 0.9 | H97: 0.1 | I97: 0 | J97: 30.000* | K97: 30.000* | L97: 0 | M97: 1.71 | N97: 1.127
A98: 77 | B98: 77 | C98: 0 | D98: 32 | E98: 101 | F98: 80.7 | G98: 0.9 | H98: 0.1 | I98: 0 | J98: 30.000* | K98: 30.000* | L98: 0 | M98: 1.72 | N98: 1.15
A99: 78 | B99: 78 | C99: 0 | D99: 32 | E99: 102 | F99: 81.4 | G99: 0.9 | H99: 0.1 | I99: 0 | J99: 30.000* | K99: 30.000* | L99: 0 | M99: 1.72 | N99: 1.172
A100: 79 | B100: 79 | C100: 0 | D100: 32 | E100: 103 | F100: 82.1 | G100: 0.9 | H100: 0.1 | I100: 0 | J100: 30.000* | K100: 30.000* | L100: 0 | M100: 1.73 | N100: 1.195
A101: 80 | B101: 80 | C101: 0 | D101: 32 | E101: 104 | F101: 82.8 | G101: 0.9 | H101: 0.1 | I101: 0 | J101: 30.000* | K101: 30.000* | L101: 0 | M101: 1.74 | N101: 1.219
A102: 81 | B102: 81 | C102: 0 | D102: 32 | E102: 105 | F102: 83.5 | G102: 0.9 | H102: 0.1 | I102: 0 | J102: 30.000* | K102: 30.000* | L102: 0 | M102: 1.74 | N102: 1.242
A103: 82 | B103: 82 | C103: 0 | D103: 32 | E103: 106 | F103: 84.2 | G103: 0.9 | H103: 0.1 | I103: 0 | J103: 30.000* | K103: 30.000* | L103: 0 | M103: 1.75 | N103: 1.266
A104: 83 | B104: 83 | C104: 0 | D104: 32 | E104: 107 | F104: 84.9 | G104: 0.9 | H104: 0.1 | I104: 0 | J104: 30.000* | K104: 30.000* | L104: 0 | M104: 1.75 | N104: 1.29
A105: 84 | B105: 84 | C105: 0 | D105: 32 | E105: 108 | F105: 85.6 | G105: 0.9 | H105: 0.1 | I105: 0 | J105: 30.000* | K105: 30.000* | L105: 0 | M105: 1.76 | N105: 1.315
A106: 85 | B106: 85 | C106: 0 | D106: 32 | E106: 109 | F106: 86.3 | G106: 0.9 | H106: 0.1 | I106: 0 | J106: 30.000* | K106: 30.000* | L106: 0 | M106: 1.77 | N106: 1.34
A107: 86 | B107: 86 | C107: 0 | D107: 32 | E107: 110 | F107: 87 | G107: 0.9 | H107: 0.1 | I107: 0 | J107: 30.000* | K107: 30.000* | L107: 0 | M107: 1.77 | N107: 1.365
A108: 87 | B108: 87 | C108: 0 | D108: 32 | E108: 111 | F108: 87.7 | G108: 0.9 | H108: 0.1 | I108: 0 | J108: 30.000* | K108: 30.000* | L108: 0 | M108: 1.78 | N108: 1.39
A109: 88 | B109: 88 | C109: 0 | D109: 32 | E109: 112 | F109: 88.4 | G109: 0.9 | H109: 0.1 | I109: 0 | J109: 30.000* | K109: 30.000* | L109: 0 | M109: 1.78 | N109: 1.416
A110: 89 | B110: 89 | C110: 0 | D110: 32 | E110: 113 | F110: 89.1 | G110: 0.9 | H110: 0.1 | I110: 0 | J110: 30.000* | K110: 30.000* | L110: 0 | M110: 1.79 | N110: 1.442
A111: 90 | B111: 90 | C111: 0 | D111: 32 | E111: 114 | F111: 89.8 | G111: 0.9 | H111: 0.1 | I111: 0 | J111: 30.000* | K111: 30.000* | L111: 0 | M111: 1.8 | N111: 1.468
A112: 91 | B112: 91 | C112: 0 | D112: 32 | E112: 115 | F112: 90.5 | G112: 0.9 | H112: 0.1 | I112: 0 | J112: 30.000* | K112: 30.000* | L112: 0 | M112: 1.8 | N112: 1.495
A113: 92 | B113: 92 | C113: 0 | D113: 32 | E113: 116 | F113: 91.2 | G113: 0.9 | H113: 0.1 | I113: 0 | J113: 30.000* | K113: 30.000* | L113: 0 | M113: 1.81 | N113: 1.522
A114: 93 | B114: 93 | C114: 0 | D114: 32 | E114: 117 | F114: 91.9 | G114: 0.9 | H114: 0.1 | I114: 0 | J114: 30.000* | K114: 30.000* | L114: 0 | M114: 1.81 | N114: 1.549
A115: 94 | B115: 94 | C115: 0 | D115: 32 | E115: 118 | F115: 92.6 | G115: 0.9 | H115: 0.1 | I115: 0 | J115: 30.000* | K115: 30.000* | L115: 0 | M115: 1.82 | N115: 1.577
A116: 95 | B116: 95 | C116: 0 | D116: 32 | E116: 119 | F116: 93.3 | G116: 0.9 | H116: 0.1 | I116: 0 | J116: 30.000* | K116: 30.000* | L116: 0 | M116: 1.83 | N116: 1.605
A117: 96 | B117: 96 | C117: 0 | D117: 32 | E117: 120 | F117: 94 | G117: 0.9 | H117: 0.1 | I117: 0 | J117: 30.000* | K117: 30.000* | L117: 0 | M117: 1.83 | N117: 1.633
A118: 97 | B118: 97 | C118: 0 | D118: 32 | E118: 121 | F118: 94.7 | G118: 0.9 | H118: 0.1 | I118: 0 | J118: 30.000* | K118: 30.000* | L118: 0 | M118: 1.84 | N118: 1.662
A119: 98 | B119: 98 | C119: 0 | D119: 32 | E119: 122 | F119: 95.4 | G119: 0.9 | H119: 0.1 | I119: 0 | J119: 30.000* | K119: 30.000* | L119: 0 | M119: 1.84 | N119: 1.691
A120: 99 | B120: 99 | C120: 0 | D120: 32 | E120: 123 | F120: 96.1 | G120: 0.9 | H120: 0.1 | I120: 0 | J120: 30.000* | K120: 30.000* | L120: 0 | M120: 1.85 | N120: 1.72
A121: 100 | B121: 100 | C121: 0 | D121: 32 | E121: 124 | F121: 96.8 | G121: 0.9 | H121: 0.1 | I121: 0 | J121: 30.000* | K121: 30.000* | L121: 0 | M121: 1.86 | N121: 1.75
A122: 101 | B122: 101 | C122: 0 | D122: 32 | E122: 125 | F122: 97.5 | G122: 0.9 | H122: 0.1 | I122: 0 | J122: 30.000* | K122: 30.000* | L122: 0 | M122: 1.86 | N122: 1.78
A123: 102 | B123: 102 | C123: 0 | D123: 32 | E123: 126 | F123: 98.2 | G123: 0.9 | H123: 0.1 | I123: 0 | J123: 30.000* | K123: 30.000* | L123: 0 | M123: 1.87 | N123: 1.81
A124: 103 | B124: 103 | C124: 0 | D124: 32 | E124: 127 | F124: 98.9 | G124: 0.9 | H124: 0.1 | I124: 0 | J124: 30.000* | K124: 30.000* | L124: 0 | M124: 1.87 | N124: 1.84
A125: 104 | B125: 104 | C125: 0 | D125: 32 | E125: 128 | F125: 99.6 | G125: 0.9 | H125: 0.1 | I125: 0 | J125: 30.000* | K125: 30.000* | L125: 0 | M125: 1.88 | N125: 1.871
A126: 105 | B126: 105 | C126: 0 | D126: 32 | E126: 129 | F126: 100.3 | G126: 0.9 | H126: 0.1 | I126: 0 | J126: 30.000* | K126: 30.000* | L126: 0 | M126: 1.89 | N126: 1.902
A127: 106 | B127: 106 | C127: 0 | D127: 32 | E127: 130 | F127: 101 | G127: 0.9 | H127: 0.1 | I127: 0 | J127: 30.000* | K127: 30.000* | L127: 0 | M127: 1.89 | N127: 1.934
A128: 107 | B128: 107 | C128: 0 | D128: 32 | E128: 131 | F128: 101.7 | G128: 0.9 | H128: 0.1 | I128: 0 | J128: 30.000* | K128: 30.000* | L128: 0 | M128: 1.9 | N128: 1.966
A129: 108 | B129: 108 | C129: 0 | D129: 32 | E129: 132 | F129: 102.4 | G129: 0.9 | H129: 0.1 | I129: 0 | J129: 30.000* | K129: 30.000* | L129: 0 | M129: 1.9 | N129: 1.998
A130: 109 | B130: 109 | C130: 0 | D130: 32 | E130: 133 | F130: 103.1 | G130: 0.9 | H130: 0.1 | I130: 0 | J130: 30.000* | K130: 30.000* | L130: 0 | M130: 1.91 | N130: 2.031
A131: 110 | B131: 110 | C131: 0 | D131: 32 | E131: 134 | F131: 103.8 | G131: 0.9 | H131: 0.1 | I131: 0 | J131: 30.000* | K131: 30.000* | L131: 0 | M131: 1.92 | N131: 2.064
A132: 111 | B132: 111 | C132: 0 | D132: 32 | E132: 135 | F132: 104.5 | G132: 0.9 | H132: 0.1 | I132: 0 | J132: 30.000* | K132: 30.000* | L132: 0 | M132: 1.92 | N132: 2.097
A133: 112 | B133: 112 | C133: 0 | D133: 32 | E133: 136 | F133: 105.2 | G133: 0.9 | H133: 0.1 | I133: 0 | J133: 30.000* | K133: 30.000* | L133: 0 | M133: 1.93 | N133: 2.13
A134: 113 | B134: 113 | C134: 0 | D134: 32 | E134: 137 | F134: 105.9 | G134: 0.9 | H134: 0.1 | I134: 0 | J134: 30.000* | K134: 30.000* | L134: 0 | M134: 1.93 | N134: 2.164
A135: 114 | B135: 114 | C135: 0 | D135: 32 | E135: 138 | F135: 106.6 | G135: 0.9 | H135: 0.1 | I135: 0 | J135: 30.000* | K135: 30.000* | L135: 0 | M135: 1.94 | N135: 2.198
A136: 115 | B136: 115 | C136: 0 | D136: 32 | E136: 139 | F136: 107.3 | G136: 0.9 | H136: 0.1 | I136: 0 | J136: 30.000* | K136: 30.000* | L136: 0 | M136: 1.95 | N136: 2.233
A137: 116 | B137: 116 | C137: 0 | D137: 32 | E137: 140 | F137: 108 | G137: 0.9 | H137: 0.1 | I137: 0 | J137: 30.000* | K137: 30.000* | L137: 0 | M137: 1.95 | N137: 2.268
A138: 117 | B138: 117 | C138: 0 | D138: 32 | E138: 141 | F138: 108.7 | G138: 0.9 | H138: 0.1 | I138: 0 | J138: 30.000* | K138: 30.000* | L138: 0 | M138: 1.96 | N138: 2.303
A139: 118 | B139: 118 | C139: 0 | D139: 32 | E139: 142 | F139: 109.4 | G139: 0.9 | H139: 0.1 | I139: 0 | J139: 30.000* | K139: 30.000* | L139: 0 | M139: 1.96 | N139: 2.339
A140: 119 | B140: 119 | C140: 0 | D140: 32 | E140: 143 | F140: 110.1 | G140: 0.9 | H140: 0.1 | I140: 0 | J140: 30.000* | K140: 30.000* | L140: 0 | M140: 1.97 | N140: 2.375
A141: 120 | B141: 120 | C141: 0 | D141: 32 | E141: 144 | F141: 110.8 | G141: 0.9 | H141: 0.1 | I141: 0 | J141: 30.000* | K141: 30.000* | L141: 0 | M141: 1.98 | N141: 2.411
A142: 121 | B142: 121 | C142: 0 | D142: 32 | E142: 145 | F142: 111.5 | G142: 0.9 | H142: 0.1 | I142: 0 | J142: 30.000* | K142: 30.000* | L142: 0 | M142: 1.98 | N142: 2.448
A143: 122 | B143: 122 | C143: 0 | D143: 32 | E143: 146 | F143: 112.2 | G143: 0.9 | H143: 0.1 | I143: 0 | J143: 30.000* | K143: 30.000* | L143: 0 | M143: 1.99 | N143: 2.485
A144: 123 | B144: 123 | C144: 0 | D144: 32 | E144: 147 | F144: 112.9 | G144: 0.9 | H144: 0.1 | I144: 0 | J144: 30.000* | K144: 30.000* | L144: 0 | M144: 1.99 | N144: 2.522
A145: 124 | B145: 124 | C145: 0 | D145: 32 | E145: 148 | F145: 113.6 | G145: 0.9 | H145: 0.1 | I145: 0 | J145: 30.000* | K145: 30.000* | L145: 0 | M145: 2 | N145: 2.56
A146: 125 | B146: 125 | C146: 0 | D146: 32 | E146: 149 | F146: 114.3 | G146: 0.9 | H146: 0.1 | I146: 0 | J146: 30.000* | K146: 30.000* | L146: 0 | M146: 2.01 | N146: 2.598
A147: 126 | B147: 126 | C147: 0 | D147: 32 | E147: 150 | F147: 115 | G147: 0.9 | H147: 0.1 | I147: 0 | J147: 30.000* | K147: 30.000* | L147: 0 | M147: 2.01 | N147: 2.636
A148: 127 | B148: 127 | C148: 0 | D148: 32 | E148: 151 | F148: 115.7 | G148: 0.9 | H148: 0.1 | I148: 0 | J148: 30.000* | K148: 30.000* | L148: 0 | M148: 2.02 | N148: 2.675
A149: 128 | B149: 128 | C149: 0 | D149: 32 | E149: 152 | F149: 116.4 | G149: 0.9 | H149: 0.1 | I149: 0 | J149: 30.000* | K149: 30.000* | L149: 0 | M149: 2.02 | N149: 2.714
A150: 129 | B150: 129 | C150: 0 | D150: 32 | E150: 153 | F150: 117.1 | G150: 0.9 | H150: 0.1 | I150: 0 | J150: 30.000* | K150: 30.000* | L150: 0 | M150: 2.03 | N150: 2.753
A151: 130 | B151: 130 | C151: 0 | D151: 32 | E151: 154 | F151: 117.8 | G151: 0.9 | H151: 0.1 | I151: 0 | J151: 30.000* | K151: 30.000* | L151: 0 | M151: 2.04 | N151: 2.793
A152: 131 | B152: 131 | C152: 0 | D152: 32 | E152: 155 | F152: 118.5 | G152: 0.9 | H152: 0.1 | I152: 0 | J152: 30.000* | K152: 30.000* | L152: 0 | M152: 2.04 | N152: 2.833
A153: 132 | B153: 132 | C153: 0 | D153: 32 | E153: 156 | F153: 119.2 | G153: 0.9 | H153: 0.1 | I153: 0 | J153: 30.000* | K153: 30.000* | L153: 0 | M153: 2.05 | N153: 2.873
A154: 133 | B154: 133 | C154: 0 | D154: 32 | E154: 157 | F154: 119.9 | G154: 0.9 | H154: 0.1 | I154: 0 | J154: 30.000* | K154: 30.000* | L154: 0 | M154: 2.05 | N154: 2.914
A155: 134 | B155: 134 | C155: 0 | D155: 32 | E155: 158 | F155: 120.6 | G155: 0.9 | H155: 0.1 | I155: 0 | J155: 30.000* | K155: 30.000* | L155: 0 | M155: 2.06 | N155: 2.955
A156: 135 | B156: 135 | C156: 0 | D156: 32 | E156: 159 | F156: 121.3 | G156: 0.9 | H156: 0.1 | I156: 0 | J156: 30.000* | K156: 30.000* | L156: 0 | M156: 2.07 | N156: 2.997
A157: 136 | B157: 136 | C157: 0 | D157: 32 | E157: 160 | F157: 122 | G157: 0.9 | H157: 0.1 | I157: 0 | J157: 30.000* | K157: 30.000* | L157: 0 | M157: 2.07 | N157: 3.039
A158: 137 | B158: 137 | C158: 0 | D158: 32 | E158: 161 | F158: 122.7 | G158: 0.9 | H158: 0.1 | I158: 0 | J158: 30.000* | K158: 30.000* | L158: 0 | M158: 2.08 | N158: 3.081
A159: 138 | B159: 138 | C159: 0 | D159: 32 | E159: 162 | F159: 123.4 | G159: 0.9 | H159: 0.1 | I159: 0 | J159: 30.000* | K159: 30.000* | L159: 0 | M159: 2.08 | N159: 3.123
A160: 139 | B160: 139 | C160: 0 | D160: 32 | E160: 163 | F160: 124.1 | G160: 0.9 | H160: 0.1 | I160: 0 | J160: 30.000* | K160: 30.000* | L160: 0 | M160: 2.09 | N160: 3.166
A161: 140 | B161: 140 | C161: 0 | D161: 32 | E161: 164 | F161: 124.8 | G161: 0.9 | H161: 0.1 | I161: 0 | J161: 30.000* | K161: 30.000* | L161: 0 | M161: 2.09 | N161: 3.209
A162: 141 | B162: 141 | C162: 0 | D162: 32 | E162: 165 | F162: 125.5 | G162: 0.9 | H162: 0.1 | I162: 0 | J162: 30.000* | K162: 30.000* | L162: 0 | M162: 2.1 | N162: 3.253
A163: 142 | B163: 142 | C163: 0 | D163: 32 | E163: 166 | F163: 126.2 | G163: 0.9 | H163: 0.1 | I163: 0 | J163: 30.000* | K163: 30.000* | L163: 0 | M163: 2.11 | N163: 3.297
A164: 143 | B164: 143 | C164: 0 | D164: 32 | E164: 167 | F164: 126.9 | G164: 0.9 | H164: 0.1 | I164: 0 | J164: 30.000* | K164: 30.000* | L164: 0 | M164: 2.11 | N164: 3.341
A165: 144 | B165: 144 | C165: 0 | D165: 32 | E165: 168 | F165: 127.6 | G165: 0.9 | H165: 0.1 | I165: 0 | J165: 30.000* | K165: 30.000* | L165: 0 | M165: 2.12 | N165: 3.386
A166: 145 | B166: 145 | C166: 0 | D166: 32 | E166: 169 | F166: 128.3 | G166: 0.9 | H166: 0.1 | I166: 0 | J166: 30.000* | K166: 30.000* | L166: 0 | M166: 2.12 | N166: 3.431
A167: 146 | B167: 146 | C167: 0 | D167: 32 | E167: 170 | F167: 129 | G167: 0.9 | H167: 0.1 | I167: 0 | J167: 30.000* | K167: 30.000* | L167: 0 | M167: 2.13 | N167: 3.476
A168: 147 | B168: 147 | C168: 0 | D168: 32 | E168: 171 | F168: 129.7 | G168: 0.9 | H168: 0.1 | I168: 0 | J168: 30.000* | K168: 30.000* | L168: 0 | M168: 2.14 | N168: 3.522
A169: 148 | B169: 148 | C169: 0 | D169: 32 | E169: 172 | F169: 130.4 | G169: 0.9 | H169: 0.1 | I169: 0 | J169: 30.000* | K169: 30.000* | L169: 0 | M169: 2.14 | N169: 3.568
A170: 149 | B170: 149 | C170: 0 | D170: 32 | E170: 173 | F170: 131.1 | G170: 0.9 | H170: 0.1 | I170: 0 | J170: 30.000* | K170: 30.000* | L170: 0 | M170: 2.15 | N170: 3.614
A171: 150 | B171: 150 | C171: 0 | D171: 32 | E171: 174 | F171: 131.8 | G171: 0.9 | H171: 0.1 | I171: 0 | J171: 30.000* | K171: 30.000* | L171: 0 | M171: 2.15 | N171: 3.661
A172: 151 | B172: 151 | C172: 0 | D172: 32 | E172: 175 | F172: 132.5 | G172: 0.9 | H172: 0.1 | I172: 0 | J172: 30.000* | K172: 30.000* | L172: 0 | M172: 2.16 | N172: 3.708
A173: 152 | B173: 152 | C173: 0 | D173: 32 | E173: 176 | F173: 133.2 | G173: 0.9 | H173: 0.1 | I173: 0 | J173: 30.000* | K173: 30.000* | L173: 0 | M173: 2.17 | N173: 3.755
A174: 153 | B174: 153 | C174: 0 | D174: 32 | E174: 177 | F174: 133.9 | G174: 0.9 | H174: 0.1 | I174: 0 | J174: 30.000* | K174: 30.000* | L174: 0 | M174: 2.17 | N174: 3.803
A175: 154 | B175: 154 | C175: 0 | D175: 32 | E175: 178 | F175: 134.6 | G175: 0.9 | H175: 0.1 | I175: 0 | J175: 30.000* | K175: 30.000* | L175: 0 | M175: 2.18 | N175: 3.851
A176: 155 | B176: 155 | C176: 0 | D176: 32 | E176: 179 | F176: 135.3 | G176: 0.9 | H176: 0.1 | I176: 0 | J176: 30.000* | K176: 30.000* | L176: 0 | M176: 2.18 | N176: 3.9
A177: 156 | B177: 156 | C177: 0 | D177: 32 | E177: 180 | F177: 136 | G177: 0.9 | H177: 0.1 | I177: 0 | J177: 30.000* | K177: 30.000* | L177: 0 | M177: 2.19 | N177: 3.949
A178: 157 | B178: 157 | C178: 0 | D178: 32 | E178: 181 | F178: 136.7 | G178: 0.9 | H178: 0.1 | I178: 0 | J178: 30.000* | K178: 30.000* | L178: 0 | M178: 2.2 | N178: 3.998
A179: 158 | B179: 158 | C179: 0 | D179: 32 | E179: 182 | F179: 137.4 | G179: 0.9 | H179: 0.1 | I179: 0 | J179: 30.000* | K179: 30.000* | L179: 0 | M179: 2.2 | N179: 4.047
A180: 159 | B180: 159 | C180: 0 | D180: 32 | E180: 183 | F180: 138.1 | G180: 0.9 | H180: 0.1 | I180: 0 | J180: 30.000* | K180: 30.000* | L180: 0 | M180: 2.21 | N180: 4.097
A181: 160 | B181: 160 | C181: 0 | D181: 32 | E181: 184 | F181: 138.8 | G181: 0.9 | H181: 0.1 | I181: 0 | J181: 30.000* | K181: 30.000* | L181: 0 | M181: 2.21 | N181: 4.147
A182: 161 | B182: 161 | C182: 0 | D182: 32 | E182: 185 | F182: 139.5 | G182: 0.9 | H182: 0.1 | I182: 0 | J182: 30.000* | K182: 30.000* | L182: 0 | M182: 2.22 | N182: 4.198
A183: 162 | B183: 162 | C183: 0 | D183: 32 | E183: 186 | F183: 140.2 | G183: 0.9 | H183: 0.1 | I183: 0 | J183: 30.000* | K183: 30.000* | L183: 0 | M183: 2.23 | N183: 4.249
A184: 163 | B184: 163 | C184: 0 | D184: 32 | E184: 187 | F184: 140.9 | G184: 0.9 | H184: 0.1 | I184: 0 | J184: 30.000* | K184: 30.000* | L184: 0 | M184: 2.23 | N184: 4.3
A185: 164 | B185: 164 | C185: 0 | D185: 32 | E185: 188 | F185: 141.6 | G185: 0.9 | H185: 0.1 | I185: 0 | J185: 30.000* | K185: 30.000* | L185: 0 | M185: 2.24 | N185: 4.352
A186: 165 | B186: 165 | C186: 0 | D186: 32 | E186: 189 | F186: 142.3 | G186: 0.9 | H186: 0.1 | I186: 0 | J186: 30.000* | K186: 30.000* | L186: 0 | M186: 2.24 | N186: 4.403
A187: 166 | B187: 166 | C187: 0 | D187: 32 | E187: 190 | F187: 143 | G187: 0.9 | H187: 0.1 | I187: 0 | J187: 30.000* | K187: 30.000* | L187: 0 | M187: 2.25 | N187: 4.456
A188: 167 | B188: 167 | C188: 0 | D188: 32 | E188: 191 | F188: 143.7 | G188: 0.9 | H188: 0.1 | I188: 0 | J188: 30.000* | K188: 30.000* | L188: 0 | M188: 2.25 | N188: 4.508
A189: 168 | B189: 168 | C189: 0 | D189: 32 | E189: 192 | F189: 144.4 | G189: 0.9 | H189: 0.1 | I189: 0 | J189: 30.000* | K189: 30.000* | L189: 0 | M189: 2.26 | N189: 4.561
A190: 169 | B190: 169 | C190: 0 | D190: 32 | E190: 193 | F190: 145.1 | G190: 0.9 | H190: 0.1 | I190: 0 | J190: 30.000* | K190: 30.000* | L190: 0 | M190: 2.27 | N190: 4.615
A191: 170 | B191: 170 | C191: 0 | D191: 32 | E191: 194 | F191: 145.8 | G191: 0.9 | H191: 0.1 | I191: 0 | J191: 30.000* | K191: 30.000* | L191: 0 | M191: 2.27 | N191: 4.668
A192: 171 | B192: 171 | C192: 0 | D192: 32 | E192: 195 | F192: 146.5 | G192: 0.9 | H192: 0.1 | I192: 0 | J192: 30.000* | K192: 30.000* | L192: 0 | M192: 2.28 | N192: 4.722
A193: 172 | B193: 172 | C193: 0 | D193: 32 | E193: 196 | F193: 147.2 | G193: 0.9 | H193: 0.1 | I193: 0 | J193: 30.000* | K193: 30.000* | L193: 0 | M193: 2.28 | N193: 4.777
A194: 173 | B194: 173 | C194: 0 | D194: 32 | E194: 197 | F194: 147.9 | G194: 0.9 | H194: 0.1 | I194: 0 | J194: 30.000* | K194: 30.000* | L194: 0 | M194: 2.29 | N194: 4.831
A195: 174 | B195: 174 | C195: 0 | D195: 32 | E195: 198 | F195: 148.6 | G195: 0.9 | H195: 0.1 | I195: 0 | J195: 30.000* | K195: 30.000* | L195: 0 | M195: 2.3 | N195: 4.886
A196: 175 | B196: 175 | C196: 0 | D196: 32 | E196: 199 | F196: 149.3 | G196: 0.9 | H196: 0.1 | I196: 0 | J196: 30.000* | K196: 30.000* | L196: 0 | M196: 2.3 | N196: 4.942
A197: 176 | B197: 176 | C197: 0 | D197: 32 | E197: 200 | F197: 150 | G197: 0.9 | H197: 0.1 | I197: 0 | J197: 30.000* | K197: 30.000* | L197: 0 | M197: 2.31 | N197: 4.998
A198: 177 | B198: 177 | C198: 0 | D198: 32 | E198: 201 | F198: 150.7 | G198: 0.9 | H198: 0.1 | I198: 0 | J198: 30.000* | K198: 30.000* | L198: 0 | M198: 2.31 | N198: 5.054
A199: 178 | B199: 178 | C199: 0 | D199: 32 | E199: 202 | F199: 151.4 | G199: 0.9 | H199: 0.1 | I199: 0 | J199: 30.000* | K199: 30.000* | L199: 0 | M199: 2.32 | N199: 5.11
A200: 179 | B200: 179 | C200: 0 | D200: 32 | E200: 203 | F200: 152.1 | G200: 0.9 | H200: 0.1 | I200: 0 | J200: 30.000* | K200: 30.000* | L200: 0 | M200: 2.33 | N200: 5.167
A201: 180 | B201: 180 | C201: 0 | D201: 32 | E201: 204 | F201: 152.8 | G201: 0.9 | H201: 0.1 | I201: 0 | J201: 30.000* | K201: 30.000* | L201: 0 | M201: 2.33 | N201: 5.224
A202: 181 | B202: 181 | C202: 0 | D202: 32 | E202: 205 | F202: 153.5 | G202: 0.9 | H202: 0.1 | I202: 0 | J202: 30.000* | K202: 30.000* | L202: 0 | M202: 2.34 | N202: 5.281
A203: 182 | B203: 182 | C203: 0 | D203: 32 | E203: 206 | F203: 154.2 | G203: 0.9 | H203: 0.1 | I203: 0 | J203: 30.000* | K203: 30.000* | L203: 0 | M203: 2.34 | N203: 5.339
A204: 183 | B204: 183 | C204: 0 | D204: 32 | E204: 207 | F204: 154.9 | G204: 0.9 | H204: 0.1 | I204: 0 | J204: 30.000* | K204: 30.000* | L204: 0 | M204: 2.35 | N204: 5.397
A205: 184 | B205: 184 | C205: 0 | D205: 32 | E205: 208 | F205: 155.6 | G205: 0.9 | H205: 0.1 | I205: 0 | J205: 30.000* | K205: 30.000* | L205: 0 | M205: 2.35 | N205: 5.456
... 3792 more rows

Sheet Batch Output P6 (hidden)
A1: LEAD BATCH MODE OUTPUT FILE
A2: Model Version: 2.0 Build1
A3: User Name:
A4: Date:
A5: Site Name:
A6: Operable Unit:
A7: Run Mode: Research
A8: ----------------------------------------------------------------------------------
A10: * : signify default values used in place of missing input data.
A11: ---: signify missing input data.
A12: PBB & PRED are the observed and predicted blood Pb levels in µg/dL.
A14: Percent exceedance was calculated using values of GSD and PbB Cutoff as follows:
A15: GSD = 1.600
A16: PbB Cutoff ( C ) = 6.000 µg/dL
A18: Input File: Batch File TWA.dat
A20: ID | B20: FAM | C20: BLK | D20: AGE (mon) | E20: SOIL (µg/g) | F20: DUST (µg/g) | G20: WATER (µg/L) | H20: AIR (µg/m³) | I20: Other (µg/day) | J20: ABSSoil (%) | K20: ABSDust (%) | L20: PBB (µg/dL) | M20: PRED (µg/dL) | N20: P(PbB>C) (%)
A22: 1 | B22: 1 | C22: 0 | D22: 32 | E22: 25 | F22: 27.5 | G22: 0.9 | H22: 0.1 | I22: 0 | J22: 30.000* | K22: 30.000* | L22: 0 | M22: 1.25 | N22: 0.043
A23: 2 | B23: 2 | C23: 0 | D23: 32 | E23: 26 | F23: 28.2 | G23: 0.9 | H23: 0.1 | I23: 0 | J23: 30.000* | K23: 30.000* | L23: 0 | M23: 1.26 | N23: 0.045
A24: 3 | B24: 3 | C24: 0 | D24: 32 | E24: 27 | F24: 28.9 | G24: 0.9 | H24: 0.1 | I24: 0 | J24: 30.000* | K24: 30.000* | L24: 0 | M24: 1.27 | N24: 0.046
A25: 4 | B25: 4 | C25: 0 | D25: 32 | E25: 28 | F25: 29.6 | G25: 0.9 | H25: 0.1 | I25: 0 | J25: 30.000* | K25: 30.000* | L25: 0 | M25: 1.27 | N25: 0.048
A26: 5 | B26: 5 | C26: 0 | D26: 32 | E26: 29 | F26: 30.3 | G26: 0.9 | H26: 0.1 | I26: 0 | J26: 30.000* | K26: 30.000* | L26: 0 | M26: 1.28 | N26: 0.05
A27: 6 | B27: 6 | C27: 0 | D27: 32 | E27: 30 | F27: 31 | G27: 0.9 | H27: 0.1 | I27: 0 | J27: 30.000* | K27: 30.000* | L27: 0 | M27: 1.28 | N27: 0.052
A28: 7 | B28: 7 | C28: 0 | D28: 32 | E28: 31 | F28: 31.7 | G28: 0.9 | H28: 0.1 | I28: 0 | J28: 30.000* | K28: 30.000* | L28: 0 | M28: 1.29 | N28: 0.054
A29: 8 | B29: 8 | C29: 0 | D29: 32 | E29: 32 | F29: 32.4 | G29: 0.9 | H29: 0.1 | I29: 0 | J29: 30.000* | K29: 30.000* | L29: 0 | M29: 1.3 | N29: 0.056
A30: 9 | B30: 9 | C30: 0 | D30: 32 | E30: 33 | F30: 33.1 | G30: 0.9 | H30: 0.1 | I30: 0 | J30: 30.000* | K30: 30.000* | L30: 0 | M30: 1.3 | N30: 0.058
A31: 10 | B31: 10 | C31: 0 | D31: 32 | E31: 34 | F31: 33.8 | G31: 0.9 | H31: 0.1 | I31: 0 | J31: 30.000* | K31: 30.000* | L31: 0 | M31: 1.31 | N31: 0.06
A32: 11 | B32: 11 | C32: 0 | D32: 32 | E32: 35 | F32: 34.5 | G32: 0.9 | H32: 0.1 | I32: 0 | J32: 30.000* | K32: 30.000* | L32: 0 | M32: 1.31 | N32: 0.062
A33: 12 | B33: 12 | C33: 0 | D33: 32 | E33: 36 | F33: 35.2 | G33: 0.9 | H33: 0.1 | I33: 0 | J33: 30.000* | K33: 30.000* | L33: 0 | M33: 1.32 | N33: 0.064
A34: 13 | B34: 13 | C34: 0 | D34: 32 | E34: 37 | F34: 35.9 | G34: 0.9 | H34: 0.1 | I34: 0 | J34: 30.000* | K34: 30.000* | L34: 0 | M34: 1.33 | N34: 0.066
A35: 14 | B35: 14 | C35: 0 | D35: 32 | E35: 38 | F35: 36.6 | G35: 0.9 | H35: 0.1 | I35: 0 | J35: 30.000* | K35: 30.000* | L35: 0 | M35: 1.33 | N35: 0.069
A36: 15 | B36: 15 | C36: 0 | D36: 32 | E36: 39 | F36: 37.3 | G36: 0.9 | H36: 0.1 | I36: 0 | J36: 30.000* | K36: 30.000* | L36: 0 | M36: 1.34 | N36: 0.071
A37: 16 | B37: 16 | C37: 0 | D37: 32 | E37: 40 | F37: 38 | G37: 0.9 | H37: 0.1 | I37: 0 | J37: 30.000* | K37: 30.000* | L37: 0 | M37: 1.35 | N37: 0.074
A38: 17 | B38: 17 | C38: 0 | D38: 32 | E38: 41 | F38: 38.7 | G38: 0.9 | H38: 0.1 | I38: 0 | J38: 30.000* | K38: 30.000* | L38: 0 | M38: 1.35 | N38: 0.076
A39: 18 | B39: 18 | C39: 0 | D39: 32 | E39: 42 | F39: 39.4 | G39: 0.9 | H39: 0.1 | I39: 0 | J39: 30.000* | K39: 30.000* | L39: 0 | M39: 1.36 | N39: 0.079
A40: 19 | B40: 19 | C40: 0 | D40: 32 | E40: 43 | F40: 40.1 | G40: 0.9 | H40: 0.1 | I40: 0 | J40: 30.000* | K40: 30.000* | L40: 0 | M40: 1.36 | N40: 0.081
A41: 20 | B41: 20 | C41: 0 | D41: 32 | E41: 44 | F41: 40.8 | G41: 0.9 | H41: 0.1 | I41: 0 | J41: 30.000* | K41: 30.000* | L41: 0 | M41: 1.37 | N41: 0.084
A42: 21 | B42: 21 | C42: 0 | D42: 32 | E42: 45 | F42: 41.5 | G42: 0.9 | H42: 0.1 | I42: 0 | J42: 30.000* | K42: 30.000* | L42: 0 | M42: 1.38 | N42: 0.087
A43: 22 | B43: 22 | C43: 0 | D43: 32 | E43: 46 | F43: 42.2 | G43: 0.9 | H43: 0.1 | I43: 0 | J43: 30.000* | K43: 30.000* | L43: 0 | M43: 1.38 | N43: 0.089
A44: 23 | B44: 23 | C44: 0 | D44: 32 | E44: 47 | F44: 42.9 | G44: 0.9 | H44: 0.1 | I44: 0 | J44: 30.000* | K44: 30.000* | L44: 0 | M44: 1.39 | N44: 0.092
A45: 24 | B45: 24 | C45: 0 | D45: 32 | E45: 48 | F45: 43.6 | G45: 0.9 | H45: 0.1 | I45: 0 | J45: 30.000* | K45: 30.000* | L45: 0 | M45: 1.39 | N45: 0.095
A46: 25 | B46: 25 | C46: 0 | D46: 32 | E46: 49 | F46: 44.3 | G46: 0.9 | H46: 0.1 | I46: 0 | J46: 30.000* | K46: 30.000* | L46: 0 | M46: 1.4 | N46: 0.098
A47: 26 | B47: 26 | C47: 0 | D47: 32 | E47: 50 | F47: 45 | G47: 0.9 | H47: 0.1 | I47: 0 | J47: 30.000* | K47: 30.000* | L47: 0 | M47: 1.41 | N47: 0.102
A48: 27 | B48: 27 | C48: 0 | D48: 32 | E48: 51 | F48: 45.7 | G48: 0.9 | H48: 0.1 | I48: 0 | J48: 30.000* | K48: 30.000* | L48: 0 | M48: 1.41 | N48: 0.105
A49: 28 | B49: 28 | C49: 0 | D49: 32 | E49: 52 | F49: 46.4 | G49: 0.9 | H49: 0.1 | I49: 0 | J49: 30.000* | K49: 30.000* | L49: 0 | M49: 1.42 | N49: 0.108
A50: 29 | B50: 29 | C50: 0 | D50: 32 | E50: 53 | F50: 47.1 | G50: 0.9 | H50: 0.1 | I50: 0 | J50: 30.000* | K50: 30.000* | L50: 0 | M50: 1.43 | N50: 0.111
A51: 30 | B51: 30 | C51: 0 | D51: 32 | E51: 54 | F51: 47.8 | G51: 0.9 | H51: 0.1 | I51: 0 | J51: 30.000* | K51: 30.000* | L51: 0 | M51: 1.43 | N51: 0.115
A52: 31 | B52: 31 | C52: 0 | D52: 32 | E52: 55 | F52: 48.5 | G52: 0.9 | H52: 0.1 | I52: 0 | J52: 30.000* | K52: 30.000* | L52: 0 | M52: 1.44 | N52: 0.118
A53: 32 | B53: 32 | C53: 0 | D53: 32 | E53: 56 | F53: 49.2 | G53: 0.9 | H53: 0.1 | I53: 0 | J53: 30.000* | K53: 30.000* | L53: 0 | M53: 1.44 | N53: 0.122
A54: 33 | B54: 33 | C54: 0 | D54: 32 | E54: 57 | F54: 49.9 | G54: 0.9 | H54: 0.1 | I54: 0 | J54: 30.000* | K54: 30.000* | L54: 0 | M54: 1.45 | N54: 0.126
A55: 34 | B55: 34 | C55: 0 | D55: 32 | E55: 58 | F55: 50.6 | G55: 0.9 | H55: 0.1 | I55: 0 | J55: 30.000* | K55: 30.000* | L55: 0 | M55: 1.46 | N55: 0.129
A56: 35 | B56: 35 | C56: 0 | D56: 32 | E56: 59 | F56: 51.3 | G56: 0.9 | H56: 0.1 | I56: 0 | J56: 30.000* | K56: 30.000* | L56: 0 | M56: 1.46 | N56: 0.133
A57: 36 | B57: 36 | C57: 0 | D57: 32 | E57: 60 | F57: 52 | G57: 0.9 | H57: 0.1 | I57: 0 | J57: 30.000* | K57: 30.000* | L57: 0 | M57: 1.47 | N57: 0.137
A58: 37 | B58: 37 | C58: 0 | D58: 32 | E58: 61 | F58: 52.7 | G58: 0.9 | H58: 0.1 | I58: 0 | J58: 30.000* | K58: 30.000* | L58: 0 | M58: 1.47 | N58: 0.141
A59: 38 | B59: 38 | C59: 0 | D59: 32 | E59: 62 | F59: 53.4 | G59: 0.9 | H59: 0.1 | I59: 0 | J59: 30.000* | K59: 30.000* | L59: 0 | M59: 1.48 | N59: 0.145
A60: 39 | B60: 39 | C60: 0 | D60: 32 | E60: 63 | F60: 54.1 | G60: 0.9 | H60: 0.1 | I60: 0 | J60: 30.000* | K60: 30.000* | L60: 0 | M60: 1.49 | N60: 0.15
A61: 40 | B61: 40 | C61: 0 | D61: 32 | E61: 64 | F61: 54.8 | G61: 0.9 | H61: 0.1 | I61: 0 | J61: 30.000* | K61: 30.000* | L61: 0 | M61: 1.49 | N61: 0.154
A62: 41 | B62: 41 | C62: 0 | D62: 32 | E62: 65 | F62: 55.5 | G62: 0.9 | H62: 0.1 | I62: 0 | J62: 30.000* | K62: 30.000* | L62: 0 | M62: 1.5 | N62: 0.158
A63: 42 | B63: 42 | C63: 0 | D63: 32 | E63: 66 | F63: 56.2 | G63: 0.9 | H63: 0.1 | I63: 0 | J63: 30.000* | K63: 30.000* | L63: 0 | M63: 1.5 | N63: 0.163
A64: 43 | B64: 43 | C64: 0 | D64: 32 | E64: 67 | F64: 56.9 | G64: 0.9 | H64: 0.1 | I64: 0 | J64: 30.000* | K64: 30.000* | L64: 0 | M64: 1.51 | N64: 0.167
A65: 44 | B65: 44 | C65: 0 | D65: 32 | E65: 68 | F65: 57.6 | G65: 0.9 | H65: 0.1 | I65: 0 | J65: 30.000* | K65: 30.000* | L65: 0 | M65: 1.52 | N65: 0.172
A66: 45 | B66: 45 | C66: 0 | D66: 32 | E66: 69 | F66: 58.3 | G66: 0.9 | H66: 0.1 | I66: 0 | J66: 30.000* | K66: 30.000* | L66: 0 | M66: 1.52 | N66: 0.177
A67: 46 | B67: 46 | C67: 0 | D67: 32 | E67: 70 | F67: 59 | G67: 0.9 | H67: 0.1 | I67: 0 | J67: 30.000* | K67: 30.000* | L67: 0 | M67: 1.53 | N67: 0.182
A68: 47 | B68: 47 | C68: 0 | D68: 32 | E68: 71 | F68: 59.7 | G68: 0.9 | H68: 0.1 | I68: 0 | J68: 30.000* | K68: 30.000* | L68: 0 | M68: 1.54 | N68: 0.187
A69: 48 | B69: 48 | C69: 0 | D69: 32 | E69: 72 | F69: 60.4 | G69: 0.9 | H69: 0.1 | I69: 0 | J69: 30.000* | K69: 30.000* | L69: 0 | M69: 1.54 | N69: 0.192
A70: 49 | B70: 49 | C70: 0 | D70: 32 | E70: 73 | F70: 61.1 | G70: 0.9 | H70: 0.1 | I70: 0 | J70: 30.000* | K70: 30.000* | L70: 0 | M70: 1.55 | N70: 0.197
A71: 50 | B71: 50 | C71: 0 | D71: 32 | E71: 74 | F71: 61.8 | G71: 0.9 | H71: 0.1 | I71: 0 | J71: 30.000* | K71: 30.000* | L71: 0 | M71: 1.55 | N71: 0.202
A72: 51 | B72: 51 | C72: 0 | D72: 32 | E72: 75 | F72: 62.5 | G72: 0.9 | H72: 0.1 | I72: 0 | J72: 30.000* | K72: 30.000* | L72: 0 | M72: 1.56 | N72: 0.208
A73: 52 | B73: 52 | C73: 0 | D73: 32 | E73: 76 | F73: 63.2 | G73: 0.9 | H73: 0.1 | I73: 0 | J73: 30.000* | K73: 30.000* | L73: 0 | M73: 1.57 | N73: 0.213
A74: 53 | B74: 53 | C74: 0 | D74: 32 | E74: 77 | F74: 63.9 | G74: 0.9 | H74: 0.1 | I74: 0 | J74: 30.000* | K74: 30.000* | L74: 0 | M74: 1.57 | N74: 0.219
A75: 54 | B75: 54 | C75: 0 | D75: 32 | E75: 78 | F75: 64.6 | G75: 0.9 | H75: 0.1 | I75: 0 | J75: 30.000* | K75: 30.000* | L75: 0 | M75: 1.58 | N75: 0.224
A76: 55 | B76: 55 | C76: 0 | D76: 32 | E76: 79 | F76: 65.3 | G76: 0.9 | H76: 0.1 | I76: 0 | J76: 30.000* | K76: 30.000* | L76: 0 | M76: 1.58 | N76: 0.23
A77: 56 | B77: 56 | C77: 0 | D77: 32 | E77: 80 | F77: 66 | G77: 0.9 | H77: 0.1 | I77: 0 | J77: 30.000* | K77: 30.000* | L77: 0 | M77: 1.59 | N77: 0.236
A78: 57 | B78: 57 | C78: 0 | D78: 32 | E78: 81 | F78: 66.7 | G78: 0.9 | H78: 0.1 | I78: 0 | J78: 30.000* | K78: 30.000* | L78: 0 | M78: 1.6 | N78: 0.242
A79: 58 | B79: 58 | C79: 0 | D79: 32 | E79: 82 | F79: 67.4 | G79: 0.9 | H79: 0.1 | I79: 0 | J79: 30.000* | K79: 30.000* | L79: 0 | M79: 1.6 | N79: 0.248
A80: 59 | B80: 59 | C80: 0 | D80: 32 | E80: 83 | F80: 68.1 | G80: 0.9 | H80: 0.1 | I80: 0 | J80: 30.000* | K80: 30.000* | L80: 0 | M80: 1.61 | N80: 0.255
A81: 60 | B81: 60 | C81: 0 | D81: 32 | E81: 84 | F81: 68.8 | G81: 0.9 | H81: 0.1 | I81: 0 | J81: 30.000* | K81: 30.000* | L81: 0 | M81: 1.61 | N81: 0.261
A82: 61 | B82: 61 | C82: 0 | D82: 32 | E82: 85 | F82: 69.5 | G82: 0.9 | H82: 0.1 | I82: 0 | J82: 30.000* | K82: 30.000* | L82: 0 | M82: 1.62 | N82: 0.268
A83: 62 | B83: 62 | C83: 0 | D83: 32 | E83: 86 | F83: 70.2 | G83: 0.9 | H83: 0.1 | I83: 0 | J83: 30.000* | K83: 30.000* | L83: 0 | M83: 1.63 | N83: 0.274
A84: 63 | B84: 63 | C84: 0 | D84: 32 | E84: 87 | F84: 70.9 | G84: 0.9 | H84: 0.1 | I84: 0 | J84: 30.000* | K84: 30.000* | L84: 0 | M84: 1.63 | N84: 0.281
A85: 64 | B85: 64 | C85: 0 | D85: 32 | E85: 88 | F85: 71.6 | G85: 0.9 | H85: 0.1 | I85: 0 | J85: 30.000* | K85: 30.000* | L85: 0 | M85: 1.64 | N85: 0.288
A86: 65 | B86: 65 | C86: 0 | D86: 32 | E86: 89 | F86: 72.3 | G86: 0.9 | H86: 0.1 | I86: 0 | J86: 30.000* | K86: 30.000* | L86: 0 | M86: 1.64 | N86: 0.295
A87: 66 | B87: 66 | C87: 0 | D87: 32 | E87: 90 | F87: 73 | G87: 0.9 | H87: 0.1 | I87: 0 | J87: 30.000* | K87: 30.000* | L87: 0 | M87: 1.65 | N87: 0.302
A88: 67 | B88: 67 | C88: 0 | D88: 32 | E88: 91 | F88: 73.7 | G88: 0.9 | H88: 0.1 | I88: 0 | J88: 30.000* | K88: 30.000* | L88: 0 | M88: 1.66 | N88: 0.309
A89: 68 | B89: 68 | C89: 0 | D89: 32 | E89: 92 | F89: 74.4 | G89: 0.9 | H89: 0.1 | I89: 0 | J89: 30.000* | K89: 30.000* | L89: 0 | M89: 1.66 | N89: 0.317
A90: 69 | B90: 69 | C90: 0 | D90: 32 | E90: 93 | F90: 75.1 | G90: 0.9 | H90: 0.1 | I90: 0 | J90: 30.000* | K90: 30.000* | L90: 0 | M90: 1.67 | N90: 0.324
A91: 70 | B91: 70 | C91: 0 | D91: 32 | E91: 94 | F91: 75.8 | G91: 0.9 | H91: 0.1 | I91: 0 | J91: 30.000* | K91: 30.000* | L91: 0 | M91: 1.68 | N91: 0.332
A92: 71 | B92: 71 | C92: 0 | D92: 32 | E92: 95 | F92: 76.5 | G92: 0.9 | H92: 0.1 | I92: 0 | J92: 30.000* | K92: 30.000* | L92: 0 | M92: 1.68 | N92: 0.34
A93: 72 | B93: 72 | C93: 0 | D93: 32 | E93: 96 | F93: 77.2 | G93: 0.9 | H93: 0.1 | I93: 0 | J93: 30.000* | K93: 30.000* | L93: 0 | M93: 1.69 | N93: 0.348
A94: 73 | B94: 73 | C94: 0 | D94: 32 | E94: 97 | F94: 77.9 | G94: 0.9 | H94: 0.1 | I94: 0 | J94: 30.000* | K94: 30.000* | L94: 0 | M94: 1.69 | N94: 0.356
A95: 74 | B95: 74 | C95: 0 | D95: 32 | E95: 98 | F95: 78.6 | G95: 0.9 | H95: 0.1 | I95: 0 | J95: 30.000* | K95: 30.000* | L95: 0 | M95: 1.7 | N95: 0.364
A96: 75 | B96: 75 | C96: 0 | D96: 32 | E96: 99 | F96: 79.3 | G96: 0.9 | H96: 0.1 | I96: 0 | J96: 30.000* | K96: 30.000* | L96: 0 | M96: 1.71 | N96: 0.372
A97: 76 | B97: 76 | C97: 0 | D97: 32 | E97: 100 | F97: 80 | G97: 0.9 | H97: 0.1 | I97: 0 | J97: 30.000* | K97: 30.000* | L97: 0 | M97: 1.71 | N97: 0.38
A98: 77 | B98: 77 | C98: 0 | D98: 32 | E98: 101 | F98: 80.7 | G98: 0.9 | H98: 0.1 | I98: 0 | J98: 30.000* | K98: 30.000* | L98: 0 | M98: 1.72 | N98: 0.389
A99: 78 | B99: 78 | C99: 0 | D99: 32 | E99: 102 | F99: 81.4 | G99: 0.9 | H99: 0.1 | I99: 0 | J99: 30.000* | K99: 30.000* | L99: 0 | M99: 1.72 | N99: 0.398
A100: 79 | B100: 79 | C100: 0 | D100: 32 | E100: 103 | F100: 82.1 | G100: 0.9 | H100: 0.1 | I100: 0 | J100: 30.000* | K100: 30.000* | L100: 0 | M100: 1.73 | N100: 0.407
A101: 80 | B101: 80 | C101: 0 | D101: 32 | E101: 104 | F101: 82.8 | G101: 0.9 | H101: 0.1 | I101: 0 | J101: 30.000* | K101: 30.000* | L101: 0 | M101: 1.74 | N101: 0.416
A102: 81 | B102: 81 | C102: 0 | D102: 32 | E102: 105 | F102: 83.5 | G102: 0.9 | H102: 0.1 | I102: 0 | J102: 30.000* | K102: 30.000* | L102: 0 | M102: 1.74 | N102: 0.425
A103: 82 | B103: 82 | C103: 0 | D103: 32 | E103: 106 | F103: 84.2 | G103: 0.9 | H103: 0.1 | I103: 0 | J103: 30.000* | K103: 30.000* | L103: 0 | M103: 1.75 | N103: 0.434
A104: 83 | B104: 83 | C104: 0 | D104: 32 | E104: 107 | F104: 84.9 | G104: 0.9 | H104: 0.1 | I104: 0 | J104: 30.000* | K104: 30.000* | L104: 0 | M104: 1.75 | N104: 0.444
A105: 84 | B105: 84 | C105: 0 | D105: 32 | E105: 108 | F105: 85.6 | G105: 0.9 | H105: 0.1 | I105: 0 | J105: 30.000* | K105: 30.000* | L105: 0 | M105: 1.76 | N105: 0.453
A106: 85 | B106: 85 | C106: 0 | D106: 32 | E106: 109 | F106: 86.3 | G106: 0.9 | H106: 0.1 | I106: 0 | J106: 30.000* | K106: 30.000* | L106: 0 | M106: 1.77 | N106: 0.463
A107: 86 | B107: 86 | C107: 0 | D107: 32 | E107: 110 | F107: 87 | G107: 0.9 | H107: 0.1 | I107: 0 | J107: 30.000* | K107: 30.000* | L107: 0 | M107: 1.77 | N107: 0.473
A108: 87 | B108: 87 | C108: 0 | D108: 32 | E108: 111 | F108: 87.7 | G108: 0.9 | H108: 0.1 | I108: 0 | J108: 30.000* | K108: 30.000* | L108: 0 | M108: 1.78 | N108: 0.483
A109: 88 | B109: 88 | C109: 0 | D109: 32 | E109: 112 | F109: 88.4 | G109: 0.9 | H109: 0.1 | I109: 0 | J109: 30.000* | K109: 30.000* | L109: 0 | M109: 1.78 | N109: 0.493
A110: 89 | B110: 89 | C110: 0 | D110: 32 | E110: 113 | F110: 89.1 | G110: 0.9 | H110: 0.1 | I110: 0 | J110: 30.000* | K110: 30.000* | L110: 0 | M110: 1.79 | N110: 0.503
A111: 90 | B111: 90 | C111: 0 | D111: 32 | E111: 114 | F111: 89.8 | G111: 0.9 | H111: 0.1 | I111: 0 | J111: 30.000* | K111: 30.000* | L111: 0 | M111: 1.8 | N111: 0.514
A112: 91 | B112: 91 | C112: 0 | D112: 32 | E112: 115 | F112: 90.5 | G112: 0.9 | H112: 0.1 | I112: 0 | J112: 30.000* | K112: 30.000* | L112: 0 | M112: 1.8 | N112: 0.524
A113: 92 | B113: 92 | C113: 0 | D113: 32 | E113: 116 | F113: 91.2 | G113: 0.9 | H113: 0.1 | I113: 0 | J113: 30.000* | K113: 30.000* | L113: 0 | M113: 1.81 | N113: 0.535
A114: 93 | B114: 93 | C114: 0 | D114: 32 | E114: 117 | F114: 91.9 | G114: 0.9 | H114: 0.1 | I114: 0 | J114: 30.000* | K114: 30.000* | L114: 0 | M114: 1.81 | N114: 0.546
A115: 94 | B115: 94 | C115: 0 | D115: 32 | E115: 118 | F115: 92.6 | G115: 0.9 | H115: 0.1 | I115: 0 | J115: 30.000* | K115: 30.000* | L115: 0 | M115: 1.82 | N115: 0.557
A116: 95 | B116: 95 | C116: 0 | D116: 32 | E116: 119 | F116: 93.3 | G116: 0.9 | H116: 0.1 | I116: 0 | J116: 30.000* | K116: 30.000* | L116: 0 | M116: 1.83 | N116: 0.569
A117: 96 | B117: 96 | C117: 0 | D117: 32 | E117: 120 | F117: 94 | G117: 0.9 | H117: 0.1 | I117: 0 | J117: 30.000* | K117: 30.000* | L117: 0 | M117: 1.83 | N117: 0.58
A118: 97 | B118: 97 | C118: 0 | D118: 32 | E118: 121 | F118: 94.7 | G118: 0.9 | H118: 0.1 | I118: 0 | J118: 30.000* | K118: 30.000* | L118: 0 | M118: 1.84 | N118: 0.592
A119: 98 | B119: 98 | C119: 0 | D119: 32 | E119: 122 | F119: 95.4 | G119: 0.9 | H119: 0.1 | I119: 0 | J119: 30.000* | K119: 30.000* | L119: 0 | M119: 1.84 | N119: 0.603
A120: 99 | B120: 99 | C120: 0 | D120: 32 | E120: 123 | F120: 96.1 | G120: 0.9 | H120: 0.1 | I120: 0 | J120: 30.000* | K120: 30.000* | L120: 0 | M120: 1.85 | N120: 0.615
A121: 100 | B121: 100 | C121: 0 | D121: 32 | E121: 124 | F121: 96.8 | G121: 0.9 | H121: 0.1 | I121: 0 | J121: 30.000* | K121: 30.000* | L121: 0 | M121: 1.86 | N121: 0.627
A122: 101 | B122: 101 | C122: 0 | D122: 32 | E122: 125 | F122: 97.5 | G122: 0.9 | H122: 0.1 | I122: 0 | J122: 30.000* | K122: 30.000* | L122: 0 | M122: 1.86 | N122: 0.64
A123: 102 | B123: 102 | C123: 0 | D123: 32 | E123: 126 | F123: 98.2 | G123: 0.9 | H123: 0.1 | I123: 0 | J123: 30.000* | K123: 30.000* | L123: 0 | M123: 1.87 | N123: 0.652
A124: 103 | B124: 103 | C124: 0 | D124: 32 | E124: 127 | F124: 98.9 | G124: 0.9 | H124: 0.1 | I124: 0 | J124: 30.000* | K124: 30.000* | L124: 0 | M124: 1.87 | N124: 0.665
A125: 104 | B125: 104 | C125: 0 | D125: 32 | E125: 128 | F125: 99.6 | G125: 0.9 | H125: 0.1 | I125: 0 | J125: 30.000* | K125: 30.000* | L125: 0 | M125: 1.88 | N125: 0.677
A126: 105 | B126: 105 | C126: 0 | D126: 32 | E126: 129 | F126: 100.3 | G126: 0.9 | H126: 0.1 | I126: 0 | J126: 30.000* | K126: 30.000* | L126: 0 | M126: 1.89 | N126: 0.69
A127: 106 | B127: 106 | C127: 0 | D127: 32 | E127: 130 | F127: 101 | G127: 0.9 | H127: 0.1 | I127: 0 | J127: 30.000* | K127: 30.000* | L127: 0 | M127: 1.89 | N127: 0.703
A128: 107 | B128: 107 | C128: 0 | D128: 32 | E128: 131 | F128: 101.7 | G128: 0.9 | H128: 0.1 | I128: 0 | J128: 30.000* | K128: 30.000* | L128: 0 | M128: 1.9 | N128: 0.717
A129: 108 | B129: 108 | C129: 0 | D129: 32 | E129: 132 | F129: 102.4 | G129: 0.9 | H129: 0.1 | I129: 0 | J129: 30.000* | K129: 30.000* | L129: 0 | M129: 1.9 | N129: 0.73
A130: 109 | B130: 109 | C130: 0 | D130: 32 | E130: 133 | F130: 103.1 | G130: 0.9 | H130: 0.1 | I130: 0 | J130: 30.000* | K130: 30.000* | L130: 0 | M130: 1.91 | N130: 0.744
A131: 110 | B131: 110 | C131: 0 | D131: 32 | E131: 134 | F131: 103.8 | G131: 0.9 | H131: 0.1 | I131: 0 | J131: 30.000* | K131: 30.000* | L131: 0 | M131: 1.92 | N131: 0.758
A132: 111 | B132: 111 | C132: 0 | D132: 32 | E132: 135 | F132: 104.5 | G132: 0.9 | H132: 0.1 | I132: 0 | J132: 30.000* | K132: 30.000* | L132: 0 | M132: 1.92 | N132: 0.772
A133: 112 | B133: 112 | C133: 0 | D133: 32 | E133: 136 | F133: 105.2 | G133: 0.9 | H133: 0.1 | I133: 0 | J133: 30.000* | K133: 30.000* | L133: 0 | M133: 1.93 | N133: 0.786
A134: 113 | B134: 113 | C134: 0 | D134: 32 | E134: 137 | F134: 105.9 | G134: 0.9 | H134: 0.1 | I134: 0 | J134: 30.000* | K134: 30.000* | L134: 0 | M134: 1.93 | N134: 0.8
A135: 114 | B135: 114 | C135: 0 | D135: 32 | E135: 138 | F135: 106.6 | G135: 0.9 | H135: 0.1 | I135: 0 | J135: 30.000* | K135: 30.000* | L135: 0 | M135: 1.94 | N135: 0.815
A136: 115 | B136: 115 | C136: 0 | D136: 32 | E136: 139 | F136: 107.3 | G136: 0.9 | H136: 0.1 | I136: 0 | J136: 30.000* | K136: 30.000* | L136: 0 | M136: 1.95 | N136: 0.829
A137: 116 | B137: 116 | C137: 0 | D137: 32 | E137: 140 | F137: 108 | G137: 0.9 | H137: 0.1 | I137: 0 | J137: 30.000* | K137: 30.000* | L137: 0 | M137: 1.95 | N137: 0.844
A138: 117 | B138: 117 | C138: 0 | D138: 32 | E138: 141 | F138: 108.7 | G138: 0.9 | H138: 0.1 | I138: 0 | J138: 30.000* | K138: 30.000* | L138: 0 | M138: 1.96 | N138: 0.859
A139: 118 | B139: 118 | C139: 0 | D139: 32 | E139: 142 | F139: 109.4 | G139: 0.9 | H139: 0.1 | I139: 0 | J139: 30.000* | K139: 30.000* | L139: 0 | M139: 1.96 | N139: 0.875
A140: 119 | B140: 119 | C140: 0 | D140: 32 | E140: 143 | F140: 110.1 | G140: 0.9 | H140: 0.1 | I140: 0 | J140: 30.000* | K140: 30.000* | L140: 0 | M140: 1.97 | N140: 0.89
A141: 120 | B141: 120 | C141: 0 | D141: 32 | E141: 144 | F141: 110.8 | G141: 0.9 | H141: 0.1 | I141: 0 | J141: 30.000* | K141: 30.000* | L141: 0 | M141: 1.98 | N141: 0.906
A142: 121 | B142: 121 | C142: 0 | D142: 32 | E142: 145 | F142: 111.5 | G142: 0.9 | H142: 0.1 | I142: 0 | J142: 30.000* | K142: 30.000* | L142: 0 | M142: 1.98 | N142: 0.921
A143: 122 | B143: 122 | C143: 0 | D143: 32 | E143: 146 | F143: 112.2 | G143: 0.9 | H143: 0.1 | I143: 0 | J143: 30.000* | K143: 30.000* | L143: 0 | M143: 1.99 | N143: 0.937
A144: 123 | B144: 123 | C144: 0 | D144: 32 | E144: 147 | F144: 112.9 | G144: 0.9 | H144: 0.1 | I144: 0 | J144: 30.000* | K144: 30.000* | L144: 0 | M144: 1.99 | N144: 0.954
A145: 124 | B145: 124 | C145: 0 | D145: 32 | E145: 148 | F145: 113.6 | G145: 0.9 | H145: 0.1 | I145: 0 | J145: 30.000* | K145: 30.000* | L145: 0 | M145: 2 | N145: 0.97
A146: 125 | B146: 125 | C146: 0 | D146: 32 | E146: 149 | F146: 114.3 | G146: 0.9 | H146: 0.1 | I146: 0 | J146: 30.000* | K146: 30.000* | L146: 0 | M146: 2.01 | N146: 0.987
A147: 126 | B147: 126 | C147: 0 | D147: 32 | E147: 150 | F147: 115 | G147: 0.9 | H147: 0.1 | I147: 0 | J147: 30.000* | K147: 30.000* | L147: 0 | M147: 2.01 | N147: 1.003
A148: 127 | B148: 127 | C148: 0 | D148: 32 | E148: 151 | F148: 115.7 | G148: 0.9 | H148: 0.1 | I148: 0 | J148: 30.000* | K148: 30.000* | L148: 0 | M148: 2.02 | N148: 1.02
A149: 128 | B149: 128 | C149: 0 | D149: 32 | E149: 152 | F149: 116.4 | G149: 0.9 | H149: 0.1 | I149: 0 | J149: 30.000* | K149: 30.000* | L149: 0 | M149: 2.02 | N149: 1.037
A150: 129 | B150: 129 | C150: 0 | D150: 32 | E150: 153 | F150: 117.1 | G150: 0.9 | H150: 0.1 | I150: 0 | J150: 30.000* | K150: 30.000* | L150: 0 | M150: 2.03 | N150: 1.055
A151: 130 | B151: 130 | C151: 0 | D151: 32 | E151: 154 | F151: 117.8 | G151: 0.9 | H151: 0.1 | I151: 0 | J151: 30.000* | K151: 30.000* | L151: 0 | M151: 2.04 | N151: 1.072
A152: 131 | B152: 131 | C152: 0 | D152: 32 | E152: 155 | F152: 118.5 | G152: 0.9 | H152: 0.1 | I152: 0 | J152: 30.000* | K152: 30.000* | L152: 0 | M152: 2.04 | N152: 1.09
A153: 132 | B153: 132 | C153: 0 | D153: 32 | E153: 156 | F153: 119.2 | G153: 0.9 | H153: 0.1 | I153: 0 | J153: 30.000* | K153: 30.000* | L153: 0 | M153: 2.05 | N153: 1.108
A154: 133 | B154: 133 | C154: 0 | D154: 32 | E154: 157 | F154: 119.9 | G154: 0.9 | H154: 0.1 | I154: 0 | J154: 30.000* | K154: 30.000* | L154: 0 | M154: 2.05 | N154: 1.126
A155: 134 | B155: 134 | C155: 0 | D155: 32 | E155: 158 | F155: 120.6 | G155: 0.9 | H155: 0.1 | I155: 0 | J155: 30.000* | K155: 30.000* | L155: 0 | M155: 2.06 | N155: 1.144
A156: 135 | B156: 135 | C156: 0 | D156: 32 | E156: 159 | F156: 121.3 | G156: 0.9 | H156: 0.1 | I156: 0 | J156: 30.000* | K156: 30.000* | L156: 0 | M156: 2.07 | N156: 1.163
A157: 136 | B157: 136 | C157: 0 | D157: 32 | E157: 160 | F157: 122 | G157: 0.9 | H157: 0.1 | I157: 0 | J157: 30.000* | K157: 30.000* | L157: 0 | M157: 2.07 | N157: 1.182
A158: 137 | B158: 137 | C158: 0 | D158: 32 | E158: 161 | F158: 122.7 | G158: 0.9 | H158: 0.1 | I158: 0 | J158: 30.000* | K158: 30.000* | L158: 0 | M158: 2.08 | N158: 1.201
A159: 138 | B159: 138 | C159: 0 | D159: 32 | E159: 162 | F159: 123.4 | G159: 0.9 | H159: 0.1 | I159: 0 | J159: 30.000* | K159: 30.000* | L159: 0 | M159: 2.08 | N159: 1.22
A160: 139 | B160: 139 | C160: 0 | D160: 32 | E160: 163 | F160: 124.1 | G160: 0.9 | H160: 0.1 | I160: 0 | J160: 30.000* | K160: 30.000* | L160: 0 | M160: 2.09 | N160: 1.239
A161: 140 | B161: 140 | C161: 0 | D161: 32 | E161: 164 | F161: 124.8 | G161: 0.9 | H161: 0.1 | I161: 0 | J161: 30.000* | K161: 30.000* | L161: 0 | M161: 2.09 | N161: 1.258
A162: 141 | B162: 141 | C162: 0 | D162: 32 | E162: 165 | F162: 125.5 | G162: 0.9 | H162: 0.1 | I162: 0 | J162: 30.000* | K162: 30.000* | L162: 0 | M162: 2.1 | N162: 1.278
A163: 142 | B163: 142 | C163: 0 | D163: 32 | E163: 166 | F163: 126.2 | G163: 0.9 | H163: 0.1 | I163: 0 | J163: 30.000* | K163: 30.000* | L163: 0 | M163: 2.11 | N163: 1.298
A164: 143 | B164: 143 | C164: 0 | D164: 32 | E164: 167 | F164: 126.9 | G164: 0.9 | H164: 0.1 | I164: 0 | J164: 30.000* | K164: 30.000* | L164: 0 | M164: 2.11 | N164: 1.318
A165: 144 | B165: 144 | C165: 0 | D165: 32 | E165: 168 | F165: 127.6 | G165: 0.9 | H165: 0.1 | I165: 0 | J165: 30.000* | K165: 30.000* | L165: 0 | M165: 2.12 | N165: 1.339
A166: 145 | B166: 145 | C166: 0 | D166: 32 | E166: 169 | F166: 128.3 | G166: 0.9 | H166: 0.1 | I166: 0 | J166: 30.000* | K166: 30.000* | L166: 0 | M166: 2.12 | N166: 1.359
A167: 146 | B167: 146 | C167: 0 | D167: 32 | E167: 170 | F167: 129 | G167: 0.9 | H167: 0.1 | I167: 0 | J167: 30.000* | K167: 30.000* | L167: 0 | M167: 2.13 | N167: 1.38
A168: 147 | B168: 147 | C168: 0 | D168: 32 | E168: 171 | F168: 129.7 | G168: 0.9 | H168: 0.1 | I168: 0 | J168: 30.000* | K168: 30.000* | L168: 0 | M168: 2.14 | N168: 1.401
A169: 148 | B169: 148 | C169: 0 | D169: 32 | E169: 172 | F169: 130.4 | G169: 0.9 | H169: 0.1 | I169: 0 | J169: 30.000* | K169: 30.000* | L169: 0 | M169: 2.14 | N169: 1.422
A170: 149 | B170: 149 | C170: 0 | D170: 32 | E170: 173 | F170: 131.1 | G170: 0.9 | H170: 0.1 | I170: 0 | J170: 30.000* | K170: 30.000* | L170: 0 | M170: 2.15 | N170: 1.444
A171: 150 | B171: 150 | C171: 0 | D171: 32 | E171: 174 | F171: 131.8 | G171: 0.9 | H171: 0.1 | I171: 0 | J171: 30.000* | K171: 30.000* | L171: 0 | M171: 2.15 | N171: 1.465
A172: 151 | B172: 151 | C172: 0 | D172: 32 | E172: 175 | F172: 132.5 | G172: 0.9 | H172: 0.1 | I172: 0 | J172: 30.000* | K172: 30.000* | L172: 0 | M172: 2.16 | N172: 1.487
A173: 152 | B173: 152 | C173: 0 | D173: 32 | E173: 176 | F173: 133.2 | G173: 0.9 | H173: 0.1 | I173: 0 | J173: 30.000* | K173: 30.000* | L173: 0 | M173: 2.17 | N173: 1.509
A174: 153 | B174: 153 | C174: 0 | D174: 32 | E174: 177 | F174: 133.9 | G174: 0.9 | H174: 0.1 | I174: 0 | J174: 30.000* | K174: 30.000* | L174: 0 | M174: 2.17 | N174: 1.531
A175: 154 | B175: 154 | C175: 0 | D175: 32 | E175: 178 | F175: 134.6 | G175: 0.9 | H175: 0.1 | I175: 0 | J175: 30.000* | K175: 30.000* | L175: 0 | M175: 2.18 | N175: 1.554
A176: 155 | B176: 155 | C176: 0 | D176: 32 | E176: 179 | F176: 135.3 | G176: 0.9 | H176: 0.1 | I176: 0 | J176: 30.000* | K176: 30.000* | L176: 0 | M176: 2.18 | N176: 1.576
A177: 156 | B177: 156 | C177: 0 | D177: 32 | E177: 180 | F177: 136 | G177: 0.9 | H177: 0.1 | I177: 0 | J177: 30.000* | K177: 30.000* | L177: 0 | M177: 2.19 | N177: 1.599
A178: 157 | B178: 157 | C178: 0 | D178: 32 | E178: 181 | F178: 136.7 | G178: 0.9 | H178: 0.1 | I178: 0 | J178: 30.000* | K178: 30.000* | L178: 0 | M178: 2.2 | N178: 1.622
A179: 158 | B179: 158 | C179: 0 | D179: 32 | E179: 182 | F179: 137.4 | G179: 0.9 | H179: 0.1 | I179: 0 | J179: 30.000* | K179: 30.000* | L179: 0 | M179: 2.2 | N179: 1.646
A180: 159 | B180: 159 | C180: 0 | D180: 32 | E180: 183 | F180: 138.1 | G180: 0.9 | H180: 0.1 | I180: 0 | J180: 30.000* | K180: 30.000* | L180: 0 | M180: 2.21 | N180: 1.669
A181: 160 | B181: 160 | C181: 0 | D181: 32 | E181: 184 | F181: 138.8 | G181: 0.9 | H181: 0.1 | I181: 0 | J181: 30.000* | K181: 30.000* | L181: 0 | M181: 2.21 | N181: 1.693
A182: 161 | B182: 161 | C182: 0 | D182: 32 | E182: 185 | F182: 139.5 | G182: 0.9 | H182: 0.1 | I182: 0 | J182: 30.000* | K182: 30.000* | L182: 0 | M182: 2.22 | N182: 1.717
A183: 162 | B183: 162 | C183: 0 | D183: 32 | E183: 186 | F183: 140.2 | G183: 0.9 | H183: 0.1 | I183: 0 | J183: 30.000* | K183: 30.000* | L183: 0 | M183: 2.23 | N183: 1.741
A184: 163 | B184: 163 | C184: 0 | D184: 32 | E184: 187 | F184: 140.9 | G184: 0.9 | H184: 0.1 | I184: 0 | J184: 30.000* | K184: 30.000* | L184: 0 | M184: 2.23 | N184: 1.765
A185: 164 | B185: 164 | C185: 0 | D185: 32 | E185: 188 | F185: 141.6 | G185: 0.9 | H185: 0.1 | I185: 0 | J185: 30.000* | K185: 30.000* | L185: 0 | M185: 2.24 | N185: 1.79
A186: 165 | B186: 165 | C186: 0 | D186: 32 | E186: 189 | F186: 142.3 | G186: 0.9 | H186: 0.1 | I186: 0 | J186: 30.000* | K186: 30.000* | L186: 0 | M186: 2.24 | N186: 1.815
A187: 166 | B187: 166 | C187: 0 | D187: 32 | E187: 190 | F187: 143 | G187: 0.9 | H187: 0.1 | I187: 0 | J187: 30.000* | K187: 30.000* | L187: 0 | M187: 2.25 | N187: 1.84
A188: 167 | B188: 167 | C188: 0 | D188: 32 | E188: 191 | F188: 143.7 | G188: 0.9 | H188: 0.1 | I188: 0 | J188: 30.000* | K188: 30.000* | L188: 0 | M188: 2.25 | N188: 1.865
A189: 168 | B189: 168 | C189: 0 | D189: 32 | E189: 192 | F189: 144.4 | G189: 0.9 | H189: 0.1 | I189: 0 | J189: 30.000* | K189: 30.000* | L189: 0 | M189: 2.26 | N189: 1.891
A190: 169 | B190: 169 | C190: 0 | D190: 32 | E190: 193 | F190: 145.1 | G190: 0.9 | H190: 0.1 | I190: 0 | J190: 30.000* | K190: 30.000* | L190: 0 | M190: 2.27 | N190: 1.916
A191: 170 | B191: 170 | C191: 0 | D191: 32 | E191: 194 | F191: 145.8 | G191: 0.9 | H191: 0.1 | I191: 0 | J191: 30.000* | K191: 30.000* | L191: 0 | M191: 2.27 | N191: 1.942
A192: 171 | B192: 171 | C192: 0 | D192: 32 | E192: 195 | F192: 146.5 | G192: 0.9 | H192: 0.1 | I192: 0 | J192: 30.000* | K192: 30.000* | L192: 0 | M192: 2.28 | N192: 1.968
A193: 172 | B193: 172 | C193: 0 | D193: 32 | E193: 196 | F193: 147.2 | G193: 0.9 | H193: 0.1 | I193: 0 | J193: 30.000* | K193: 30.000* | L193: 0 | M193: 2.28 | N193: 1.995
A194: 173 | B194: 173 | C194: 0 | D194: 32 | E194: 197 | F194: 147.9 | G194: 0.9 | H194: 0.1 | I194: 0 | J194: 30.000* | K194: 30.000* | L194: 0 | M194: 2.29 | N194: 2.021
A195: 174 | B195: 174 | C195: 0 | D195: 32 | E195: 198 | F195: 148.6 | G195: 0.9 | H195: 0.1 | I195: 0 | J195: 30.000* | K195: 30.000* | L195: 0 | M195: 2.3 | N195: 2.048
A196: 175 | B196: 175 | C196: 0 | D196: 32 | E196: 199 | F196: 149.3 | G196: 0.9 | H196: 0.1 | I196: 0 | J196: 30.000* | K196: 30.000* | L196: 0 | M196: 2.3 | N196: 2.075
A197: 176 | B197: 176 | C197: 0 | D197: 32 | E197: 200 | F197: 150 | G197: 0.9 | H197: 0.1 | I197: 0 | J197: 30.000* | K197: 30.000* | L197: 0 | M197: 2.31 | N197: 2.103
A198: 177 | B198: 177 | C198: 0 | D198: 32 | E198: 201 | F198: 150.7 | G198: 0.9 | H198: 0.1 | I198: 0 | J198: 30.000* | K198: 30.000* | L198: 0 | M198: 2.31 | N198: 2.13
A199: 178 | B199: 178 | C199: 0 | D199: 32 | E199: 202 | F199: 151.4 | G199: 0.9 | H199: 0.1 | I199: 0 | J199: 30.000* | K199: 30.000* | L199: 0 | M199: 2.32 | N199: 2.158
A200: 179 | B200: 179 | C200: 0 | D200: 32 | E200: 203 | F200: 152.1 | G200: 0.9 | H200: 0.1 | I200: 0 | J200: 30.000* | K200: 30.000* | L200: 0 | M200: 2.33 | N200: 2.186
A201: 180 | B201: 180 | C201: 0 | D201: 32 | E201: 204 | F201: 152.8 | G201: 0.9 | H201: 0.1 | I201: 0 | J201: 30.000* | K201: 30.000* | L201: 0 | M201: 2.33 | N201: 2.214
A202: 181 | B202: 181 | C202: 0 | D202: 32 | E202: 205 | F202: 153.5 | G202: 0.9 | H202: 0.1 | I202: 0 | J202: 30.000* | K202: 30.000* | L202: 0 | M202: 2.34 | N202: 2.242
A203: 182 | B203: 182 | C203: 0 | D203: 32 | E203: 206 | F203: 154.2 | G203: 0.9 | H203: 0.1 | I203: 0 | J203: 30.000* | K203: 30.000* | L203: 0 | M203: 2.34 | N203: 2.271
A204: 183 | B204: 183 | C204: 0 | D204: 32 | E204: 207 | F204: 154.9 | G204: 0.9 | H204: 0.1 | I204: 0 | J204: 30.000* | K204: 30.000* | L204: 0 | M204: 2.35 | N204: 2.3
A205: 184 | B205: 184 | C205: 0 | D205: 32 | E205: 208 | F205: 155.6 | G205: 0.9 | H205: 0.1 | I205: 0 | J205: 30.000* | K205: 30.000* | L205: 0 | M205: 2.35 | N205: 2.329
... 3792 more rows

Sheet Batch Output P7 (hidden)
A1: LEAD BATCH MODE OUTPUT FILE
A2: Model Version: 2.0 Build1
A3: User Name:
A4: Date:
A5: Site Name:
A6: Operable Unit:
A7: Run Mode: Research
A8: ----------------------------------------------------------------------------------
A10: * : signify default values used in place of missing input data.
A11: ---: signify missing input data.
A12: PBB & PRED are the observed and predicted blood Pb levels in µg/dL.
A14: Percent exceedance was calculated using values of GSD and PbB Cutoff as follows:
A15: GSD = 1.600
A16: PbB Cutoff ( C ) = 7.000 µg/dL
A18: Input File: Batch File TWA.dat
A20: ID | B20: FAM | C20: BLK | D20: AGE (mon) | E20: SOIL (µg/g) | F20: DUST (µg/g) | G20: WATER (µg/L) | H20: AIR (µg/m³) | I20: Other (µg/day) | J20: ABSSoil (%) | K20: ABSDust (%) | L20: PBB (µg/dL) | M20: PRED (µg/dL) | N20: P(PbB>C) (%)
A22: 1 | B22: 1 | C22: 0 | D22: 32 | E22: 25 | F22: 27.5 | G22: 0.9 | H22: 0.1 | I22: 0 | J22: 30.000* | K22: 30.000* | L22: 0 | M22: 1.25 | N22: 0.013
A23: 2 | B23: 2 | C23: 0 | D23: 32 | E23: 26 | F23: 28.2 | G23: 0.9 | H23: 0.1 | I23: 0 | J23: 30.000* | K23: 30.000* | L23: 0 | M23: 1.26 | N23: 0.013
A24: 3 | B24: 3 | C24: 0 | D24: 32 | E24: 27 | F24: 28.9 | G24: 0.9 | H24: 0.1 | I24: 0 | J24: 30.000* | K24: 30.000* | L24: 0 | M24: 1.27 | N24: 0.014
A25: 4 | B25: 4 | C25: 0 | D25: 32 | E25: 28 | F25: 29.6 | G25: 0.9 | H25: 0.1 | I25: 0 | J25: 30.000* | K25: 30.000* | L25: 0 | M25: 1.27 | N25: 0.014
A26: 5 | B26: 5 | C26: 0 | D26: 32 | E26: 29 | F26: 30.3 | G26: 0.9 | H26: 0.1 | I26: 0 | J26: 30.000* | K26: 30.000* | L26: 0 | M26: 1.28 | N26: 0.015
A27: 6 | B27: 6 | C27: 0 | D27: 32 | E27: 30 | F27: 31 | G27: 0.9 | H27: 0.1 | I27: 0 | J27: 30.000* | K27: 30.000* | L27: 0 | M27: 1.28 | N27: 0.015
A28: 7 | B28: 7 | C28: 0 | D28: 32 | E28: 31 | F28: 31.7 | G28: 0.9 | H28: 0.1 | I28: 0 | J28: 30.000* | K28: 30.000* | L28: 0 | M28: 1.29 | N28: 0.016
A29: 8 | B29: 8 | C29: 0 | D29: 32 | E29: 32 | F29: 32.4 | G29: 0.9 | H29: 0.1 | I29: 0 | J29: 30.000* | K29: 30.000* | L29: 0 | M29: 1.3 | N29: 0.017
A30: 9 | B30: 9 | C30: 0 | D30: 32 | E30: 33 | F30: 33.1 | G30: 0.9 | H30: 0.1 | I30: 0 | J30: 30.000* | K30: 30.000* | L30: 0 | M30: 1.3 | N30: 0.017
A31: 10 | B31: 10 | C31: 0 | D31: 32 | E31: 34 | F31: 33.8 | G31: 0.9 | H31: 0.1 | I31: 0 | J31: 30.000* | K31: 30.000* | L31: 0 | M31: 1.31 | N31: 0.018
A32: 11 | B32: 11 | C32: 0 | D32: 32 | E32: 35 | F32: 34.5 | G32: 0.9 | H32: 0.1 | I32: 0 | J32: 30.000* | K32: 30.000* | L32: 0 | M32: 1.31 | N32: 0.019
A33: 12 | B33: 12 | C33: 0 | D33: 32 | E33: 36 | F33: 35.2 | G33: 0.9 | H33: 0.1 | I33: 0 | J33: 30.000* | K33: 30.000* | L33: 0 | M33: 1.32 | N33: 0.019
A34: 13 | B34: 13 | C34: 0 | D34: 32 | E34: 37 | F34: 35.9 | G34: 0.9 | H34: 0.1 | I34: 0 | J34: 30.000* | K34: 30.000* | L34: 0 | M34: 1.33 | N34: 0.02
A35: 14 | B35: 14 | C35: 0 | D35: 32 | E35: 38 | F35: 36.6 | G35: 0.9 | H35: 0.1 | I35: 0 | J35: 30.000* | K35: 30.000* | L35: 0 | M35: 1.33 | N35: 0.021
A36: 15 | B36: 15 | C36: 0 | D36: 32 | E36: 39 | F36: 37.3 | G36: 0.9 | H36: 0.1 | I36: 0 | J36: 30.000* | K36: 30.000* | L36: 0 | M36: 1.34 | N36: 0.022
A37: 16 | B37: 16 | C37: 0 | D37: 32 | E37: 40 | F37: 38 | G37: 0.9 | H37: 0.1 | I37: 0 | J37: 30.000* | K37: 30.000* | L37: 0 | M37: 1.35 | N37: 0.023
A38: 17 | B38: 17 | C38: 0 | D38: 32 | E38: 41 | F38: 38.7 | G38: 0.9 | H38: 0.1 | I38: 0 | J38: 30.000* | K38: 30.000* | L38: 0 | M38: 1.35 | N38: 0.023
A39: 18 | B39: 18 | C39: 0 | D39: 32 | E39: 42 | F39: 39.4 | G39: 0.9 | H39: 0.1 | I39: 0 | J39: 30.000* | K39: 30.000* | L39: 0 | M39: 1.36 | N39: 0.024
A40: 19 | B40: 19 | C40: 0 | D40: 32 | E40: 43 | F40: 40.1 | G40: 0.9 | H40: 0.1 | I40: 0 | J40: 30.000* | K40: 30.000* | L40: 0 | M40: 1.36 | N40: 0.025
A41: 20 | B41: 20 | C41: 0 | D41: 32 | E41: 44 | F41: 40.8 | G41: 0.9 | H41: 0.1 | I41: 0 | J41: 30.000* | K41: 30.000* | L41: 0 | M41: 1.37 | N41: 0.026
A42: 21 | B42: 21 | C42: 0 | D42: 32 | E42: 45 | F42: 41.5 | G42: 0.9 | H42: 0.1 | I42: 0 | J42: 30.000* | K42: 30.000* | L42: 0 | M42: 1.38 | N42: 0.027
A43: 22 | B43: 22 | C43: 0 | D43: 32 | E43: 46 | F43: 42.2 | G43: 0.9 | H43: 0.1 | I43: 0 | J43: 30.000* | K43: 30.000* | L43: 0 | M43: 1.38 | N43: 0.028
A44: 23 | B44: 23 | C44: 0 | D44: 32 | E44: 47 | F44: 42.9 | G44: 0.9 | H44: 0.1 | I44: 0 | J44: 30.000* | K44: 30.000* | L44: 0 | M44: 1.39 | N44: 0.029
A45: 24 | B45: 24 | C45: 0 | D45: 32 | E45: 48 | F45: 43.6 | G45: 0.9 | H45: 0.1 | I45: 0 | J45: 30.000* | K45: 30.000* | L45: 0 | M45: 1.39 | N45: 0.03
A46: 25 | B46: 25 | C46: 0 | D46: 32 | E46: 49 | F46: 44.3 | G46: 0.9 | H46: 0.1 | I46: 0 | J46: 30.000* | K46: 30.000* | L46: 0 | M46: 1.4 | N46: 0.031
A47: 26 | B47: 26 | C47: 0 | D47: 32 | E47: 50 | F47: 45 | G47: 0.9 | H47: 0.1 | I47: 0 | J47: 30.000* | K47: 30.000* | L47: 0 | M47: 1.41 | N47: 0.032
A48: 27 | B48: 27 | C48: 0 | D48: 32 | E48: 51 | F48: 45.7 | G48: 0.9 | H48: 0.1 | I48: 0 | J48: 30.000* | K48: 30.000* | L48: 0 | M48: 1.41 | N48: 0.033
A49: 28 | B49: 28 | C49: 0 | D49: 32 | E49: 52 | F49: 46.4 | G49: 0.9 | H49: 0.1 | I49: 0 | J49: 30.000* | K49: 30.000* | L49: 0 | M49: 1.42 | N49: 0.034
A50: 29 | B50: 29 | C50: 0 | D50: 32 | E50: 53 | F50: 47.1 | G50: 0.9 | H50: 0.1 | I50: 0 | J50: 30.000* | K50: 30.000* | L50: 0 | M50: 1.43 | N50: 0.035
A51: 30 | B51: 30 | C51: 0 | D51: 32 | E51: 54 | F51: 47.8 | G51: 0.9 | H51: 0.1 | I51: 0 | J51: 30.000* | K51: 30.000* | L51: 0 | M51: 1.43 | N51: 0.037
A52: 31 | B52: 31 | C52: 0 | D52: 32 | E52: 55 | F52: 48.5 | G52: 0.9 | H52: 0.1 | I52: 0 | J52: 30.000* | K52: 30.000* | L52: 0 | M52: 1.44 | N52: 0.038
A53: 32 | B53: 32 | C53: 0 | D53: 32 | E53: 56 | F53: 49.2 | G53: 0.9 | H53: 0.1 | I53: 0 | J53: 30.000* | K53: 30.000* | L53: 0 | M53: 1.44 | N53: 0.039
A54: 33 | B54: 33 | C54: 0 | D54: 32 | E54: 57 | F54: 49.9 | G54: 0.9 | H54: 0.1 | I54: 0 | J54: 30.000* | K54: 30.000* | L54: 0 | M54: 1.45 | N54: 0.04
A55: 34 | B55: 34 | C55: 0 | D55: 32 | E55: 58 | F55: 50.6 | G55: 0.9 | H55: 0.1 | I55: 0 | J55: 30.000* | K55: 30.000* | L55: 0 | M55: 1.46 | N55: 0.042
A56: 35 | B56: 35 | C56: 0 | D56: 32 | E56: 59 | F56: 51.3 | G56: 0.9 | H56: 0.1 | I56: 0 | J56: 30.000* | K56: 30.000* | L56: 0 | M56: 1.46 | N56: 0.043
A57: 36 | B57: 36 | C57: 0 | D57: 32 | E57: 60 | F57: 52 | G57: 0.9 | H57: 0.1 | I57: 0 | J57: 30.000* | K57: 30.000* | L57: 0 | M57: 1.47 | N57: 0.045
A58: 37 | B58: 37 | C58: 0 | D58: 32 | E58: 61 | F58: 52.7 | G58: 0.9 | H58: 0.1 | I58: 0 | J58: 30.000* | K58: 30.000* | L58: 0 | M58: 1.47 | N58: 0.046
A59: 38 | B59: 38 | C59: 0 | D59: 32 | E59: 62 | F59: 53.4 | G59: 0.9 | H59: 0.1 | I59: 0 | J59: 30.000* | K59: 30.000* | L59: 0 | M59: 1.48 | N59: 0.047
A60: 39 | B60: 39 | C60: 0 | D60: 32 | E60: 63 | F60: 54.1 | G60: 0.9 | H60: 0.1 | I60: 0 | J60: 30.000* | K60: 30.000* | L60: 0 | M60: 1.49 | N60: 0.049
A61: 40 | B61: 40 | C61: 0 | D61: 32 | E61: 64 | F61: 54.8 | G61: 0.9 | H61: 0.1 | I61: 0 | J61: 30.000* | K61: 30.000* | L61: 0 | M61: 1.49 | N61: 0.05
A62: 41 | B62: 41 | C62: 0 | D62: 32 | E62: 65 | F62: 55.5 | G62: 0.9 | H62: 0.1 | I62: 0 | J62: 30.000* | K62: 30.000* | L62: 0 | M62: 1.5 | N62: 0.052
A63: 42 | B63: 42 | C63: 0 | D63: 32 | E63: 66 | F63: 56.2 | G63: 0.9 | H63: 0.1 | I63: 0 | J63: 30.000* | K63: 30.000* | L63: 0 | M63: 1.5 | N63: 0.054
A64: 43 | B64: 43 | C64: 0 | D64: 32 | E64: 67 | F64: 56.9 | G64: 0.9 | H64: 0.1 | I64: 0 | J64: 30.000* | K64: 30.000* | L64: 0 | M64: 1.51 | N64: 0.055
A65: 44 | B65: 44 | C65: 0 | D65: 32 | E65: 68 | F65: 57.6 | G65: 0.9 | H65: 0.1 | I65: 0 | J65: 30.000* | K65: 30.000* | L65: 0 | M65: 1.52 | N65: 0.057
A66: 45 | B66: 45 | C66: 0 | D66: 32 | E66: 69 | F66: 58.3 | G66: 0.9 | H66: 0.1 | I66: 0 | J66: 30.000* | K66: 30.000* | L66: 0 | M66: 1.52 | N66: 0.059
A67: 46 | B67: 46 | C67: 0 | D67: 32 | E67: 70 | F67: 59 | G67: 0.9 | H67: 0.1 | I67: 0 | J67: 30.000* | K67: 30.000* | L67: 0 | M67: 1.53 | N67: 0.061
A68: 47 | B68: 47 | C68: 0 | D68: 32 | E68: 71 | F68: 59.7 | G68: 0.9 | H68: 0.1 | I68: 0 | J68: 30.000* | K68: 30.000* | L68: 0 | M68: 1.54 | N68: 0.062
A69: 48 | B69: 48 | C69: 0 | D69: 32 | E69: 72 | F69: 60.4 | G69: 0.9 | H69: 0.1 | I69: 0 | J69: 30.000* | K69: 30.000* | L69: 0 | M69: 1.54 | N69: 0.064
A70: 49 | B70: 49 | C70: 0 | D70: 32 | E70: 73 | F70: 61.1 | G70: 0.9 | H70: 0.1 | I70: 0 | J70: 30.000* | K70: 30.000* | L70: 0 | M70: 1.55 | N70: 0.066
A71: 50 | B71: 50 | C71: 0 | D71: 32 | E71: 74 | F71: 61.8 | G71: 0.9 | H71: 0.1 | I71: 0 | J71: 30.000* | K71: 30.000* | L71: 0 | M71: 1.55 | N71: 0.068
A72: 51 | B72: 51 | C72: 0 | D72: 32 | E72: 75 | F72: 62.5 | G72: 0.9 | H72: 0.1 | I72: 0 | J72: 30.000* | K72: 30.000* | L72: 0 | M72: 1.56 | N72: 0.07
A73: 52 | B73: 52 | C73: 0 | D73: 32 | E73: 76 | F73: 63.2 | G73: 0.9 | H73: 0.1 | I73: 0 | J73: 30.000* | K73: 30.000* | L73: 0 | M73: 1.57 | N73: 0.072
A74: 53 | B74: 53 | C74: 0 | D74: 32 | E74: 77 | F74: 63.9 | G74: 0.9 | H74: 0.1 | I74: 0 | J74: 30.000* | K74: 30.000* | L74: 0 | M74: 1.57 | N74: 0.074
A75: 54 | B75: 54 | C75: 0 | D75: 32 | E75: 78 | F75: 64.6 | G75: 0.9 | H75: 0.1 | I75: 0 | J75: 30.000* | K75: 30.000* | L75: 0 | M75: 1.58 | N75: 0.076
A76: 55 | B76: 55 | C76: 0 | D76: 32 | E76: 79 | F76: 65.3 | G76: 0.9 | H76: 0.1 | I76: 0 | J76: 30.000* | K76: 30.000* | L76: 0 | M76: 1.58 | N76: 0.079
A77: 56 | B77: 56 | C77: 0 | D77: 32 | E77: 80 | F77: 66 | G77: 0.9 | H77: 0.1 | I77: 0 | J77: 30.000* | K77: 30.000* | L77: 0 | M77: 1.59 | N77: 0.081
A78: 57 | B78: 57 | C78: 0 | D78: 32 | E78: 81 | F78: 66.7 | G78: 0.9 | H78: 0.1 | I78: 0 | J78: 30.000* | K78: 30.000* | L78: 0 | M78: 1.6 | N78: 0.083
A79: 58 | B79: 58 | C79: 0 | D79: 32 | E79: 82 | F79: 67.4 | G79: 0.9 | H79: 0.1 | I79: 0 | J79: 30.000* | K79: 30.000* | L79: 0 | M79: 1.6 | N79: 0.085
A80: 59 | B80: 59 | C80: 0 | D80: 32 | E80: 83 | F80: 68.1 | G80: 0.9 | H80: 0.1 | I80: 0 | J80: 30.000* | K80: 30.000* | L80: 0 | M80: 1.61 | N80: 0.088
A81: 60 | B81: 60 | C81: 0 | D81: 32 | E81: 84 | F81: 68.8 | G81: 0.9 | H81: 0.1 | I81: 0 | J81: 30.000* | K81: 30.000* | L81: 0 | M81: 1.61 | N81: 0.09
A82: 61 | B82: 61 | C82: 0 | D82: 32 | E82: 85 | F82: 69.5 | G82: 0.9 | H82: 0.1 | I82: 0 | J82: 30.000* | K82: 30.000* | L82: 0 | M82: 1.62 | N82: 0.093
A83: 62 | B83: 62 | C83: 0 | D83: 32 | E83: 86 | F83: 70.2 | G83: 0.9 | H83: 0.1 | I83: 0 | J83: 30.000* | K83: 30.000* | L83: 0 | M83: 1.63 | N83: 0.095
A84: 63 | B84: 63 | C84: 0 | D84: 32 | E84: 87 | F84: 70.9 | G84: 0.9 | H84: 0.1 | I84: 0 | J84: 30.000* | K84: 30.000* | L84: 0 | M84: 1.63 | N84: 0.098
A85: 64 | B85: 64 | C85: 0 | D85: 32 | E85: 88 | F85: 71.6 | G85: 0.9 | H85: 0.1 | I85: 0 | J85: 30.000* | K85: 30.000* | L85: 0 | M85: 1.64 | N85: 0.1
A86: 65 | B86: 65 | C86: 0 | D86: 32 | E86: 89 | F86: 72.3 | G86: 0.9 | H86: 0.1 | I86: 0 | J86: 30.000* | K86: 30.000* | L86: 0 | M86: 1.64 | N86: 0.103
A87: 66 | B87: 66 | C87: 0 | D87: 32 | E87: 90 | F87: 73 | G87: 0.9 | H87: 0.1 | I87: 0 | J87: 30.000* | K87: 30.000* | L87: 0 | M87: 1.65 | N87: 0.106
A88: 67 | B88: 67 | C88: 0 | D88: 32 | E88: 91 | F88: 73.7 | G88: 0.9 | H88: 0.1 | I88: 0 | J88: 30.000* | K88: 30.000* | L88: 0 | M88: 1.66 | N88: 0.109
A89: 68 | B89: 68 | C89: 0 | D89: 32 | E89: 92 | F89: 74.4 | G89: 0.9 | H89: 0.1 | I89: 0 | J89: 30.000* | K89: 30.000* | L89: 0 | M89: 1.66 | N89: 0.111
A90: 69 | B90: 69 | C90: 0 | D90: 32 | E90: 93 | F90: 75.1 | G90: 0.9 | H90: 0.1 | I90: 0 | J90: 30.000* | K90: 30.000* | L90: 0 | M90: 1.67 | N90: 0.114
A91: 70 | B91: 70 | C91: 0 | D91: 32 | E91: 94 | F91: 75.8 | G91: 0.9 | H91: 0.1 | I91: 0 | J91: 30.000* | K91: 30.000* | L91: 0 | M91: 1.68 | N91: 0.117
A92: 71 | B92: 71 | C92: 0 | D92: 32 | E92: 95 | F92: 76.5 | G92: 0.9 | H92: 0.1 | I92: 0 | J92: 30.000* | K92: 30.000* | L92: 0 | M92: 1.68 | N92: 0.12
A93: 72 | B93: 72 | C93: 0 | D93: 32 | E93: 96 | F93: 77.2 | G93: 0.9 | H93: 0.1 | I93: 0 | J93: 30.000* | K93: 30.000* | L93: 0 | M93: 1.69 | N93: 0.123
A94: 73 | B94: 73 | C94: 0 | D94: 32 | E94: 97 | F94: 77.9 | G94: 0.9 | H94: 0.1 | I94: 0 | J94: 30.000* | K94: 30.000* | L94: 0 | M94: 1.69 | N94: 0.127
A95: 74 | B95: 74 | C95: 0 | D95: 32 | E95: 98 | F95: 78.6 | G95: 0.9 | H95: 0.1 | I95: 0 | J95: 30.000* | K95: 30.000* | L95: 0 | M95: 1.7 | N95: 0.13
A96: 75 | B96: 75 | C96: 0 | D96: 32 | E96: 99 | F96: 79.3 | G96: 0.9 | H96: 0.1 | I96: 0 | J96: 30.000* | K96: 30.000* | L96: 0 | M96: 1.71 | N96: 0.133
A97: 76 | B97: 76 | C97: 0 | D97: 32 | E97: 100 | F97: 80 | G97: 0.9 | H97: 0.1 | I97: 0 | J97: 30.000* | K97: 30.000* | L97: 0 | M97: 1.71 | N97: 0.136
A98: 77 | B98: 77 | C98: 0 | D98: 32 | E98: 101 | F98: 80.7 | G98: 0.9 | H98: 0.1 | I98: 0 | J98: 30.000* | K98: 30.000* | L98: 0 | M98: 1.72 | N98: 0.14
A99: 78 | B99: 78 | C99: 0 | D99: 32 | E99: 102 | F99: 81.4 | G99: 0.9 | H99: 0.1 | I99: 0 | J99: 30.000* | K99: 30.000* | L99: 0 | M99: 1.72 | N99: 0.143
A100: 79 | B100: 79 | C100: 0 | D100: 32 | E100: 103 | F100: 82.1 | G100: 0.9 | H100: 0.1 | I100: 0 | J100: 30.000* | K100: 30.000* | L100: 0 | M100: 1.73 | N100: 0.147
A101: 80 | B101: 80 | C101: 0 | D101: 32 | E101: 104 | F101: 82.8 | G101: 0.9 | H101: 0.1 | I101: 0 | J101: 30.000* | K101: 30.000* | L101: 0 | M101: 1.74 | N101: 0.15
A102: 81 | B102: 81 | C102: 0 | D102: 32 | E102: 105 | F102: 83.5 | G102: 0.9 | H102: 0.1 | I102: 0 | J102: 30.000* | K102: 30.000* | L102: 0 | M102: 1.74 | N102: 0.154
A103: 82 | B103: 82 | C103: 0 | D103: 32 | E103: 106 | F103: 84.2 | G103: 0.9 | H103: 0.1 | I103: 0 | J103: 30.000* | K103: 30.000* | L103: 0 | M103: 1.75 | N103: 0.158
A104: 83 | B104: 83 | C104: 0 | D104: 32 | E104: 107 | F104: 84.9 | G104: 0.9 | H104: 0.1 | I104: 0 | J104: 30.000* | K104: 30.000* | L104: 0 | M104: 1.75 | N104: 0.161
A105: 84 | B105: 84 | C105: 0 | D105: 32 | E105: 108 | F105: 85.6 | G105: 0.9 | H105: 0.1 | I105: 0 | J105: 30.000* | K105: 30.000* | L105: 0 | M105: 1.76 | N105: 0.165
A106: 85 | B106: 85 | C106: 0 | D106: 32 | E106: 109 | F106: 86.3 | G106: 0.9 | H106: 0.1 | I106: 0 | J106: 30.000* | K106: 30.000* | L106: 0 | M106: 1.77 | N106: 0.169
A107: 86 | B107: 86 | C107: 0 | D107: 32 | E107: 110 | F107: 87 | G107: 0.9 | H107: 0.1 | I107: 0 | J107: 30.000* | K107: 30.000* | L107: 0 | M107: 1.77 | N107: 0.173
A108: 87 | B108: 87 | C108: 0 | D108: 32 | E108: 111 | F108: 87.7 | G108: 0.9 | H108: 0.1 | I108: 0 | J108: 30.000* | K108: 30.000* | L108: 0 | M108: 1.78 | N108: 0.177
A109: 88 | B109: 88 | C109: 0 | D109: 32 | E109: 112 | F109: 88.4 | G109: 0.9 | H109: 0.1 | I109: 0 | J109: 30.000* | K109: 30.000* | L109: 0 | M109: 1.78 | N109: 0.181
A110: 89 | B110: 89 | C110: 0 | D110: 32 | E110: 113 | F110: 89.1 | G110: 0.9 | H110: 0.1 | I110: 0 | J110: 30.000* | K110: 30.000* | L110: 0 | M110: 1.79 | N110: 0.186
A111: 90 | B111: 90 | C111: 0 | D111: 32 | E111: 114 | F111: 89.8 | G111: 0.9 | H111: 0.1 | I111: 0 | J111: 30.000* | K111: 30.000* | L111: 0 | M111: 1.8 | N111: 0.19
A112: 91 | B112: 91 | C112: 0 | D112: 32 | E112: 115 | F112: 90.5 | G112: 0.9 | H112: 0.1 | I112: 0 | J112: 30.000* | K112: 30.000* | L112: 0 | M112: 1.8 | N112: 0.194
A113: 92 | B113: 92 | C113: 0 | D113: 32 | E113: 116 | F113: 91.2 | G113: 0.9 | H113: 0.1 | I113: 0 | J113: 30.000* | K113: 30.000* | L113: 0 | M113: 1.81 | N113: 0.199
A114: 93 | B114: 93 | C114: 0 | D114: 32 | E114: 117 | F114: 91.9 | G114: 0.9 | H114: 0.1 | I114: 0 | J114: 30.000* | K114: 30.000* | L114: 0 | M114: 1.81 | N114: 0.203
A115: 94 | B115: 94 | C115: 0 | D115: 32 | E115: 118 | F115: 92.6 | G115: 0.9 | H115: 0.1 | I115: 0 | J115: 30.000* | K115: 30.000* | L115: 0 | M115: 1.82 | N115: 0.208
A116: 95 | B116: 95 | C116: 0 | D116: 32 | E116: 119 | F116: 93.3 | G116: 0.9 | H116: 0.1 | I116: 0 | J116: 30.000* | K116: 30.000* | L116: 0 | M116: 1.83 | N116: 0.212
A117: 96 | B117: 96 | C117: 0 | D117: 32 | E117: 120 | F117: 94 | G117: 0.9 | H117: 0.1 | I117: 0 | J117: 30.000* | K117: 30.000* | L117: 0 | M117: 1.83 | N117: 0.217
A118: 97 | B118: 97 | C118: 0 | D118: 32 | E118: 121 | F118: 94.7 | G118: 0.9 | H118: 0.1 | I118: 0 | J118: 30.000* | K118: 30.000* | L118: 0 | M118: 1.84 | N118: 0.222
A119: 98 | B119: 98 | C119: 0 | D119: 32 | E119: 122 | F119: 95.4 | G119: 0.9 | H119: 0.1 | I119: 0 | J119: 30.000* | K119: 30.000* | L119: 0 | M119: 1.84 | N119: 0.227
A120: 99 | B120: 99 | C120: 0 | D120: 32 | E120: 123 | F120: 96.1 | G120: 0.9 | H120: 0.1 | I120: 0 | J120: 30.000* | K120: 30.000* | L120: 0 | M120: 1.85 | N120: 0.232
A121: 100 | B121: 100 | C121: 0 | D121: 32 | E121: 124 | F121: 96.8 | G121: 0.9 | H121: 0.1 | I121: 0 | J121: 30.000* | K121: 30.000* | L121: 0 | M121: 1.86 | N121: 0.237
A122: 101 | B122: 101 | C122: 0 | D122: 32 | E122: 125 | F122: 97.5 | G122: 0.9 | H122: 0.1 | I122: 0 | J122: 30.000* | K122: 30.000* | L122: 0 | M122: 1.86 | N122: 0.242
A123: 102 | B123: 102 | C123: 0 | D123: 32 | E123: 126 | F123: 98.2 | G123: 0.9 | H123: 0.1 | I123: 0 | J123: 30.000* | K123: 30.000* | L123: 0 | M123: 1.87 | N123: 0.247
A124: 103 | B124: 103 | C124: 0 | D124: 32 | E124: 127 | F124: 98.9 | G124: 0.9 | H124: 0.1 | I124: 0 | J124: 30.000* | K124: 30.000* | L124: 0 | M124: 1.87 | N124: 0.253
A125: 104 | B125: 104 | C125: 0 | D125: 32 | E125: 128 | F125: 99.6 | G125: 0.9 | H125: 0.1 | I125: 0 | J125: 30.000* | K125: 30.000* | L125: 0 | M125: 1.88 | N125: 0.258
A126: 105 | B126: 105 | C126: 0 | D126: 32 | E126: 129 | F126: 100.3 | G126: 0.9 | H126: 0.1 | I126: 0 | J126: 30.000* | K126: 30.000* | L126: 0 | M126: 1.89 | N126: 0.263
A127: 106 | B127: 106 | C127: 0 | D127: 32 | E127: 130 | F127: 101 | G127: 0.9 | H127: 0.1 | I127: 0 | J127: 30.000* | K127: 30.000* | L127: 0 | M127: 1.89 | N127: 0.269
A128: 107 | B128: 107 | C128: 0 | D128: 32 | E128: 131 | F128: 101.7 | G128: 0.9 | H128: 0.1 | I128: 0 | J128: 30.000* | K128: 30.000* | L128: 0 | M128: 1.9 | N128: 0.275
A129: 108 | B129: 108 | C129: 0 | D129: 32 | E129: 132 | F129: 102.4 | G129: 0.9 | H129: 0.1 | I129: 0 | J129: 30.000* | K129: 30.000* | L129: 0 | M129: 1.9 | N129: 0.28
A130: 109 | B130: 109 | C130: 0 | D130: 32 | E130: 133 | F130: 103.1 | G130: 0.9 | H130: 0.1 | I130: 0 | J130: 30.000* | K130: 30.000* | L130: 0 | M130: 1.91 | N130: 0.286
A131: 110 | B131: 110 | C131: 0 | D131: 32 | E131: 134 | F131: 103.8 | G131: 0.9 | H131: 0.1 | I131: 0 | J131: 30.000* | K131: 30.000* | L131: 0 | M131: 1.92 | N131: 0.292
A132: 111 | B132: 111 | C132: 0 | D132: 32 | E132: 135 | F132: 104.5 | G132: 0.9 | H132: 0.1 | I132: 0 | J132: 30.000* | K132: 30.000* | L132: 0 | M132: 1.92 | N132: 0.298
A133: 112 | B133: 112 | C133: 0 | D133: 32 | E133: 136 | F133: 105.2 | G133: 0.9 | H133: 0.1 | I133: 0 | J133: 30.000* | K133: 30.000* | L133: 0 | M133: 1.93 | N133: 0.304
A134: 113 | B134: 113 | C134: 0 | D134: 32 | E134: 137 | F134: 105.9 | G134: 0.9 | H134: 0.1 | I134: 0 | J134: 30.000* | K134: 30.000* | L134: 0 | M134: 1.93 | N134: 0.31
A135: 114 | B135: 114 | C135: 0 | D135: 32 | E135: 138 | F135: 106.6 | G135: 0.9 | H135: 0.1 | I135: 0 | J135: 30.000* | K135: 30.000* | L135: 0 | M135: 1.94 | N135: 0.316
A136: 115 | B136: 115 | C136: 0 | D136: 32 | E136: 139 | F136: 107.3 | G136: 0.9 | H136: 0.1 | I136: 0 | J136: 30.000* | K136: 30.000* | L136: 0 | M136: 1.95 | N136: 0.323
A137: 116 | B137: 116 | C137: 0 | D137: 32 | E137: 140 | F137: 108 | G137: 0.9 | H137: 0.1 | I137: 0 | J137: 30.000* | K137: 30.000* | L137: 0 | M137: 1.95 | N137: 0.329
A138: 117 | B138: 117 | C138: 0 | D138: 32 | E138: 141 | F138: 108.7 | G138: 0.9 | H138: 0.1 | I138: 0 | J138: 30.000* | K138: 30.000* | L138: 0 | M138: 1.96 | N138: 0.336
A139: 118 | B139: 118 | C139: 0 | D139: 32 | E139: 142 | F139: 109.4 | G139: 0.9 | H139: 0.1 | I139: 0 | J139: 30.000* | K139: 30.000* | L139: 0 | M139: 1.96 | N139: 0.342
A140: 119 | B140: 119 | C140: 0 | D140: 32 | E140: 143 | F140: 110.1 | G140: 0.9 | H140: 0.1 | I140: 0 | J140: 30.000* | K140: 30.000* | L140: 0 | M140: 1.97 | N140: 0.349
A141: 120 | B141: 120 | C141: 0 | D141: 32 | E141: 144 | F141: 110.8 | G141: 0.9 | H141: 0.1 | I141: 0 | J141: 30.000* | K141: 30.000* | L141: 0 | M141: 1.98 | N141: 0.356
A142: 121 | B142: 121 | C142: 0 | D142: 32 | E142: 145 | F142: 111.5 | G142: 0.9 | H142: 0.1 | I142: 0 | J142: 30.000* | K142: 30.000* | L142: 0 | M142: 1.98 | N142: 0.363
A143: 122 | B143: 122 | C143: 0 | D143: 32 | E143: 146 | F143: 112.2 | G143: 0.9 | H143: 0.1 | I143: 0 | J143: 30.000* | K143: 30.000* | L143: 0 | M143: 1.99 | N143: 0.37
A144: 123 | B144: 123 | C144: 0 | D144: 32 | E144: 147 | F144: 112.9 | G144: 0.9 | H144: 0.1 | I144: 0 | J144: 30.000* | K144: 30.000* | L144: 0 | M144: 1.99 | N144: 0.377
A145: 124 | B145: 124 | C145: 0 | D145: 32 | E145: 148 | F145: 113.6 | G145: 0.9 | H145: 0.1 | I145: 0 | J145: 30.000* | K145: 30.000* | L145: 0 | M145: 2 | N145: 0.384
A146: 125 | B146: 125 | C146: 0 | D146: 32 | E146: 149 | F146: 114.3 | G146: 0.9 | H146: 0.1 | I146: 0 | J146: 30.000* | K146: 30.000* | L146: 0 | M146: 2.01 | N146: 0.391
A147: 126 | B147: 126 | C147: 0 | D147: 32 | E147: 150 | F147: 115 | G147: 0.9 | H147: 0.1 | I147: 0 | J147: 30.000* | K147: 30.000* | L147: 0 | M147: 2.01 | N147: 0.399
A148: 127 | B148: 127 | C148: 0 | D148: 32 | E148: 151 | F148: 115.7 | G148: 0.9 | H148: 0.1 | I148: 0 | J148: 30.000* | K148: 30.000* | L148: 0 | M148: 2.02 | N148: 0.406
A149: 128 | B149: 128 | C149: 0 | D149: 32 | E149: 152 | F149: 116.4 | G149: 0.9 | H149: 0.1 | I149: 0 | J149: 30.000* | K149: 30.000* | L149: 0 | M149: 2.02 | N149: 0.414
A150: 129 | B150: 129 | C150: 0 | D150: 32 | E150: 153 | F150: 117.1 | G150: 0.9 | H150: 0.1 | I150: 0 | J150: 30.000* | K150: 30.000* | L150: 0 | M150: 2.03 | N150: 0.422
A151: 130 | B151: 130 | C151: 0 | D151: 32 | E151: 154 | F151: 117.8 | G151: 0.9 | H151: 0.1 | I151: 0 | J151: 30.000* | K151: 30.000* | L151: 0 | M151: 2.04 | N151: 0.429
A152: 131 | B152: 131 | C152: 0 | D152: 32 | E152: 155 | F152: 118.5 | G152: 0.9 | H152: 0.1 | I152: 0 | J152: 30.000* | K152: 30.000* | L152: 0 | M152: 2.04 | N152: 0.437
A153: 132 | B153: 132 | C153: 0 | D153: 32 | E153: 156 | F153: 119.2 | G153: 0.9 | H153: 0.1 | I153: 0 | J153: 30.000* | K153: 30.000* | L153: 0 | M153: 2.05 | N153: 0.445
A154: 133 | B154: 133 | C154: 0 | D154: 32 | E154: 157 | F154: 119.9 | G154: 0.9 | H154: 0.1 | I154: 0 | J154: 30.000* | K154: 30.000* | L154: 0 | M154: 2.05 | N154: 0.453
A155: 134 | B155: 134 | C155: 0 | D155: 32 | E155: 158 | F155: 120.6 | G155: 0.9 | H155: 0.1 | I155: 0 | J155: 30.000* | K155: 30.000* | L155: 0 | M155: 2.06 | N155: 0.462
A156: 135 | B156: 135 | C156: 0 | D156: 32 | E156: 159 | F156: 121.3 | G156: 0.9 | H156: 0.1 | I156: 0 | J156: 30.000* | K156: 30.000* | L156: 0 | M156: 2.07 | N156: 0.47
A157: 136 | B157: 136 | C157: 0 | D157: 32 | E157: 160 | F157: 122 | G157: 0.9 | H157: 0.1 | I157: 0 | J157: 30.000* | K157: 30.000* | L157: 0 | M157: 2.07 | N157: 0.478
A158: 137 | B158: 137 | C158: 0 | D158: 32 | E158: 161 | F158: 122.7 | G158: 0.9 | H158: 0.1 | I158: 0 | J158: 30.000* | K158: 30.000* | L158: 0 | M158: 2.08 | N158: 0.487
A159: 138 | B159: 138 | C159: 0 | D159: 32 | E159: 162 | F159: 123.4 | G159: 0.9 | H159: 0.1 | I159: 0 | J159: 30.000* | K159: 30.000* | L159: 0 | M159: 2.08 | N159: 0.496
A160: 139 | B160: 139 | C160: 0 | D160: 32 | E160: 163 | F160: 124.1 | G160: 0.9 | H160: 0.1 | I160: 0 | J160: 30.000* | K160: 30.000* | L160: 0 | M160: 2.09 | N160: 0.504
A161: 140 | B161: 140 | C161: 0 | D161: 32 | E161: 164 | F161: 124.8 | G161: 0.9 | H161: 0.1 | I161: 0 | J161: 30.000* | K161: 30.000* | L161: 0 | M161: 2.09 | N161: 0.513
A162: 141 | B162: 141 | C162: 0 | D162: 32 | E162: 165 | F162: 125.5 | G162: 0.9 | H162: 0.1 | I162: 0 | J162: 30.000* | K162: 30.000* | L162: 0 | M162: 2.1 | N162: 0.522
A163: 142 | B163: 142 | C163: 0 | D163: 32 | E163: 166 | F163: 126.2 | G163: 0.9 | H163: 0.1 | I163: 0 | J163: 30.000* | K163: 30.000* | L163: 0 | M163: 2.11 | N163: 0.531
A164: 143 | B164: 143 | C164: 0 | D164: 32 | E164: 167 | F164: 126.9 | G164: 0.9 | H164: 0.1 | I164: 0 | J164: 30.000* | K164: 30.000* | L164: 0 | M164: 2.11 | N164: 0.541
A165: 144 | B165: 144 | C165: 0 | D165: 32 | E165: 168 | F165: 127.6 | G165: 0.9 | H165: 0.1 | I165: 0 | J165: 30.000* | K165: 30.000* | L165: 0 | M165: 2.12 | N165: 0.55
A166: 145 | B166: 145 | C166: 0 | D166: 32 | E166: 169 | F166: 128.3 | G166: 0.9 | H166: 0.1 | I166: 0 | J166: 30.000* | K166: 30.000* | L166: 0 | M166: 2.12 | N166: 0.559
A167: 146 | B167: 146 | C167: 0 | D167: 32 | E167: 170 | F167: 129 | G167: 0.9 | H167: 0.1 | I167: 0 | J167: 30.000* | K167: 30.000* | L167: 0 | M167: 2.13 | N167: 0.569
A168: 147 | B168: 147 | C168: 0 | D168: 32 | E168: 171 | F168: 129.7 | G168: 0.9 | H168: 0.1 | I168: 0 | J168: 30.000* | K168: 30.000* | L168: 0 | M168: 2.14 | N168: 0.579
A169: 148 | B169: 148 | C169: 0 | D169: 32 | E169: 172 | F169: 130.4 | G169: 0.9 | H169: 0.1 | I169: 0 | J169: 30.000* | K169: 30.000* | L169: 0 | M169: 2.14 | N169: 0.588
A170: 149 | B170: 149 | C170: 0 | D170: 32 | E170: 173 | F170: 131.1 | G170: 0.9 | H170: 0.1 | I170: 0 | J170: 30.000* | K170: 30.000* | L170: 0 | M170: 2.15 | N170: 0.598
A171: 150 | B171: 150 | C171: 0 | D171: 32 | E171: 174 | F171: 131.8 | G171: 0.9 | H171: 0.1 | I171: 0 | J171: 30.000* | K171: 30.000* | L171: 0 | M171: 2.15 | N171: 0.608
A172: 151 | B172: 151 | C172: 0 | D172: 32 | E172: 175 | F172: 132.5 | G172: 0.9 | H172: 0.1 | I172: 0 | J172: 30.000* | K172: 30.000* | L172: 0 | M172: 2.16 | N172: 0.618
A173: 152 | B173: 152 | C173: 0 | D173: 32 | E173: 176 | F173: 133.2 | G173: 0.9 | H173: 0.1 | I173: 0 | J173: 30.000* | K173: 30.000* | L173: 0 | M173: 2.17 | N173: 0.629
A174: 153 | B174: 153 | C174: 0 | D174: 32 | E174: 177 | F174: 133.9 | G174: 0.9 | H174: 0.1 | I174: 0 | J174: 30.000* | K174: 30.000* | L174: 0 | M174: 2.17 | N174: 0.639
A175: 154 | B175: 154 | C175: 0 | D175: 32 | E175: 178 | F175: 134.6 | G175: 0.9 | H175: 0.1 | I175: 0 | J175: 30.000* | K175: 30.000* | L175: 0 | M175: 2.18 | N175: 0.649
A176: 155 | B176: 155 | C176: 0 | D176: 32 | E176: 179 | F176: 135.3 | G176: 0.9 | H176: 0.1 | I176: 0 | J176: 30.000* | K176: 30.000* | L176: 0 | M176: 2.18 | N176: 0.66
A177: 156 | B177: 156 | C177: 0 | D177: 32 | E177: 180 | F177: 136 | G177: 0.9 | H177: 0.1 | I177: 0 | J177: 30.000* | K177: 30.000* | L177: 0 | M177: 2.19 | N177: 0.671
A178: 157 | B178: 157 | C178: 0 | D178: 32 | E178: 181 | F178: 136.7 | G178: 0.9 | H178: 0.1 | I178: 0 | J178: 30.000* | K178: 30.000* | L178: 0 | M178: 2.2 | N178: 0.682
A179: 158 | B179: 158 | C179: 0 | D179: 32 | E179: 182 | F179: 137.4 | G179: 0.9 | H179: 0.1 | I179: 0 | J179: 30.000* | K179: 30.000* | L179: 0 | M179: 2.2 | N179: 0.693
A180: 159 | B180: 159 | C180: 0 | D180: 32 | E180: 183 | F180: 138.1 | G180: 0.9 | H180: 0.1 | I180: 0 | J180: 30.000* | K180: 30.000* | L180: 0 | M180: 2.21 | N180: 0.704
A181: 160 | B181: 160 | C181: 0 | D181: 32 | E181: 184 | F181: 138.8 | G181: 0.9 | H181: 0.1 | I181: 0 | J181: 30.000* | K181: 30.000* | L181: 0 | M181: 2.21 | N181: 0.715
A182: 161 | B182: 161 | C182: 0 | D182: 32 | E182: 185 | F182: 139.5 | G182: 0.9 | H182: 0.1 | I182: 0 | J182: 30.000* | K182: 30.000* | L182: 0 | M182: 2.22 | N182: 0.726
A183: 162 | B183: 162 | C183: 0 | D183: 32 | E183: 186 | F183: 140.2 | G183: 0.9 | H183: 0.1 | I183: 0 | J183: 30.000* | K183: 30.000* | L183: 0 | M183: 2.23 | N183: 0.738
A184: 163 | B184: 163 | C184: 0 | D184: 32 | E184: 187 | F184: 140.9 | G184: 0.9 | H184: 0.1 | I184: 0 | J184: 30.000* | K184: 30.000* | L184: 0 | M184: 2.23 | N184: 0.749
A185: 164 | B185: 164 | C185: 0 | D185: 32 | E185: 188 | F185: 141.6 | G185: 0.9 | H185: 0.1 | I185: 0 | J185: 30.000* | K185: 30.000* | L185: 0 | M185: 2.24 | N185: 0.761
A186: 165 | B186: 165 | C186: 0 | D186: 32 | E186: 189 | F186: 142.3 | G186: 0.9 | H186: 0.1 | I186: 0 | J186: 30.000* | K186: 30.000* | L186: 0 | M186: 2.24 | N186: 0.773
A187: 166 | B187: 166 | C187: 0 | D187: 32 | E187: 190 | F187: 143 | G187: 0.9 | H187: 0.1 | I187: 0 | J187: 30.000* | K187: 30.000* | L187: 0 | M187: 2.25 | N187: 0.785
A188: 167 | B188: 167 | C188: 0 | D188: 32 | E188: 191 | F188: 143.7 | G188: 0.9 | H188: 0.1 | I188: 0 | J188: 30.000* | K188: 30.000* | L188: 0 | M188: 2.25 | N188: 0.797
A189: 168 | B189: 168 | C189: 0 | D189: 32 | E189: 192 | F189: 144.4 | G189: 0.9 | H189: 0.1 | I189: 0 | J189: 30.000* | K189: 30.000* | L189: 0 | M189: 2.26 | N189: 0.809
A190: 169 | B190: 169 | C190: 0 | D190: 32 | E190: 193 | F190: 145.1 | G190: 0.9 | H190: 0.1 | I190: 0 | J190: 30.000* | K190: 30.000* | L190: 0 | M190: 2.27 | N190: 0.821
A191: 170 | B191: 170 | C191: 0 | D191: 32 | E191: 194 | F191: 145.8 | G191: 0.9 | H191: 0.1 | I191: 0 | J191: 30.000* | K191: 30.000* | L191: 0 | M191: 2.27 | N191: 0.834
A192: 171 | B192: 171 | C192: 0 | D192: 32 | E192: 195 | F192: 146.5 | G192: 0.9 | H192: 0.1 | I192: 0 | J192: 30.000* | K192: 30.000* | L192: 0 | M192: 2.28 | N192: 0.846
A193: 172 | B193: 172 | C193: 0 | D193: 32 | E193: 196 | F193: 147.2 | G193: 0.9 | H193: 0.1 | I193: 0 | J193: 30.000* | K193: 30.000* | L193: 0 | M193: 2.28 | N193: 0.859
A194: 173 | B194: 173 | C194: 0 | D194: 32 | E194: 197 | F194: 147.9 | G194: 0.9 | H194: 0.1 | I194: 0 | J194: 30.000* | K194: 30.000* | L194: 0 | M194: 2.29 | N194: 0.872
A195: 174 | B195: 174 | C195: 0 | D195: 32 | E195: 198 | F195: 148.6 | G195: 0.9 | H195: 0.1 | I195: 0 | J195: 30.000* | K195: 30.000* | L195: 0 | M195: 2.3 | N195: 0.885
A196: 175 | B196: 175 | C196: 0 | D196: 32 | E196: 199 | F196: 149.3 | G196: 0.9 | H196: 0.1 | I196: 0 | J196: 30.000* | K196: 30.000* | L196: 0 | M196: 2.3 | N196: 0.898
A197: 176 | B197: 176 | C197: 0 | D197: 32 | E197: 200 | F197: 150 | G197: 0.9 | H197: 0.1 | I197: 0 | J197: 30.000* | K197: 30.000* | L197: 0 | M197: 2.31 | N197: 0.911
A198: 177 | B198: 177 | C198: 0 | D198: 32 | E198: 201 | F198: 150.7 | G198: 0.9 | H198: 0.1 | I198: 0 | J198: 30.000* | K198: 30.000* | L198: 0 | M198: 2.31 | N198: 0.925
A199: 178 | B199: 178 | C199: 0 | D199: 32 | E199: 202 | F199: 151.4 | G199: 0.9 | H199: 0.1 | I199: 0 | J199: 30.000* | K199: 30.000* | L199: 0 | M199: 2.32 | N199: 0.938
A200: 179 | B200: 179 | C200: 0 | D200: 32 | E200: 203 | F200: 152.1 | G200: 0.9 | H200: 0.1 | I200: 0 | J200: 30.000* | K200: 30.000* | L200: 0 | M200: 2.33 | N200: 0.952
A201: 180 | B201: 180 | C201: 0 | D201: 32 | E201: 204 | F201: 152.8 | G201: 0.9 | H201: 0.1 | I201: 0 | J201: 30.000* | K201: 30.000* | L201: 0 | M201: 2.33 | N201: 0.966
A202: 181 | B202: 181 | C202: 0 | D202: 32 | E202: 205 | F202: 153.5 | G202: 0.9 | H202: 0.1 | I202: 0 | J202: 30.000* | K202: 30.000* | L202: 0 | M202: 2.34 | N202: 0.98
A203: 182 | B203: 182 | C203: 0 | D203: 32 | E203: 206 | F203: 154.2 | G203: 0.9 | H203: 0.1 | I203: 0 | J203: 30.000* | K203: 30.000* | L203: 0 | M203: 2.34 | N203: 0.994
A204: 183 | B204: 183 | C204: 0 | D204: 32 | E204: 207 | F204: 154.9 | G204: 0.9 | H204: 0.1 | I204: 0 | J204: 30.000* | K204: 30.000* | L204: 0 | M204: 2.35 | N204: 1.008
A205: 184 | B205: 184 | C205: 0 | D205: 32 | E205: 208 | F205: 155.6 | G205: 0.9 | H205: 0.1 | I205: 0 | J205: 30.000* | K205: 30.000* | L205: 0 | M205: 2.35 | N205: 1.022
... 3792 more rows

Sheet Batch Output P8 (hidden)
A1: LEAD BATCH MODE OUTPUT FILE
A2: Model Version: 2.0 Build1
A3: User Name:
A4: Date:
A5: Site Name:
A6: Operable Unit:
A7: Run Mode: Research
A8: ----------------------------------------------------------------------------------
A10: * : signify default values used in place of missing input data.
A11: ---: signify missing input data.
A12: PBB & PRED are the observed and predicted blood Pb levels in µg/dL.
A14: Percent exceedance was calculated using values of GSD and PbB Cutoff as follows:
A15: GSD = 1.600
A16: PbB Cutoff ( C ) = 8.000 µg/dL
A18: Input File: Batch File TWA.dat
A20: ID | B20: FAM | C20: BLK | D20: AGE (mon) | E20: SOIL (µg/g) | F20: DUST (µg/g) | G20: WATER (µg/L) | H20: AIR (µg/m³) | I20: Other (µg/day) | J20: ABSSoil (%) | K20: ABSDust (%) | L20: PBB (µg/dL) | M20: PRED (µg/dL) | N20: P(PbB>C) (%)
A22: 1 | B22: 1 | C22: 0 | D22: 32 | E22: 25 | F22: 27.5 | G22: 0.9 | H22: 0.1 | I22: 0 | J22: 30.000* | K22: 30.000* | L22: 0 | M22: 1.25 | N22: 0.004
A23: 2 | B23: 2 | C23: 0 | D23: 32 | E23: 26 | F23: 28.2 | G23: 0.9 | H23: 0.1 | I23: 0 | J23: 30.000* | K23: 30.000* | L23: 0 | M23: 1.26 | N23: 0.004
A24: 3 | B24: 3 | C24: 0 | D24: 32 | E24: 27 | F24: 28.9 | G24: 0.9 | H24: 0.1 | I24: 0 | J24: 30.000* | K24: 30.000* | L24: 0 | M24: 1.27 | N24: 0.004
A25: 4 | B25: 4 | C25: 0 | D25: 32 | E25: 28 | F25: 29.6 | G25: 0.9 | H25: 0.1 | I25: 0 | J25: 30.000* | K25: 30.000* | L25: 0 | M25: 1.27 | N25: 0.005
A26: 5 | B26: 5 | C26: 0 | D26: 32 | E26: 29 | F26: 30.3 | G26: 0.9 | H26: 0.1 | I26: 0 | J26: 30.000* | K26: 30.000* | L26: 0 | M26: 1.28 | N26: 0.005
A27: 6 | B27: 6 | C27: 0 | D27: 32 | E27: 30 | F27: 31 | G27: 0.9 | H27: 0.1 | I27: 0 | J27: 30.000* | K27: 30.000* | L27: 0 | M27: 1.28 | N27: 0.005
A28: 7 | B28: 7 | C28: 0 | D28: 32 | E28: 31 | F28: 31.7 | G28: 0.9 | H28: 0.1 | I28: 0 | J28: 30.000* | K28: 30.000* | L28: 0 | M28: 1.29 | N28: 0.005
A29: 8 | B29: 8 | C29: 0 | D29: 32 | E29: 32 | F29: 32.4 | G29: 0.9 | H29: 0.1 | I29: 0 | J29: 30.000* | K29: 30.000* | L29: 0 | M29: 1.3 | N29: 0.005
A30: 9 | B30: 9 | C30: 0 | D30: 32 | E30: 33 | F30: 33.1 | G30: 0.9 | H30: 0.1 | I30: 0 | J30: 30.000* | K30: 30.000* | L30: 0 | M30: 1.3 | N30: 0.006
A31: 10 | B31: 10 | C31: 0 | D31: 32 | E31: 34 | F31: 33.8 | G31: 0.9 | H31: 0.1 | I31: 0 | J31: 30.000* | K31: 30.000* | L31: 0 | M31: 1.31 | N31: 0.006
A32: 11 | B32: 11 | C32: 0 | D32: 32 | E32: 35 | F32: 34.5 | G32: 0.9 | H32: 0.1 | I32: 0 | J32: 30.000* | K32: 30.000* | L32: 0 | M32: 1.31 | N32: 0.006
A33: 12 | B33: 12 | C33: 0 | D33: 32 | E33: 36 | F33: 35.2 | G33: 0.9 | H33: 0.1 | I33: 0 | J33: 30.000* | K33: 30.000* | L33: 0 | M33: 1.32 | N33: 0.006
A34: 13 | B34: 13 | C34: 0 | D34: 32 | E34: 37 | F34: 35.9 | G34: 0.9 | H34: 0.1 | I34: 0 | J34: 30.000* | K34: 30.000* | L34: 0 | M34: 1.33 | N34: 0.007
A35: 14 | B35: 14 | C35: 0 | D35: 32 | E35: 38 | F35: 36.6 | G35: 0.9 | H35: 0.1 | I35: 0 | J35: 30.000* | K35: 30.000* | L35: 0 | M35: 1.33 | N35: 0.007
A36: 15 | B36: 15 | C36: 0 | D36: 32 | E36: 39 | F36: 37.3 | G36: 0.9 | H36: 0.1 | I36: 0 | J36: 30.000* | K36: 30.000* | L36: 0 | M36: 1.34 | N36: 0.007
A37: 16 | B37: 16 | C37: 0 | D37: 32 | E37: 40 | F37: 38 | G37: 0.9 | H37: 0.1 | I37: 0 | J37: 30.000* | K37: 30.000* | L37: 0 | M37: 1.35 | N37: 0.007
A38: 17 | B38: 17 | C38: 0 | D38: 32 | E38: 41 | F38: 38.7 | G38: 0.9 | H38: 0.1 | I38: 0 | J38: 30.000* | K38: 30.000* | L38: 0 | M38: 1.35 | N38: 0.008
A39: 18 | B39: 18 | C39: 0 | D39: 32 | E39: 42 | F39: 39.4 | G39: 0.9 | H39: 0.1 | I39: 0 | J39: 30.000* | K39: 30.000* | L39: 0 | M39: 1.36 | N39: 0.008
A40: 19 | B40: 19 | C40: 0 | D40: 32 | E40: 43 | F40: 40.1 | G40: 0.9 | H40: 0.1 | I40: 0 | J40: 30.000* | K40: 30.000* | L40: 0 | M40: 1.36 | N40: 0.008
A41: 20 | B41: 20 | C41: 0 | D41: 32 | E41: 44 | F41: 40.8 | G41: 0.9 | H41: 0.1 | I41: 0 | J41: 30.000* | K41: 30.000* | L41: 0 | M41: 1.37 | N41: 0.009
A42: 21 | B42: 21 | C42: 0 | D42: 32 | E42: 45 | F42: 41.5 | G42: 0.9 | H42: 0.1 | I42: 0 | J42: 30.000* | K42: 30.000* | L42: 0 | M42: 1.38 | N42: 0.009
A43: 22 | B43: 22 | C43: 0 | D43: 32 | E43: 46 | F43: 42.2 | G43: 0.9 | H43: 0.1 | I43: 0 | J43: 30.000* | K43: 30.000* | L43: 0 | M43: 1.38 | N43: 0.009
A44: 23 | B44: 23 | C44: 0 | D44: 32 | E44: 47 | F44: 42.9 | G44: 0.9 | H44: 0.1 | I44: 0 | J44: 30.000* | K44: 30.000* | L44: 0 | M44: 1.39 | N44: 0.01
A45: 24 | B45: 24 | C45: 0 | D45: 32 | E45: 48 | F45: 43.6 | G45: 0.9 | H45: 0.1 | I45: 0 | J45: 30.000* | K45: 30.000* | L45: 0 | M45: 1.39 | N45: 0.01
A46: 25 | B46: 25 | C46: 0 | D46: 32 | E46: 49 | F46: 44.3 | G46: 0.9 | H46: 0.1 | I46: 0 | J46: 30.000* | K46: 30.000* | L46: 0 | M46: 1.4 | N46: 0.01
A47: 26 | B47: 26 | C47: 0 | D47: 32 | E47: 50 | F47: 45 | G47: 0.9 | H47: 0.1 | I47: 0 | J47: 30.000* | K47: 30.000* | L47: 0 | M47: 1.41 | N47: 0.011
A48: 27 | B48: 27 | C48: 0 | D48: 32 | E48: 51 | F48: 45.7 | G48: 0.9 | H48: 0.1 | I48: 0 | J48: 30.000* | K48: 30.000* | L48: 0 | M48: 1.41 | N48: 0.011
A49: 28 | B49: 28 | C49: 0 | D49: 32 | E49: 52 | F49: 46.4 | G49: 0.9 | H49: 0.1 | I49: 0 | J49: 30.000* | K49: 30.000* | L49: 0 | M49: 1.42 | N49: 0.012
A50: 29 | B50: 29 | C50: 0 | D50: 32 | E50: 53 | F50: 47.1 | G50: 0.9 | H50: 0.1 | I50: 0 | J50: 30.000* | K50: 30.000* | L50: 0 | M50: 1.43 | N50: 0.012
A51: 30 | B51: 30 | C51: 0 | D51: 32 | E51: 54 | F51: 47.8 | G51: 0.9 | H51: 0.1 | I51: 0 | J51: 30.000* | K51: 30.000* | L51: 0 | M51: 1.43 | N51: 0.013
A52: 31 | B52: 31 | C52: 0 | D52: 32 | E52: 55 | F52: 48.5 | G52: 0.9 | H52: 0.1 | I52: 0 | J52: 30.000* | K52: 30.000* | L52: 0 | M52: 1.44 | N52: 0.013
A53: 32 | B53: 32 | C53: 0 | D53: 32 | E53: 56 | F53: 49.2 | G53: 0.9 | H53: 0.1 | I53: 0 | J53: 30.000* | K53: 30.000* | L53: 0 | M53: 1.44 | N53: 0.013
A54: 33 | B54: 33 | C54: 0 | D54: 32 | E54: 57 | F54: 49.9 | G54: 0.9 | H54: 0.1 | I54: 0 | J54: 30.000* | K54: 30.000* | L54: 0 | M54: 1.45 | N54: 0.014
A55: 34 | B55: 34 | C55: 0 | D55: 32 | E55: 58 | F55: 50.6 | G55: 0.9 | H55: 0.1 | I55: 0 | J55: 30.000* | K55: 30.000* | L55: 0 | M55: 1.46 | N55: 0.014
A56: 35 | B56: 35 | C56: 0 | D56: 32 | E56: 59 | F56: 51.3 | G56: 0.9 | H56: 0.1 | I56: 0 | J56: 30.000* | K56: 30.000* | L56: 0 | M56: 1.46 | N56: 0.015
A57: 36 | B57: 36 | C57: 0 | D57: 32 | E57: 60 | F57: 52 | G57: 0.9 | H57: 0.1 | I57: 0 | J57: 30.000* | K57: 30.000* | L57: 0 | M57: 1.47 | N57: 0.015
A58: 37 | B58: 37 | C58: 0 | D58: 32 | E58: 61 | F58: 52.7 | G58: 0.9 | H58: 0.1 | I58: 0 | J58: 30.000* | K58: 30.000* | L58: 0 | M58: 1.47 | N58: 0.016
A59: 38 | B59: 38 | C59: 0 | D59: 32 | E59: 62 | F59: 53.4 | G59: 0.9 | H59: 0.1 | I59: 0 | J59: 30.000* | K59: 30.000* | L59: 0 | M59: 1.48 | N59: 0.017
A60: 39 | B60: 39 | C60: 0 | D60: 32 | E60: 63 | F60: 54.1 | G60: 0.9 | H60: 0.1 | I60: 0 | J60: 30.000* | K60: 30.000* | L60: 0 | M60: 1.49 | N60: 0.017
A61: 40 | B61: 40 | C61: 0 | D61: 32 | E61: 64 | F61: 54.8 | G61: 0.9 | H61: 0.1 | I61: 0 | J61: 30.000* | K61: 30.000* | L61: 0 | M61: 1.49 | N61: 0.018
A62: 41 | B62: 41 | C62: 0 | D62: 32 | E62: 65 | F62: 55.5 | G62: 0.9 | H62: 0.1 | I62: 0 | J62: 30.000* | K62: 30.000* | L62: 0 | M62: 1.5 | N62: 0.018
A63: 42 | B63: 42 | C63: 0 | D63: 32 | E63: 66 | F63: 56.2 | G63: 0.9 | H63: 0.1 | I63: 0 | J63: 30.000* | K63: 30.000* | L63: 0 | M63: 1.5 | N63: 0.019
A64: 43 | B64: 43 | C64: 0 | D64: 32 | E64: 67 | F64: 56.9 | G64: 0.9 | H64: 0.1 | I64: 0 | J64: 30.000* | K64: 30.000* | L64: 0 | M64: 1.51 | N64: 0.02
A65: 44 | B65: 44 | C65: 0 | D65: 32 | E65: 68 | F65: 57.6 | G65: 0.9 | H65: 0.1 | I65: 0 | J65: 30.000* | K65: 30.000* | L65: 0 | M65: 1.52 | N65: 0.02
A66: 45 | B66: 45 | C66: 0 | D66: 32 | E66: 69 | F66: 58.3 | G66: 0.9 | H66: 0.1 | I66: 0 | J66: 30.000* | K66: 30.000* | L66: 0 | M66: 1.52 | N66: 0.021
A67: 46 | B67: 46 | C67: 0 | D67: 32 | E67: 70 | F67: 59 | G67: 0.9 | H67: 0.1 | I67: 0 | J67: 30.000* | K67: 30.000* | L67: 0 | M67: 1.53 | N67: 0.022
A68: 47 | B68: 47 | C68: 0 | D68: 32 | E68: 71 | F68: 59.7 | G68: 0.9 | H68: 0.1 | I68: 0 | J68: 30.000* | K68: 30.000* | L68: 0 | M68: 1.54 | N68: 0.022
A69: 48 | B69: 48 | C69: 0 | D69: 32 | E69: 72 | F69: 60.4 | G69: 0.9 | H69: 0.1 | I69: 0 | J69: 30.000* | K69: 30.000* | L69: 0 | M69: 1.54 | N69: 0.023
A70: 49 | B70: 49 | C70: 0 | D70: 32 | E70: 73 | F70: 61.1 | G70: 0.9 | H70: 0.1 | I70: 0 | J70: 30.000* | K70: 30.000* | L70: 0 | M70: 1.55 | N70: 0.024
A71: 50 | B71: 50 | C71: 0 | D71: 32 | E71: 74 | F71: 61.8 | G71: 0.9 | H71: 0.1 | I71: 0 | J71: 30.000* | K71: 30.000* | L71: 0 | M71: 1.55 | N71: 0.024
A72: 51 | B72: 51 | C72: 0 | D72: 32 | E72: 75 | F72: 62.5 | G72: 0.9 | H72: 0.1 | I72: 0 | J72: 30.000* | K72: 30.000* | L72: 0 | M72: 1.56 | N72: 0.025
A73: 52 | B73: 52 | C73: 0 | D73: 32 | E73: 76 | F73: 63.2 | G73: 0.9 | H73: 0.1 | I73: 0 | J73: 30.000* | K73: 30.000* | L73: 0 | M73: 1.57 | N73: 0.026
A74: 53 | B74: 53 | C74: 0 | D74: 32 | E74: 77 | F74: 63.9 | G74: 0.9 | H74: 0.1 | I74: 0 | J74: 30.000* | K74: 30.000* | L74: 0 | M74: 1.57 | N74: 0.027
A75: 54 | B75: 54 | C75: 0 | D75: 32 | E75: 78 | F75: 64.6 | G75: 0.9 | H75: 0.1 | I75: 0 | J75: 30.000* | K75: 30.000* | L75: 0 | M75: 1.58 | N75: 0.028
A76: 55 | B76: 55 | C76: 0 | D76: 32 | E76: 79 | F76: 65.3 | G76: 0.9 | H76: 0.1 | I76: 0 | J76: 30.000* | K76: 30.000* | L76: 0 | M76: 1.58 | N76: 0.029
A77: 56 | B77: 56 | C77: 0 | D77: 32 | E77: 80 | F77: 66 | G77: 0.9 | H77: 0.1 | I77: 0 | J77: 30.000* | K77: 30.000* | L77: 0 | M77: 1.59 | N77: 0.029
A78: 57 | B78: 57 | C78: 0 | D78: 32 | E78: 81 | F78: 66.7 | G78: 0.9 | H78: 0.1 | I78: 0 | J78: 30.000* | K78: 30.000* | L78: 0 | M78: 1.6 | N78: 0.03
A79: 58 | B79: 58 | C79: 0 | D79: 32 | E79: 82 | F79: 67.4 | G79: 0.9 | H79: 0.1 | I79: 0 | J79: 30.000* | K79: 30.000* | L79: 0 | M79: 1.6 | N79: 0.031
A80: 59 | B80: 59 | C80: 0 | D80: 32 | E80: 83 | F80: 68.1 | G80: 0.9 | H80: 0.1 | I80: 0 | J80: 30.000* | K80: 30.000* | L80: 0 | M80: 1.61 | N80: 0.032
A81: 60 | B81: 60 | C81: 0 | D81: 32 | E81: 84 | F81: 68.8 | G81: 0.9 | H81: 0.1 | I81: 0 | J81: 30.000* | K81: 30.000* | L81: 0 | M81: 1.61 | N81: 0.033
A82: 61 | B82: 61 | C82: 0 | D82: 32 | E82: 85 | F82: 69.5 | G82: 0.9 | H82: 0.1 | I82: 0 | J82: 30.000* | K82: 30.000* | L82: 0 | M82: 1.62 | N82: 0.034
A83: 62 | B83: 62 | C83: 0 | D83: 32 | E83: 86 | F83: 70.2 | G83: 0.9 | H83: 0.1 | I83: 0 | J83: 30.000* | K83: 30.000* | L83: 0 | M83: 1.63 | N83: 0.035
A84: 63 | B84: 63 | C84: 0 | D84: 32 | E84: 87 | F84: 70.9 | G84: 0.9 | H84: 0.1 | I84: 0 | J84: 30.000* | K84: 30.000* | L84: 0 | M84: 1.63 | N84: 0.036
A85: 64 | B85: 64 | C85: 0 | D85: 32 | E85: 88 | F85: 71.6 | G85: 0.9 | H85: 0.1 | I85: 0 | J85: 30.000* | K85: 30.000* | L85: 0 | M85: 1.64 | N85: 0.037
A86: 65 | B86: 65 | C86: 0 | D86: 32 | E86: 89 | F86: 72.3 | G86: 0.9 | H86: 0.1 | I86: 0 | J86: 30.000* | K86: 30.000* | L86: 0 | M86: 1.64 | N86: 0.038
A87: 66 | B87: 66 | C87: 0 | D87: 32 | E87: 90 | F87: 73 | G87: 0.9 | H87: 0.1 | I87: 0 | J87: 30.000* | K87: 30.000* | L87: 0 | M87: 1.65 | N87: 0.039
A88: 67 | B88: 67 | C88: 0 | D88: 32 | E88: 91 | F88: 73.7 | G88: 0.9 | H88: 0.1 | I88: 0 | J88: 30.000* | K88: 30.000* | L88: 0 | M88: 1.66 | N88: 0.04
A89: 68 | B89: 68 | C89: 0 | D89: 32 | E89: 92 | F89: 74.4 | G89: 0.9 | H89: 0.1 | I89: 0 | J89: 30.000* | K89: 30.000* | L89: 0 | M89: 1.66 | N89: 0.042
A90: 69 | B90: 69 | C90: 0 | D90: 32 | E90: 93 | F90: 75.1 | G90: 0.9 | H90: 0.1 | I90: 0 | J90: 30.000* | K90: 30.000* | L90: 0 | M90: 1.67 | N90: 0.043
A91: 70 | B91: 70 | C91: 0 | D91: 32 | E91: 94 | F91: 75.8 | G91: 0.9 | H91: 0.1 | I91: 0 | J91: 30.000* | K91: 30.000* | L91: 0 | M91: 1.68 | N91: 0.044
A92: 71 | B92: 71 | C92: 0 | D92: 32 | E92: 95 | F92: 76.5 | G92: 0.9 | H92: 0.1 | I92: 0 | J92: 30.000* | K92: 30.000* | L92: 0 | M92: 1.68 | N92: 0.045
A93: 72 | B93: 72 | C93: 0 | D93: 32 | E93: 96 | F93: 77.2 | G93: 0.9 | H93: 0.1 | I93: 0 | J93: 30.000* | K93: 30.000* | L93: 0 | M93: 1.69 | N93: 0.046
A94: 73 | B94: 73 | C94: 0 | D94: 32 | E94: 97 | F94: 77.9 | G94: 0.9 | H94: 0.1 | I94: 0 | J94: 30.000* | K94: 30.000* | L94: 0 | M94: 1.69 | N94: 0.048
A95: 74 | B95: 74 | C95: 0 | D95: 32 | E95: 98 | F95: 78.6 | G95: 0.9 | H95: 0.1 | I95: 0 | J95: 30.000* | K95: 30.000* | L95: 0 | M95: 1.7 | N95: 0.049
A96: 75 | B96: 75 | C96: 0 | D96: 32 | E96: 99 | F96: 79.3 | G96: 0.9 | H96: 0.1 | I96: 0 | J96: 30.000* | K96: 30.000* | L96: 0 | M96: 1.71 | N96: 0.05
A97: 76 | B97: 76 | C97: 0 | D97: 32 | E97: 100 | F97: 80 | G97: 0.9 | H97: 0.1 | I97: 0 | J97: 30.000* | K97: 30.000* | L97: 0 | M97: 1.71 | N97: 0.052
A98: 77 | B98: 77 | C98: 0 | D98: 32 | E98: 101 | F98: 80.7 | G98: 0.9 | H98: 0.1 | I98: 0 | J98: 30.000* | K98: 30.000* | L98: 0 | M98: 1.72 | N98: 0.053
A99: 78 | B99: 78 | C99: 0 | D99: 32 | E99: 102 | F99: 81.4 | G99: 0.9 | H99: 0.1 | I99: 0 | J99: 30.000* | K99: 30.000* | L99: 0 | M99: 1.72 | N99: 0.055
A100: 79 | B100: 79 | C100: 0 | D100: 32 | E100: 103 | F100: 82.1 | G100: 0.9 | H100: 0.1 | I100: 0 | J100: 30.000* | K100: 30.000* | L100: 0 | M100: 1.73 | N100: 0.056
A101: 80 | B101: 80 | C101: 0 | D101: 32 | E101: 104 | F101: 82.8 | G101: 0.9 | H101: 0.1 | I101: 0 | J101: 30.000* | K101: 30.000* | L101: 0 | M101: 1.74 | N101: 0.057
A102: 81 | B102: 81 | C102: 0 | D102: 32 | E102: 105 | F102: 83.5 | G102: 0.9 | H102: 0.1 | I102: 0 | J102: 30.000* | K102: 30.000* | L102: 0 | M102: 1.74 | N102: 0.059
A103: 82 | B103: 82 | C103: 0 | D103: 32 | E103: 106 | F103: 84.2 | G103: 0.9 | H103: 0.1 | I103: 0 | J103: 30.000* | K103: 30.000* | L103: 0 | M103: 1.75 | N103: 0.061
A104: 83 | B104: 83 | C104: 0 | D104: 32 | E104: 107 | F104: 84.9 | G104: 0.9 | H104: 0.1 | I104: 0 | J104: 30.000* | K104: 30.000* | L104: 0 | M104: 1.75 | N104: 0.062
A105: 84 | B105: 84 | C105: 0 | D105: 32 | E105: 108 | F105: 85.6 | G105: 0.9 | H105: 0.1 | I105: 0 | J105: 30.000* | K105: 30.000* | L105: 0 | M105: 1.76 | N105: 0.064
A106: 85 | B106: 85 | C106: 0 | D106: 32 | E106: 109 | F106: 86.3 | G106: 0.9 | H106: 0.1 | I106: 0 | J106: 30.000* | K106: 30.000* | L106: 0 | M106: 1.77 | N106: 0.065
A107: 86 | B107: 86 | C107: 0 | D107: 32 | E107: 110 | F107: 87 | G107: 0.9 | H107: 0.1 | I107: 0 | J107: 30.000* | K107: 30.000* | L107: 0 | M107: 1.77 | N107: 0.067
A108: 87 | B108: 87 | C108: 0 | D108: 32 | E108: 111 | F108: 87.7 | G108: 0.9 | H108: 0.1 | I108: 0 | J108: 30.000* | K108: 30.000* | L108: 0 | M108: 1.78 | N108: 0.069
A109: 88 | B109: 88 | C109: 0 | D109: 32 | E109: 112 | F109: 88.4 | G109: 0.9 | H109: 0.1 | I109: 0 | J109: 30.000* | K109: 30.000* | L109: 0 | M109: 1.78 | N109: 0.07
A110: 89 | B110: 89 | C110: 0 | D110: 32 | E110: 113 | F110: 89.1 | G110: 0.9 | H110: 0.1 | I110: 0 | J110: 30.000* | K110: 30.000* | L110: 0 | M110: 1.79 | N110: 0.072
A111: 90 | B111: 90 | C111: 0 | D111: 32 | E111: 114 | F111: 89.8 | G111: 0.9 | H111: 0.1 | I111: 0 | J111: 30.000* | K111: 30.000* | L111: 0 | M111: 1.8 | N111: 0.074
A112: 91 | B112: 91 | C112: 0 | D112: 32 | E112: 115 | F112: 90.5 | G112: 0.9 | H112: 0.1 | I112: 0 | J112: 30.000* | K112: 30.000* | L112: 0 | M112: 1.8 | N112: 0.076
A113: 92 | B113: 92 | C113: 0 | D113: 32 | E113: 116 | F113: 91.2 | G113: 0.9 | H113: 0.1 | I113: 0 | J113: 30.000* | K113: 30.000* | L113: 0 | M113: 1.81 | N113: 0.078
A114: 93 | B114: 93 | C114: 0 | D114: 32 | E114: 117 | F114: 91.9 | G114: 0.9 | H114: 0.1 | I114: 0 | J114: 30.000* | K114: 30.000* | L114: 0 | M114: 1.81 | N114: 0.08
A115: 94 | B115: 94 | C115: 0 | D115: 32 | E115: 118 | F115: 92.6 | G115: 0.9 | H115: 0.1 | I115: 0 | J115: 30.000* | K115: 30.000* | L115: 0 | M115: 1.82 | N115: 0.082
A116: 95 | B116: 95 | C116: 0 | D116: 32 | E116: 119 | F116: 93.3 | G116: 0.9 | H116: 0.1 | I116: 0 | J116: 30.000* | K116: 30.000* | L116: 0 | M116: 1.83 | N116: 0.084
A117: 96 | B117: 96 | C117: 0 | D117: 32 | E117: 120 | F117: 94 | G117: 0.9 | H117: 0.1 | I117: 0 | J117: 30.000* | K117: 30.000* | L117: 0 | M117: 1.83 | N117: 0.086
A118: 97 | B118: 97 | C118: 0 | D118: 32 | E118: 121 | F118: 94.7 | G118: 0.9 | H118: 0.1 | I118: 0 | J118: 30.000* | K118: 30.000* | L118: 0 | M118: 1.84 | N118: 0.088
A119: 98 | B119: 98 | C119: 0 | D119: 32 | E119: 122 | F119: 95.4 | G119: 0.9 | H119: 0.1 | I119: 0 | J119: 30.000* | K119: 30.000* | L119: 0 | M119: 1.84 | N119: 0.09
A120: 99 | B120: 99 | C120: 0 | D120: 32 | E120: 123 | F120: 96.1 | G120: 0.9 | H120: 0.1 | I120: 0 | J120: 30.000* | K120: 30.000* | L120: 0 | M120: 1.85 | N120: 0.092
A121: 100 | B121: 100 | C121: 0 | D121: 32 | E121: 124 | F121: 96.8 | G121: 0.9 | H121: 0.1 | I121: 0 | J121: 30.000* | K121: 30.000* | L121: 0 | M121: 1.86 | N121: 0.094
A122: 101 | B122: 101 | C122: 0 | D122: 32 | E122: 125 | F122: 97.5 | G122: 0.9 | H122: 0.1 | I122: 0 | J122: 30.000* | K122: 30.000* | L122: 0 | M122: 1.86 | N122: 0.096
A123: 102 | B123: 102 | C123: 0 | D123: 32 | E123: 126 | F123: 98.2 | G123: 0.9 | H123: 0.1 | I123: 0 | J123: 30.000* | K123: 30.000* | L123: 0 | M123: 1.87 | N123: 0.099
A124: 103 | B124: 103 | C124: 0 | D124: 32 | E124: 127 | F124: 98.9 | G124: 0.9 | H124: 0.1 | I124: 0 | J124: 30.000* | K124: 30.000* | L124: 0 | M124: 1.87 | N124: 0.101
A125: 104 | B125: 104 | C125: 0 | D125: 32 | E125: 128 | F125: 99.6 | G125: 0.9 | H125: 0.1 | I125: 0 | J125: 30.000* | K125: 30.000* | L125: 0 | M125: 1.88 | N125: 0.103
A126: 105 | B126: 105 | C126: 0 | D126: 32 | E126: 129 | F126: 100.3 | G126: 0.9 | H126: 0.1 | I126: 0 | J126: 30.000* | K126: 30.000* | L126: 0 | M126: 1.89 | N126: 0.105
A127: 106 | B127: 106 | C127: 0 | D127: 32 | E127: 130 | F127: 101 | G127: 0.9 | H127: 0.1 | I127: 0 | J127: 30.000* | K127: 30.000* | L127: 0 | M127: 1.89 | N127: 0.108
A128: 107 | B128: 107 | C128: 0 | D128: 32 | E128: 131 | F128: 101.7 | G128: 0.9 | H128: 0.1 | I128: 0 | J128: 30.000* | K128: 30.000* | L128: 0 | M128: 1.9 | N128: 0.11
A129: 108 | B129: 108 | C129: 0 | D129: 32 | E129: 132 | F129: 102.4 | G129: 0.9 | H129: 0.1 | I129: 0 | J129: 30.000* | K129: 30.000* | L129: 0 | M129: 1.9 | N129: 0.113
A130: 109 | B130: 109 | C130: 0 | D130: 32 | E130: 133 | F130: 103.1 | G130: 0.9 | H130: 0.1 | I130: 0 | J130: 30.000* | K130: 30.000* | L130: 0 | M130: 1.91 | N130: 0.115
A131: 110 | B131: 110 | C131: 0 | D131: 32 | E131: 134 | F131: 103.8 | G131: 0.9 | H131: 0.1 | I131: 0 | J131: 30.000* | K131: 30.000* | L131: 0 | M131: 1.92 | N131: 0.118
A132: 111 | B132: 111 | C132: 0 | D132: 32 | E132: 135 | F132: 104.5 | G132: 0.9 | H132: 0.1 | I132: 0 | J132: 30.000* | K132: 30.000* | L132: 0 | M132: 1.92 | N132: 0.121
A133: 112 | B133: 112 | C133: 0 | D133: 32 | E133: 136 | F133: 105.2 | G133: 0.9 | H133: 0.1 | I133: 0 | J133: 30.000* | K133: 30.000* | L133: 0 | M133: 1.93 | N133: 0.123
A134: 113 | B134: 113 | C134: 0 | D134: 32 | E134: 137 | F134: 105.9 | G134: 0.9 | H134: 0.1 | I134: 0 | J134: 30.000* | K134: 30.000* | L134: 0 | M134: 1.93 | N134: 0.126
A135: 114 | B135: 114 | C135: 0 | D135: 32 | E135: 138 | F135: 106.6 | G135: 0.9 | H135: 0.1 | I135: 0 | J135: 30.000* | K135: 30.000* | L135: 0 | M135: 1.94 | N135: 0.129
A136: 115 | B136: 115 | C136: 0 | D136: 32 | E136: 139 | F136: 107.3 | G136: 0.9 | H136: 0.1 | I136: 0 | J136: 30.000* | K136: 30.000* | L136: 0 | M136: 1.95 | N136: 0.132
A137: 116 | B137: 116 | C137: 0 | D137: 32 | E137: 140 | F137: 108 | G137: 0.9 | H137: 0.1 | I137: 0 | J137: 30.000* | K137: 30.000* | L137: 0 | M137: 1.95 | N137: 0.134
A138: 117 | B138: 117 | C138: 0 | D138: 32 | E138: 141 | F138: 108.7 | G138: 0.9 | H138: 0.1 | I138: 0 | J138: 30.000* | K138: 30.000* | L138: 0 | M138: 1.96 | N138: 0.137
A139: 118 | B139: 118 | C139: 0 | D139: 32 | E139: 142 | F139: 109.4 | G139: 0.9 | H139: 0.1 | I139: 0 | J139: 30.000* | K139: 30.000* | L139: 0 | M139: 1.96 | N139: 0.14
A140: 119 | B140: 119 | C140: 0 | D140: 32 | E140: 143 | F140: 110.1 | G140: 0.9 | H140: 0.1 | I140: 0 | J140: 30.000* | K140: 30.000* | L140: 0 | M140: 1.97 | N140: 0.143
A141: 120 | B141: 120 | C141: 0 | D141: 32 | E141: 144 | F141: 110.8 | G141: 0.9 | H141: 0.1 | I141: 0 | J141: 30.000* | K141: 30.000* | L141: 0 | M141: 1.98 | N141: 0.146
A142: 121 | B142: 121 | C142: 0 | D142: 32 | E142: 145 | F142: 111.5 | G142: 0.9 | H142: 0.1 | I142: 0 | J142: 30.000* | K142: 30.000* | L142: 0 | M142: 1.98 | N142: 0.149
A143: 122 | B143: 122 | C143: 0 | D143: 32 | E143: 146 | F143: 112.2 | G143: 0.9 | H143: 0.1 | I143: 0 | J143: 30.000* | K143: 30.000* | L143: 0 | M143: 1.99 | N143: 0.153
A144: 123 | B144: 123 | C144: 0 | D144: 32 | E144: 147 | F144: 112.9 | G144: 0.9 | H144: 0.1 | I144: 0 | J144: 30.000* | K144: 30.000* | L144: 0 | M144: 1.99 | N144: 0.156
A145: 124 | B145: 124 | C145: 0 | D145: 32 | E145: 148 | F145: 113.6 | G145: 0.9 | H145: 0.1 | I145: 0 | J145: 30.000* | K145: 30.000* | L145: 0 | M145: 2 | N145: 0.159
A146: 125 | B146: 125 | C146: 0 | D146: 32 | E146: 149 | F146: 114.3 | G146: 0.9 | H146: 0.1 | I146: 0 | J146: 30.000* | K146: 30.000* | L146: 0 | M146: 2.01 | N146: 0.162
A147: 126 | B147: 126 | C147: 0 | D147: 32 | E147: 150 | F147: 115 | G147: 0.9 | H147: 0.1 | I147: 0 | J147: 30.000* | K147: 30.000* | L147: 0 | M147: 2.01 | N147: 0.166
A148: 127 | B148: 127 | C148: 0 | D148: 32 | E148: 151 | F148: 115.7 | G148: 0.9 | H148: 0.1 | I148: 0 | J148: 30.000* | K148: 30.000* | L148: 0 | M148: 2.02 | N148: 0.169
A149: 128 | B149: 128 | C149: 0 | D149: 32 | E149: 152 | F149: 116.4 | G149: 0.9 | H149: 0.1 | I149: 0 | J149: 30.000* | K149: 30.000* | L149: 0 | M149: 2.02 | N149: 0.172
A150: 129 | B150: 129 | C150: 0 | D150: 32 | E150: 153 | F150: 117.1 | G150: 0.9 | H150: 0.1 | I150: 0 | J150: 30.000* | K150: 30.000* | L150: 0 | M150: 2.03 | N150: 0.176
A151: 130 | B151: 130 | C151: 0 | D151: 32 | E151: 154 | F151: 117.8 | G151: 0.9 | H151: 0.1 | I151: 0 | J151: 30.000* | K151: 30.000* | L151: 0 | M151: 2.04 | N151: 0.179
A152: 131 | B152: 131 | C152: 0 | D152: 32 | E152: 155 | F152: 118.5 | G152: 0.9 | H152: 0.1 | I152: 0 | J152: 30.000* | K152: 30.000* | L152: 0 | M152: 2.04 | N152: 0.183
A153: 132 | B153: 132 | C153: 0 | D153: 32 | E153: 156 | F153: 119.2 | G153: 0.9 | H153: 0.1 | I153: 0 | J153: 30.000* | K153: 30.000* | L153: 0 | M153: 2.05 | N153: 0.187
A154: 133 | B154: 133 | C154: 0 | D154: 32 | E154: 157 | F154: 119.9 | G154: 0.9 | H154: 0.1 | I154: 0 | J154: 30.000* | K154: 30.000* | L154: 0 | M154: 2.05 | N154: 0.19
A155: 134 | B155: 134 | C155: 0 | D155: 32 | E155: 158 | F155: 120.6 | G155: 0.9 | H155: 0.1 | I155: 0 | J155: 30.000* | K155: 30.000* | L155: 0 | M155: 2.06 | N155: 0.194
A156: 135 | B156: 135 | C156: 0 | D156: 32 | E156: 159 | F156: 121.3 | G156: 0.9 | H156: 0.1 | I156: 0 | J156: 30.000* | K156: 30.000* | L156: 0 | M156: 2.07 | N156: 0.198
A157: 136 | B157: 136 | C157: 0 | D157: 32 | E157: 160 | F157: 122 | G157: 0.9 | H157: 0.1 | I157: 0 | J157: 30.000* | K157: 30.000* | L157: 0 | M157: 2.07 | N157: 0.202
A158: 137 | B158: 137 | C158: 0 | D158: 32 | E158: 161 | F158: 122.7 | G158: 0.9 | H158: 0.1 | I158: 0 | J158: 30.000* | K158: 30.000* | L158: 0 | M158: 2.08 | N158: 0.206
A159: 138 | B159: 138 | C159: 0 | D159: 32 | E159: 162 | F159: 123.4 | G159: 0.9 | H159: 0.1 | I159: 0 | J159: 30.000* | K159: 30.000* | L159: 0 | M159: 2.08 | N159: 0.21
A160: 139 | B160: 139 | C160: 0 | D160: 32 | E160: 163 | F160: 124.1 | G160: 0.9 | H160: 0.1 | I160: 0 | J160: 30.000* | K160: 30.000* | L160: 0 | M160: 2.09 | N160: 0.214
A161: 140 | B161: 140 | C161: 0 | D161: 32 | E161: 164 | F161: 124.8 | G161: 0.9 | H161: 0.1 | I161: 0 | J161: 30.000* | K161: 30.000* | L161: 0 | M161: 2.09 | N161: 0.218
A162: 141 | B162: 141 | C162: 0 | D162: 32 | E162: 165 | F162: 125.5 | G162: 0.9 | H162: 0.1 | I162: 0 | J162: 30.000* | K162: 30.000* | L162: 0 | M162: 2.1 | N162: 0.222
A163: 142 | B163: 142 | C163: 0 | D163: 32 | E163: 166 | F163: 126.2 | G163: 0.9 | H163: 0.1 | I163: 0 | J163: 30.000* | K163: 30.000* | L163: 0 | M163: 2.11 | N163: 0.226
A164: 143 | B164: 143 | C164: 0 | D164: 32 | E164: 167 | F164: 126.9 | G164: 0.9 | H164: 0.1 | I164: 0 | J164: 30.000* | K164: 30.000* | L164: 0 | M164: 2.11 | N164: 0.231
A165: 144 | B165: 144 | C165: 0 | D165: 32 | E165: 168 | F165: 127.6 | G165: 0.9 | H165: 0.1 | I165: 0 | J165: 30.000* | K165: 30.000* | L165: 0 | M165: 2.12 | N165: 0.235
A166: 145 | B166: 145 | C166: 0 | D166: 32 | E166: 169 | F166: 128.3 | G166: 0.9 | H166: 0.1 | I166: 0 | J166: 30.000* | K166: 30.000* | L166: 0 | M166: 2.12 | N166: 0.239
A167: 146 | B167: 146 | C167: 0 | D167: 32 | E167: 170 | F167: 129 | G167: 0.9 | H167: 0.1 | I167: 0 | J167: 30.000* | K167: 30.000* | L167: 0 | M167: 2.13 | N167: 0.244
A168: 147 | B168: 147 | C168: 0 | D168: 32 | E168: 171 | F168: 129.7 | G168: 0.9 | H168: 0.1 | I168: 0 | J168: 30.000* | K168: 30.000* | L168: 0 | M168: 2.14 | N168: 0.248
A169: 148 | B169: 148 | C169: 0 | D169: 32 | E169: 172 | F169: 130.4 | G169: 0.9 | H169: 0.1 | I169: 0 | J169: 30.000* | K169: 30.000* | L169: 0 | M169: 2.14 | N169: 0.253
A170: 149 | B170: 149 | C170: 0 | D170: 32 | E170: 173 | F170: 131.1 | G170: 0.9 | H170: 0.1 | I170: 0 | J170: 30.000* | K170: 30.000* | L170: 0 | M170: 2.15 | N170: 0.258
A171: 150 | B171: 150 | C171: 0 | D171: 32 | E171: 174 | F171: 131.8 | G171: 0.9 | H171: 0.1 | I171: 0 | J171: 30.000* | K171: 30.000* | L171: 0 | M171: 2.15 | N171: 0.262
A172: 151 | B172: 151 | C172: 0 | D172: 32 | E172: 175 | F172: 132.5 | G172: 0.9 | H172: 0.1 | I172: 0 | J172: 30.000* | K172: 30.000* | L172: 0 | M172: 2.16 | N172: 0.267
A173: 152 | B173: 152 | C173: 0 | D173: 32 | E173: 176 | F173: 133.2 | G173: 0.9 | H173: 0.1 | I173: 0 | J173: 30.000* | K173: 30.000* | L173: 0 | M173: 2.17 | N173: 0.272
A174: 153 | B174: 153 | C174: 0 | D174: 32 | E174: 177 | F174: 133.9 | G174: 0.9 | H174: 0.1 | I174: 0 | J174: 30.000* | K174: 30.000* | L174: 0 | M174: 2.17 | N174: 0.277
A175: 154 | B175: 154 | C175: 0 | D175: 32 | E175: 178 | F175: 134.6 | G175: 0.9 | H175: 0.1 | I175: 0 | J175: 30.000* | K175: 30.000* | L175: 0 | M175: 2.18 | N175: 0.282
A176: 155 | B176: 155 | C176: 0 | D176: 32 | E176: 179 | F176: 135.3 | G176: 0.9 | H176: 0.1 | I176: 0 | J176: 30.000* | K176: 30.000* | L176: 0 | M176: 2.18 | N176: 0.287
A177: 156 | B177: 156 | C177: 0 | D177: 32 | E177: 180 | F177: 136 | G177: 0.9 | H177: 0.1 | I177: 0 | J177: 30.000* | K177: 30.000* | L177: 0 | M177: 2.19 | N177: 0.292
A178: 157 | B178: 157 | C178: 0 | D178: 32 | E178: 181 | F178: 136.7 | G178: 0.9 | H178: 0.1 | I178: 0 | J178: 30.000* | K178: 30.000* | L178: 0 | M178: 2.2 | N178: 0.297
A179: 158 | B179: 158 | C179: 0 | D179: 32 | E179: 182 | F179: 137.4 | G179: 0.9 | H179: 0.1 | I179: 0 | J179: 30.000* | K179: 30.000* | L179: 0 | M179: 2.2 | N179: 0.302
A180: 159 | B180: 159 | C180: 0 | D180: 32 | E180: 183 | F180: 138.1 | G180: 0.9 | H180: 0.1 | I180: 0 | J180: 30.000* | K180: 30.000* | L180: 0 | M180: 2.21 | N180: 0.308
A181: 160 | B181: 160 | C181: 0 | D181: 32 | E181: 184 | F181: 138.8 | G181: 0.9 | H181: 0.1 | I181: 0 | J181: 30.000* | K181: 30.000* | L181: 0 | M181: 2.21 | N181: 0.313
A182: 161 | B182: 161 | C182: 0 | D182: 32 | E182: 185 | F182: 139.5 | G182: 0.9 | H182: 0.1 | I182: 0 | J182: 30.000* | K182: 30.000* | L182: 0 | M182: 2.22 | N182: 0.318
A183: 162 | B183: 162 | C183: 0 | D183: 32 | E183: 186 | F183: 140.2 | G183: 0.9 | H183: 0.1 | I183: 0 | J183: 30.000* | K183: 30.000* | L183: 0 | M183: 2.23 | N183: 0.324
A184: 163 | B184: 163 | C184: 0 | D184: 32 | E184: 187 | F184: 140.9 | G184: 0.9 | H184: 0.1 | I184: 0 | J184: 30.000* | K184: 30.000* | L184: 0 | M184: 2.23 | N184: 0.329
A185: 164 | B185: 164 | C185: 0 | D185: 32 | E185: 188 | F185: 141.6 | G185: 0.9 | H185: 0.1 | I185: 0 | J185: 30.000* | K185: 30.000* | L185: 0 | M185: 2.24 | N185: 0.335
A186: 165 | B186: 165 | C186: 0 | D186: 32 | E186: 189 | F186: 142.3 | G186: 0.9 | H186: 0.1 | I186: 0 | J186: 30.000* | K186: 30.000* | L186: 0 | M186: 2.24 | N186: 0.341
A187: 166 | B187: 166 | C187: 0 | D187: 32 | E187: 190 | F187: 143 | G187: 0.9 | H187: 0.1 | I187: 0 | J187: 30.000* | K187: 30.000* | L187: 0 | M187: 2.25 | N187: 0.347
A188: 167 | B188: 167 | C188: 0 | D188: 32 | E188: 191 | F188: 143.7 | G188: 0.9 | H188: 0.1 | I188: 0 | J188: 30.000* | K188: 30.000* | L188: 0 | M188: 2.25 | N188: 0.352
A189: 168 | B189: 168 | C189: 0 | D189: 32 | E189: 192 | F189: 144.4 | G189: 0.9 | H189: 0.1 | I189: 0 | J189: 30.000* | K189: 30.000* | L189: 0 | M189: 2.26 | N189: 0.358
A190: 169 | B190: 169 | C190: 0 | D190: 32 | E190: 193 | F190: 145.1 | G190: 0.9 | H190: 0.1 | I190: 0 | J190: 30.000* | K190: 30.000* | L190: 0 | M190: 2.27 | N190: 0.364
A191: 170 | B191: 170 | C191: 0 | D191: 32 | E191: 194 | F191: 145.8 | G191: 0.9 | H191: 0.1 | I191: 0 | J191: 30.000* | K191: 30.000* | L191: 0 | M191: 2.27 | N191: 0.37
A192: 171 | B192: 171 | C192: 0 | D192: 32 | E192: 195 | F192: 146.5 | G192: 0.9 | H192: 0.1 | I192: 0 | J192: 30.000* | K192: 30.000* | L192: 0 | M192: 2.28 | N192: 0.377
A193: 172 | B193: 172 | C193: 0 | D193: 32 | E193: 196 | F193: 147.2 | G193: 0.9 | H193: 0.1 | I193: 0 | J193: 30.000* | K193: 30.000* | L193: 0 | M193: 2.28 | N193: 0.383
A194: 173 | B194: 173 | C194: 0 | D194: 32 | E194: 197 | F194: 147.9 | G194: 0.9 | H194: 0.1 | I194: 0 | J194: 30.000* | K194: 30.000* | L194: 0 | M194: 2.29 | N194: 0.389
A195: 174 | B195: 174 | C195: 0 | D195: 32 | E195: 198 | F195: 148.6 | G195: 0.9 | H195: 0.1 | I195: 0 | J195: 30.000* | K195: 30.000* | L195: 0 | M195: 2.3 | N195: 0.395
A196: 175 | B196: 175 | C196: 0 | D196: 32 | E196: 199 | F196: 149.3 | G196: 0.9 | H196: 0.1 | I196: 0 | J196: 30.000* | K196: 30.000* | L196: 0 | M196: 2.3 | N196: 0.402
A197: 176 | B197: 176 | C197: 0 | D197: 32 | E197: 200 | F197: 150 | G197: 0.9 | H197: 0.1 | I197: 0 | J197: 30.000* | K197: 30.000* | L197: 0 | M197: 2.31 | N197: 0.408
A198: 177 | B198: 177 | C198: 0 | D198: 32 | E198: 201 | F198: 150.7 | G198: 0.9 | H198: 0.1 | I198: 0 | J198: 30.000* | K198: 30.000* | L198: 0 | M198: 2.31 | N198: 0.415
A199: 178 | B199: 178 | C199: 0 | D199: 32 | E199: 202 | F199: 151.4 | G199: 0.9 | H199: 0.1 | I199: 0 | J199: 30.000* | K199: 30.000* | L199: 0 | M199: 2.32 | N199: 0.422
A200: 179 | B200: 179 | C200: 0 | D200: 32 | E200: 203 | F200: 152.1 | G200: 0.9 | H200: 0.1 | I200: 0 | J200: 30.000* | K200: 30.000* | L200: 0 | M200: 2.33 | N200: 0.428
A201: 180 | B201: 180 | C201: 0 | D201: 32 | E201: 204 | F201: 152.8 | G201: 0.9 | H201: 0.1 | I201: 0 | J201: 30.000* | K201: 30.000* | L201: 0 | M201: 2.33 | N201: 0.435
A202: 181 | B202: 181 | C202: 0 | D202: 32 | E202: 205 | F202: 153.5 | G202: 0.9 | H202: 0.1 | I202: 0 | J202: 30.000* | K202: 30.000* | L202: 0 | M202: 2.34 | N202: 0.442
A203: 182 | B203: 182 | C203: 0 | D203: 32 | E203: 206 | F203: 154.2 | G203: 0.9 | H203: 0.1 | I203: 0 | J203: 30.000* | K203: 30.000* | L203: 0 | M203: 2.34 | N203: 0.449
A204: 183 | B204: 183 | C204: 0 | D204: 32 | E204: 207 | F204: 154.9 | G204: 0.9 | H204: 0.1 | I204: 0 | J204: 30.000* | K204: 30.000* | L204: 0 | M204: 2.35 | N204: 0.456
A205: 184 | B205: 184 | C205: 0 | D205: 32 | E205: 208 | F205: 155.6 | G205: 0.9 | H205: 0.1 | I205: 0 | J205: 30.000* | K205: 30.000* | L205: 0 | M205: 2.35 | N205: 0.463
... 3792 more rows

Sheet Batch Output P9 (hidden)
A1: LEAD BATCH MODE OUTPUT FILE
A2: Model Version: 2.0 Build1
A3: User Name:
A4: Date:
A5: Site Name:
A6: Operable Unit:
A7: Run Mode: Research
A8: ----------------------------------------------------------------------------------
A10: * : signify default values used in place of missing input data.
A11: ---: signify missing input data.
A12: PBB & PRED are the observed and predicted blood Pb levels in µg/dL.
A14: Percent exceedance was calculated using values of GSD and PbB Cutoff as follows:
A15: GSD = 1.600
A16: PbB Cutoff ( C ) = 9.000 µg/dL
A18: Input File: Batch File TWA.dat
A20: ID | B20: FAM | C20: BLK | D20: AGE (mon) | E20: SOIL (µg/g) | F20: DUST (µg/g) | G20: WATER (µg/L) | H20: AIR (µg/m³) | I20: Other (µg/day) | J20: ABSSoil (%) | K20: ABSDust (%) | L20: PBB (µg/dL) | M20: PRED (µg/dL) | N20: P(PbB>C) (%)
A22: 1 | B22: 1 | C22: 0 | D22: 32 | E22: 25 | F22: 27.5 | G22: 0.9 | H22: 0.1 | I22: 0 | J22: 30.000* | K22: 30.000* | L22: 0 | M22: 1.25 | N22: 0.001
A23: 2 | B23: 2 | C23: 0 | D23: 32 | E23: 26 | F23: 28.2 | G23: 0.9 | H23: 0.1 | I23: 0 | J23: 30.000* | K23: 30.000* | L23: 0 | M23: 1.26 | N23: 0.001
A24: 3 | B24: 3 | C24: 0 | D24: 32 | E24: 27 | F24: 28.9 | G24: 0.9 | H24: 0.1 | I24: 0 | J24: 30.000* | K24: 30.000* | L24: 0 | M24: 1.27 | N24: 0.001
A25: 4 | B25: 4 | C25: 0 | D25: 32 | E25: 28 | F25: 29.6 | G25: 0.9 | H25: 0.1 | I25: 0 | J25: 30.000* | K25: 30.000* | L25: 0 | M25: 1.27 | N25: 0.002
A26: 5 | B26: 5 | C26: 0 | D26: 32 | E26: 29 | F26: 30.3 | G26: 0.9 | H26: 0.1 | I26: 0 | J26: 30.000* | K26: 30.000* | L26: 0 | M26: 1.28 | N26: 0.002
A27: 6 | B27: 6 | C27: 0 | D27: 32 | E27: 30 | F27: 31 | G27: 0.9 | H27: 0.1 | I27: 0 | J27: 30.000* | K27: 30.000* | L27: 0 | M27: 1.28 | N27: 0.002
A28: 7 | B28: 7 | C28: 0 | D28: 32 | E28: 31 | F28: 31.7 | G28: 0.9 | H28: 0.1 | I28: 0 | J28: 30.000* | K28: 30.000* | L28: 0 | M28: 1.29 | N28: 0.002
A29: 8 | B29: 8 | C29: 0 | D29: 32 | E29: 32 | F29: 32.4 | G29: 0.9 | H29: 0.1 | I29: 0 | J29: 30.000* | K29: 30.000* | L29: 0 | M29: 1.3 | N29: 0.002
A30: 9 | B30: 9 | C30: 0 | D30: 32 | E30: 33 | F30: 33.1 | G30: 0.9 | H30: 0.1 | I30: 0 | J30: 30.000* | K30: 30.000* | L30: 0 | M30: 1.3 | N30: 0.002
A31: 10 | B31: 10 | C31: 0 | D31: 32 | E31: 34 | F31: 33.8 | G31: 0.9 | H31: 0.1 | I31: 0 | J31: 30.000* | K31: 30.000* | L31: 0 | M31: 1.31 | N31: 0.002
A32: 11 | B32: 11 | C32: 0 | D32: 32 | E32: 35 | F32: 34.5 | G32: 0.9 | H32: 0.1 | I32: 0 | J32: 30.000* | K32: 30.000* | L32: 0 | M32: 1.31 | N32: 0.002
A33: 12 | B33: 12 | C33: 0 | D33: 32 | E33: 36 | F33: 35.2 | G33: 0.9 | H33: 0.1 | I33: 0 | J33: 30.000* | K33: 30.000* | L33: 0 | M33: 1.32 | N33: 0.002
A34: 13 | B34: 13 | C34: 0 | D34: 32 | E34: 37 | F34: 35.9 | G34: 0.9 | H34: 0.1 | I34: 0 | J34: 30.000* | K34: 30.000* | L34: 0 | M34: 1.33 | N34: 0.002
A35: 14 | B35: 14 | C35: 0 | D35: 32 | E35: 38 | F35: 36.6 | G35: 0.9 | H35: 0.1 | I35: 0 | J35: 30.000* | K35: 30.000* | L35: 0 | M35: 1.33 | N35: 0.002
A36: 15 | B36: 15 | C36: 0 | D36: 32 | E36: 39 | F36: 37.3 | G36: 0.9 | H36: 0.1 | I36: 0 | J36: 30.000* | K36: 30.000* | L36: 0 | M36: 1.34 | N36: 0.003
A37: 16 | B37: 16 | C37: 0 | D37: 32 | E37: 40 | F37: 38 | G37: 0.9 | H37: 0.1 | I37: 0 | J37: 30.000* | K37: 30.000* | L37: 0 | M37: 1.35 | N37: 0.003
A38: 17 | B38: 17 | C38: 0 | D38: 32 | E38: 41 | F38: 38.7 | G38: 0.9 | H38: 0.1 | I38: 0 | J38: 30.000* | K38: 30.000* | L38: 0 | M38: 1.35 | N38: 0.003
A39: 18 | B39: 18 | C39: 0 | D39: 32 | E39: 42 | F39: 39.4 | G39: 0.9 | H39: 0.1 | I39: 0 | J39: 30.000* | K39: 30.000* | L39: 0 | M39: 1.36 | N39: 0.003
A40: 19 | B40: 19 | C40: 0 | D40: 32 | E40: 43 | F40: 40.1 | G40: 0.9 | H40: 0.1 | I40: 0 | J40: 30.000* | K40: 30.000* | L40: 0 | M40: 1.36 | N40: 0.003
A41: 20 | B41: 20 | C41: 0 | D41: 32 | E41: 44 | F41: 40.8 | G41: 0.9 | H41: 0.1 | I41: 0 | J41: 30.000* | K41: 30.000* | L41: 0 | M41: 1.37 | N41: 0.003
A42: 21 | B42: 21 | C42: 0 | D42: 32 | E42: 45 | F42: 41.5 | G42: 0.9 | H42: 0.1 | I42: 0 | J42: 30.000* | K42: 30.000* | L42: 0 | M42: 1.38 | N42: 0.003
A43: 22 | B43: 22 | C43: 0 | D43: 32 | E43: 46 | F43: 42.2 | G43: 0.9 | H43: 0.1 | I43: 0 | J43: 30.000* | K43: 30.000* | L43: 0 | M43: 1.38 | N43: 0.003
A44: 23 | B44: 23 | C44: 0 | D44: 32 | E44: 47 | F44: 42.9 | G44: 0.9 | H44: 0.1 | I44: 0 | J44: 30.000* | K44: 30.000* | L44: 0 | M44: 1.39 | N44: 0.004
A45: 24 | B45: 24 | C45: 0 | D45: 32 | E45: 48 | F45: 43.6 | G45: 0.9 | H45: 0.1 | I45: 0 | J45: 30.000* | K45: 30.000* | L45: 0 | M45: 1.39 | N45: 0.004
A46: 25 | B46: 25 | C46: 0 | D46: 32 | E46: 49 | F46: 44.3 | G46: 0.9 | H46: 0.1 | I46: 0 | J46: 30.000* | K46: 30.000* | L46: 0 | M46: 1.4 | N46: 0.004
A47: 26 | B47: 26 | C47: 0 | D47: 32 | E47: 50 | F47: 45 | G47: 0.9 | H47: 0.1 | I47: 0 | J47: 30.000* | K47: 30.000* | L47: 0 | M47: 1.41 | N47: 0.004
A48: 27 | B48: 27 | C48: 0 | D48: 32 | E48: 51 | F48: 45.7 | G48: 0.9 | H48: 0.1 | I48: 0 | J48: 30.000* | K48: 30.000* | L48: 0 | M48: 1.41 | N48: 0.004
A49: 28 | B49: 28 | C49: 0 | D49: 32 | E49: 52 | F49: 46.4 | G49: 0.9 | H49: 0.1 | I49: 0 | J49: 30.000* | K49: 30.000* | L49: 0 | M49: 1.42 | N49: 0.004
A50: 29 | B50: 29 | C50: 0 | D50: 32 | E50: 53 | F50: 47.1 | G50: 0.9 | H50: 0.1 | I50: 0 | J50: 30.000* | K50: 30.000* | L50: 0 | M50: 1.43 | N50: 0.004
A51: 30 | B51: 30 | C51: 0 | D51: 32 | E51: 54 | F51: 47.8 | G51: 0.9 | H51: 0.1 | I51: 0 | J51: 30.000* | K51: 30.000* | L51: 0 | M51: 1.43 | N51: 0.005
A52: 31 | B52: 31 | C52: 0 | D52: 32 | E52: 55 | F52: 48.5 | G52: 0.9 | H52: 0.1 | I52: 0 | J52: 30.000* | K52: 30.000* | L52: 0 | M52: 1.44 | N52: 0.005
A53: 32 | B53: 32 | C53: 0 | D53: 32 | E53: 56 | F53: 49.2 | G53: 0.9 | H53: 0.1 | I53: 0 | J53: 30.000* | K53: 30.000* | L53: 0 | M53: 1.44 | N53: 0.005
A54: 33 | B54: 33 | C54: 0 | D54: 32 | E54: 57 | F54: 49.9 | G54: 0.9 | H54: 0.1 | I54: 0 | J54: 30.000* | K54: 30.000* | L54: 0 | M54: 1.45 | N54: 0.005
A55: 34 | B55: 34 | C55: 0 | D55: 32 | E55: 58 | F55: 50.6 | G55: 0.9 | H55: 0.1 | I55: 0 | J55: 30.000* | K55: 30.000* | L55: 0 | M55: 1.46 | N55: 0.005
A56: 35 | B56: 35 | C56: 0 | D56: 32 | E56: 59 | F56: 51.3 | G56: 0.9 | H56: 0.1 | I56: 0 | J56: 30.000* | K56: 30.000* | L56: 0 | M56: 1.46 | N56: 0.006
A57: 36 | B57: 36 | C57: 0 | D57: 32 | E57: 60 | F57: 52 | G57: 0.9 | H57: 0.1 | I57: 0 | J57: 30.000* | K57: 30.000* | L57: 0 | M57: 1.47 | N57: 0.006
A58: 37 | B58: 37 | C58: 0 | D58: 32 | E58: 61 | F58: 52.7 | G58: 0.9 | H58: 0.1 | I58: 0 | J58: 30.000* | K58: 30.000* | L58: 0 | M58: 1.47 | N58: 0.006
A59: 38 | B59: 38 | C59: 0 | D59: 32 | E59: 62 | F59: 53.4 | G59: 0.9 | H59: 0.1 | I59: 0 | J59: 30.000* | K59: 30.000* | L59: 0 | M59: 1.48 | N59: 0.006
A60: 39 | B60: 39 | C60: 0 | D60: 32 | E60: 63 | F60: 54.1 | G60: 0.9 | H60: 0.1 | I60: 0 | J60: 30.000* | K60: 30.000* | L60: 0 | M60: 1.49 | N60: 0.006
A61: 40 | B61: 40 | C61: 0 | D61: 32 | E61: 64 | F61: 54.8 | G61: 0.9 | H61: 0.1 | I61: 0 | J61: 30.000* | K61: 30.000* | L61: 0 | M61: 1.49 | N61: 0.007
A62: 41 | B62: 41 | C62: 0 | D62: 32 | E62: 65 | F62: 55.5 | G62: 0.9 | H62: 0.1 | I62: 0 | J62: 30.000* | K62: 30.000* | L62: 0 | M62: 1.5 | N62: 0.007
A63: 42 | B63: 42 | C63: 0 | D63: 32 | E63: 66 | F63: 56.2 | G63: 0.9 | H63: 0.1 | I63: 0 | J63: 30.000* | K63: 30.000* | L63: 0 | M63: 1.5 | N63: 0.007
A64: 43 | B64: 43 | C64: 0 | D64: 32 | E64: 67 | F64: 56.9 | G64: 0.9 | H64: 0.1 | I64: 0 | J64: 30.000* | K64: 30.000* | L64: 0 | M64: 1.51 | N64: 0.007
A65: 44 | B65: 44 | C65: 0 | D65: 32 | E65: 68 | F65: 57.6 | G65: 0.9 | H65: 0.1 | I65: 0 | J65: 30.000* | K65: 30.000* | L65: 0 | M65: 1.52 | N65: 0.008
A66: 45 | B66: 45 | C66: 0 | D66: 32 | E66: 69 | F66: 58.3 | G66: 0.9 | H66: 0.1 | I66: 0 | J66: 30.000* | K66: 30.000* | L66: 0 | M66: 1.52 | N66: 0.008
A67: 46 | B67: 46 | C67: 0 | D67: 32 | E67: 70 | F67: 59 | G67: 0.9 | H67: 0.1 | I67: 0 | J67: 30.000* | K67: 30.000* | L67: 0 | M67: 1.53 | N67: 0.008
A68: 47 | B68: 47 | C68: 0 | D68: 32 | E68: 71 | F68: 59.7 | G68: 0.9 | H68: 0.1 | I68: 0 | J68: 30.000* | K68: 30.000* | L68: 0 | M68: 1.54 | N68: 0.008
A69: 48 | B69: 48 | C69: 0 | D69: 32 | E69: 72 | F69: 60.4 | G69: 0.9 | H69: 0.1 | I69: 0 | J69: 30.000* | K69: 30.000* | L69: 0 | M69: 1.54 | N69: 0.009
A70: 49 | B70: 49 | C70: 0 | D70: 32 | E70: 73 | F70: 61.1 | G70: 0.9 | H70: 0.1 | I70: 0 | J70: 30.000* | K70: 30.000* | L70: 0 | M70: 1.55 | N70: 0.009
A71: 50 | B71: 50 | C71: 0 | D71: 32 | E71: 74 | F71: 61.8 | G71: 0.9 | H71: 0.1 | I71: 0 | J71: 30.000* | K71: 30.000* | L71: 0 | M71: 1.55 | N71: 0.009
A72: 51 | B72: 51 | C72: 0 | D72: 32 | E72: 75 | F72: 62.5 | G72: 0.9 | H72: 0.1 | I72: 0 | J72: 30.000* | K72: 30.000* | L72: 0 | M72: 1.56 | N72: 0.01
A73: 52 | B73: 52 | C73: 0 | D73: 32 | E73: 76 | F73: 63.2 | G73: 0.9 | H73: 0.1 | I73: 0 | J73: 30.000* | K73: 30.000* | L73: 0 | M73: 1.57 | N73: 0.01
A74: 53 | B74: 53 | C74: 0 | D74: 32 | E74: 77 | F74: 63.9 | G74: 0.9 | H74: 0.1 | I74: 0 | J74: 30.000* | K74: 30.000* | L74: 0 | M74: 1.57 | N74: 0.01
A75: 54 | B75: 54 | C75: 0 | D75: 32 | E75: 78 | F75: 64.6 | G75: 0.9 | H75: 0.1 | I75: 0 | J75: 30.000* | K75: 30.000* | L75: 0 | M75: 1.58 | N75: 0.011
A76: 55 | B76: 55 | C76: 0 | D76: 32 | E76: 79 | F76: 65.3 | G76: 0.9 | H76: 0.1 | I76: 0 | J76: 30.000* | K76: 30.000* | L76: 0 | M76: 1.58 | N76: 0.011
A77: 56 | B77: 56 | C77: 0 | D77: 32 | E77: 80 | F77: 66 | G77: 0.9 | H77: 0.1 | I77: 0 | J77: 30.000* | K77: 30.000* | L77: 0 | M77: 1.59 | N77: 0.011
A78: 57 | B78: 57 | C78: 0 | D78: 32 | E78: 81 | F78: 66.7 | G78: 0.9 | H78: 0.1 | I78: 0 | J78: 30.000* | K78: 30.000* | L78: 0 | M78: 1.6 | N78: 0.012
A79: 58 | B79: 58 | C79: 0 | D79: 32 | E79: 82 | F79: 67.4 | G79: 0.9 | H79: 0.1 | I79: 0 | J79: 30.000* | K79: 30.000* | L79: 0 | M79: 1.6 | N79: 0.012
A80: 59 | B80: 59 | C80: 0 | D80: 32 | E80: 83 | F80: 68.1 | G80: 0.9 | H80: 0.1 | I80: 0 | J80: 30.000* | K80: 30.000* | L80: 0 | M80: 1.61 | N80: 0.012
A81: 60 | B81: 60 | C81: 0 | D81: 32 | E81: 84 | F81: 68.8 | G81: 0.9 | H81: 0.1 | I81: 0 | J81: 30.000* | K81: 30.000* | L81: 0 | M81: 1.61 | N81: 0.013
A82: 61 | B82: 61 | C82: 0 | D82: 32 | E82: 85 | F82: 69.5 | G82: 0.9 | H82: 0.1 | I82: 0 | J82: 30.000* | K82: 30.000* | L82: 0 | M82: 1.62 | N82: 0.013
A83: 62 | B83: 62 | C83: 0 | D83: 32 | E83: 86 | F83: 70.2 | G83: 0.9 | H83: 0.1 | I83: 0 | J83: 30.000* | K83: 30.000* | L83: 0 | M83: 1.63 | N83: 0.014
A84: 63 | B84: 63 | C84: 0 | D84: 32 | E84: 87 | F84: 70.9 | G84: 0.9 | H84: 0.1 | I84: 0 | J84: 30.000* | K84: 30.000* | L84: 0 | M84: 1.63 | N84: 0.014
A85: 64 | B85: 64 | C85: 0 | D85: 32 | E85: 88 | F85: 71.6 | G85: 0.9 | H85: 0.1 | I85: 0 | J85: 30.000* | K85: 30.000* | L85: 0 | M85: 1.64 | N85: 0.015
A86: 65 | B86: 65 | C86: 0 | D86: 32 | E86: 89 | F86: 72.3 | G86: 0.9 | H86: 0.1 | I86: 0 | J86: 30.000* | K86: 30.000* | L86: 0 | M86: 1.64 | N86: 0.015
A87: 66 | B87: 66 | C87: 0 | D87: 32 | E87: 90 | F87: 73 | G87: 0.9 | H87: 0.1 | I87: 0 | J87: 30.000* | K87: 30.000* | L87: 0 | M87: 1.65 | N87: 0.015
A88: 67 | B88: 67 | C88: 0 | D88: 32 | E88: 91 | F88: 73.7 | G88: 0.9 | H88: 0.1 | I88: 0 | J88: 30.000* | K88: 30.000* | L88: 0 | M88: 1.66 | N88: 0.016
A89: 68 | B89: 68 | C89: 0 | D89: 32 | E89: 92 | F89: 74.4 | G89: 0.9 | H89: 0.1 | I89: 0 | J89: 30.000* | K89: 30.000* | L89: 0 | M89: 1.66 | N89: 0.016
A90: 69 | B90: 69 | C90: 0 | D90: 32 | E90: 93 | F90: 75.1 | G90: 0.9 | H90: 0.1 | I90: 0 | J90: 30.000* | K90: 30.000* | L90: 0 | M90: 1.67 | N90: 0.017
A91: 70 | B91: 70 | C91: 0 | D91: 32 | E91: 94 | F91: 75.8 | G91: 0.9 | H91: 0.1 | I91: 0 | J91: 30.000* | K91: 30.000* | L91: 0 | M91: 1.68 | N91: 0.017
A92: 71 | B92: 71 | C92: 0 | D92: 32 | E92: 95 | F92: 76.5 | G92: 0.9 | H92: 0.1 | I92: 0 | J92: 30.000* | K92: 30.000* | L92: 0 | M92: 1.68 | N92: 0.018
A93: 72 | B93: 72 | C93: 0 | D93: 32 | E93: 96 | F93: 77.2 | G93: 0.9 | H93: 0.1 | I93: 0 | J93: 30.000* | K93: 30.000* | L93: 0 | M93: 1.69 | N93: 0.018
A94: 73 | B94: 73 | C94: 0 | D94: 32 | E94: 97 | F94: 77.9 | G94: 0.9 | H94: 0.1 | I94: 0 | J94: 30.000* | K94: 30.000* | L94: 0 | M94: 1.69 | N94: 0.019
A95: 74 | B95: 74 | C95: 0 | D95: 32 | E95: 98 | F95: 78.6 | G95: 0.9 | H95: 0.1 | I95: 0 | J95: 30.000* | K95: 30.000* | L95: 0 | M95: 1.7 | N95: 0.02
A96: 75 | B96: 75 | C96: 0 | D96: 32 | E96: 99 | F96: 79.3 | G96: 0.9 | H96: 0.1 | I96: 0 | J96: 30.000* | K96: 30.000* | L96: 0 | M96: 1.71 | N96: 0.02
A97: 76 | B97: 76 | C97: 0 | D97: 32 | E97: 100 | F97: 80 | G97: 0.9 | H97: 0.1 | I97: 0 | J97: 30.000* | K97: 30.000* | L97: 0 | M97: 1.71 | N97: 0.021
A98: 77 | B98: 77 | C98: 0 | D98: 32 | E98: 101 | F98: 80.7 | G98: 0.9 | H98: 0.1 | I98: 0 | J98: 30.000* | K98: 30.000* | L98: 0 | M98: 1.72 | N98: 0.021
A99: 78 | B99: 78 | C99: 0 | D99: 32 | E99: 102 | F99: 81.4 | G99: 0.9 | H99: 0.1 | I99: 0 | J99: 30.000* | K99: 30.000* | L99: 0 | M99: 1.72 | N99: 0.022
A100: 79 | B100: 79 | C100: 0 | D100: 32 | E100: 103 | F100: 82.1 | G100: 0.9 | H100: 0.1 | I100: 0 | J100: 30.000* | K100: 30.000* | L100: 0 | M100: 1.73 | N100: 0.022
A101: 80 | B101: 80 | C101: 0 | D101: 32 | E101: 104 | F101: 82.8 | G101: 0.9 | H101: 0.1 | I101: 0 | J101: 30.000* | K101: 30.000* | L101: 0 | M101: 1.74 | N101: 0.023
A102: 81 | B102: 81 | C102: 0 | D102: 32 | E102: 105 | F102: 83.5 | G102: 0.9 | H102: 0.1 | I102: 0 | J102: 30.000* | K102: 30.000* | L102: 0 | M102: 1.74 | N102: 0.024
A103: 82 | B103: 82 | C103: 0 | D103: 32 | E103: 106 | F103: 84.2 | G103: 0.9 | H103: 0.1 | I103: 0 | J103: 30.000* | K103: 30.000* | L103: 0 | M103: 1.75 | N103: 0.024
A104: 83 | B104: 83 | C104: 0 | D104: 32 | E104: 107 | F104: 84.9 | G104: 0.9 | H104: 0.1 | I104: 0 | J104: 30.000* | K104: 30.000* | L104: 0 | M104: 1.75 | N104: 0.025
A105: 84 | B105: 84 | C105: 0 | D105: 32 | E105: 108 | F105: 85.6 | G105: 0.9 | H105: 0.1 | I105: 0 | J105: 30.000* | K105: 30.000* | L105: 0 | M105: 1.76 | N105: 0.026
A106: 85 | B106: 85 | C106: 0 | D106: 32 | E106: 109 | F106: 86.3 | G106: 0.9 | H106: 0.1 | I106: 0 | J106: 30.000* | K106: 30.000* | L106: 0 | M106: 1.77 | N106: 0.027
A107: 86 | B107: 86 | C107: 0 | D107: 32 | E107: 110 | F107: 87 | G107: 0.9 | H107: 0.1 | I107: 0 | J107: 30.000* | K107: 30.000* | L107: 0 | M107: 1.77 | N107: 0.027
A108: 87 | B108: 87 | C108: 0 | D108: 32 | E108: 111 | F108: 87.7 | G108: 0.9 | H108: 0.1 | I108: 0 | J108: 30.000* | K108: 30.000* | L108: 0 | M108: 1.78 | N108: 0.028
A109: 88 | B109: 88 | C109: 0 | D109: 32 | E109: 112 | F109: 88.4 | G109: 0.9 | H109: 0.1 | I109: 0 | J109: 30.000* | K109: 30.000* | L109: 0 | M109: 1.78 | N109: 0.029
A110: 89 | B110: 89 | C110: 0 | D110: 32 | E110: 113 | F110: 89.1 | G110: 0.9 | H110: 0.1 | I110: 0 | J110: 30.000* | K110: 30.000* | L110: 0 | M110: 1.79 | N110: 0.029
A111: 90 | B111: 90 | C111: 0 | D111: 32 | E111: 114 | F111: 89.8 | G111: 0.9 | H111: 0.1 | I111: 0 | J111: 30.000* | K111: 30.000* | L111: 0 | M111: 1.8 | N111: 0.03
A112: 91 | B112: 91 | C112: 0 | D112: 32 | E112: 115 | F112: 90.5 | G112: 0.9 | H112: 0.1 | I112: 0 | J112: 30.000* | K112: 30.000* | L112: 0 | M112: 1.8 | N112: 0.031
A113: 92 | B113: 92 | C113: 0 | D113: 32 | E113: 116 | F113: 91.2 | G113: 0.9 | H113: 0.1 | I113: 0 | J113: 30.000* | K113: 30.000* | L113: 0 | M113: 1.81 | N113: 0.032
A114: 93 | B114: 93 | C114: 0 | D114: 32 | E114: 117 | F114: 91.9 | G114: 0.9 | H114: 0.1 | I114: 0 | J114: 30.000* | K114: 30.000* | L114: 0 | M114: 1.81 | N114: 0.033
A115: 94 | B115: 94 | C115: 0 | D115: 32 | E115: 118 | F115: 92.6 | G115: 0.9 | H115: 0.1 | I115: 0 | J115: 30.000* | K115: 30.000* | L115: 0 | M115: 1.82 | N115: 0.034
A116: 95 | B116: 95 | C116: 0 | D116: 32 | E116: 119 | F116: 93.3 | G116: 0.9 | H116: 0.1 | I116: 0 | J116: 30.000* | K116: 30.000* | L116: 0 | M116: 1.83 | N116: 0.034
A117: 96 | B117: 96 | C117: 0 | D117: 32 | E117: 120 | F117: 94 | G117: 0.9 | H117: 0.1 | I117: 0 | J117: 30.000* | K117: 30.000* | L117: 0 | M117: 1.83 | N117: 0.035
A118: 97 | B118: 97 | C118: 0 | D118: 32 | E118: 121 | F118: 94.7 | G118: 0.9 | H118: 0.1 | I118: 0 | J118: 30.000* | K118: 30.000* | L118: 0 | M118: 1.84 | N118: 0.036
A119: 98 | B119: 98 | C119: 0 | D119: 32 | E119: 122 | F119: 95.4 | G119: 0.9 | H119: 0.1 | I119: 0 | J119: 30.000* | K119: 30.000* | L119: 0 | M119: 1.84 | N119: 0.037
A120: 99 | B120: 99 | C120: 0 | D120: 32 | E120: 123 | F120: 96.1 | G120: 0.9 | H120: 0.1 | I120: 0 | J120: 30.000* | K120: 30.000* | L120: 0 | M120: 1.85 | N120: 0.038
A121: 100 | B121: 100 | C121: 0 | D121: 32 | E121: 124 | F121: 96.8 | G121: 0.9 | H121: 0.1 | I121: 0 | J121: 30.000* | K121: 30.000* | L121: 0 | M121: 1.86 | N121: 0.039
A122: 101 | B122: 101 | C122: 0 | D122: 32 | E122: 125 | F122: 97.5 | G122: 0.9 | H122: 0.1 | I122: 0 | J122: 30.000* | K122: 30.000* | L122: 0 | M122: 1.86 | N122: 0.04
A123: 102 | B123: 102 | C123: 0 | D123: 32 | E123: 126 | F123: 98.2 | G123: 0.9 | H123: 0.1 | I123: 0 | J123: 30.000* | K123: 30.000* | L123: 0 | M123: 1.87 | N123: 0.041
A124: 103 | B124: 103 | C124: 0 | D124: 32 | E124: 127 | F124: 98.9 | G124: 0.9 | H124: 0.1 | I124: 0 | J124: 30.000* | K124: 30.000* | L124: 0 | M124: 1.87 | N124: 0.042
A125: 104 | B125: 104 | C125: 0 | D125: 32 | E125: 128 | F125: 99.6 | G125: 0.9 | H125: 0.1 | I125: 0 | J125: 30.000* | K125: 30.000* | L125: 0 | M125: 1.88 | N125: 0.043
A126: 105 | B126: 105 | C126: 0 | D126: 32 | E126: 129 | F126: 100.3 | G126: 0.9 | H126: 0.1 | I126: 0 | J126: 30.000* | K126: 30.000* | L126: 0 | M126: 1.89 | N126: 0.044
A127: 106 | B127: 106 | C127: 0 | D127: 32 | E127: 130 | F127: 101 | G127: 0.9 | H127: 0.1 | I127: 0 | J127: 30.000* | K127: 30.000* | L127: 0 | M127: 1.89 | N127: 0.045
A128: 107 | B128: 107 | C128: 0 | D128: 32 | E128: 131 | F128: 101.7 | G128: 0.9 | H128: 0.1 | I128: 0 | J128: 30.000* | K128: 30.000* | L128: 0 | M128: 1.9 | N128: 0.046
A129: 108 | B129: 108 | C129: 0 | D129: 32 | E129: 132 | F129: 102.4 | G129: 0.9 | H129: 0.1 | I129: 0 | J129: 30.000* | K129: 30.000* | L129: 0 | M129: 1.9 | N129: 0.048
A130: 109 | B130: 109 | C130: 0 | D130: 32 | E130: 133 | F130: 103.1 | G130: 0.9 | H130: 0.1 | I130: 0 | J130: 30.000* | K130: 30.000* | L130: 0 | M130: 1.91 | N130: 0.049
A131: 110 | B131: 110 | C131: 0 | D131: 32 | E131: 134 | F131: 103.8 | G131: 0.9 | H131: 0.1 | I131: 0 | J131: 30.000* | K131: 30.000* | L131: 0 | M131: 1.92 | N131: 0.05
A132: 111 | B132: 111 | C132: 0 | D132: 32 | E132: 135 | F132: 104.5 | G132: 0.9 | H132: 0.1 | I132: 0 | J132: 30.000* | K132: 30.000* | L132: 0 | M132: 1.92 | N132: 0.051
A133: 112 | B133: 112 | C133: 0 | D133: 32 | E133: 136 | F133: 105.2 | G133: 0.9 | H133: 0.1 | I133: 0 | J133: 30.000* | K133: 30.000* | L133: 0 | M133: 1.93 | N133: 0.052
A134: 113 | B134: 113 | C134: 0 | D134: 32 | E134: 137 | F134: 105.9 | G134: 0.9 | H134: 0.1 | I134: 0 | J134: 30.000* | K134: 30.000* | L134: 0 | M134: 1.93 | N134: 0.053
A135: 114 | B135: 114 | C135: 0 | D135: 32 | E135: 138 | F135: 106.6 | G135: 0.9 | H135: 0.1 | I135: 0 | J135: 30.000* | K135: 30.000* | L135: 0 | M135: 1.94 | N135: 0.055
A136: 115 | B136: 115 | C136: 0 | D136: 32 | E136: 139 | F136: 107.3 | G136: 0.9 | H136: 0.1 | I136: 0 | J136: 30.000* | K136: 30.000* | L136: 0 | M136: 1.95 | N136: 0.056
A137: 116 | B137: 116 | C137: 0 | D137: 32 | E137: 140 | F137: 108 | G137: 0.9 | H137: 0.1 | I137: 0 | J137: 30.000* | K137: 30.000* | L137: 0 | M137: 1.95 | N137: 0.057
A138: 117 | B138: 117 | C138: 0 | D138: 32 | E138: 141 | F138: 108.7 | G138: 0.9 | H138: 0.1 | I138: 0 | J138: 30.000* | K138: 30.000* | L138: 0 | M138: 1.96 | N138: 0.059
A139: 118 | B139: 118 | C139: 0 | D139: 32 | E139: 142 | F139: 109.4 | G139: 0.9 | H139: 0.1 | I139: 0 | J139: 30.000* | K139: 30.000* | L139: 0 | M139: 1.96 | N139: 0.06
A140: 119 | B140: 119 | C140: 0 | D140: 32 | E140: 143 | F140: 110.1 | G140: 0.9 | H140: 0.1 | I140: 0 | J140: 30.000* | K140: 30.000* | L140: 0 | M140: 1.97 | N140: 0.061
A141: 120 | B141: 120 | C141: 0 | D141: 32 | E141: 144 | F141: 110.8 | G141: 0.9 | H141: 0.1 | I141: 0 | J141: 30.000* | K141: 30.000* | L141: 0 | M141: 1.98 | N141: 0.063
A142: 121 | B142: 121 | C142: 0 | D142: 32 | E142: 145 | F142: 111.5 | G142: 0.9 | H142: 0.1 | I142: 0 | J142: 30.000* | K142: 30.000* | L142: 0 | M142: 1.98 | N142: 0.064
A143: 122 | B143: 122 | C143: 0 | D143: 32 | E143: 146 | F143: 112.2 | G143: 0.9 | H143: 0.1 | I143: 0 | J143: 30.000* | K143: 30.000* | L143: 0 | M143: 1.99 | N143: 0.066
A144: 123 | B144: 123 | C144: 0 | D144: 32 | E144: 147 | F144: 112.9 | G144: 0.9 | H144: 0.1 | I144: 0 | J144: 30.000* | K144: 30.000* | L144: 0 | M144: 1.99 | N144: 0.067
A145: 124 | B145: 124 | C145: 0 | D145: 32 | E145: 148 | F145: 113.6 | G145: 0.9 | H145: 0.1 | I145: 0 | J145: 30.000* | K145: 30.000* | L145: 0 | M145: 2 | N145: 0.069
A146: 125 | B146: 125 | C146: 0 | D146: 32 | E146: 149 | F146: 114.3 | G146: 0.9 | H146: 0.1 | I146: 0 | J146: 30.000* | K146: 30.000* | L146: 0 | M146: 2.01 | N146: 0.07
A147: 126 | B147: 126 | C147: 0 | D147: 32 | E147: 150 | F147: 115 | G147: 0.9 | H147: 0.1 | I147: 0 | J147: 30.000* | K147: 30.000* | L147: 0 | M147: 2.01 | N147: 0.072
A148: 127 | B148: 127 | C148: 0 | D148: 32 | E148: 151 | F148: 115.7 | G148: 0.9 | H148: 0.1 | I148: 0 | J148: 30.000* | K148: 30.000* | L148: 0 | M148: 2.02 | N148: 0.073
A149: 128 | B149: 128 | C149: 0 | D149: 32 | E149: 152 | F149: 116.4 | G149: 0.9 | H149: 0.1 | I149: 0 | J149: 30.000* | K149: 30.000* | L149: 0 | M149: 2.02 | N149: 0.075
A150: 129 | B150: 129 | C150: 0 | D150: 32 | E150: 153 | F150: 117.1 | G150: 0.9 | H150: 0.1 | I150: 0 | J150: 30.000* | K150: 30.000* | L150: 0 | M150: 2.03 | N150: 0.076
A151: 130 | B151: 130 | C151: 0 | D151: 32 | E151: 154 | F151: 117.8 | G151: 0.9 | H151: 0.1 | I151: 0 | J151: 30.000* | K151: 30.000* | L151: 0 | M151: 2.04 | N151: 0.078
A152: 131 | B152: 131 | C152: 0 | D152: 32 | E152: 155 | F152: 118.5 | G152: 0.9 | H152: 0.1 | I152: 0 | J152: 30.000* | K152: 30.000* | L152: 0 | M152: 2.04 | N152: 0.08
A153: 132 | B153: 132 | C153: 0 | D153: 32 | E153: 156 | F153: 119.2 | G153: 0.9 | H153: 0.1 | I153: 0 | J153: 30.000* | K153: 30.000* | L153: 0 | M153: 2.05 | N153: 0.082
A154: 133 | B154: 133 | C154: 0 | D154: 32 | E154: 157 | F154: 119.9 | G154: 0.9 | H154: 0.1 | I154: 0 | J154: 30.000* | K154: 30.000* | L154: 0 | M154: 2.05 | N154: 0.083
A155: 134 | B155: 134 | C155: 0 | D155: 32 | E155: 158 | F155: 120.6 | G155: 0.9 | H155: 0.1 | I155: 0 | J155: 30.000* | K155: 30.000* | L155: 0 | M155: 2.06 | N155: 0.085
A156: 135 | B156: 135 | C156: 0 | D156: 32 | E156: 159 | F156: 121.3 | G156: 0.9 | H156: 0.1 | I156: 0 | J156: 30.000* | K156: 30.000* | L156: 0 | M156: 2.07 | N156: 0.087
A157: 136 | B157: 136 | C157: 0 | D157: 32 | E157: 160 | F157: 122 | G157: 0.9 | H157: 0.1 | I157: 0 | J157: 30.000* | K157: 30.000* | L157: 0 | M157: 2.07 | N157: 0.089
A158: 137 | B158: 137 | C158: 0 | D158: 32 | E158: 161 | F158: 122.7 | G158: 0.9 | H158: 0.1 | I158: 0 | J158: 30.000* | K158: 30.000* | L158: 0 | M158: 2.08 | N158: 0.091
A159: 138 | B159: 138 | C159: 0 | D159: 32 | E159: 162 | F159: 123.4 | G159: 0.9 | H159: 0.1 | I159: 0 | J159: 30.000* | K159: 30.000* | L159: 0 | M159: 2.08 | N159: 0.092
A160: 139 | B160: 139 | C160: 0 | D160: 32 | E160: 163 | F160: 124.1 | G160: 0.9 | H160: 0.1 | I160: 0 | J160: 30.000* | K160: 30.000* | L160: 0 | M160: 2.09 | N160: 0.094
A161: 140 | B161: 140 | C161: 0 | D161: 32 | E161: 164 | F161: 124.8 | G161: 0.9 | H161: 0.1 | I161: 0 | J161: 30.000* | K161: 30.000* | L161: 0 | M161: 2.09 | N161: 0.096
A162: 141 | B162: 141 | C162: 0 | D162: 32 | E162: 165 | F162: 125.5 | G162: 0.9 | H162: 0.1 | I162: 0 | J162: 30.000* | K162: 30.000* | L162: 0 | M162: 2.1 | N162: 0.098
A163: 142 | B163: 142 | C163: 0 | D163: 32 | E163: 166 | F163: 126.2 | G163: 0.9 | H163: 0.1 | I163: 0 | J163: 30.000* | K163: 30.000* | L163: 0 | M163: 2.11 | N163: 0.1
A164: 143 | B164: 143 | C164: 0 | D164: 32 | E164: 167 | F164: 126.9 | G164: 0.9 | H164: 0.1 | I164: 0 | J164: 30.000* | K164: 30.000* | L164: 0 | M164: 2.11 | N164: 0.102
A165: 144 | B165: 144 | C165: 0 | D165: 32 | E165: 168 | F165: 127.6 | G165: 0.9 | H165: 0.1 | I165: 0 | J165: 30.000* | K165: 30.000* | L165: 0 | M165: 2.12 | N165: 0.104
A166: 145 | B166: 145 | C166: 0 | D166: 32 | E166: 169 | F166: 128.3 | G166: 0.9 | H166: 0.1 | I166: 0 | J166: 30.000* | K166: 30.000* | L166: 0 | M166: 2.12 | N166: 0.106
A167: 146 | B167: 146 | C167: 0 | D167: 32 | E167: 170 | F167: 129 | G167: 0.9 | H167: 0.1 | I167: 0 | J167: 30.000* | K167: 30.000* | L167: 0 | M167: 2.13 | N167: 0.109
A168: 147 | B168: 147 | C168: 0 | D168: 32 | E168: 171 | F168: 129.7 | G168: 0.9 | H168: 0.1 | I168: 0 | J168: 30.000* | K168: 30.000* | L168: 0 | M168: 2.14 | N168: 0.111
A169: 148 | B169: 148 | C169: 0 | D169: 32 | E169: 172 | F169: 130.4 | G169: 0.9 | H169: 0.1 | I169: 0 | J169: 30.000* | K169: 30.000* | L169: 0 | M169: 2.14 | N169: 0.113
A170: 149 | B170: 149 | C170: 0 | D170: 32 | E170: 173 | F170: 131.1 | G170: 0.9 | H170: 0.1 | I170: 0 | J170: 30.000* | K170: 30.000* | L170: 0 | M170: 2.15 | N170: 0.115
A171: 150 | B171: 150 | C171: 0 | D171: 32 | E171: 174 | F171: 131.8 | G171: 0.9 | H171: 0.1 | I171: 0 | J171: 30.000* | K171: 30.000* | L171: 0 | M171: 2.15 | N171: 0.117
A172: 151 | B172: 151 | C172: 0 | D172: 32 | E172: 175 | F172: 132.5 | G172: 0.9 | H172: 0.1 | I172: 0 | J172: 30.000* | K172: 30.000* | L172: 0 | M172: 2.16 | N172: 0.12
A173: 152 | B173: 152 | C173: 0 | D173: 32 | E173: 176 | F173: 133.2 | G173: 0.9 | H173: 0.1 | I173: 0 | J173: 30.000* | K173: 30.000* | L173: 0 | M173: 2.17 | N173: 0.122
A174: 153 | B174: 153 | C174: 0 | D174: 32 | E174: 177 | F174: 133.9 | G174: 0.9 | H174: 0.1 | I174: 0 | J174: 30.000* | K174: 30.000* | L174: 0 | M174: 2.17 | N174: 0.124
A175: 154 | B175: 154 | C175: 0 | D175: 32 | E175: 178 | F175: 134.6 | G175: 0.9 | H175: 0.1 | I175: 0 | J175: 30.000* | K175: 30.000* | L175: 0 | M175: 2.18 | N175: 0.127
A176: 155 | B176: 155 | C176: 0 | D176: 32 | E176: 179 | F176: 135.3 | G176: 0.9 | H176: 0.1 | I176: 0 | J176: 30.000* | K176: 30.000* | L176: 0 | M176: 2.18 | N176: 0.129
A177: 156 | B177: 156 | C177: 0 | D177: 32 | E177: 180 | F177: 136 | G177: 0.9 | H177: 0.1 | I177: 0 | J177: 30.000* | K177: 30.000* | L177: 0 | M177: 2.19 | N177: 0.132
A178: 157 | B178: 157 | C178: 0 | D178: 32 | E178: 181 | F178: 136.7 | G178: 0.9 | H178: 0.1 | I178: 0 | J178: 30.000* | K178: 30.000* | L178: 0 | M178: 2.2 | N178: 0.134
A179: 158 | B179: 158 | C179: 0 | D179: 32 | E179: 182 | F179: 137.4 | G179: 0.9 | H179: 0.1 | I179: 0 | J179: 30.000* | K179: 30.000* | L179: 0 | M179: 2.2 | N179: 0.137
A180: 159 | B180: 159 | C180: 0 | D180: 32 | E180: 183 | F180: 138.1 | G180: 0.9 | H180: 0.1 | I180: 0 | J180: 30.000* | K180: 30.000* | L180: 0 | M180: 2.21 | N180: 0.139
A181: 160 | B181: 160 | C181: 0 | D181: 32 | E181: 184 | F181: 138.8 | G181: 0.9 | H181: 0.1 | I181: 0 | J181: 30.000* | K181: 30.000* | L181: 0 | M181: 2.21 | N181: 0.142
A182: 161 | B182: 161 | C182: 0 | D182: 32 | E182: 185 | F182: 139.5 | G182: 0.9 | H182: 0.1 | I182: 0 | J182: 30.000* | K182: 30.000* | L182: 0 | M182: 2.22 | N182: 0.145
A183: 162 | B183: 162 | C183: 0 | D183: 32 | E183: 186 | F183: 140.2 | G183: 0.9 | H183: 0.1 | I183: 0 | J183: 30.000* | K183: 30.000* | L183: 0 | M183: 2.23 | N183: 0.147
A184: 163 | B184: 163 | C184: 0 | D184: 32 | E184: 187 | F184: 140.9 | G184: 0.9 | H184: 0.1 | I184: 0 | J184: 30.000* | K184: 30.000* | L184: 0 | M184: 2.23 | N184: 0.15
A185: 164 | B185: 164 | C185: 0 | D185: 32 | E185: 188 | F185: 141.6 | G185: 0.9 | H185: 0.1 | I185: 0 | J185: 30.000* | K185: 30.000* | L185: 0 | M185: 2.24 | N185: 0.153
A186: 165 | B186: 165 | C186: 0 | D186: 32 | E186: 189 | F186: 142.3 | G186: 0.9 | H186: 0.1 | I186: 0 | J186: 30.000* | K186: 30.000* | L186: 0 | M186: 2.24 | N186: 0.156
A187: 166 | B187: 166 | C187: 0 | D187: 32 | E187: 190 | F187: 143 | G187: 0.9 | H187: 0.1 | I187: 0 | J187: 30.000* | K187: 30.000* | L187: 0 | M187: 2.25 | N187: 0.159
A188: 167 | B188: 167 | C188: 0 | D188: 32 | E188: 191 | F188: 143.7 | G188: 0.9 | H188: 0.1 | I188: 0 | J188: 30.000* | K188: 30.000* | L188: 0 | M188: 2.25 | N188: 0.161
A189: 168 | B189: 168 | C189: 0 | D189: 32 | E189: 192 | F189: 144.4 | G189: 0.9 | H189: 0.1 | I189: 0 | J189: 30.000* | K189: 30.000* | L189: 0 | M189: 2.26 | N189: 0.164
A190: 169 | B190: 169 | C190: 0 | D190: 32 | E190: 193 | F190: 145.1 | G190: 0.9 | H190: 0.1 | I190: 0 | J190: 30.000* | K190: 30.000* | L190: 0 | M190: 2.27 | N190: 0.167
A191: 170 | B191: 170 | C191: 0 | D191: 32 | E191: 194 | F191: 145.8 | G191: 0.9 | H191: 0.1 | I191: 0 | J191: 30.000* | K191: 30.000* | L191: 0 | M191: 2.27 | N191: 0.17
A192: 171 | B192: 171 | C192: 0 | D192: 32 | E192: 195 | F192: 146.5 | G192: 0.9 | H192: 0.1 | I192: 0 | J192: 30.000* | K192: 30.000* | L192: 0 | M192: 2.28 | N192: 0.173
A193: 172 | B193: 172 | C193: 0 | D193: 32 | E193: 196 | F193: 147.2 | G193: 0.9 | H193: 0.1 | I193: 0 | J193: 30.000* | K193: 30.000* | L193: 0 | M193: 2.28 | N193: 0.176
A194: 173 | B194: 173 | C194: 0 | D194: 32 | E194: 197 | F194: 147.9 | G194: 0.9 | H194: 0.1 | I194: 0 | J194: 30.000* | K194: 30.000* | L194: 0 | M194: 2.29 | N194: 0.18
A195: 174 | B195: 174 | C195: 0 | D195: 32 | E195: 198 | F195: 148.6 | G195: 0.9 | H195: 0.1 | I195: 0 | J195: 30.000* | K195: 30.000* | L195: 0 | M195: 2.3 | N195: 0.183
A196: 175 | B196: 175 | C196: 0 | D196: 32 | E196: 199 | F196: 149.3 | G196: 0.9 | H196: 0.1 | I196: 0 | J196: 30.000* | K196: 30.000* | L196: 0 | M196: 2.3 | N196: 0.186
A197: 176 | B197: 176 | C197: 0 | D197: 32 | E197: 200 | F197: 150 | G197: 0.9 | H197: 0.1 | I197: 0 | J197: 30.000* | K197: 30.000* | L197: 0 | M197: 2.31 | N197: 0.189
A198: 177 | B198: 177 | C198: 0 | D198: 32 | E198: 201 | F198: 150.7 | G198: 0.9 | H198: 0.1 | I198: 0 | J198: 30.000* | K198: 30.000* | L198: 0 | M198: 2.31 | N198: 0.192
A199: 178 | B199: 178 | C199: 0 | D199: 32 | E199: 202 | F199: 151.4 | G199: 0.9 | H199: 0.1 | I199: 0 | J199: 30.000* | K199: 30.000* | L199: 0 | M199: 2.32 | N199: 0.196
A200: 179 | B200: 179 | C200: 0 | D200: 32 | E200: 203 | F200: 152.1 | G200: 0.9 | H200: 0.1 | I200: 0 | J200: 30.000* | K200: 30.000* | L200: 0 | M200: 2.33 | N200: 0.199
A201: 180 | B201: 180 | C201: 0 | D201: 32 | E201: 204 | F201: 152.8 | G201: 0.9 | H201: 0.1 | I201: 0 | J201: 30.000* | K201: 30.000* | L201: 0 | M201: 2.33 | N201: 0.203
A202: 181 | B202: 181 | C202: 0 | D202: 32 | E202: 205 | F202: 153.5 | G202: 0.9 | H202: 0.1 | I202: 0 | J202: 30.000* | K202: 30.000* | L202: 0 | M202: 2.34 | N202: 0.206
A203: 182 | B203: 182 | C203: 0 | D203: 32 | E203: 206 | F203: 154.2 | G203: 0.9 | H203: 0.1 | I203: 0 | J203: 30.000* | K203: 30.000* | L203: 0 | M203: 2.34 | N203: 0.21
A204: 183 | B204: 183 | C204: 0 | D204: 32 | E204: 207 | F204: 154.9 | G204: 0.9 | H204: 0.1 | I204: 0 | J204: 30.000* | K204: 30.000* | L204: 0 | M204: 2.35 | N204: 0.213
A205: 184 | B205: 184 | C205: 0 | D205: 32 | E205: 208 | F205: 155.6 | G205: 0.9 | H205: 0.1 | I205: 0 | J205: 30.000* | K205: 30.000* | L205: 0 | M205: 2.35 | N205: 0.217
... 3792 more rows

Sheet Batch Output P10 (hidden)
A1: LEAD BATCH MODE OUTPUT FILE
A2: Model Version: 2.0 Build1
A3: User Name:
A4: Date:
A5: Site Name:
A6: Operable Unit:
A7: Run Mode: Research
A8: ----------------------------------------------------------------------------------
A10: * : signify default values used in place of missing input data.
A11: ---: signify missing input data.
A12: PBB & PRED are the observed and predicted blood Pb levels in µg/dL.
A14: Percent exceedance was calculated using values of GSD and PbB Cutoff as follows:
A15: GSD = 1.600
A16: PbB Cutoff ( C ) = 10.000 µg/dL
A18: Input File: Batch File TWA.dat
A20: ID | B20: FAM | C20: BLK | D20: AGE (mon) | E20: SOIL (µg/g) | F20: DUST (µg/g) | G20: WATER (µg/L) | H20: AIR (µg/m³) | I20: Other (µg/day) | J20: ABSSoil (%) | K20: ABSDust (%) | L20: PBB (µg/dL) | M20: PRED (µg/dL) | N20: P(PbB>C) (%)
A22: 1 | B22: 1 | C22: 0 | D22: 32 | E22: 25 | F22: 27.5 | G22: 0.9 | H22: 0.1 | I22: 0 | J22: 30.000* | K22: 30.000* | L22: 0 | M22: 1.25 | N22: 0
A23: 2 | B23: 2 | C23: 0 | D23: 32 | E23: 26 | F23: 28.2 | G23: 0.9 | H23: 0.1 | I23: 0 | J23: 30.000* | K23: 30.000* | L23: 0 | M23: 1.26 | N23: 0.001
A24: 3 | B24: 3 | C24: 0 | D24: 32 | E24: 27 | F24: 28.9 | G24: 0.9 | H24: 0.1 | I24: 0 | J24: 30.000* | K24: 30.000* | L24: 0 | M24: 1.27 | N24: 0.001
A25: 4 | B25: 4 | C25: 0 | D25: 32 | E25: 28 | F25: 29.6 | G25: 0.9 | H25: 0.1 | I25: 0 | J25: 30.000* | K25: 30.000* | L25: 0 | M25: 1.27 | N25: 0.001
A26: 5 | B26: 5 | C26: 0 | D26: 32 | E26: 29 | F26: 30.3 | G26: 0.9 | H26: 0.1 | I26: 0 | J26: 30.000* | K26: 30.000* | L26: 0 | M26: 1.28 | N26: 0.001
A27: 6 | B27: 6 | C27: 0 | D27: 32 | E27: 30 | F27: 31 | G27: 0.9 | H27: 0.1 | I27: 0 | J27: 30.000* | K27: 30.000* | L27: 0 | M27: 1.28 | N27: 0.001
A28: 7 | B28: 7 | C28: 0 | D28: 32 | E28: 31 | F28: 31.7 | G28: 0.9 | H28: 0.1 | I28: 0 | J28: 30.000* | K28: 30.000* | L28: 0 | M28: 1.29 | N28: 0.001
A29: 8 | B29: 8 | C29: 0 | D29: 32 | E29: 32 | F29: 32.4 | G29: 0.9 | H29: 0.1 | I29: 0 | J29: 30.000* | K29: 30.000* | L29: 0 | M29: 1.3 | N29: 0.001
A30: 9 | B30: 9 | C30: 0 | D30: 32 | E30: 33 | F30: 33.1 | G30: 0.9 | H30: 0.1 | I30: 0 | J30: 30.000* | K30: 30.000* | L30: 0 | M30: 1.3 | N30: 0.001
A31: 10 | B31: 10 | C31: 0 | D31: 32 | E31: 34 | F31: 33.8 | G31: 0.9 | H31: 0.1 | I31: 0 | J31: 30.000* | K31: 30.000* | L31: 0 | M31: 1.31 | N31: 0.001
A32: 11 | B32: 11 | C32: 0 | D32: 32 | E32: 35 | F32: 34.5 | G32: 0.9 | H32: 0.1 | I32: 0 | J32: 30.000* | K32: 30.000* | L32: 0 | M32: 1.31 | N32: 0.001
A33: 12 | B33: 12 | C33: 0 | D33: 32 | E33: 36 | F33: 35.2 | G33: 0.9 | H33: 0.1 | I33: 0 | J33: 30.000* | K33: 30.000* | L33: 0 | M33: 1.32 | N33: 0.001
A34: 13 | B34: 13 | C34: 0 | D34: 32 | E34: 37 | F34: 35.9 | G34: 0.9 | H34: 0.1 | I34: 0 | J34: 30.000* | K34: 30.000* | L34: 0 | M34: 1.33 | N34: 0.001
A35: 14 | B35: 14 | C35: 0 | D35: 32 | E35: 38 | F35: 36.6 | G35: 0.9 | H35: 0.1 | I35: 0 | J35: 30.000* | K35: 30.000* | L35: 0 | M35: 1.33 | N35: 0.001
A36: 15 | B36: 15 | C36: 0 | D36: 32 | E36: 39 | F36: 37.3 | G36: 0.9 | H36: 0.1 | I36: 0 | J36: 30.000* | K36: 30.000* | L36: 0 | M36: 1.34 | N36: 0.001
A37: 16 | B37: 16 | C37: 0 | D37: 32 | E37: 40 | F37: 38 | G37: 0.9 | H37: 0.1 | I37: 0 | J37: 30.000* | K37: 30.000* | L37: 0 | M37: 1.35 | N37: 0.001
A38: 17 | B38: 17 | C38: 0 | D38: 32 | E38: 41 | F38: 38.7 | G38: 0.9 | H38: 0.1 | I38: 0 | J38: 30.000* | K38: 30.000* | L38: 0 | M38: 1.35 | N38: 0.001
A39: 18 | B39: 18 | C39: 0 | D39: 32 | E39: 42 | F39: 39.4 | G39: 0.9 | H39: 0.1 | I39: 0 | J39: 30.000* | K39: 30.000* | L39: 0 | M39: 1.36 | N39: 0.001
A40: 19 | B40: 19 | C40: 0 | D40: 32 | E40: 43 | F40: 40.1 | G40: 0.9 | H40: 0.1 | I40: 0 | J40: 30.000* | K40: 30.000* | L40: 0 | M40: 1.36 | N40: 0.001
A41: 20 | B41: 20 | C41: 0 | D41: 32 | E41: 44 | F41: 40.8 | G41: 0.9 | H41: 0.1 | I41: 0 | J41: 30.000* | K41: 30.000* | L41: 0 | M41: 1.37 | N41: 0.001
A42: 21 | B42: 21 | C42: 0 | D42: 32 | E42: 45 | F42: 41.5 | G42: 0.9 | H42: 0.1 | I42: 0 | J42: 30.000* | K42: 30.000* | L42: 0 | M42: 1.38 | N42: 0.001
A43: 22 | B43: 22 | C43: 0 | D43: 32 | E43: 46 | F43: 42.2 | G43: 0.9 | H43: 0.1 | I43: 0 | J43: 30.000* | K43: 30.000* | L43: 0 | M43: 1.38 | N43: 0.001
A44: 23 | B44: 23 | C44: 0 | D44: 32 | E44: 47 | F44: 42.9 | G44: 0.9 | H44: 0.1 | I44: 0 | J44: 30.000* | K44: 30.000* | L44: 0 | M44: 1.39 | N44: 0.001
A45: 24 | B45: 24 | C45: 0 | D45: 32 | E45: 48 | F45: 43.6 | G45: 0.9 | H45: 0.1 | I45: 0 | J45: 30.000* | K45: 30.000* | L45: 0 | M45: 1.39 | N45: 0.001
A46: 25 | B46: 25 | C46: 0 | D46: 32 | E46: 49 | F46: 44.3 | G46: 0.9 | H46: 0.1 | I46: 0 | J46: 30.000* | K46: 30.000* | L46: 0 | M46: 1.4 | N46: 0.001
A47: 26 | B47: 26 | C47: 0 | D47: 32 | E47: 50 | F47: 45 | G47: 0.9 | H47: 0.1 | I47: 0 | J47: 30.000* | K47: 30.000* | L47: 0 | M47: 1.41 | N47: 0.002
A48: 27 | B48: 27 | C48: 0 | D48: 32 | E48: 51 | F48: 45.7 | G48: 0.9 | H48: 0.1 | I48: 0 | J48: 30.000* | K48: 30.000* | L48: 0 | M48: 1.41 | N48: 0.002
A49: 28 | B49: 28 | C49: 0 | D49: 32 | E49: 52 | F49: 46.4 | G49: 0.9 | H49: 0.1 | I49: 0 | J49: 30.000* | K49: 30.000* | L49: 0 | M49: 1.42 | N49: 0.002
A50: 29 | B50: 29 | C50: 0 | D50: 32 | E50: 53 | F50: 47.1 | G50: 0.9 | H50: 0.1 | I50: 0 | J50: 30.000* | K50: 30.000* | L50: 0 | M50: 1.43 | N50: 0.002
A51: 30 | B51: 30 | C51: 0 | D51: 32 | E51: 54 | F51: 47.8 | G51: 0.9 | H51: 0.1 | I51: 0 | J51: 30.000* | K51: 30.000* | L51: 0 | M51: 1.43 | N51: 0.002
A52: 31 | B52: 31 | C52: 0 | D52: 32 | E52: 55 | F52: 48.5 | G52: 0.9 | H52: 0.1 | I52: 0 | J52: 30.000* | K52: 30.000* | L52: 0 | M52: 1.44 | N52: 0.002
A53: 32 | B53: 32 | C53: 0 | D53: 32 | E53: 56 | F53: 49.2 | G53: 0.9 | H53: 0.1 | I53: 0 | J53: 30.000* | K53: 30.000* | L53: 0 | M53: 1.44 | N53: 0.002
A54: 33 | B54: 33 | C54: 0 | D54: 32 | E54: 57 | F54: 49.9 | G54: 0.9 | H54: 0.1 | I54: 0 | J54: 30.000* | K54: 30.000* | L54: 0 | M54: 1.45 | N54: 0.002
A55: 34 | B55: 34 | C55: 0 | D55: 32 | E55: 58 | F55: 50.6 | G55: 0.9 | H55: 0.1 | I55: 0 | J55: 30.000* | K55: 30.000* | L55: 0 | M55: 1.46 | N55: 0.002
A56: 35 | B56: 35 | C56: 0 | D56: 32 | E56: 59 | F56: 51.3 | G56: 0.9 | H56: 0.1 | I56: 0 | J56: 30.000* | K56: 30.000* | L56: 0 | M56: 1.46 | N56: 0.002
A57: 36 | B57: 36 | C57: 0 | D57: 32 | E57: 60 | F57: 52 | G57: 0.9 | H57: 0.1 | I57: 0 | J57: 30.000* | K57: 30.000* | L57: 0 | M57: 1.47 | N57: 0.002
A58: 37 | B58: 37 | C58: 0 | D58: 32 | E58: 61 | F58: 52.7 | G58: 0.9 | H58: 0.1 | I58: 0 | J58: 30.000* | K58: 30.000* | L58: 0 | M58: 1.47 | N58: 0.002
A59: 38 | B59: 38 | C59: 0 | D59: 32 | E59: 62 | F59: 53.4 | G59: 0.9 | H59: 0.1 | I59: 0 | J59: 30.000* | K59: 30.000* | L59: 0 | M59: 1.48 | N59: 0.002
A60: 39 | B60: 39 | C60: 0 | D60: 32 | E60: 63 | F60: 54.1 | G60: 0.9 | H60: 0.1 | I60: 0 | J60: 30.000* | K60: 30.000* | L60: 0 | M60: 1.49 | N60: 0.003
A61: 40 | B61: 40 | C61: 0 | D61: 32 | E61: 64 | F61: 54.8 | G61: 0.9 | H61: 0.1 | I61: 0 | J61: 30.000* | K61: 30.000* | L61: 0 | M61: 1.49 | N61: 0.003
A62: 41 | B62: 41 | C62: 0 | D62: 32 | E62: 65 | F62: 55.5 | G62: 0.9 | H62: 0.1 | I62: 0 | J62: 30.000* | K62: 30.000* | L62: 0 | M62: 1.5 | N62: 0.003
A63: 42 | B63: 42 | C63: 0 | D63: 32 | E63: 66 | F63: 56.2 | G63: 0.9 | H63: 0.1 | I63: 0 | J63: 30.000* | K63: 30.000* | L63: 0 | M63: 1.5 | N63: 0.003
A64: 43 | B64: 43 | C64: 0 | D64: 32 | E64: 67 | F64: 56.9 | G64: 0.9 | H64: 0.1 | I64: 0 | J64: 30.000* | K64: 30.000* | L64: 0 | M64: 1.51 | N64: 0.003
A65: 44 | B65: 44 | C65: 0 | D65: 32 | E65: 68 | F65: 57.6 | G65: 0.9 | H65: 0.1 | I65: 0 | J65: 30.000* | K65: 30.000* | L65: 0 | M65: 1.52 | N65: 0.003
A66: 45 | B66: 45 | C66: 0 | D66: 32 | E66: 69 | F66: 58.3 | G66: 0.9 | H66: 0.1 | I66: 0 | J66: 30.000* | K66: 30.000* | L66: 0 | M66: 1.52 | N66: 0.003
A67: 46 | B67: 46 | C67: 0 | D67: 32 | E67: 70 | F67: 59 | G67: 0.9 | H67: 0.1 | I67: 0 | J67: 30.000* | K67: 30.000* | L67: 0 | M67: 1.53 | N67: 0.003
A68: 47 | B68: 47 | C68: 0 | D68: 32 | E68: 71 | F68: 59.7 | G68: 0.9 | H68: 0.1 | I68: 0 | J68: 30.000* | K68: 30.000* | L68: 0 | M68: 1.54 | N68: 0.003
A69: 48 | B69: 48 | C69: 0 | D69: 32 | E69: 72 | F69: 60.4 | G69: 0.9 | H69: 0.1 | I69: 0 | J69: 30.000* | K69: 30.000* | L69: 0 | M69: 1.54 | N69: 0.003
A70: 49 | B70: 49 | C70: 0 | D70: 32 | E70: 73 | F70: 61.1 | G70: 0.9 | H70: 0.1 | I70: 0 | J70: 30.000* | K70: 30.000* | L70: 0 | M70: 1.55 | N70: 0.004
A71: 50 | B71: 50 | C71: 0 | D71: 32 | E71: 74 | F71: 61.8 | G71: 0.9 | H71: 0.1 | I71: 0 | J71: 30.000* | K71: 30.000* | L71: 0 | M71: 1.55 | N71: 0.004
A72: 51 | B72: 51 | C72: 0 | D72: 32 | E72: 75 | F72: 62.5 | G72: 0.9 | H72: 0.1 | I72: 0 | J72: 30.000* | K72: 30.000* | L72: 0 | M72: 1.56 | N72: 0.004
A73: 52 | B73: 52 | C73: 0 | D73: 32 | E73: 76 | F73: 63.2 | G73: 0.9 | H73: 0.1 | I73: 0 | J73: 30.000* | K73: 30.000* | L73: 0 | M73: 1.57 | N73: 0.004
A74: 53 | B74: 53 | C74: 0 | D74: 32 | E74: 77 | F74: 63.9 | G74: 0.9 | H74: 0.1 | I74: 0 | J74: 30.000* | K74: 30.000* | L74: 0 | M74: 1.57 | N74: 0.004
A75: 54 | B75: 54 | C75: 0 | D75: 32 | E75: 78 | F75: 64.6 | G75: 0.9 | H75: 0.1 | I75: 0 | J75: 30.000* | K75: 30.000* | L75: 0 | M75: 1.58 | N75: 0.004
A76: 55 | B76: 55 | C76: 0 | D76: 32 | E76: 79 | F76: 65.3 | G76: 0.9 | H76: 0.1 | I76: 0 | J76: 30.000* | K76: 30.000* | L76: 0 | M76: 1.58 | N76: 0.004
A77: 56 | B77: 56 | C77: 0 | D77: 32 | E77: 80 | F77: 66 | G77: 0.9 | H77: 0.1 | I77: 0 | J77: 30.000* | K77: 30.000* | L77: 0 | M77: 1.59 | N77: 0.005
A78: 57 | B78: 57 | C78: 0 | D78: 32 | E78: 81 | F78: 66.7 | G78: 0.9 | H78: 0.1 | I78: 0 | J78: 30.000* | K78: 30.000* | L78: 0 | M78: 1.6 | N78: 0.005
A79: 58 | B79: 58 | C79: 0 | D79: 32 | E79: 82 | F79: 67.4 | G79: 0.9 | H79: 0.1 | I79: 0 | J79: 30.000* | K79: 30.000* | L79: 0 | M79: 1.6 | N79: 0.005
A80: 59 | B80: 59 | C80: 0 | D80: 32 | E80: 83 | F80: 68.1 | G80: 0.9 | H80: 0.1 | I80: 0 | J80: 30.000* | K80: 30.000* | L80: 0 | M80: 1.61 | N80: 0.005
A81: 60 | B81: 60 | C81: 0 | D81: 32 | E81: 84 | F81: 68.8 | G81: 0.9 | H81: 0.1 | I81: 0 | J81: 30.000* | K81: 30.000* | L81: 0 | M81: 1.61 | N81: 0.005
A82: 61 | B82: 61 | C82: 0 | D82: 32 | E82: 85 | F82: 69.5 | G82: 0.9 | H82: 0.1 | I82: 0 | J82: 30.000* | K82: 30.000* | L82: 0 | M82: 1.62 | N82: 0.005
A83: 62 | B83: 62 | C83: 0 | D83: 32 | E83: 86 | F83: 70.2 | G83: 0.9 | H83: 0.1 | I83: 0 | J83: 30.000* | K83: 30.000* | L83: 0 | M83: 1.63 | N83: 0.006
A84: 63 | B84: 63 | C84: 0 | D84: 32 | E84: 87 | F84: 70.9 | G84: 0.9 | H84: 0.1 | I84: 0 | J84: 30.000* | K84: 30.000* | L84: 0 | M84: 1.63 | N84: 0.006
A85: 64 | B85: 64 | C85: 0 | D85: 32 | E85: 88 | F85: 71.6 | G85: 0.9 | H85: 0.1 | I85: 0 | J85: 30.000* | K85: 30.000* | L85: 0 | M85: 1.64 | N85: 0.006
A86: 65 | B86: 65 | C86: 0 | D86: 32 | E86: 89 | F86: 72.3 | G86: 0.9 | H86: 0.1 | I86: 0 | J86: 30.000* | K86: 30.000* | L86: 0 | M86: 1.64 | N86: 0.006
A87: 66 | B87: 66 | C87: 0 | D87: 32 | E87: 90 | F87: 73 | G87: 0.9 | H87: 0.1 | I87: 0 | J87: 30.000* | K87: 30.000* | L87: 0 | M87: 1.65 | N87: 0.006
A88: 67 | B88: 67 | C88: 0 | D88: 32 | E88: 91 | F88: 73.7 | G88: 0.9 | H88: 0.1 | I88: 0 | J88: 30.000* | K88: 30.000* | L88: 0 | M88: 1.66 | N88: 0.007
A89: 68 | B89: 68 | C89: 0 | D89: 32 | E89: 92 | F89: 74.4 | G89: 0.9 | H89: 0.1 | I89: 0 | J89: 30.000* | K89: 30.000* | L89: 0 | M89: 1.66 | N89: 0.007
A90: 69 | B90: 69 | C90: 0 | D90: 32 | E90: 93 | F90: 75.1 | G90: 0.9 | H90: 0.1 | I90: 0 | J90: 30.000* | K90: 30.000* | L90: 0 | M90: 1.67 | N90: 0.007
A91: 70 | B91: 70 | C91: 0 | D91: 32 | E91: 94 | F91: 75.8 | G91: 0.9 | H91: 0.1 | I91: 0 | J91: 30.000* | K91: 30.000* | L91: 0 | M91: 1.68 | N91: 0.007
A92: 71 | B92: 71 | C92: 0 | D92: 32 | E92: 95 | F92: 76.5 | G92: 0.9 | H92: 0.1 | I92: 0 | J92: 30.000* | K92: 30.000* | L92: 0 | M92: 1.68 | N92: 0.007
A93: 72 | B93: 72 | C93: 0 | D93: 32 | E93: 96 | F93: 77.2 | G93: 0.9 | H93: 0.1 | I93: 0 | J93: 30.000* | K93: 30.000* | L93: 0 | M93: 1.69 | N93: 0.008
A94: 73 | B94: 73 | C94: 0 | D94: 32 | E94: 97 | F94: 77.9 | G94: 0.9 | H94: 0.1 | I94: 0 | J94: 30.000* | K94: 30.000* | L94: 0 | M94: 1.69 | N94: 0.008
A95: 74 | B95: 74 | C95: 0 | D95: 32 | E95: 98 | F95: 78.6 | G95: 0.9 | H95: 0.1 | I95: 0 | J95: 30.000* | K95: 30.000* | L95: 0 | M95: 1.7 | N95: 0.008
A96: 75 | B96: 75 | C96: 0 | D96: 32 | E96: 99 | F96: 79.3 | G96: 0.9 | H96: 0.1 | I96: 0 | J96: 30.000* | K96: 30.000* | L96: 0 | M96: 1.71 | N96: 0.008
A97: 76 | B97: 76 | C97: 0 | D97: 32 | E97: 100 | F97: 80 | G97: 0.9 | H97: 0.1 | I97: 0 | J97: 30.000* | K97: 30.000* | L97: 0 | M97: 1.71 | N97: 0.009
A98: 77 | B98: 77 | C98: 0 | D98: 32 | E98: 101 | F98: 80.7 | G98: 0.9 | H98: 0.1 | I98: 0 | J98: 30.000* | K98: 30.000* | L98: 0 | M98: 1.72 | N98: 0.009
A99: 78 | B99: 78 | C99: 0 | D99: 32 | E99: 102 | F99: 81.4 | G99: 0.9 | H99: 0.1 | I99: 0 | J99: 30.000* | K99: 30.000* | L99: 0 | M99: 1.72 | N99: 0.009
A100: 79 | B100: 79 | C100: 0 | D100: 32 | E100: 103 | F100: 82.1 | G100: 0.9 | H100: 0.1 | I100: 0 | J100: 30.000* | K100: 30.000* | L100: 0 | M100: 1.73 | N100: 0.009
A101: 80 | B101: 80 | C101: 0 | D101: 32 | E101: 104 | F101: 82.8 | G101: 0.9 | H101: 0.1 | I101: 0 | J101: 30.000* | K101: 30.000* | L101: 0 | M101: 1.74 | N101: 0.01
A102: 81 | B102: 81 | C102: 0 | D102: 32 | E102: 105 | F102: 83.5 | G102: 0.9 | H102: 0.1 | I102: 0 | J102: 30.000* | K102: 30.000* | L102: 0 | M102: 1.74 | N102: 0.01
A103: 82 | B103: 82 | C103: 0 | D103: 32 | E103: 106 | F103: 84.2 | G103: 0.9 | H103: 0.1 | I103: 0 | J103: 30.000* | K103: 30.000* | L103: 0 | M103: 1.75 | N103: 0.01
A104: 83 | B104: 83 | C104: 0 | D104: 32 | E104: 107 | F104: 84.9 | G104: 0.9 | H104: 0.1 | I104: 0 | J104: 30.000* | K104: 30.000* | L104: 0 | M104: 1.75 | N104: 0.011
A105: 84 | B105: 84 | C105: 0 | D105: 32 | E105: 108 | F105: 85.6 | G105: 0.9 | H105: 0.1 | I105: 0 | J105: 30.000* | K105: 30.000* | L105: 0 | M105: 1.76 | N105: 0.011
A106: 85 | B106: 85 | C106: 0 | D106: 32 | E106: 109 | F106: 86.3 | G106: 0.9 | H106: 0.1 | I106: 0 | J106: 30.000* | K106: 30.000* | L106: 0 | M106: 1.77 | N106: 0.011
A107: 86 | B107: 86 | C107: 0 | D107: 32 | E107: 110 | F107: 87 | G107: 0.9 | H107: 0.1 | I107: 0 | J107: 30.000* | K107: 30.000* | L107: 0 | M107: 1.77 | N107: 0.012
A108: 87 | B108: 87 | C108: 0 | D108: 32 | E108: 111 | F108: 87.7 | G108: 0.9 | H108: 0.1 | I108: 0 | J108: 30.000* | K108: 30.000* | L108: 0 | M108: 1.78 | N108: 0.012
A109: 88 | B109: 88 | C109: 0 | D109: 32 | E109: 112 | F109: 88.4 | G109: 0.9 | H109: 0.1 | I109: 0 | J109: 30.000* | K109: 30.000* | L109: 0 | M109: 1.78 | N109: 0.012
A110: 89 | B110: 89 | C110: 0 | D110: 32 | E110: 113 | F110: 89.1 | G110: 0.9 | H110: 0.1 | I110: 0 | J110: 30.000* | K110: 30.000* | L110: 0 | M110: 1.79 | N110: 0.013
A111: 90 | B111: 90 | C111: 0 | D111: 32 | E111: 114 | F111: 89.8 | G111: 0.9 | H111: 0.1 | I111: 0 | J111: 30.000* | K111: 30.000* | L111: 0 | M111: 1.8 | N111: 0.013
A112: 91 | B112: 91 | C112: 0 | D112: 32 | E112: 115 | F112: 90.5 | G112: 0.9 | H112: 0.1 | I112: 0 | J112: 30.000* | K112: 30.000* | L112: 0 | M112: 1.8 | N112: 0.013
A113: 92 | B113: 92 | C113: 0 | D113: 32 | E113: 116 | F113: 91.2 | G113: 0.9 | H113: 0.1 | I113: 0 | J113: 30.000* | K113: 30.000* | L113: 0 | M113: 1.81 | N113: 0.014
A114: 93 | B114: 93 | C114: 0 | D114: 32 | E114: 117 | F114: 91.9 | G114: 0.9 | H114: 0.1 | I114: 0 | J114: 30.000* | K114: 30.000* | L114: 0 | M114: 1.81 | N114: 0.014
A115: 94 | B115: 94 | C115: 0 | D115: 32 | E115: 118 | F115: 92.6 | G115: 0.9 | H115: 0.1 | I115: 0 | J115: 30.000* | K115: 30.000* | L115: 0 | M115: 1.82 | N115: 0.014
A116: 95 | B116: 95 | C116: 0 | D116: 32 | E116: 119 | F116: 93.3 | G116: 0.9 | H116: 0.1 | I116: 0 | J116: 30.000* | K116: 30.000* | L116: 0 | M116: 1.83 | N116: 0.015
A117: 96 | B117: 96 | C117: 0 | D117: 32 | E117: 120 | F117: 94 | G117: 0.9 | H117: 0.1 | I117: 0 | J117: 30.000* | K117: 30.000* | L117: 0 | M117: 1.83 | N117: 0.015
A118: 97 | B118: 97 | C118: 0 | D118: 32 | E118: 121 | F118: 94.7 | G118: 0.9 | H118: 0.1 | I118: 0 | J118: 30.000* | K118: 30.000* | L118: 0 | M118: 1.84 | N118: 0.016
A119: 98 | B119: 98 | C119: 0 | D119: 32 | E119: 122 | F119: 95.4 | G119: 0.9 | H119: 0.1 | I119: 0 | J119: 30.000* | K119: 30.000* | L119: 0 | M119: 1.84 | N119: 0.016
A120: 99 | B120: 99 | C120: 0 | D120: 32 | E120: 123 | F120: 96.1 | G120: 0.9 | H120: 0.1 | I120: 0 | J120: 30.000* | K120: 30.000* | L120: 0 | M120: 1.85 | N120: 0.017
A121: 100 | B121: 100 | C121: 0 | D121: 32 | E121: 124 | F121: 96.8 | G121: 0.9 | H121: 0.1 | I121: 0 | J121: 30.000* | K121: 30.000* | L121: 0 | M121: 1.86 | N121: 0.017
A122: 101 | B122: 101 | C122: 0 | D122: 32 | E122: 125 | F122: 97.5 | G122: 0.9 | H122: 0.1 | I122: 0 | J122: 30.000* | K122: 30.000* | L122: 0 | M122: 1.86 | N122: 0.017
A123: 102 | B123: 102 | C123: 0 | D123: 32 | E123: 126 | F123: 98.2 | G123: 0.9 | H123: 0.1 | I123: 0 | J123: 30.000* | K123: 30.000* | L123: 0 | M123: 1.87 | N123: 0.018
A124: 103 | B124: 103 | C124: 0 | D124: 32 | E124: 127 | F124: 98.9 | G124: 0.9 | H124: 0.1 | I124: 0 | J124: 30.000* | K124: 30.000* | L124: 0 | M124: 1.87 | N124: 0.018
A125: 104 | B125: 104 | C125: 0 | D125: 32 | E125: 128 | F125: 99.6 | G125: 0.9 | H125: 0.1 | I125: 0 | J125: 30.000* | K125: 30.000* | L125: 0 | M125: 1.88 | N125: 0.019
A126: 105 | B126: 105 | C126: 0 | D126: 32 | E126: 129 | F126: 100.3 | G126: 0.9 | H126: 0.1 | I126: 0 | J126: 30.000* | K126: 30.000* | L126: 0 | M126: 1.89 | N126: 0.019
A127: 106 | B127: 106 | C127: 0 | D127: 32 | E127: 130 | F127: 101 | G127: 0.9 | H127: 0.1 | I127: 0 | J127: 30.000* | K127: 30.000* | L127: 0 | M127: 1.89 | N127: 0.02
A128: 107 | B128: 107 | C128: 0 | D128: 32 | E128: 131 | F128: 101.7 | G128: 0.9 | H128: 0.1 | I128: 0 | J128: 30.000* | K128: 30.000* | L128: 0 | M128: 1.9 | N128: 0.02
A129: 108 | B129: 108 | C129: 0 | D129: 32 | E129: 132 | F129: 102.4 | G129: 0.9 | H129: 0.1 | I129: 0 | J129: 30.000* | K129: 30.000* | L129: 0 | M129: 1.9 | N129: 0.021
A130: 109 | B130: 109 | C130: 0 | D130: 32 | E130: 133 | F130: 103.1 | G130: 0.9 | H130: 0.1 | I130: 0 | J130: 30.000* | K130: 30.000* | L130: 0 | M130: 1.91 | N130: 0.021
A131: 110 | B131: 110 | C131: 0 | D131: 32 | E131: 134 | F131: 103.8 | G131: 0.9 | H131: 0.1 | I131: 0 | J131: 30.000* | K131: 30.000* | L131: 0 | M131: 1.92 | N131: 0.022
A132: 111 | B132: 111 | C132: 0 | D132: 32 | E132: 135 | F132: 104.5 | G132: 0.9 | H132: 0.1 | I132: 0 | J132: 30.000* | K132: 30.000* | L132: 0 | M132: 1.92 | N132: 0.023
A133: 112 | B133: 112 | C133: 0 | D133: 32 | E133: 136 | F133: 105.2 | G133: 0.9 | H133: 0.1 | I133: 0 | J133: 30.000* | K133: 30.000* | L133: 0 | M133: 1.93 | N133: 0.023
A134: 113 | B134: 113 | C134: 0 | D134: 32 | E134: 137 | F134: 105.9 | G134: 0.9 | H134: 0.1 | I134: 0 | J134: 30.000* | K134: 30.000* | L134: 0 | M134: 1.93 | N134: 0.024
A135: 114 | B135: 114 | C135: 0 | D135: 32 | E135: 138 | F135: 106.6 | G135: 0.9 | H135: 0.1 | I135: 0 | J135: 30.000* | K135: 30.000* | L135: 0 | M135: 1.94 | N135: 0.024
A136: 115 | B136: 115 | C136: 0 | D136: 32 | E136: 139 | F136: 107.3 | G136: 0.9 | H136: 0.1 | I136: 0 | J136: 30.000* | K136: 30.000* | L136: 0 | M136: 1.95 | N136: 0.025
A137: 116 | B137: 116 | C137: 0 | D137: 32 | E137: 140 | F137: 108 | G137: 0.9 | H137: 0.1 | I137: 0 | J137: 30.000* | K137: 30.000* | L137: 0 | M137: 1.95 | N137: 0.025
A138: 117 | B138: 117 | C138: 0 | D138: 32 | E138: 141 | F138: 108.7 | G138: 0.9 | H138: 0.1 | I138: 0 | J138: 30.000* | K138: 30.000* | L138: 0 | M138: 1.96 | N138: 0.026
A139: 118 | B139: 118 | C139: 0 | D139: 32 | E139: 142 | F139: 109.4 | G139: 0.9 | H139: 0.1 | I139: 0 | J139: 30.000* | K139: 30.000* | L139: 0 | M139: 1.96 | N139: 0.027
A140: 119 | B140: 119 | C140: 0 | D140: 32 | E140: 143 | F140: 110.1 | G140: 0.9 | H140: 0.1 | I140: 0 | J140: 30.000* | K140: 30.000* | L140: 0 | M140: 1.97 | N140: 0.027
A141: 120 | B141: 120 | C141: 0 | D141: 32 | E141: 144 | F141: 110.8 | G141: 0.9 | H141: 0.1 | I141: 0 | J141: 30.000* | K141: 30.000* | L141: 0 | M141: 1.98 | N141: 0.028
A142: 121 | B142: 121 | C142: 0 | D142: 32 | E142: 145 | F142: 111.5 | G142: 0.9 | H142: 0.1 | I142: 0 | J142: 30.000* | K142: 30.000* | L142: 0 | M142: 1.98 | N142: 0.029
A143: 122 | B143: 122 | C143: 0 | D143: 32 | E143: 146 | F143: 112.2 | G143: 0.9 | H143: 0.1 | I143: 0 | J143: 30.000* | K143: 30.000* | L143: 0 | M143: 1.99 | N143: 0.029
A144: 123 | B144: 123 | C144: 0 | D144: 32 | E144: 147 | F144: 112.9 | G144: 0.9 | H144: 0.1 | I144: 0 | J144: 30.000* | K144: 30.000* | L144: 0 | M144: 1.99 | N144: 0.03
A145: 124 | B145: 124 | C145: 0 | D145: 32 | E145: 148 | F145: 113.6 | G145: 0.9 | H145: 0.1 | I145: 0 | J145: 30.000* | K145: 30.000* | L145: 0 | M145: 2 | N145: 0.031
A146: 125 | B146: 125 | C146: 0 | D146: 32 | E146: 149 | F146: 114.3 | G146: 0.9 | H146: 0.1 | I146: 0 | J146: 30.000* | K146: 30.000* | L146: 0 | M146: 2.01 | N146: 0.032
A147: 126 | B147: 126 | C147: 0 | D147: 32 | E147: 150 | F147: 115 | G147: 0.9 | H147: 0.1 | I147: 0 | J147: 30.000* | K147: 30.000* | L147: 0 | M147: 2.01 | N147: 0.032
A148: 127 | B148: 127 | C148: 0 | D148: 32 | E148: 151 | F148: 115.7 | G148: 0.9 | H148: 0.1 | I148: 0 | J148: 30.000* | K148: 30.000* | L148: 0 | M148: 2.02 | N148: 0.033
A149: 128 | B149: 128 | C149: 0 | D149: 32 | E149: 152 | F149: 116.4 | G149: 0.9 | H149: 0.1 | I149: 0 | J149: 30.000* | K149: 30.000* | L149: 0 | M149: 2.02 | N149: 0.034
A150: 129 | B150: 129 | C150: 0 | D150: 32 | E150: 153 | F150: 117.1 | G150: 0.9 | H150: 0.1 | I150: 0 | J150: 30.000* | K150: 30.000* | L150: 0 | M150: 2.03 | N150: 0.035
A151: 130 | B151: 130 | C151: 0 | D151: 32 | E151: 154 | F151: 117.8 | G151: 0.9 | H151: 0.1 | I151: 0 | J151: 30.000* | K151: 30.000* | L151: 0 | M151: 2.04 | N151: 0.035
A152: 131 | B152: 131 | C152: 0 | D152: 32 | E152: 155 | F152: 118.5 | G152: 0.9 | H152: 0.1 | I152: 0 | J152: 30.000* | K152: 30.000* | L152: 0 | M152: 2.04 | N152: 0.036
A153: 132 | B153: 132 | C153: 0 | D153: 32 | E153: 156 | F153: 119.2 | G153: 0.9 | H153: 0.1 | I153: 0 | J153: 30.000* | K153: 30.000* | L153: 0 | M153: 2.05 | N153: 0.037
A154: 133 | B154: 133 | C154: 0 | D154: 32 | E154: 157 | F154: 119.9 | G154: 0.9 | H154: 0.1 | I154: 0 | J154: 30.000* | K154: 30.000* | L154: 0 | M154: 2.05 | N154: 0.038
A155: 134 | B155: 134 | C155: 0 | D155: 32 | E155: 158 | F155: 120.6 | G155: 0.9 | H155: 0.1 | I155: 0 | J155: 30.000* | K155: 30.000* | L155: 0 | M155: 2.06 | N155: 0.039
A156: 135 | B156: 135 | C156: 0 | D156: 32 | E156: 159 | F156: 121.3 | G156: 0.9 | H156: 0.1 | I156: 0 | J156: 30.000* | K156: 30.000* | L156: 0 | M156: 2.07 | N156: 0.04
A157: 136 | B157: 136 | C157: 0 | D157: 32 | E157: 160 | F157: 122 | G157: 0.9 | H157: 0.1 | I157: 0 | J157: 30.000* | K157: 30.000* | L157: 0 | M157: 2.07 | N157: 0.04
A158: 137 | B158: 137 | C158: 0 | D158: 32 | E158: 161 | F158: 122.7 | G158: 0.9 | H158: 0.1 | I158: 0 | J158: 30.000* | K158: 30.000* | L158: 0 | M158: 2.08 | N158: 0.041
A159: 138 | B159: 138 | C159: 0 | D159: 32 | E159: 162 | F159: 123.4 | G159: 0.9 | H159: 0.1 | I159: 0 | J159: 30.000* | K159: 30.000* | L159: 0 | M159: 2.08 | N159: 0.042
A160: 139 | B160: 139 | C160: 0 | D160: 32 | E160: 163 | F160: 124.1 | G160: 0.9 | H160: 0.1 | I160: 0 | J160: 30.000* | K160: 30.000* | L160: 0 | M160: 2.09 | N160: 0.043
A161: 140 | B161: 140 | C161: 0 | D161: 32 | E161: 164 | F161: 124.8 | G161: 0.9 | H161: 0.1 | I161: 0 | J161: 30.000* | K161: 30.000* | L161: 0 | M161: 2.09 | N161: 0.044
A162: 141 | B162: 141 | C162: 0 | D162: 32 | E162: 165 | F162: 125.5 | G162: 0.9 | H162: 0.1 | I162: 0 | J162: 30.000* | K162: 30.000* | L162: 0 | M162: 2.1 | N162: 0.045
A163: 142 | B163: 142 | C163: 0 | D163: 32 | E163: 166 | F163: 126.2 | G163: 0.9 | H163: 0.1 | I163: 0 | J163: 30.000* | K163: 30.000* | L163: 0 | M163: 2.11 | N163: 0.046
A164: 143 | B164: 143 | C164: 0 | D164: 32 | E164: 167 | F164: 126.9 | G164: 0.9 | H164: 0.1 | I164: 0 | J164: 30.000* | K164: 30.000* | L164: 0 | M164: 2.11 | N164: 0.047
A165: 144 | B165: 144 | C165: 0 | D165: 32 | E165: 168 | F165: 127.6 | G165: 0.9 | H165: 0.1 | I165: 0 | J165: 30.000* | K165: 30.000* | L165: 0 | M165: 2.12 | N165: 0.048
A166: 145 | B166: 145 | C166: 0 | D166: 32 | E166: 169 | F166: 128.3 | G166: 0.9 | H166: 0.1 | I166: 0 | J166: 30.000* | K166: 30.000* | L166: 0 | M166: 2.12 | N166: 0.049
A167: 146 | B167: 146 | C167: 0 | D167: 32 | E167: 170 | F167: 129 | G167: 0.9 | H167: 0.1 | I167: 0 | J167: 30.000* | K167: 30.000* | L167: 0 | M167: 2.13 | N167: 0.05
A168: 147 | B168: 147 | C168: 0 | D168: 32 | E168: 171 | F168: 129.7 | G168: 0.9 | H168: 0.1 | I168: 0 | J168: 30.000* | K168: 30.000* | L168: 0 | M168: 2.14 | N168: 0.051
A169: 148 | B169: 148 | C169: 0 | D169: 32 | E169: 172 | F169: 130.4 | G169: 0.9 | H169: 0.1 | I169: 0 | J169: 30.000* | K169: 30.000* | L169: 0 | M169: 2.14 | N169: 0.052
A170: 149 | B170: 149 | C170: 0 | D170: 32 | E170: 173 | F170: 131.1 | G170: 0.9 | H170: 0.1 | I170: 0 | J170: 30.000* | K170: 30.000* | L170: 0 | M170: 2.15 | N170: 0.053
A171: 150 | B171: 150 | C171: 0 | D171: 32 | E171: 174 | F171: 131.8 | G171: 0.9 | H171: 0.1 | I171: 0 | J171: 30.000* | K171: 30.000* | L171: 0 | M171: 2.15 | N171: 0.054
A172: 151 | B172: 151 | C172: 0 | D172: 32 | E172: 175 | F172: 132.5 | G172: 0.9 | H172: 0.1 | I172: 0 | J172: 30.000* | K172: 30.000* | L172: 0 | M172: 2.16 | N172: 0.056
A173: 152 | B173: 152 | C173: 0 | D173: 32 | E173: 176 | F173: 133.2 | G173: 0.9 | H173: 0.1 | I173: 0 | J173: 30.000* | K173: 30.000* | L173: 0 | M173: 2.17 | N173: 0.057
A174: 153 | B174: 153 | C174: 0 | D174: 32 | E174: 177 | F174: 133.9 | G174: 0.9 | H174: 0.1 | I174: 0 | J174: 30.000* | K174: 30.000* | L174: 0 | M174: 2.17 | N174: 0.058
A175: 154 | B175: 154 | C175: 0 | D175: 32 | E175: 178 | F175: 134.6 | G175: 0.9 | H175: 0.1 | I175: 0 | J175: 30.000* | K175: 30.000* | L175: 0 | M175: 2.18 | N175: 0.059
A176: 155 | B176: 155 | C176: 0 | D176: 32 | E176: 179 | F176: 135.3 | G176: 0.9 | H176: 0.1 | I176: 0 | J176: 30.000* | K176: 30.000* | L176: 0 | M176: 2.18 | N176: 0.06
A177: 156 | B177: 156 | C177: 0 | D177: 32 | E177: 180 | F177: 136 | G177: 0.9 | H177: 0.1 | I177: 0 | J177: 30.000* | K177: 30.000* | L177: 0 | M177: 2.19 | N177: 0.062
A178: 157 | B178: 157 | C178: 0 | D178: 32 | E178: 181 | F178: 136.7 | G178: 0.9 | H178: 0.1 | I178: 0 | J178: 30.000* | K178: 30.000* | L178: 0 | M178: 2.2 | N178: 0.063
A179: 158 | B179: 158 | C179: 0 | D179: 32 | E179: 182 | F179: 137.4 | G179: 0.9 | H179: 0.1 | I179: 0 | J179: 30.000* | K179: 30.000* | L179: 0 | M179: 2.2 | N179: 0.064
A180: 159 | B180: 159 | C180: 0 | D180: 32 | E180: 183 | F180: 138.1 | G180: 0.9 | H180: 0.1 | I180: 0 | J180: 30.000* | K180: 30.000* | L180: 0 | M180: 2.21 | N180: 0.065
A181: 160 | B181: 160 | C181: 0 | D181: 32 | E181: 184 | F181: 138.8 | G181: 0.9 | H181: 0.1 | I181: 0 | J181: 30.000* | K181: 30.000* | L181: 0 | M181: 2.21 | N181: 0.067
A182: 161 | B182: 161 | C182: 0 | D182: 32 | E182: 185 | F182: 139.5 | G182: 0.9 | H182: 0.1 | I182: 0 | J182: 30.000* | K182: 30.000* | L182: 0 | M182: 2.22 | N182: 0.068
A183: 162 | B183: 162 | C183: 0 | D183: 32 | E183: 186 | F183: 140.2 | G183: 0.9 | H183: 0.1 | I183: 0 | J183: 30.000* | K183: 30.000* | L183: 0 | M183: 2.23 | N183: 0.069
A184: 163 | B184: 163 | C184: 0 | D184: 32 | E184: 187 | F184: 140.9 | G184: 0.9 | H184: 0.1 | I184: 0 | J184: 30.000* | K184: 30.000* | L184: 0 | M184: 2.23 | N184: 0.071
A185: 164 | B185: 164 | C185: 0 | D185: 32 | E185: 188 | F185: 141.6 | G185: 0.9 | H185: 0.1 | I185: 0 | J185: 30.000* | K185: 30.000* | L185: 0 | M185: 2.24 | N185: 0.072
A186: 165 | B186: 165 | C186: 0 | D186: 32 | E186: 189 | F186: 142.3 | G186: 0.9 | H186: 0.1 | I186: 0 | J186: 30.000* | K186: 30.000* | L186: 0 | M186: 2.24 | N186: 0.074
A187: 166 | B187: 166 | C187: 0 | D187: 32 | E187: 190 | F187: 143 | G187: 0.9 | H187: 0.1 | I187: 0 | J187: 30.000* | K187: 30.000* | L187: 0 | M187: 2.25 | N187: 0.075
A188: 167 | B188: 167 | C188: 0 | D188: 32 | E188: 191 | F188: 143.7 | G188: 0.9 | H188: 0.1 | I188: 0 | J188: 30.000* | K188: 30.000* | L188: 0 | M188: 2.25 | N188: 0.076
A189: 168 | B189: 168 | C189: 0 | D189: 32 | E189: 192 | F189: 144.4 | G189: 0.9 | H189: 0.1 | I189: 0 | J189: 30.000* | K189: 30.000* | L189: 0 | M189: 2.26 | N189: 0.078
A190: 169 | B190: 169 | C190: 0 | D190: 32 | E190: 193 | F190: 145.1 | G190: 0.9 | H190: 0.1 | I190: 0 | J190: 30.000* | K190: 30.000* | L190: 0 | M190: 2.27 | N190: 0.079
A191: 170 | B191: 170 | C191: 0 | D191: 32 | E191: 194 | F191: 145.8 | G191: 0.9 | H191: 0.1 | I191: 0 | J191: 30.000* | K191: 30.000* | L191: 0 | M191: 2.27 | N191: 0.081
A192: 171 | B192: 171 | C192: 0 | D192: 32 | E192: 195 | F192: 146.5 | G192: 0.9 | H192: 0.1 | I192: 0 | J192: 30.000* | K192: 30.000* | L192: 0 | M192: 2.28 | N192: 0.082
A193: 172 | B193: 172 | C193: 0 | D193: 32 | E193: 196 | F193: 147.2 | G193: 0.9 | H193: 0.1 | I193: 0 | J193: 30.000* | K193: 30.000* | L193: 0 | M193: 2.28 | N193: 0.084
A194: 173 | B194: 173 | C194: 0 | D194: 32 | E194: 197 | F194: 147.9 | G194: 0.9 | H194: 0.1 | I194: 0 | J194: 30.000* | K194: 30.000* | L194: 0 | M194: 2.29 | N194: 0.086
A195: 174 | B195: 174 | C195: 0 | D195: 32 | E195: 198 | F195: 148.6 | G195: 0.9 | H195: 0.1 | I195: 0 | J195: 30.000* | K195: 30.000* | L195: 0 | M195: 2.3 | N195: 0.087
A196: 175 | B196: 175 | C196: 0 | D196: 32 | E196: 199 | F196: 149.3 | G196: 0.9 | H196: 0.1 | I196: 0 | J196: 30.000* | K196: 30.000* | L196: 0 | M196: 2.3 | N196: 0.089
A197: 176 | B197: 176 | C197: 0 | D197: 32 | E197: 200 | F197: 150 | G197: 0.9 | H197: 0.1 | I197: 0 | J197: 30.000* | K197: 30.000* | L197: 0 | M197: 2.31 | N197: 0.09
A198: 177 | B198: 177 | C198: 0 | D198: 32 | E198: 201 | F198: 150.7 | G198: 0.9 | H198: 0.1 | I198: 0 | J198: 30.000* | K198: 30.000* | L198: 0 | M198: 2.31 | N198: 0.092
A199: 178 | B199: 178 | C199: 0 | D199: 32 | E199: 202 | F199: 151.4 | G199: 0.9 | H199: 0.1 | I199: 0 | J199: 30.000* | K199: 30.000* | L199: 0 | M199: 2.32 | N199: 0.094
A200: 179 | B200: 179 | C200: 0 | D200: 32 | E200: 203 | F200: 152.1 | G200: 0.9 | H200: 0.1 | I200: 0 | J200: 30.000* | K200: 30.000* | L200: 0 | M200: 2.33 | N200: 0.096
A201: 180 | B201: 180 | C201: 0 | D201: 32 | E201: 204 | F201: 152.8 | G201: 0.9 | H201: 0.1 | I201: 0 | J201: 30.000* | K201: 30.000* | L201: 0 | M201: 2.33 | N201: 0.097
A202: 181 | B202: 181 | C202: 0 | D202: 32 | E202: 205 | F202: 153.5 | G202: 0.9 | H202: 0.1 | I202: 0 | J202: 30.000* | K202: 30.000* | L202: 0 | M202: 2.34 | N202: 0.099
A203: 182 | B203: 182 | C203: 0 | D203: 32 | E203: 206 | F203: 154.2 | G203: 0.9 | H203: 0.1 | I203: 0 | J203: 30.000* | K203: 30.000* | L203: 0 | M203: 2.34 | N203: 0.101
A204: 183 | B204: 183 | C204: 0 | D204: 32 | E204: 207 | F204: 154.9 | G204: 0.9 | H204: 0.1 | I204: 0 | J204: 30.000* | K204: 30.000* | L204: 0 | M204: 2.35 | N204: 0.103
A205: 184 | B205: 184 | C205: 0 | D205: 32 | E205: 208 | F205: 155.6 | G205: 0.9 | H205: 0.1 | I205: 0 | J205: 30.000* | K205: 30.000* | L205: 0 | M205: 2.35 | N205: 0.105
... 3792 more rows

Sheet Batch Input File (hidden)
A1: IEUBK2 | B1: 1.1B11 | C1: batch | D1: file
A2: MHF | B2: 11272018 | C2: TWA
A3: ID | B3: FAM | C3: BLK | D3: AGE | E3: SOIL | F3: DUST | G3: WATER | H3: AIR | I3: OTHER | J3: PbB
A4: 1 | B4: 1 | C4: 0 | D4: 32 | E4: 25 | F4: 27.5 | G4: 0.9 | H4: 0.1 | I4: 0 | J4: 0
A5: 2 | B5: 2 | C5: 0 | D5: 32 | E5: 26 | F5: 28.2 | G5: 0.9 | H5: 0.1 | I5: 0 | J5: 0
A6: 3 | B6: 3 | C6: 0 | D6: 32 | E6: 27 | F6: 28.9 | G6: 0.9 | H6: 0.1 | I6: 0 | J6: 0
A7: 4 | B7: 4 | C7: 0 | D7: 32 | E7: 28 | F7: 29.6 | G7: 0.9 | H7: 0.1 | I7: 0 | J7: 0
A8: 5 | B8: 5 | C8: 0 | D8: 32 | E8: 29 | F8: 30.3 | G8: 0.9 | H8: 0.1 | I8: 0 | J8: 0
A9: 6 | B9: 6 | C9: 0 | D9: 32 | E9: 30 | F9: 31 | G9: 0.9 | H9: 0.1 | I9: 0 | J9: 0
A10: 7 | B10: 7 | C10: 0 | D10: 32 | E10: 31 | F10: 31.7 | G10: 0.9 | H10: 0.1 | I10: 0 | J10: 0
A11: 8 | B11: 8 | C11: 0 | D11: 32 | E11: 32 | F11: 32.4 | G11: 0.9 | H11: 0.1 | I11: 0 | J11: 0
A12: 9 | B12: 9 | C12: 0 | D12: 32 | E12: 33 | F12: 33.1 | G12: 0.9 | H12: 0.1 | I12: 0 | J12: 0
A13: 10 | B13: 10 | C13: 0 | D13: 32 | E13: 34 | F13: 33.8 | G13: 0.9 | H13: 0.1 | I13: 0 | J13: 0
A14: 11 | B14: 11 | C14: 0 | D14: 32 | E14: 35 | F14: 34.5 | G14: 0.9 | H14: 0.1 | I14: 0 | J14: 0
A15: 12 | B15: 12 | C15: 0 | D15: 32 | E15: 36 | F15: 35.2 | G15: 0.9 | H15: 0.1 | I15: 0 | J15: 0
A16: 13 | B16: 13 | C16: 0 | D16: 32 | E16: 37 | F16: 35.9 | G16: 0.9 | H16: 0.1 | I16: 0 | J16: 0
A17: 14 | B17: 14 | C17: 0 | D17: 32 | E17: 38 | F17: 36.6 | G17: 0.9 | H17: 0.1 | I17: 0 | J17: 0
A18: 15 | B18: 15 | C18: 0 | D18: 32 | E18: 39 | F18: 37.3 | G18: 0.9 | H18: 0.1 | I18: 0 | J18: 0
A19: 16 | B19: 16 | C19: 0 | D19: 32 | E19: 40 | F19: 38 | G19: 0.9 | H19: 0.1 | I19: 0 | J19: 0
A20: 17 | B20: 17 | C20: 0 | D20: 32 | E20: 41 | F20: 38.7 | G20: 0.9 | H20: 0.1 | I20: 0 | J20: 0
A21: 18 | B21: 18 | C21: 0 | D21: 32 | E21: 42 | F21: 39.4 | G21: 0.9 | H21: 0.1 | I21: 0 | J21: 0
A22: 19 | B22: 19 | C22: 0 | D22: 32 | E22: 43 | F22: 40.1 | G22: 0.9 | H22: 0.1 | I22: 0 | J22: 0
A23: 20 | B23: 20 | C23: 0 | D23: 32 | E23: 44 | F23: 40.8 | G23: 0.9 | H23: 0.1 | I23: 0 | J23: 0
A24: 21 | B24: 21 | C24: 0 | D24: 32 | E24: 45 | F24: 41.5 | G24: 0.9 | H24: 0.1 | I24: 0 | J24: 0
A25: 22 | B25: 22 | C25: 0 | D25: 32 | E25: 46 | F25: 42.2 | G25: 0.9 | H25: 0.1 | I25: 0 | J25: 0
A26: 23 | B26: 23 | C26: 0 | D26: 32 | E26: 47 | F26: 42.9 | G26: 0.9 | H26: 0.1 | I26: 0 | J26: 0
A27: 24 | B27: 24 | C27: 0 | D27: 32 | E27: 48 | F27: 43.6 | G27: 0.9 | H27: 0.1 | I27: 0 | J27: 0
A28: 25 | B28: 25 | C28: 0 | D28: 32 | E28: 49 | F28: 44.3 | G28: 0.9 | H28: 0.1 | I28: 0 | J28: 0
A29: 26 | B29: 26 | C29: 0 | D29: 32 | E29: 50 | F29: 45 | G29: 0.9 | H29: 0.1 | I29: 0 | J29: 0
A30: 27 | B30: 27 | C30: 0 | D30: 32 | E30: 51 | F30: 45.7 | G30: 0.9 | H30: 0.1 | I30: 0 | J30: 0
A31: 28 | B31: 28 | C31: 0 | D31: 32 | E31: 52 | F31: 46.4 | G31: 0.9 | H31: 0.1 | I31: 0 | J31: 0
A32: 29 | B32: 29 | C32: 0 | D32: 32 | E32: 53 | F32: 47.1 | G32: 0.9 | H32: 0.1 | I32: 0 | J32: 0
A33: 30 | B33: 30 | C33: 0 | D33: 32 | E33: 54 | F33: 47.8 | G33: 0.9 | H33: 0.1 | I33: 0 | J33: 0
A34: 31 | B34: 31 | C34: 0 | D34: 32 | E34: 55 | F34: 48.5 | G34: 0.9 | H34: 0.1 | I34: 0 | J34: 0
A35: 32 | B35: 32 | C35: 0 | D35: 32 | E35: 56 | F35: 49.2 | G35: 0.9 | H35: 0.1 | I35: 0 | J35: 0
A36: 33 | B36: 33 | C36: 0 | D36: 32 | E36: 57 | F36: 49.9 | G36: 0.9 | H36: 0.1 | I36: 0 | J36: 0
A37: 34 | B37: 34 | C37: 0 | D37: 32 | E37: 58 | F37: 50.6 | G37: 0.9 | H37: 0.1 | I37: 0 | J37: 0
A38: 35 | B38: 35 | C38: 0 | D38: 32 | E38: 59 | F38: 51.3 | G38: 0.9 | H38: 0.1 | I38: 0 | J38: 0
A39: 36 | B39: 36 | C39: 0 | D39: 32 | E39: 60 | F39: 52 | G39: 0.9 | H39: 0.1 | I39: 0 | J39: 0
A40: 37 | B40: 37 | C40: 0 | D40: 32 | E40: 61 | F40: 52.7 | G40: 0.9 | H40: 0.1 | I40: 0 | J40: 0
A41: 38 | B41: 38 | C41: 0 | D41: 32 | E41: 62 | F41: 53.4 | G41: 0.9 | H41: 0.1 | I41: 0 | J41: 0
A42: 39 | B42: 39 | C42: 0 | D42: 32 | E42: 63 | F42: 54.1 | G42: 0.9 | H42: 0.1 | I42: 0 | J42: 0
A43: 40 | B43: 40 | C43: 0 | D43: 32 | E43: 64 | F43: 54.8 | G43: 0.9 | H43: 0.1 | I43: 0 | J43: 0
A44: 41 | B44: 41 | C44: 0 | D44: 32 | E44: 65 | F44: 55.5 | G44: 0.9 | H44: 0.1 | I44: 0 | J44: 0
A45: 42 | B45: 42 | C45: 0 | D45: 32 | E45: 66 | F45: 56.2 | G45: 0.9 | H45: 0.1 | I45: 0 | J45: 0
A46: 43 | B46: 43 | C46: 0 | D46: 32 | E46: 67 | F46: 56.9 | G46: 0.9 | H46: 0.1 | I46: 0 | J46: 0
A47: 44 | B47: 44 | C47: 0 | D47: 32 | E47: 68 | F47: 57.6 | G47: 0.9 | H47: 0.1 | I47: 0 | J47: 0
A48: 45 | B48: 45 | C48: 0 | D48: 32 | E48: 69 | F48: 58.3 | G48: 0.9 | H48: 0.1 | I48: 0 | J48: 0
A49: 46 | B49: 46 | C49: 0 | D49: 32 | E49: 70 | F49: 59 | G49: 0.9 | H49: 0.1 | I49: 0 | J49: 0
A50: 47 | B50: 47 | C50: 0 | D50: 32 | E50: 71 | F50: 59.7 | G50: 0.9 | H50: 0.1 | I50: 0 | J50: 0
A51: 48 | B51: 48 | C51: 0 | D51: 32 | E51: 72 | F51: 60.4 | G51: 0.9 | H51: 0.1 | I51: 0 | J51: 0
A52: 49 | B52: 49 | C52: 0 | D52: 32 | E52: 73 | F52: 61.1 | G52: 0.9 | H52: 0.1 | I52: 0 | J52: 0
A53: 50 | B53: 50 | C53: 0 | D53: 32 | E53: 74 | F53: 61.8 | G53: 0.9 | H53: 0.1 | I53: 0 | J53: 0
A54: 51 | B54: 51 | C54: 0 | D54: 32 | E54: 75 | F54: 62.5 | G54: 0.9 | H54: 0.1 | I54: 0 | J54: 0
A55: 52 | B55: 52 | C55: 0 | D55: 32 | E55: 76 | F55: 63.2 | G55: 0.9 | H55: 0.1 | I55: 0 | J55: 0
A56: 53 | B56: 53 | C56: 0 | D56: 32 | E56: 77 | F56: 63.9 | G56: 0.9 | H56: 0.1 | I56: 0 | J56: 0
A57: 54 | B57: 54 | C57: 0 | D57: 32 | E57: 78 | F57: 64.6 | G57: 0.9 | H57: 0.1 | I57: 0 | J57: 0
A58: 55 | B58: 55 | C58: 0 | D58: 32 | E58: 79 | F58: 65.3 | G58: 0.9 | H58: 0.1 | I58: 0 | J58: 0
A59: 56 | B59: 56 | C59: 0 | D59: 32 | E59: 80 | F59: 66 | G59: 0.9 | H59: 0.1 | I59: 0 | J59: 0
A60: 57 | B60: 57 | C60: 0 | D60: 32 | E60: 81 | F60: 66.7 | G60: 0.9 | H60: 0.1 | I60: 0 | J60: 0
A61: 58 | B61: 58 | C61: 0 | D61: 32 | E61: 82 | F61: 67.4 | G61: 0.9 | H61: 0.1 | I61: 0 | J61: 0
A62: 59 | B62: 59 | C62: 0 | D62: 32 | E62: 83 | F62: 68.1 | G62: 0.9 | H62: 0.1 | I62: 0 | J62: 0
A63: 60 | B63: 60 | C63: 0 | D63: 32 | E63: 84 | F63: 68.8 | G63: 0.9 | H63: 0.1 | I63: 0 | J63: 0
A64: 61 | B64: 61 | C64: 0 | D64: 32 | E64: 85 | F64: 69.5 | G64: 0.9 | H64: 0.1 | I64: 0 | J64: 0
A65: 62 | B65: 62 | C65: 0 | D65: 32 | E65: 86 | F65: 70.2 | G65: 0.9 | H65: 0.1 | I65: 0 | J65: 0
A66: 63 | B66: 63 | C66: 0 | D66: 32 | E66: 87 | F66: 70.9 | G66: 0.9 | H66: 0.1 | I66: 0 | J66: 0
A67: 64 | B67: 64 | C67: 0 | D67: 32 | E67: 88 | F67: 71.6 | G67: 0.9 | H67: 0.1 | I67: 0 | J67: 0
A68: 65 | B68: 65 | C68: 0 | D68: 32 | E68: 89 | F68: 72.3 | G68: 0.9 | H68: 0.1 | I68: 0 | J68: 0
A69: 66 | B69: 66 | C69: 0 | D69: 32 | E69: 90 | F69: 73 | G69: 0.9 | H69: 0.1 | I69: 0 | J69: 0
A70: 67 | B70: 67 | C70: 0 | D70: 32 | E70: 91 | F70: 73.7 | G70: 0.9 | H70: 0.1 | I70: 0 | J70: 0
A71: 68 | B71: 68 | C71: 0 | D71: 32 | E71: 92 | F71: 74.4 | G71: 0.9 | H71: 0.1 | I71: 0 | J71: 0
A72: 69 | B72: 69 | C72: 0 | D72: 32 | E72: 93 | F72: 75.1 | G72: 0.9 | H72: 0.1 | I72: 0 | J72: 0
A73: 70 | B73: 70 | C73: 0 | D73: 32 | E73: 94 | F73: 75.8 | G73: 0.9 | H73: 0.1 | I73: 0 | J73: 0
A74: 71 | B74: 71 | C74: 0 | D74: 32 | E74: 95 | F74: 76.5 | G74: 0.9 | H74: 0.1 | I74: 0 | J74: 0
A75: 72 | B75: 72 | C75: 0 | D75: 32 | E75: 96 | F75: 77.2 | G75: 0.9 | H75: 0.1 | I75: 0 | J75: 0
A76: 73 | B76: 73 | C76: 0 | D76: 32 | E76: 97 | F76: 77.9 | G76: 0.9 | H76: 0.1 | I76: 0 | J76: 0
A77: 74 | B77: 74 | C77: 0 | D77: 32 | E77: 98 | F77: 78.6 | G77: 0.9 | H77: 0.1 | I77: 0 | J77: 0
A78: 75 | B78: 75 | C78: 0 | D78: 32 | E78: 99 | F78: 79.3 | G78: 0.9 | H78: 0.1 | I78: 0 | J78: 0
A79: 76 | B79: 76 | C79: 0 | D79: 32 | E79: 100 | F79: 80 | G79: 0.9 | H79: 0.1 | I79: 0 | J79: 0
A80: 77 | B80: 77 | C80: 0 | D80: 32 | E80: 101 | F80: 80.7 | G80: 0.9 | H80: 0.1 | I80: 0 | J80: 0
A81: 78 | B81: 78 | C81: 0 | D81: 32 | E81: 102 | F81: 81.4 | G81: 0.9 | H81: 0.1 | I81: 0 | J81: 0
A82: 79 | B82: 79 | C82: 0 | D82: 32 | E82: 103 | F82: 82.1 | G82: 0.9 | H82: 0.1 | I82: 0 | J82: 0
A83: 80 | B83: 80 | C83: 0 | D83: 32 | E83: 104 | F83: 82.8 | G83: 0.9 | H83: 0.1 | I83: 0 | J83: 0
A84: 81 | B84: 81 | C84: 0 | D84: 32 | E84: 105 | F84: 83.5 | G84: 0.9 | H84: 0.1 | I84: 0 | J84: 0
A85: 82 | B85: 82 | C85: 0 | D85: 32 | E85: 106 | F85: 84.2 | G85: 0.9 | H85: 0.1 | I85: 0 | J85: 0
A86: 83 | B86: 83 | C86: 0 | D86: 32 | E86: 107 | F86: 84.9 | G86: 0.9 | H86: 0.1 | I86: 0 | J86: 0
A87: 84 | B87: 84 | C87: 0 | D87: 32 | E87: 108 | F87: 85.6 | G87: 0.9 | H87: 0.1 | I87: 0 | J87: 0
A88: 85 | B88: 85 | C88: 0 | D88: 32 | E88: 109 | F88: 86.3 | G88: 0.9 | H88: 0.1 | I88: 0 | J88: 0
A89: 86 | B89: 86 | C89: 0 | D89: 32 | E89: 110 | F89: 87 | G89: 0.9 | H89: 0.1 | I89: 0 | J89: 0
A90: 87 | B90: 87 | C90: 0 | D90: 32 | E90: 111 | F90: 87.7 | G90: 0.9 | H90: 0.1 | I90: 0 | J90: 0
A91: 88 | B91: 88 | C91: 0 | D91: 32 | E91: 112 | F91: 88.4 | G91: 0.9 | H91: 0.1 | I91: 0 | J91: 0
A92: 89 | B92: 89 | C92: 0 | D92: 32 | E92: 113 | F92: 89.1 | G92: 0.9 | H92: 0.1 | I92: 0 | J92: 0
A93: 90 | B93: 90 | C93: 0 | D93: 32 | E93: 114 | F93: 89.8 | G93: 0.9 | H93: 0.1 | I93: 0 | J93: 0
A94: 91 | B94: 91 | C94: 0 | D94: 32 | E94: 115 | F94: 90.5 | G94: 0.9 | H94: 0.1 | I94: 0 | J94: 0
A95: 92 | B95: 92 | C95: 0 | D95: 32 | E95: 116 | F95: 91.2 | G95: 0.9 | H95: 0.1 | I95: 0 | J95: 0
A96: 93 | B96: 93 | C96: 0 | D96: 32 | E96: 117 | F96: 91.9 | G96: 0.9 | H96: 0.1 | I96: 0 | J96: 0
A97: 94 | B97: 94 | C97: 0 | D97: 32 | E97: 118 | F97: 92.6 | G97: 0.9 | H97: 0.1 | I97: 0 | J97: 0
A98: 95 | B98: 95 | C98: 0 | D98: 32 | E98: 119 | F98: 93.3 | G98: 0.9 | H98: 0.1 | I98: 0 | J98: 0
A99: 96 | B99: 96 | C99: 0 | D99: 32 | E99: 120 | F99: 94 | G99: 0.9 | H99: 0.1 | I99: 0 | J99: 0
A100: 97 | B100: 97 | C100: 0 | D100: 32 | E100: 121 | F100: 94.7 | G100: 0.9 | H100: 0.1 | I100: 0 | J100: 0
A101: 98 | B101: 98 | C101: 0 | D101: 32 | E101: 122 | F101: 95.4 | G101: 0.9 | H101: 0.1 | I101: 0 | J101: 0
A102: 99 | B102: 99 | C102: 0 | D102: 32 | E102: 123 | F102: 96.1 | G102: 0.9 | H102: 0.1 | I102: 0 | J102: 0
A103: 100 | B103: 100 | C103: 0 | D103: 32 | E103: 124 | F103: 96.8 | G103: 0.9 | H103: 0.1 | I103: 0 | J103: 0
A104: 101 | B104: 101 | C104: 0 | D104: 32 | E104: 125 | F104: 97.5 | G104: 0.9 | H104: 0.1 | I104: 0 | J104: 0
A105: 102 | B105: 102 | C105: 0 | D105: 32 | E105: 126 | F105: 98.2 | G105: 0.9 | H105: 0.1 | I105: 0 | J105: 0
A106: 103 | B106: 103 | C106: 0 | D106: 32 | E106: 127 | F106: 98.9 | G106: 0.9 | H106: 0.1 | I106: 0 | J106: 0
A107: 104 | B107: 104 | C107: 0 | D107: 32 | E107: 128 | F107: 99.6 | G107: 0.9 | H107: 0.1 | I107: 0 | J107: 0
A108: 105 | B108: 105 | C108: 0 | D108: 32 | E108: 129 | F108: 100.3 | G108: 0.9 | H108: 0.1 | I108: 0 | J108: 0
A109: 106 | B109: 106 | C109: 0 | D109: 32 | E109: 130 | F109: 101 | G109: 0.9 | H109: 0.1 | I109: 0 | J109: 0
A110: 107 | B110: 107 | C110: 0 | D110: 32 | E110: 131 | F110: 101.7 | G110: 0.9 | H110: 0.1 | I110: 0 | J110: 0
A111: 108 | B111: 108 | C111: 0 | D111: 32 | E111: 132 | F111: 102.4 | G111: 0.9 | H111: 0.1 | I111: 0 | J111: 0
A112: 109 | B112: 109 | C112: 0 | D112: 32 | E112: 133 | F112: 103.1 | G112: 0.9 | H112: 0.1 | I112: 0 | J112: 0
A113: 110 | B113: 110 | C113: 0 | D113: 32 | E113: 134 | F113: 103.8 | G113: 0.9 | H113: 0.1 | I113: 0 | J113: 0
A114: 111 | B114: 111 | C114: 0 | D114: 32 | E114: 135 | F114: 104.5 | G114: 0.9 | H114: 0.1 | I114: 0 | J114: 0
A115: 112 | B115: 112 | C115: 0 | D115: 32 | E115: 136 | F115: 105.2 | G115: 0.9 | H115: 0.1 | I115: 0 | J115: 0
A116: 113 | B116: 113 | C116: 0 | D116: 32 | E116: 137 | F116: 105.9 | G116: 0.9 | H116: 0.1 | I116: 0 | J116: 0
A117: 114 | B117: 114 | C117: 0 | D117: 32 | E117: 138 | F117: 106.6 | G117: 0.9 | H117: 0.1 | I117: 0 | J117: 0
A118: 115 | B118: 115 | C118: 0 | D118: 32 | E118: 139 | F118: 107.3 | G118: 0.9 | H118: 0.1 | I118: 0 | J118: 0
A119: 116 | B119: 116 | C119: 0 | D119: 32 | E119: 140 | F119: 108 | G119: 0.9 | H119: 0.1 | I119: 0 | J119: 0
A120: 117 | B120: 117 | C120: 0 | D120: 32 | E120: 141 | F120: 108.7 | G120: 0.9 | H120: 0.1 | I120: 0 | J120: 0
A121: 118 | B121: 118 | C121: 0 | D121: 32 | E121: 142 | F121: 109.4 | G121: 0.9 | H121: 0.1 | I121: 0 | J121: 0
A122: 119 | B122: 119 | C122: 0 | D122: 32 | E122: 143 | F122: 110.1 | G122: 0.9 | H122: 0.1 | I122: 0 | J122: 0
A123: 120 | B123: 120 | C123: 0 | D123: 32 | E123: 144 | F123: 110.8 | G123: 0.9 | H123: 0.1 | I123: 0 | J123: 0
A124: 121 | B124: 121 | C124: 0 | D124: 32 | E124: 145 | F124: 111.5 | G124: 0.9 | H124: 0.1 | I124: 0 | J124: 0
A125: 122 | B125: 122 | C125: 0 | D125: 32 | E125: 146 | F125: 112.2 | G125: 0.9 | H125: 0.1 | I125: 0 | J125: 0
A126: 123 | B126: 123 | C126: 0 | D126: 32 | E126: 147 | F126: 112.9 | G126: 0.9 | H126: 0.1 | I126: 0 | J126: 0
A127: 124 | B127: 124 | C127: 0 | D127: 32 | E127: 148 | F127: 113.6 | G127: 0.9 | H127: 0.1 | I127: 0 | J127: 0
A128: 125 | B128: 125 | C128: 0 | D128: 32 | E128: 149 | F128: 114.3 | G128: 0.9 | H128: 0.1 | I128: 0 | J128: 0
A129: 126 | B129: 126 | C129: 0 | D129: 32 | E129: 150 | F129: 115 | G129: 0.9 | H129: 0.1 | I129: 0 | J129: 0
A130: 127 | B130: 127 | C130: 0 | D130: 32 | E130: 151 | F130: 115.7 | G130: 0.9 | H130: 0.1 | I130: 0 | J130: 0
A131: 128 | B131: 128 | C131: 0 | D131: 32 | E131: 152 | F131: 116.4 | G131: 0.9 | H131: 0.1 | I131: 0 | J131: 0
A132: 129 | B132: 129 | C132: 0 | D132: 32 | E132: 153 | F132: 117.1 | G132: 0.9 | H132: 0.1 | I132: 0 | J132: 0
A133: 130 | B133: 130 | C133: 0 | D133: 32 | E133: 154 | F133: 117.8 | G133: 0.9 | H133: 0.1 | I133: 0 | J133: 0
A134: 131 | B134: 131 | C134: 0 | D134: 32 | E134: 155 | F134: 118.5 | G134: 0.9 | H134: 0.1 | I134: 0 | J134: 0
A135: 132 | B135: 132 | C135: 0 | D135: 32 | E135: 156 | F135: 119.2 | G135: 0.9 | H135: 0.1 | I135: 0 | J135: 0
A136: 133 | B136: 133 | C136: 0 | D136: 32 | E136: 157 | F136: 119.9 | G136: 0.9 | H136: 0.1 | I136: 0 | J136: 0
A137: 134 | B137: 134 | C137: 0 | D137: 32 | E137: 158 | F137: 120.6 | G137: 0.9 | H137: 0.1 | I137: 0 | J137: 0
A138: 135 | B138: 135 | C138: 0 | D138: 32 | E138: 159 | F138: 121.3 | G138: 0.9 | H138: 0.1 | I138: 0 | J138: 0
A139: 136 | B139: 136 | C139: 0 | D139: 32 | E139: 160 | F139: 122 | G139: 0.9 | H139: 0.1 | I139: 0 | J139: 0
A140: 137 | B140: 137 | C140: 0 | D140: 32 | E140: 161 | F140: 122.7 | G140: 0.9 | H140: 0.1 | I140: 0 | J140: 0
A141: 138 | B141: 138 | C141: 0 | D141: 32 | E141: 162 | F141: 123.4 | G141: 0.9 | H141: 0.1 | I141: 0 | J141: 0
A142: 139 | B142: 139 | C142: 0 | D142: 32 | E142: 163 | F142: 124.1 | G142: 0.9 | H142: 0.1 | I142: 0 | J142: 0
A143: 140 | B143: 140 | C143: 0 | D143: 32 | E143: 164 | F143: 124.8 | G143: 0.9 | H143: 0.1 | I143: 0 | J143: 0
A144: 141 | B144: 141 | C144: 0 | D144: 32 | E144: 165 | F144: 125.5 | G144: 0.9 | H144: 0.1 | I144: 0 | J144: 0
A145: 142 | B145: 142 | C145: 0 | D145: 32 | E145: 166 | F145: 126.2 | G145: 0.9 | H145: 0.1 | I145: 0 | J145: 0
A146: 143 | B146: 143 | C146: 0 | D146: 32 | E146: 167 | F146: 126.9 | G146: 0.9 | H146: 0.1 | I146: 0 | J146: 0
A147: 144 | B147: 144 | C147: 0 | D147: 32 | E147: 168 | F147: 127.6 | G147: 0.9 | H147: 0.1 | I147: 0 | J147: 0
A148: 145 | B148: 145 | C148: 0 | D148: 32 | E148: 169 | F148: 128.3 | G148: 0.9 | H148: 0.1 | I148: 0 | J148: 0
A149: 146 | B149: 146 | C149: 0 | D149: 32 | E149: 170 | F149: 129 | G149: 0.9 | H149: 0.1 | I149: 0 | J149: 0
A150: 147 | B150: 147 | C150: 0 | D150: 32 | E150: 171 | F150: 129.7 | G150: 0.9 | H150: 0.1 | I150: 0 | J150: 0
A151: 148 | B151: 148 | C151: 0 | D151: 32 | E151: 172 | F151: 130.4 | G151: 0.9 | H151: 0.1 | I151: 0 | J151: 0
A152: 149 | B152: 149 | C152: 0 | D152: 32 | E152: 173 | F152: 131.1 | G152: 0.9 | H152: 0.1 | I152: 0 | J152: 0
A153: 150 | B153: 150 | C153: 0 | D153: 32 | E153: 174 | F153: 131.8 | G153: 0.9 | H153: 0.1 | I153: 0 | J153: 0
A154: 151 | B154: 151 | C154: 0 | D154: 32 | E154: 175 | F154: 132.5 | G154: 0.9 | H154: 0.1 | I154: 0 | J154: 0
A155: 152 | B155: 152 | C155: 0 | D155: 32 | E155: 176 | F155: 133.2 | G155: 0.9 | H155: 0.1 | I155: 0 | J155: 0
A156: 153 | B156: 153 | C156: 0 | D156: 32 | E156: 177 | F156: 133.9 | G156: 0.9 | H156: 0.1 | I156: 0 | J156: 0
A157: 154 | B157: 154 | C157: 0 | D157: 32 | E157: 178 | F157: 134.6 | G157: 0.9 | H157: 0.1 | I157: 0 | J157: 0
A158: 155 | B158: 155 | C158: 0 | D158: 32 | E158: 179 | F158: 135.3 | G158: 0.9 | H158: 0.1 | I158: 0 | J158: 0
A159: 156 | B159: 156 | C159: 0 | D159: 32 | E159: 180 | F159: 136 | G159: 0.9 | H159: 0.1 | I159: 0 | J159: 0
A160: 157 | B160: 157 | C160: 0 | D160: 32 | E160: 181 | F160: 136.7 | G160: 0.9 | H160: 0.1 | I160: 0 | J160: 0
A161: 158 | B161: 158 | C161: 0 | D161: 32 | E161: 182 | F161: 137.4 | G161: 0.9 | H161: 0.1 | I161: 0 | J161: 0
A162: 159 | B162: 159 | C162: 0 | D162: 32 | E162: 183 | F162: 138.1 | G162: 0.9 | H162: 0.1 | I162: 0 | J162: 0
A163: 160 | B163: 160 | C163: 0 | D163: 32 | E163: 184 | F163: 138.8 | G163: 0.9 | H163: 0.1 | I163: 0 | J163: 0
A164: 161 | B164: 161 | C164: 0 | D164: 32 | E164: 185 | F164: 139.5 | G164: 0.9 | H164: 0.1 | I164: 0 | J164: 0
A165: 162 | B165: 162 | C165: 0 | D165: 32 | E165: 186 | F165: 140.2 | G165: 0.9 | H165: 0.1 | I165: 0 | J165: 0
A166: 163 | B166: 163 | C166: 0 | D166: 32 | E166: 187 | F166: 140.9 | G166: 0.9 | H166: 0.1 | I166: 0 | J166: 0
A167: 164 | B167: 164 | C167: 0 | D167: 32 | E167: 188 | F167: 141.6 | G167: 0.9 | H167: 0.1 | I167: 0 | J167: 0
A168: 165 | B168: 165 | C168: 0 | D168: 32 | E168: 189 | F168: 142.3 | G168: 0.9 | H168: 0.1 | I168: 0 | J168: 0
A169: 166 | B169: 166 | C169: 0 | D169: 32 | E169: 190 | F169: 143 | G169: 0.9 | H169: 0.1 | I169: 0 | J169: 0
A170: 167 | B170: 167 | C170: 0 | D170: 32 | E170: 191 | F170: 143.7 | G170: 0.9 | H170: 0.1 | I170: 0 | J170: 0
A171: 168 | B171: 168 | C171: 0 | D171: 32 | E171: 192 | F171: 144.4 | G171: 0.9 | H171: 0.1 | I171: 0 | J171: 0
A172: 169 | B172: 169 | C172: 0 | D172: 32 | E172: 193 | F172: 145.1 | G172: 0.9 | H172: 0.1 | I172: 0 | J172: 0
A173: 170 | B173: 170 | C173: 0 | D173: 32 | E173: 194 | F173: 145.8 | G173: 0.9 | H173: 0.1 | I173: 0 | J173: 0
A174: 171 | B174: 171 | C174: 0 | D174: 32 | E174: 195 | F174: 146.5 | G174: 0.9 | H174: 0.1 | I174: 0 | J174: 0
A175: 172 | B175: 172 | C175: 0 | D175: 32 | E175: 196 | F175: 147.2 | G175: 0.9 | H175: 0.1 | I175: 0 | J175: 0
A176: 173 | B176: 173 | C176: 0 | D176: 32 | E176: 197 | F176: 147.9 | G176: 0.9 | H176: 0.1 | I176: 0 | J176: 0
A177: 174 | B177: 174 | C177: 0 | D177: 32 | E177: 198 | F177: 148.6 | G177: 0.9 | H177: 0.1 | I177: 0 | J177: 0
A178: 175 | B178: 175 | C178: 0 | D178: 32 | E178: 199 | F178: 149.3 | G178: 0.9 | H178: 0.1 | I178: 0 | J178: 0
A179: 176 | B179: 176 | C179: 0 | D179: 32 | E179: 200 | F179: 150 | G179: 0.9 | H179: 0.1 | I179: 0 | J179: 0
A180: 177 | B180: 177 | C180: 0 | D180: 32 | E180: 201 | F180: 150.7 | G180: 0.9 | H180: 0.1 | I180: 0 | J180: 0
A181: 178 | B181: 178 | C181: 0 | D181: 32 | E181: 202 | F181: 151.4 | G181: 0.9 | H181: 0.1 | I181: 0 | J181: 0
A182: 179 | B182: 179 | C182: 0 | D182: 32 | E182: 203 | F182: 152.1 | G182: 0.9 | H182: 0.1 | I182: 0 | J182: 0
A183: 180 | B183: 180 | C183: 0 | D183: 32 | E183: 204 | F183: 152.8 | G183: 0.9 | H183: 0.1 | I183: 0 | J183: 0
A184: 181 | B184: 181 | C184: 0 | D184: 32 | E184: 205 | F184: 153.5 | G184: 0.9 | H184: 0.1 | I184: 0 | J184: 0
A185: 182 | B185: 182 | C185: 0 | D185: 32 | E185: 206 | F185: 154.2 | G185: 0.9 | H185: 0.1 | I185: 0 | J185: 0
A186: 183 | B186: 183 | C186: 0 | D186: 32 | E186: 207 | F186: 154.9 | G186: 0.9 | H186: 0.1 | I186: 0 | J186: 0
A187: 184 | B187: 184 | C187: 0 | D187: 32 | E187: 208 | F187: 155.6 | G187: 0.9 | H187: 0.1 | I187: 0 | J187: 0
A188: 185 | B188: 185 | C188: 0 | D188: 32 | E188: 209 | F188: 156.3 | G188: 0.9 | H188: 0.1 | I188: 0 | J188: 0
A189: 186 | B189: 186 | C189: 0 | D189: 32 | E189: 210 | F189: 157 | G189: 0.9 | H189: 0.1 | I189: 0 | J189: 0
A190: 187 | B190: 187 | C190: 0 | D190: 32 | E190: 211 | F190: 157.7 | G190: 0.9 | H190: 0.1 | I190: 0 | J190: 0
A191: 188 | B191: 188 | C191: 0 | D191: 32 | E191: 212 | F191: 158.4 | G191: 0.9 | H191: 0.1 | I191: 0 | J191: 0
A192: 189 | B192: 189 | C192: 0 | D192: 32 | E192: 213 | F192: 159.1 | G192: 0.9 | H192: 0.1 | I192: 0 | J192: 0
A193: 190 | B193: 190 | C193: 0 | D193: 32 | E193: 214 | F193: 159.8 | G193: 0.9 | H193: 0.1 | I193: 0 | J193: 0
A194: 191 | B194: 191 | C194: 0 | D194: 32 | E194: 215 | F194: 160.5 | G194: 0.9 | H194: 0.1 | I194: 0 | J194: 0
A195: 192 | B195: 192 | C195: 0 | D195: 32 | E195: 216 | F195: 161.2 | G195: 0.9 | H195: 0.1 | I195: 0 | J195: 0
A196: 193 | B196: 193 | C196: 0 | D196: 32 | E196: 217 | F196: 161.9 | G196: 0.9 | H196: 0.1 | I196: 0 | J196: 0
A197: 194 | B197: 194 | C197: 0 | D197: 32 | E197: 218 | F197: 162.6 | G197: 0.9 | H197: 0.1 | I197: 0 | J197: 0
A198: 195 | B198: 195 | C198: 0 | D198: 32 | E198: 219 | F198: 163.3 | G198: 0.9 | H198: 0.1 | I198: 0 | J198: 0
A199: 196 | B199: 196 | C199: 0 | D199: 32 | E199: 220 | F199: 164 | G199: 0.9 | H199: 0.1 | I199: 0 | J199: 0
A200: 197 | B200: 197 | C200: 0 | D200: 32 | E200: 221 | F200: 164.7 | G200: 0.9 | H200: 0.1 | I200: 0 | J200: 0
... 3779 more rows
